Workbook

Sheet Province Summary
A2: Model 2.06B
B3: Run 1 | C3: Run 2 | D3: Run 3 | E3: Run 4 | F3: Run 5
A4: Run # | B4: 09.19.07 | C4: 09.19.12 | D4: 09.19.17 | E4: 13.43.35 | F4: 13.43.40
A5: Runs | B5: 2400 | C5: 2400 | D5: 2400 | E5: 4800 | F5: 4800
A6: Escalator | B6: 1.062 | C6: 1.06 | D6: 1.058 | E6: 1.056 | F6: 1.057
A7: LOLE | B7: 0.12625 | C7: 0.1120833333 | D7: 0.1104166667 | E7: 0.09395833333 | F7: 0.10375
A8: LOLH | B8: 0.7533333333 | C8: 0.6991666667 | D8: 0.6079166667 | E8: 0.5991666667 | F8: 0.6375
A9: Peak | B9: 2159.977718 | C9: 2155.265937 | D9: 2151.511806 | E9: 2146.94209 | F9: 2149.790259
A10: Loss @ Peak | B10: 161.0296471 | C10: 161.1725975 | D10: 160.770014 | E10: 160.3967743 | F10: 160.7700194
A11: Peak with Losses | B11: 2321.007365 | C11: 2316.438534 | D11: 2312.28182 | E11: 2307.338864 | F11: 2310.560278
A12: Peak Losses | B12: 165.9386401 | C12: 165.7706494 | D12: 165.6111123 | E12: 165.6503884 | F12: 165.7723972
A13: Island Peak | B13: 1758.347388 | C13: 1755.156293 | D13: 1751.734216 | E13: 1748.766357 | F13: 1750.250478
A14: Labrador Peak | B14: 428.199724 | C14: 427.4335124 | D14: 426.5831797 | E14: 425.8101134 | F14: 426.2138505
A15: Coincidence Factor | B15: 0.987848698 | C15: 0.9874809875 | D15: 0.98769436 | E15: 0.9872920633 | F15: 0.9877443112
A16: Firm Capacity | B16: 2608.9 | C16: 2608.9 | D16: 2608.9 | E16: 2608.9 | F16: 2608.9
A17: Reserve Margin | B17: 606.9222819 | C17: 611.6340631 | D17: 615.3881944 | E17: 619.95791 | F17: 617.109741
A18: Reserve Margin % | B18: 0.2809854365 | C18: 0.2837858905 | D18: 0.2860259436 | E18: 0.2887632195 | F18: 0.2870557899
A19: Reserve Magin w/Loss | B19: 445.8926348 | C19: 450.4614656 | D19: 454.6181804 | E19: 459.5611357 | F19: 456.3397216
A20: Reserve Margin % w/ Loss | B20: 0.1921116846 | C20: 0.1944629477 | D20: 0.1966101954 | E20: 0.199173664 | F20: 0.19750176
A22: Province LOLE Benchmarking
B24: Run 1 | C24: Run 2 | D24: Run 3 | E24: Run 4 | F24: Run 5 | G24: Run 6 | H24: Run 7 | I24: Run 8 | J24: Run 9 | K24: Run 10 | L24: Run 11
A25: Model | B25: 2.15S | C25: 2.15S | D25: 2.15S | E25: 2.15S | F25: 2.15S | G25: 2.15S | H25: 2.15S | I25: 2.15S | J25: 2.15S | K25: 2.15S | L25: 2.15S
A26: Run # | B26: 08.23.36 | C26: 08.23.41 | D26: 08.23.46 | E26: 14.26.12 | F26: 14.26.17 | G26: 14.26.22 | H26: 21.33.59 | I26: 21.34.04 | J26: 21.34.09 | K26: 17.31.03 | L26: 17.31.08
A27: Runs | B27: 4800 | C27: 4800 | D27: 4800 | E27: 4800 | F27: 4800 | G27: 4800 | H27: 4800 | I27: 4800 | J27: 4800 | K27: 4800 | L27: 4800
A28: Escalator | B28: 1.023 | C28: 1.025 | D28: 1.027 | E28: 1.021 | F28: 1.025 | G28: 1.029 | H28: 1.024 | I28: 1.026 | J28: 1.031 | K28: 1.031 | L28: 1.033
A29: LOLE | B29: 0.086875 | C29: 0.095 | D29: 0.095 | E29: 0.08458333333 | F29: 0.09145833333 | G29: 0.1060416667 | H29: 0.08083333333 | I29: 0.09208333333 | J29: 0.10625 | K29: 0.103125 | L29: 0.1102083333
A30: LOLH | B30: 0.539375 | C30: 0.5575 | D30: 0.5575 | E30: 0.513125 | F30: 0.5497916667 | G30: 0.608125 | H30: 0.5414583333 | I30: 0.5545833333 | J30: 0.6270833333 | K30: 0.624375 | L30: 0.6527083333
A31: EUE | B31: 55.20501401 | C31: 55.69923185 | D31: 55.69923185 | E31: 52.77599469 | F31: 55.26689373 | G31: 60.34583326 | H31: 55.64858563 | I31: 57.39690175 | J31: 62.16760736 | K31: 60.93768217 | L31: 63.38247896
A32: Peak | B32: 2165.650025 | C32: 2174.18951 | D32: 2174.18951 | E32: 2162.034091 | F32: 2169.921283 | G32: 2178.489438 | H32: 2167.907617 | I32: 2171.871078 | J32: 2182.634056 | K32: 2183.340691 | L32: 2187.048521
A33: Loss @ Peak | B33: 124.0624735 | C33: 124.241589 | D33: 124.241589 | E33: 124.0596175 | F33: 124.1082205 | G33: 124.4374178 | H33: 123.9929813 | I33: 124.1425788 | J33: 124.5051468 | K33: 124.6414702 | L33: 124.7255758
A34: Peak with Losses | B34: 2289.712499 | C34: 2298.431099 | D34: 2298.431099 | E34: 2286.093708 | F34: 2294.029503 | G34: 2302.926856 | H34: 2291.900599 | I34: 2296.013656 | J34: 2307.139203 | K34: 2307.982161 | L34: 2311.774097
A35: Peak Losses | B35: 131.3239549 | C35: 131.430252 | D35: 131.430252 | E35: 131.3326639 | F35: 131.3739921 | G35: 131.5084046 | H35: 131.2958707 | I35: 131.4184437 | J35: 131.4433068 | K35: 131.4881127 | L35: 131.5274233
A36: Island Peak | B36: 1743.313644 | C36: 1750.281025 | D36: 1750.281025 | E36: 1739.77725 | F36: 1746.647103 | G36: 1753.628306 | H36: 1744.734522 | I36: 1747.992952 | J36: 1756.967983 | K36: 1756.744817 | L36: 1760.009053
A37: Labrador Peak | B37: 470.8788212 | C37: 472.714203 | D37: 472.714203 | E37: 469.9460648 | F37: 471.7987381 | G37: 473.6456865 | H37: 471.3420532 | I37: 472.2643752 | J37: 474.573294 | K37: 474.5534087 | L37: 475.4787265
A38: Coincidence Factor | B38: 0.9780766846 | C38: 0.9780450638 | D38: 0.9780450638 | E38: 0.9784184636 | F38: 0.978126778 | G38: 0.9780967432 | H38: 0.9782638568 | I38: 0.978206918 | J38: 0.9780836581 | K38: 0.9785068912 | L38: 0.9783316827
A39: Firm Capacity | B39: 2602.086 | C39: 2602.086 | D39: 2602.086 | E39: 2602.086 | F39: 2602.086 | G39: 2602.086 | H39: 2602.086 | I39: 2602.086 | J39: 2602.086 | K39: 2602.086 | L39: 2602.086
A40: Reserve Margin | B40: 436.4359749 | C40: 427.8964903 | D40: 427.8964903 | E40: 440.051909 | F40: 432.1647171 | G40: 423.5965618 | H40: 434.1783826 | I40: 430.2149224 | J40: 419.4519442 | K40: 418.7453094 | L40: 415.0374792
A41: Reserve Margin % | B41: 0.2015265485 | C41: 0.1968073567 | D41: 0.1968073567 | E41: 0.2035360639 | F41: 0.1991614721 | G41: 0.194445084 | H41: 0.2002753158 | I41: 0.1980849263 | J41: 0.1921769447 | K41: 0.1917910985 | L41: 0.1897705859
A42: Reserve Magin w/Loss | B42: 312.3735014 | C42: 303.6549013 | D42: 303.6549013 | E42: 315.9922915 | F42: 308.0564967 | G42: 299.159144 | H42: 310.1854013 | I42: 306.0723436 | J42: 294.9467973 | K42: 294.1038392 | L42: 290.3119034
A43: Reserve Margin % w/ Loss | B43: 0.1364247702 | C43: 0.1321139892 | D43: 0.1321139892 | E43: 0.1382236828 | F43: 0.1342861965 | G43: 0.1299038844 | H43: 0.1353398142 | I43: 0.1333059769 | J43: 0.1278409196 | K43: 0.1274289915 | L43: 0.1255797025

Sheet Reserve Margin Calculation
A1: Equation
A2: y = ax+b
A3: a | B3: 2.397
A4: b | B4: -2.3657
A5: y | B5: 0.1
A6: x | B6: =(B5-B4)/B3 -> 1.028660826
B8: P50 | C8: P90
A9: Island Peak (Unescalated) | B9: 2117.245757
A10: Island Peak (Escalated) | B10: =B9*B6 -> 2177.927769 | C10: =B10-60 -> 2117.927769
A11: Losses @ Peak | B11: 124.4374178 | C11: 124.4374178
A12: Peak With Losses | B12: =B10+B11 -> 2302.365187 | C12: =C10+C11 -> 2242.365187
A13: Island Capacity | B13: 2602.086 | C13: 2602.086
A14: Reserve Margin | B14: =B13-B10 -> 424.158231 | C14: =C13-C10 -> 484.158231
A15: Reserve Margin % | B15: =B14/B10 -> 0.1947531213 | C15: =C14/C10 -> 0.2285999731
A16: Reserve Magin w/Loss | B16: =B13-B12 -> 299.7208132 | C16: =C13-C12 -> 359.7208132
A17: Reserve Margin % w/ Loss | B17: =B16/B12 -> 0.130179528 | C17: =C16/C12 -> 0.1604202631

Sheet Coincidence Check
A1: Coincidence Calculator
A3: 2026 Forecast | D3: Coincident Peak
B4: Peak | C4: NLIS Coincidence | D4: Expected | E4: Actual | F4: Error
A5: Island | B5: 1744.896 | C5: 0.992 | D5: =B5*C5 -> 1730.936832 | E5: 1730.8672 | F5: =D5-E5 -> 0.069632
A6: Lab West | B6: 79.872 | C6: 0.9136519706 | D6: =B6*C6 -> 72.97521019 | E6: 73.0112 | F6: =D6-E6 -> -0.03598980661
A7: Industrial | B7: 324.608 | C7: 0.90535 | D7: 293.8838528 | E7: 293.888 | F7: -0.0041472
A8: Lab East | B8: 82.8416 | C8: 0.84817 | D8: 70.26375987 | E8: 70.2464 | F8: 0.017359872
D9: =SUM(D5:D8) -> 2168.059655 | E9: =SUM(E5:E8) -> 2168.0128 | F9: 0.04685486539

Sheet Run 1
A2: Island | K2: Labrador | R2: LIL Losses
A3: Parent Name | B3: Collection | C3: Child Name | D3: Category | E3: Datetime | F3: Load (MW) | G3: Transmission Losses (MW) | H3: Unserved Energy Hours (h) | I3: Unserved Energy (MW) | K3: Parent Name | L3: Collection | M3: Child Name | N3: Category | O3: Datetime | P3: Load (MW) | Q3: Transmission Losses (MW) | R3: Transmission Losses (MW) | S3: Province Total No Loss | T3: Province Loss | U3: Province Total | V3: Unserved Energy Hours (h) | W3: Unserved Energy (MW) | Y3: Daily Peak | Z3: Daily Peak Load | AA3: Average Unserved Energy Hours
A4: System | B4: Region | C4: Island | D4: - | E4: 2026-01-01 | F4: 1434.236071 | G4: 30.23369255 | H4: 0.0002083333333 | I4: 0.01920779504 | K4: System | L4: Region | M4: Labrador | N4: - | O4: 2026-01-01 | P4: 383.6746809 | Q4: 33.96945884 | R4: 31.75861677 | S4: =F4+P4 -> 1817.910752 | T4: =G4+Q4+R4 -> 95.96176816 | U4: =F4+G4+P4+Q4 -> 1882.113903 | V4: =H4 -> 0.0002083333333 | W4: 0.01920779504 | Y4: 2025-01-01T17:00:00 | Z4: =MAX(OFFSET($S$4:$S$27,(ROW()-4)*24,0)) -> 1996.676706 | AA4: =VLOOKUP(Z4,OFFSET($S$4:$V$27,(ROW()-4)*24,0),4,FALSE) -> 0.000625 | AD4: LOLE | AE4: =SUM(AA4:AA368) -> 0.086875
A5: System | B5: Region | C5: Island | D5: - | E5: 2026-01-01T01:00:00 | F5: 1401.904563 | G5: 30.11017582 | H5: 0.0004166666667 | I5: 0.06520554092 | K5: System | L5: Region | M5: Labrador | N5: - | O5: 2026-01-01T01:00:00 | P5: 399.1130636 | Q5: 33.67275708 | R5: 29.84935266 | S5: 1801.017627 | T5: =G5+Q5+R5 -> 93.63228556 | U5: 1864.800559 | V5: 0.0004166666667 | W5: 0.06520554092 | Y5: 2025-01-02T17:00:00 | Z5: =MAX(OFFSET($S$4:$S$27,(ROW()-4)*24,0)) -> 1910.30953 | AA5: =VLOOKUP(Z5,OFFSET($S$4:$V$27,(ROW()-4)*24,0),4,FALSE) -> 0 | AD5: LOLH | AE5: =SUM(V4:V8763) -> 0.539375
A6: System | B6: Region | C6: Island | D6: - | E6: 2026-01-01T02:00:00 | F6: 1379.35421 | G6: 29.9878854 | H6: 0.0002083333333 | I6: 0.006574190001 | K6: System | L6: Region | M6: Labrador | N6: - | O6: 2026-01-01T02:00:00 | P6: 414.7880101 | Q6: 33.39175727 | R6: 28.5830159 | S6: 1794.14222 | T6: 91.96265857 | U6: 1857.521862 | V6: 0.0002083333333 | W6: 0.006574190001 | Y6: 2025-01-03T20:00:00 | Z6: 2119.006964 | AA6: 0.005208333333 | AD6: EUE | AE6: =SUM(W4:W8763) -> 55.20501401
A7: System | B7: Region | C7: Island | D7: - | E7: 2026-01-01T03:00:00 | F7: 1364.75863 | G7: 29.87273308 | H7: 0 | I7: 0 | K7: System | L7: Region | M7: Labrador | N7: - | O7: 2026-01-01T03:00:00 | P7: 434.7213637 | Q7: 33.0199792 | R7: 27.8043545 | S7: 1799.479994 | T7: 90.69706678 | U7: 1862.372706 | V7: 0 | W7: 0 | Y7: 2025-01-04T17:00:00 | Z7: 2109.335336 | AA7: 0.002708333333 | AD7: Peak | AE7: =MAX(S4:S8763) -> 2165.650025
A8: System | B8: Region | C8: Island | D8: - | E8: 2026-01-01T04:00:00 | F8: 1363.289714 | G8: 29.8942145 | H8: 0.0004166666667 | I8: 0.02190513217 | K8: System | L8: Region | M8: Labrador | N8: - | O8: 2026-01-01T04:00:00 | P8: 427.8232771 | Q8: 33.14672232 | R8: 27.72953188 | S8: 1791.112991 | T8: 90.7704687 | U8: 1854.153928 | V8: 0.0004166666667 | W8: 0.02190513217 | Y8: 2025-01-05T19:00:00 | Z8: 1826.385644 | AA8: 0 | AD8: Loss @ Peak | AE8: =VLOOKUP(AE7,S4:T8763,2,FALSE) -> 124.0624735
A9: System | B9: Region | C9: Island | D9: - | E9: 2026-01-01T05:00:00 | F9: 1377.885846 | G9: 30.00805252 | H9: 0 | I9: 0 | K9: System | L9: Region | M9: Labrador | N9: - | O9: 2026-01-01T05:00:00 | P9: 419.2103686 | Q9: 33.29581643 | R9: 28.46083 | S9: 1797.096215 | T9: 91.76469895 | U9: 1860.400084 | V9: 0 | W9: 0 | Y9: 2025-01-06T17:00:00 | Z9: 2056.997736 | AA9: 0.001666666667 | AD9: Peak with Losses | AE9: =AE7+AE8 -> 2289.712499
A10: System | B10: Region | C10: Island | D10: - | E10: 2026-01-01T06:00:00 | F10: 1406.249809 | G10: 30.72187615 | H10: 0 | I10: 0 | K10: System | L10: Region | M10: Labrador | N10: - | O10: 2026-01-01T06:00:00 | P10: 439.3773178 | Q10: 32.88709638 | R10: 37.98594386 | S10: 1845.627127 | T10: 101.5949164 | U10: 1909.236099 | V10: 0 | W10: 0 | Y10: 2025-01-07T17:00:00 | Z10: 1985.953205 | AA10: 0.0002083333333 | AD10: Peak Losses | AE10: =MAX(T4:T8763) -> 131.3239549
A11: System | B11: Region | C11: Island | D11: - | E11: 2026-01-01T07:00:00 | F11: 1445.010075 | G11: 31.13608264 | H11: 0 | I11: 0 | K11: System | L11: Region | M11: Labrador | N11: - | O11: 2026-01-01T07:00:00 | P11: 439.6064101 | Q11: 32.86235022 | R11: 40.67363091 | S11: 1884.616485 | T11: 104.6720638 | U11: 1948.614918 | V11: 0 | W11: 0 | Y11: 2025-01-08T17:00:00 | Z11: 2036.041702 | AA11: 0.0008333333333 | AD11: Island Peak | AE11: =MAX(F4:F8763) -> 1743.313644
A12: System | B12: Region | C12: Island | D12: - | E12: 2026-01-01T08:00:00 | F12: 1476.185439 | G12: 31.47843154 | H12: 0.0002083333333 | I12: 0.009180076106 | K12: System | L12: Region | M12: Labrador | N12: - | O12: 2026-01-01T08:00:00 | P12: 431.1131548 | Q12: 33.01912341 | R12: 43.13099955 | S12: 1907.298593 | T12: 107.6285545 | U12: 1971.796148 | V12: 0.0002083333333 | W12: 0.009180076106 | Y12: 2025-01-09T08:00:00 | Z12: 2065.324287 | AA12: 0.003125 | AD12: Labrador Peak | AE12: =MAX(P4:P8763) -> 470.8788212
A13: System | B13: Region | C13: Island | D13: - | E13: 2026-01-01T09:00:00 | F13: 1485.681305 | G13: 31.63404631 | H13: 0 | I13: 0 | K13: System | L13: Region | M13: Labrador | N13: - | O13: 2026-01-01T09:00:00 | P13: 439.6254845 | Q13: 32.84161965 | R13: 43.86191981 | S13: 1925.306789 | T13: 108.3375858 | U13: 1989.782455 | V13: 0 | W13: 0 | Y13: 2025-01-10T17:00:00 | Z13: 1898.232379 | AA13: 0 | AD13: Coincidence Factor | AE13: =AE7/(AE11+AE12) -> 0.9780766846
A14: System | B14: Region | C14: Island | D14: - | E14: 2026-01-01T10:00:00 | F14: 1496.532622 | G14: 31.84097185 | H14: 0.0002083333333 | I14: 0.03771291354 | K14: System | L14: Region | M14: Labrador | N14: - | O14: 2026-01-01T10:00:00 | P14: 440.2966955 | Q14: 32.81557427 | R14: 44.45548019 | S14: 1936.829317 | T14: 109.1120263 | U14: 2001.485863 | V14: 0.0002083333333 | W14: 0.03771291354 | Y14: 2025-01-11T20:00:00 | Z14: 1959.191555 | AA14: 0.0004166666667 | AD14: Firm Capacity | AE14: 2602.086
A15: System | B15: Region | C15: Island | D15: - | E15: 2026-01-01T11:00:00 | F15: 1514.025986 | G15: 32.04678919 | H15: 0.0002083333333 | I15: 0.03689128919 | K15: System | L15: Region | M15: Labrador | N15: - | O15: 2026-01-01T11:00:00 | P15: 399.5532353 | Q15: 33.62952819 | R15: 46.26940507 | S15: 1913.579221 | T15: 111.9457225 | U15: 1979.255539 | V15: 0.0002083333333 | W15: 0.03689128919 | Y15: 2025-01-12T08:00:00 | Z15: 2041.098857 | AA15: 0.0004166666667 | AD15: Reserve Margin | AE15: =AE14-AE7 -> 436.4359749
A16: System | B16: Region | C16: Island | D16: - | E16: 2026-01-01T12:00:00 | F16: 1523.022914 | G16: 32.21450725 | H16: 0.0004166666667 | I16: 0.04745537886 | K16: System | L16: Region | M16: Labrador | N16: - | O16: 2026-01-01T12:00:00 | P16: 429.855732 | Q16: 33.06837271 | R16: 46.74698855 | S16: 1952.878646 | T16: 112.0298685 | U16: 2018.161526 | V16: 0.0004166666667 | W16: 0.04745537886 | Y16: 2025-01-13T18:00:00 | Z16: 1984.217396 | AA16: 0.00125 | AD16: Reserve Margin % | AE16: =AE15/AE7 -> 0.2015265485
A17: System | B17: Region | C17: Island | D17: - | E17: 2026-01-01T13:00:00 | F17: 1522.939367 | G17: 32.21591597 | H17: 0.0002083333333 | I17: 0.007764522632 | K17: System | L17: Region | M17: Labrador | N17: - | O17: 2026-01-01T13:00:00 | P17: 426.8575676 | Q17: 33.15272154 | R17: 46.78359618 | S17: 1949.796935 | T17: 112.1522337 | U17: 2015.165572 | V17: 0.0002083333333 | W17: 0.007764522632 | Y17: 2025-01-14T08:00:00 | Z17: 2051.573311 | AA17: 0.001458333333 | AD17: Reserve Magin w/Loss | AE17: =AE14-AE9 -> 312.3735014
A18: System | B18: Region | C18: Island | D18: - | E18: 2026-01-01T14:00:00 | F18: 1522.806921 | G18: 32.18873595 | H18: 0.0004166666667 | I18: 0.05332284288 | K18: System | L18: Region | M18: Labrador | N18: - | O18: 2026-01-01T14:00:00 | P18: 403.7746558 | Q18: 33.65255145 | R18: 46.98338611 | S18: 1926.581576 | T18: 112.8246735 | U18: 1992.422864 | V18: 0.0004166666667 | W18: 0.05332284288 | Y18: 2025-01-15T08:00:00 | Z18: 1941.678345 | AA18: 0 | AD18: Reserve Margin % w/ Loss | AE18: =AE17/AE9 -> 0.1364247702
A19: System | B19: Region | C19: Island | D19: - | E19: 2026-01-01T15:00:00 | F19: 1527.731134 | G19: 32.21361334 | H19: 0.0008333333333 | I19: 0.1794132864 | K19: System | L19: Region | M19: Labrador | N19: - | O19: 2026-01-01T15:00:00 | P19: 404.1391142 | Q19: 33.62077337 | R19: 47.52139556 | S19: 1931.870249 | T19: 113.3557823 | U19: 1997.704635 | V19: 0.0008333333333 | W19: 0.1794132864 | Y19: 2025-01-16T08:00:00 | Z19: 1823.900235 | AA19: 0.0002083333333
A20: System | B20: Region | C20: Island | D20: - | E20: 2026-01-01T16:00:00 | F20: 1544.639603 | G20: 32.49009283 | H20: 0.0002083333333 | I20: 0.05361260488 | K20: System | L20: Region | M20: Labrador | N20: - | O20: 2026-01-01T16:00:00 | P20: 403.5996805 | Q20: 33.60296168 | R20: 49.00632411 | S20: 1948.239283 | T20: 115.0993786 | U20: 2014.332338 | V20: 0.0002083333333 | W20: 0.05361260488 | Y20: 2025-01-17T18:00:00 | Z20: 1924.150347 | AA20: 0 | AD20: Checks
A21: System | B21: Region | C21: Island | D21: - | E21: 2026-01-01T17:00:00 | F21: 1591.194188 | G21: 33.20693553 | H21: 0.000625 | I21: 0.1280527495 | K21: System | L21: Region | M21: Labrador | N21: - | O21: 2026-01-01T17:00:00 | P21: 405.4825179 | Q21: 33.53285934 | R21: 52.96129709 | S21: 1996.676706 | T21: 119.701092 | U21: 2063.416501 | V21: 0.000625 | W21: 0.1280527495 | Y21: 2025-01-18T18:00:00 | Z21: 2000.63563 | AA21: 0.0004166666667 | AD21: Island Energy (Original) | AE21: 8357
A22: System | B22: Region | C22: Island | D22: - | E22: 2026-01-01T18:00:00 | F22: 1566.221169 | G22: 32.80412744 | H22: 0.0002083333333 | I22: 0.053627186 | K22: System | L22: Region | M22: Labrador | N22: - | O22: 2026-01-01T18:00:00 | P22: 402.7642416 | Q22: 33.5956937 | R22: 50.89480118 | S22: 1968.985411 | T22: 117.2946223 | U22: 2035.385232 | V22: 0.0002083333333 | W22: 0.053627186 | Y22: 2025-01-19T08:00:00 | Z22: 1884.610688 | AA22: 0 | AD22: Island Energy (Escalated) | AE22: =SUM(F4:F8763)/1000 -> 8549.196886
A23: System | B23: Region | C23: Island | D23: - | E23: 2026-01-01T19:00:00 | F23: 1544.631848 | G23: 32.53333143 | H23: 0 | I23: 0 | K23: System | L23: Region | M23: Labrador | N23: - | O23: 2026-01-01T19:00:00 | P23: 413.9917897 | Q23: 33.42430978 | R23: 48.67352889 | S23: 1958.623638 | T23: 114.6311701 | U23: 2024.581279 | V23: 0 | W23: 0 | Y23: 2025-01-20T18:00:00 | Z23: 1729.881258 | AA23: 0.0002083333333 | AD23: Escalation Factor Check | AE23: =AE22/AE21 -> 1.022998311
A24: System | B24: Region | C24: Island | D24: - | E24: 2026-01-01T20:00:00 | F24: 1527.60449 | G24: 32.21275945 | H24: 0.0004166666667 | I24: 0.01106589222 | K24: System | L24: Region | M24: Labrador | N24: - | O24: 2026-01-01T20:00:00 | P24: 403.97835 | Q24: 33.6672504 | R24: 47.53983225 | S24: 1931.58284 | T24: 113.4198421 | U24: 1997.46285 | V24: 0.0004166666667 | W24: 0.01106589222 | Y24: 2025-01-21T18:00:00 | Z24: 1823.781082 | AA24: 0
A25: System | B25: Region | C25: Island | D25: - | E25: 2026-01-01T21:00:00 | F25: 1498.816789 | G25: 31.78338401 | H25: 0 | I25: 0 | K25: System | L25: Region | M25: Labrador | N25: - | O25: 2026-01-01T21:00:00 | P25: 390.3231698 | Q25: 33.97933682 | R25: 45.23674365 | S25: 1889.139959 | T25: 110.9994645 | U25: 1954.90268 | V25: 0 | W25: 0 | Y25: 2025-01-22T08:00:00 | Z25: 1880.305663 | AA25: 0 | AD25: Island Peak (Original) | AE25: 1704
A26: System | B26: Region | C26: Island | D26: - | E26: 2026-01-01T22:00:00 | F26: 1457.83724 | G26: 31.21967144 | H26: 0.0002083333333 | I26: 0.0336443092 | K26: System | L26: Region | M26: Labrador | N26: - | O26: 2026-01-01T22:00:00 | P26: 380.1254386 | Q26: 34.21379411 | R26: 42.01109419 | S26: 1837.962679 | T26: 107.4445597 | U26: 1903.396145 | V26: 0.0002083333333 | W26: 0.0336443092 | Y26: 2025-01-23T18:00:00 | Z26: 1920.831791 | AA26: 0.0002083333333 | AD26: Island Peak (Escalated) | AE26: =MAX(F4:F8763) -> 1743.313644
A27: System | B27: Region | C27: Island | D27: - | E27: 2026-01-01T23:00:00 | F27: 1381.648051 | G27: 30.08620107 | H27: 0 | I27: 0 | K27: System | L27: Region | M27: Labrador | N27: - | O27: 2026-01-01T23:00:00 | P27: 375.5226877 | Q27: 34.36399566 | R27: 28.64853777 | S27: 1757.170738 | T27: 93.09873449 | U27: 1821.620935 | V27: 0 | W27: 0 | Y27: 2025-01-24T10:00:00 | Z27: 1920.66845 | AA27: 0.0004166666667 | AD27: Escalation Factor Check | AE27: =AE26/AE25 -> 1.023071387
A28: System | B28: Region | C28: Island | D28: - | E28: 2026-01-02 | F28: 1303.022286 | G28: 22.34531549 | H28: 0 | I28: 0 | K28: System | L28: Region | M28: Labrador | N28: - | O28: 2026-01-02 | P28: 386.1689522 | Q28: 34.20907943 | R28: 35.29257949 | S28: 1689.191239 | T28: 91.84697441 | U28: 1745.745634 | V28: 0 | W28: 0 | Y28: 2025-01-25T18:00:00 | Z28: 1819.138149 | AA28: 0
A29: System | B29: Region | C29: Island | D29: - | E29: 2026-01-02T01:00:00 | F29: 1247.656999 | G29: 21.13289057 | H29: 0.0004166666667 | I29: 0.01759485197 | K29: System | L29: Region | M29: Labrador | N29: - | O29: 2026-01-02T01:00:00 | P29: 384.8014971 | Q29: 34.27666183 | R29: 33.19651461 | S29: 1632.458496 | T29: 88.60606701 | U29: 1687.868049 | V29: 0.0004166666667 | W29: 0.01759485197 | Y29: 2025-01-26T18:00:00 | Z29: 2030.44654 | AA29: 0.0004166666667 | AD29: Labrador Energy (Original) | AE29: =355.7+381.7+2074.3 -> 2811.7
A30: System | B30: Region | C30: Island | D30: - | E30: 2026-01-02T02:00:00 | F30: 1227.695344 | G30: 20.65661668 | H30: 0 | I30: 0 | K30: System | L30: Region | M30: Labrador | N30: - | O30: 2026-01-02T02:00:00 | P30: 393.8527198 | Q30: 34.111879 | R30: 32.4852839 | S30: 1621.548064 | T30: 87.25377958 | U30: 1676.31656 | V30: 0 | W30: 0 | Y30: 2025-01-27T17:00:00 | Z30: 2106.017053 | AA30: 0.003125 | AD30: Labrador Energy (Escalated) | AE30: =SUM(P4:P8763)/1000 -> 2876.359516
A31: System | B31: Region | C31: Island | D31: - | E31: 2026-01-02T03:00:00 | F31: 1224.335939 | G31: 20.59598198 | H31: 0.0002083333333 | I31: 0.001033577937 | K31: System | L31: Region | M31: Labrador | N31: - | O31: 2026-01-02T03:00:00 | P31: 404.5973923 | Q31: 33.90488994 | R31: 32.31038198 | S31: 1628.933331 | T31: 86.81125391 | U31: 1683.434203 | V31: 0.0002083333333 | W31: 0.001033577937 | Y31: 2025-01-28T08:00:00 | Z31: 1789.045805 | AA31: 0.0002083333333 | AD31: Escalation Factor Check | AE31: =AE30/AE29 -> 1.022996591
A32: System | B32: Region | C32: Island | D32: - | E32: 2026-01-02T04:00:00 | F32: 1233.169084 | G32: 20.82881999 | H32: 0 | I32: 0 | K32: System | L32: Region | M32: Labrador | N32: - | O32: 2026-01-02T04:00:00 | P32: 423.6257974 | Q32: 33.54812901 | R32: 32.61222672 | S32: 1656.794882 | T32: 86.98917573 | U32: 1711.171831 | V32: 0 | W32: 0 | Y32: 2025-01-29T19:00:00 | Z32: 1814.917101 | AA32: 0.0004166666667
A33: System | B33: Region | C33: Island | D33: - | E33: 2026-01-02T05:00:00 | F33: 1250.97967 | G33: 21.20251114 | H33: 0 | I33: 0 | K33: System | L33: Region | M33: Labrador | N33: - | O33: 2026-01-02T05:00:00 | P33: 425.0068566 | Q33: 33.52350374 | R33: 33.26850234 | S33: 1675.986527 | T33: 87.99451722 | U33: 1730.712542 | V33: 0 | W33: 0 | Y33: 2025-01-30T10:00:00 | Z33: 1867.442479 | AA33: 0.0002083333333
A34: System | B34: Region | C34: Island | D34: - | E34: 2026-01-02T06:00:00 | F34: 1288.341668 | G34: 27.17096729 | H34: 0.0004166666667 | I34: 0.01759916945 | K34: System | L34: Region | M34: Labrador | N34: - | O34: 2026-01-02T06:00:00 | P34: 427.2559859 | Q34: 33.45121796 | R34: 35.97520087 | S34: 1715.597654 | T34: 96.59738613 | U34: 1776.219839 | V34: 0.0004166666667 | W34: 0.01759916945 | Y34: 2025-01-31T18:00:00 | Z34: 1871.269418 | AA34: 0
A35: System | B35: Region | C35: Island | D35: - | E35: 2026-01-02T07:00:00 | F35: 1356.179133 | G35: 28.5906884 | H35: 0.0002083333333 | I35: 0.01746048867 | K35: System | L35: Region | M35: Labrador | N35: - | O35: 2026-01-02T07:00:00 | P35: 409.3150545 | Q35: 33.77526551 | R35: 39.2232403 | S35: 1765.494187 | T35: 101.5891942 | U35: 1827.860141 | V35: 0.0002083333333 | W35: 0.01746048867 | Y35: 2025-02-01T18:00:00 | Z35: 1753.857885 | AA35: 0.0004166666667
A36: System | B36: Region | C36: Island | D36: - | E36: 2026-01-02T08:00:00 | F36: 1393.573336 | G36: 29.36849454 | H36: 0.0002083333333 | I36: 0.03219251387 | K36: System | L36: Region | M36: Labrador | N36: - | O36: 2026-01-02T08:00:00 | P36: 412.0072854 | Q36: 33.68870103 | R36: 41.22539465 | S36: 1805.580621 | T36: 104.2825902 | U36: 1868.637817 | V36: 0.0002083333333 | W36: 0.03219251387 | Y36: 2025-02-02T17:00:00 | Z36: 2030.149198 | AA36: 0.000625
A37: System | B37: Region | C37: Island | D37: - | E37: 2026-01-02T09:00:00 | F37: 1432.231718 | G37: 30.06695874 | H37: 0.0002083333333 | I37: 0.0263142107 | K37: System | L37: Region | M37: Labrador | N37: - | O37: 2026-01-02T09:00:00 | P37: 433.5252789 | Q37: 33.24805957 | R37: 43.7099876 | S37: 1865.756997 | T37: 107.0250059 | U37: 1929.072016 | V37: 0.0002083333333 | W37: 0.0263142107 | Y37: 2025-02-03T18:00:00 | Z37: 1920.912332 | AA37: 0.0004166666667
A38: System | B38: Region | C38: Island | D38: - | E38: 2026-01-02T10:00:00 | F38: 1432.276287 | G38: 30.03613795 | H38: 0 | I38: 0 | K38: System | L38: Region | M38: Labrador | N38: - | O38: 2026-01-02T10:00:00 | P38: 421.7699594 | Q38: 33.48091017 | R38: 43.80908956 | S38: 1854.046247 | T38: 107.3261377 | U38: 1917.563295 | V38: 0 | W38: 0 | Y38: 2025-02-04T08:00:00 | Z38: 2012.526412 | AA38: 0.0002083333333
A39: System | B39: Region | C39: Island | D39: - | E39: 2026-01-02T11:00:00 | F39: 1439.852811 | G39: 30.19350625 | H39: 0.0004166666667 | I39: 0.0683974427 | K39: System | L39: Region | M39: Labrador | N39: - | O39: 2026-01-02T11:00:00 | P39: 429.9755231 | Q39: 33.33165168 | R39: 44.15533258 | S39: 1869.828334 | T39: 107.6804905 | U39: 1933.353492 | V39: 0.0004166666667 | W39: 0.0683974427 | Y39: 2025-02-05T08:00:00 | Z39: 2013.257446 | AA39: 0.000625
A40: System | B40: Region | C40: Island | D40: - | E40: 2026-01-02T12:00:00 | F40: 1431.059449 | G40: 30.01965645 | H40: 0 | I40: 0 | K40: System | L40: Region | M40: Labrador | N40: - | O40: 2026-01-02T12:00:00 | P40: 426.8213506 | Q40: 33.40448412 | R40: 43.69365348 | S40: 1857.880799 | T40: 107.1177941 | U40: 1921.30494 | V40: 0 | W40: 0 | Y40: 2025-02-06T20:00:00 | Z40: 1863.280535 | AA40: 0.0002083333333
A41: System | B41: Region | C41: Island | D41: - | E41: 2026-01-02T13:00:00 | F41: 1408.525564 | G41: 29.67484831 | H41: 0.0002083333333 | I41: 0.0211235131 | K41: System | L41: Region | M41: Labrador | N41: - | O41: 2026-01-02T13:00:00 | P41: 441.0311628 | Q41: 33.14681139 | R41: 42.03759005 | S41: 1849.556727 | T41: 104.8592498 | U41: 1912.378387 | V41: 0.0002083333333 | W41: 0.0211235131 | Y41: 2025-02-07T18:00:00 | Z41: 2009.29013 | AA41: 0
A42: System | B42: Region | C42: Island | D42: - | E42: 2026-01-02T14:00:00 | F42: 1365.899812 | G42: 28.85810152 | H42: 0.000625 | I42: 0.04812569285 | K42: System | L42: Region | M42: Labrador | N42: - | O42: 2026-01-02T14:00:00 | P42: 440.1219437 | Q42: 33.22292975 | R42: 39.51059404 | S42: 1806.021756 | T42: 101.5916253 | U42: 1868.102787 | V42: 0.000625 | W42: 0.04812569285 | Y42: 2025-02-08T19:00:00 | Z42: 2037.656727 | AA42: 0.0004166666667
A43: System | B43: Region | C43: Island | D43: - | E43: 2026-01-02T15:00:00 | F43: 1344.247057 | G43: 28.35081324 | H43: 0 | I43: 0 | K43: System | L43: Region | M43: Labrador | N43: - | O43: 2026-01-02T15:00:00 | P43: 440.4835768 | Q43: 33.22916597 | R43: 38.55281037 | S43: 1784.730634 | T43: 100.1327896 | U43: 1846.310613 | V43: 0 | W43: 0 | Y43: 2025-02-09T08:00:00 | Z43: 2165.650025 | AA43: 0.008541666667
A44: System | B44: Region | C44: Island | D44: - | E44: 2026-01-02T16:00:00 | F44: 1364.895613 | G44: 28.79171356 | H44: 0 | I44: 0 | K44: System | L44: Region | M44: Labrador | N44: - | O44: 2026-01-02T16:00:00 | P44: 441.9430516 | Q44: 33.17138424 | R44: 39.62888547 | S44: 1806.838665 | T44: 101.5919833 | U44: 1868.801763 | V44: 0 | W44: 0 | Y44: 2025-02-10T08:00:00 | Z44: 2090.340239 | AA44: 0.00375
A45: System | B45: Region | C45: Island | D45: - | E45: 2026-01-02T17:00:00 | F45: 1465.215167 | G45: 30.58040347 | H45: 0 | I45: 0 | K45: System | L45: Region | M45: Labrador | N45: - | O45: 2026-01-02T17:00:00 | P45: 445.0943624 | Q45: 33.02584547 | R45: 46.08895564 | S45: 1910.30953 | T45: 109.6952046 | U45: 1973.915779 | V45: 0 | W45: 0 | Y45: 2025-02-11T18:00:00 | Z45: 1895.721155 | AA45: 0.0002083333333
A46: System | B46: Region | C46: Island | D46: - | E46: 2026-01-02T18:00:00 | F46: 1449.217634 | G46: 30.35932222 | H46: 0 | I46: 0 | K46: System | L46: Region | M46: Labrador | N46: - | O46: 2026-01-02T18:00:00 | P46: 446.6950432 | Q46: 32.97348934 | R46: 44.67061739 | S46: 1895.912678 | T46: 108.003429 | U46: 1959.245489 | V46: 0 | W46: 0 | Y46: 2025-02-12T12:00:00 | Z46: 2104.832745 | AA46: 0.003125
A47: System | B47: Region | C47: Island | D47: - | E47: 2026-01-02T19:00:00 | F47: 1411.806199 | G47: 29.73878302 | H47: 0.0002083333333 | I47: 0.006793985579 | K47: System | L47: Region | M47: Labrador | N47: - | O47: 2026-01-02T19:00:00 | P47: 446.4034803 | Q47: 32.96522396 | R47: 42.13694795 | S47: 1858.209679 | T47: 104.8409549 | U47: 1920.913686 | V47: 0.0002083333333 | W47: 0.006793985579 | Y47: 2025-02-13T08:00:00 | Z47: 1990.125781 | AA47: 0.0002083333333
A48: System | B48: Region | C48: Island | D48: - | E48: 2026-01-02T20:00:00 | F48: 1402.799621 | G48: 29.53352539 | H48: 0.0004166666667 | I48: 0.02882148646 | K48: System | L48: Region | M48: Labrador | N48: - | O48: 2026-01-02T20:00:00 | P48: 427.1095865 | Q48: 33.34577285 | R48: 41.76516024 | S48: 1829.909207 | T48: 104.6444585 | U48: 1892.788505 | V48: 0.0004166666667 | W48: 0.02882148646 | Y48: 2025-02-14T18:00:00 | Z48: 1951.869769 | AA48: 0.0004166666667
A49: System | B49: Region | C49: Island | D49: - | E49: 2026-01-02T21:00:00 | F49: 1380.377262 | G49: 29.0899082 | H49: 0 | I49: 0 | K49: System | L49: Region | M49: Labrador | N49: - | O49: 2026-01-02T21:00:00 | P49: 428.2397726 | Q49: 33.32878652 | R49: 40.49991595 | S49: 1808.617035 | T49: 102.9186107 | U49: 1871.035729 | V49: 0 | W49: 0 | Y49: 2025-02-15T18:00:00 | Z49: 1930.692243 | AA49: 0.0002083333333
A50: System | B50: Region | C50: Island | D50: - | E50: 2026-01-02T22:00:00 | F50: 1341.081568 | G50: 28.29615987 | H50: 0 | I50: 0 | K50: System | L50: Region | M50: Labrador | N50: - | O50: 2026-01-02T22:00:00 | P50: 445.0538782 | Q50: 33.01766588 | R50: 38.36301893 | S50: 1786.135446 | T50: 99.67684468 | U50: 1847.449271 | V50: 0 | W50: 0 | Y50: 2025-02-16T18:00:00 | Z50: 1949.207492 | AA50: 0.0004166666667
A51: System | B51: Region | C51: Island | D51: - | E51: 2026-01-02T23:00:00 | F51: 1288.443915 | G51: 21.98784701 | H51: 0 | I51: 0 | K51: System | L51: Region | M51: Labrador | N51: - | O51: 2026-01-02T23:00:00 | P51: 453.8981502 | Q51: 32.86570038 | R51: 34.65353168 | S51: 1742.342065 | T51: 89.50707907 | U51: 1797.195613 | V51: 0 | W51: 0 | Y51: 2025-02-17T09:00:00 | Z51: 1979.615607 | AA51: 0.000625
A52: System | B52: Region | C52: Island | D52: - | E52: 2026-01-03 | F52: 1217.623379 | G52: 26.21128962 | H52: 0 | I52: 0 | K52: System | L52: Region | M52: Labrador | N52: - | O52: 2026-01-03 | P52: 443.9612847 | Q52: 33.07429107 | R52: 23.82264834 | S52: 1661.584664 | T52: 83.10822903 | U52: 1720.870244 | V52: 0 | W52: 0 | Y52: 2025-02-18T08:00:00 | Z52: 1992.996656 | AA52: 0
A53: System | B53: Region | C53: Island | D53: - | E53: 2026-01-03T01:00:00 | F53: 1173.250023 | G53: 25.42808398 | H53: 0 | I53: 0 | K53: System | L53: Region | M53: Labrador | N53: - | O53: 2026-01-03T01:00:00 | P53: 443.5594913 | Q53: 33.08257888 | R53: 22.4093624 | S53: 1616.809515 | T53: 80.92002526 | U53: 1675.320178 | V53: 0 | W53: 0 | Y53: 2025-02-19T08:00:00 | Z53: 1901.101082 | AA53: 0
A54: System | B54: Region | C54: Island | D54: - | E54: 2026-01-03T02:00:00 | F54: 1178.823585 | G54: 25.48384609 | H54: 0 | I54: 0 | K54: System | L54: Region | M54: Labrador | N54: - | O54: 2026-01-03T02:00:00 | P54: 453.034019 | Q54: 32.88200379 | R54: 22.6155883 | S54: 1631.857604 | T54: 80.98143818 | U54: 1690.223454 | V54: 0 | W54: 0 | Y54: 2025-02-20T09:00:00 | Z54: 1792.993744 | AA54: 0
A55: System | B55: Region | C55: Island | D55: - | E55: 2026-01-03T03:00:00 | F55: 1183.412964 | G55: 25.58124777 | H55: 0 | I55: 0 | K55: System | L55: Region | M55: Labrador | N55: - | O55: 2026-01-03T03:00:00 | P55: 432.9309306 | Q55: 33.26342567 | R55: 22.75219404 | S55: 1616.343894 | T55: 81.59686748 | U55: 1675.188568 | V55: 0 | W55: 0 | Y55: 2025-02-21T19:00:00 | Z55: 1973.035527 | AA55: 0.0004166666667
A56: System | B56: Region | C56: Island | D56: - | E56: 2026-01-03T04:00:00 | F56: 1197.486217 | G56: 25.92039474 | H56: 0 | I56: 0 | K56: System | L56: Region | M56: Labrador | N56: - | O56: 2026-01-03T04:00:00 | P56: 423.9850561 | Q56: 33.40268955 | R56: 23.14589399 | S56: 1621.471273 | T56: 82.46897828 | U56: 1680.794358 | V56: 0 | W56: 0 | Y56: 2025-02-22T10:00:00 | Z56: 1931.956905 | AA56: 0.0002083333333
A57: System | B57: Region | C57: Island | D57: - | E57: 2026-01-03T05:00:00 | F57: 1214.144602 | G57: 26.17922551 | H57: 0 | I57: 0 | K57: System | L57: Region | M57: Labrador | N57: - | O57: 2026-01-03T05:00:00 | P57: 427.4921997 | Q57: 33.29169338 | R57: 23.71561288 | S57: 1641.636802 | T57: 83.18653177 | U57: 1701.107721 | V57: 0 | W57: 0 | Y57: 2025-02-23T18:00:00 | Z57: 1795.019805 | AA57: 0.000625
A58: System | B58: Region | C58: Island | D58: - | E58: 2026-01-03T06:00:00 | F58: 1250.918364 | G58: 28.76507168 | H58: 0 | I58: 0 | K58: System | L58: Region | M58: Labrador | N58: - | O58: 2026-01-03T06:00:00 | P58: 428.3353642 | Q58: 33.248572 | R58: 28.4733036 | S58: 1679.253729 | T58: 90.48694728 | U58: 1741.267372 | V58: 0 | W58: 0 | Y58: 2025-02-24T19:00:00 | Z58: 2023.588826 | AA58: 0.000625
A59: System | B59: Region | C59: Island | D59: - | E59: 2026-01-03T07:00:00 | F59: 1311.100323 | G59: 29.38289675 | H59: 0 | I59: 0 | K59: System | L59: Region | M59: Labrador | N59: - | O59: 2026-01-03T07:00:00 | P59: 431.18652 | Q59: 33.14972001 | R59: 32.13796357 | S59: 1742.286843 | T59: 94.67058033 | U59: 1804.81946 | V59: 0 | W59: 0 | Y59: 2025-02-25T08:00:00 | Z59: 2088.962275 | AA59: 0.002916666667
A60: System | B60: Region | C60: Island | D60: - | E60: 2026-01-03T08:00:00 | F60: 1366.191259 | G60: 29.97699266 | H60: 0.0002083333333 | I60: 0.02478931564 | K60: System | L60: Region | M60: Labrador | N60: - | O60: 2026-01-03T08:00:00 | P60: 443.2112537 | Q60: 32.87081392 | R60: 35.6553447 | S60: 1809.402513 | T60: 98.50315128 | U60: 1872.250319 | V60: 0.0002083333333 | W60: 0.02478931564 | Y60: 2025-02-26T08:00:00 | Z60: 1897.968136 | AA60: 0.0002083333333
A61: System | B61: Region | C61: Island | D61: - | E61: 2026-01-03T09:00:00 | F61: 1442.661979 | G61: 30.91887867 | H61: 0 | I61: 0 | K61: System | L61: Region | M61: Labrador | N61: - | O61: 2026-01-03T09:00:00 | P61: 444.7835798 | Q61: 32.77814798 | R61: 41.42893777 | S61: 1887.445559 | T61: 105.1259644 | U61: 1951.142586 | V61: 0 | W61: 0 | Y61: 2025-02-27T20:00:00 | Z61: 1867.998637 | AA61: 0
A62: System | B62: Region | C62: Island | D62: - | E62: 2026-01-03T10:00:00 | F62: 1447.662651 | G62: 30.99595286 | H62: 0.0002083333333 | I62: 0.03885896772 | K62: System | L62: Region | M62: Labrador | N62: - | O62: 2026-01-03T10:00:00 | P62: 445.1249771 | Q62: 32.72523123 | R62: 41.73657786 | S62: 1892.787628 | T62: 105.4577619 | U62: 1956.508812 | V62: 0.0002083333333 | W62: 0.03885896772 | Y62: 2025-02-28T19:00:00 | Z62: 1976.190362 | AA62: 0
A63: System | B63: Region | C63: Island | D63: - | E63: 2026-01-03T11:00:00 | F63: 1439.822633 | G63: 30.86962957 | H63: 0.0002083333333 | I63: 0.03160332625 | K63: System | L63: Region | M63: Labrador | N63: - | O63: 2026-01-03T11:00:00 | P63: 412.8876698 | Q63: 33.32778637 | R63: 41.44861311 | S63: 1852.710303 | T63: 105.6460291 | U63: 1916.907719 | V63: 0.0002083333333 | W63: 0.03160332625 | Y63: 2025-03-01T10:00:00 | Z63: 1863.623379 | AA63: 0.0004166666667
A64: System | B64: Region | C64: Island | D64: - | E64: 2026-01-03T12:00:00 | F64: 1449.157341 | G64: 31.00937396 | H64: 0.0002083333333 | I64: 0.0325236398 | K64: System | L64: Region | M64: Labrador | N64: - | O64: 2026-01-03T12:00:00 | P64: 412.1762893 | Q64: 33.35399947 | R64: 42.11275828 | S64: 1861.33363 | T64: 106.4761317 | U64: 1925.697003 | V64: 0.0002083333333 | W64: 0.0325236398 | Y64: 2025-03-02T09:00:00 | Z64: 1992.69001 | AA64: 0.000625
A65: System | B65: Region | C65: Island | D65: - | E65: 2026-01-03T13:00:00 | F65: 1449.137208 | G65: 31.02547665 | H65: 0.0002083333333 | I65: 0.02650136386 | K65: System | L65: Region | M65: Labrador | N65: - | O65: 2026-01-03T13:00:00 | P65: 430.2033261 | Q65: 33.01408166 | R65: 42.00350438 | S65: 1879.340534 | T65: 106.0430627 | U65: 1943.380092 | V65: 0.0002083333333 | W65: 0.02650136386 | Y65: 2025-03-03T20:00:00 | Z65: 2020.780495 | AA65: 0.0002083333333
A66: System | B66: Region | C66: Island | D66: - | E66: 2026-01-03T14:00:00 | F66: 1473.469165 | G66: 31.31588134 | H66: 0.000625 | I66: 0.08834471308 | K66: System | L66: Region | M66: Labrador | N66: - | O66: 2026-01-03T14:00:00 | P66: 429.6740351 | Q66: 33.03124218 | R66: 43.94695634 | S66: 1903.1432 | T66: 108.2940799 | U66: 1967.490324 | V66: 0.000625 | W66: 0.08834471308 | Y66: 2025-03-04T07:00:00 | Z66: 2011.784482 | AA66: 0.00125
A67: System | B67: Region | C67: Island | D67: - | E67: 2026-01-03T15:00:00 | F67: 1478.619807 | G67: 31.39254933 | H67: 0 | I67: 0 | K67: System | L67: Region | M67: Labrador | N67: - | O67: 2026-01-03T15:00:00 | P67: 422.2117325 | Q67: 33.17820873 | R67: 44.41208849 | S67: 1900.831539 | T67: 108.9828465 | U67: 1965.402297 | V67: 0 | W67: 0 | Y67: 2025-03-05T20:00:00 | Z67: 1943.834162 | AA67: 0
A68: System | B68: Region | C68: Island | D68: - | E68: 2026-01-03T16:00:00 | F68: 1526.282962 | G68: 31.98328522 | H68: 0.0002083333333 | I68: 0.0006430533164 | K68: System | L68: Region | M68: Labrador | N68: - | O68: 2026-01-03T16:00:00 | P68: 426.5651158 | Q68: 32.97740974 | R68: 48.92080905 | S68: =F68+P68 -> 1952.848078 | T68: 113.881504 | U68: =F68+G68+P68+Q68 -> 2017.808773 | V68: =H68 -> 0.0002083333333 | W68: 0.0006430533164 | Y68: 2025-03-06T08:00:00 | Z68: 2119.646463 | AA68: 0.006041666667
A69: System | B69: Region | C69: Island | D69: - | E69: 2026-01-03T17:00:00 | F69: 1663.86412 | G69: 35.13006673 | H69: 0.00375 | I69: 0.1842962934 | K69: System | L69: Region | M69: Labrador | N69: - | O69: 2026-01-03T17:00:00 | P69: 451.1997937 | Q69: 32.43435993 | R69: 53.21323198 | S69: 2115.063914 | T69: =G69+Q69+R69 -> 120.7776586 | U69: 2182.628341 | V69: 0.00375 | W69: 0.1842962934 | Y69: 2025-03-07T09:00:00 | Z69: =MAX(OFFSET($S$4:$S$27,(ROW()-4)*24,0)) -> 1964.354902 | AA69: =VLOOKUP(Z69,OFFSET($S$4:$V$27,(ROW()-4)*24,0),4,FALSE) -> 0.000625
A70: System | B70: Region | C70: Island | D70: - | E70: 2026-01-03T18:00:00 | F70: 1646.678163 | G70: 34.99710414 | H70: 0.0025 | I70: 0.1216095959 | K70: System | L70: Region | M70: Labrador | N70: - | O70: 2026-01-03T18:00:00 | P70: 470.8621327 | Q70: 32.00473193 | R70: 51.05647517 | S70: 2117.540296 | T70: 118.0583112 | U70: 2184.542132 | V70: 0.0025 | W70: 0.1216095959 | Y70: 2025-03-08T08:00:00 | Z70: 1815.907926 | AA70: 0
A71: System | B71: Region | C71: Island | D71: - | E71: 2026-01-03T19:00:00 | F71: 1651.588081 | G71: 34.91756403 | H71: 0.003333333333 | I71: 0.2046259596 | K71: System | L71: Region | M71: Labrador | N71: - | O71: 2026-01-03T19:00:00 | P71: 460.4336898 | Q71: 32.24302978 | R71: 52.14013433 | S71: 2112.02177 | T71: 119.3007281 | U71: 2179.182364 | V71: 0.003333333333 | W71: 0.2046259596 | Y71: 2025-03-09T07:00:00 | Z71: 1904.423755 | AA71: 0
A72: System | B72: Region | C72: Island | D72: - | E72: 2026-01-03T20:00:00 | F72: 1679.509137 | G72: 35.28360048 | H72: 0.005208333333 | I72: 0.3482165442 | K72: System | L72: Region | M72: Labrador | N72: - | O72: 2026-01-03T20:00:00 | P72: 439.4978268 | Q72: 32.65563732 | R72: 54.77219376 | S72: 2119.006964 | T72: 122.7114316 | U72: 2186.946202 | V72: 0.005208333333 | W72: 0.3482165442 | Y72: 2025-03-10T07:00:00 | Z72: 2092.495675 | AA72: 0.004583333333
A73: System | B73: Region | C73: Island | D73: - | E73: 2026-01-03T21:00:00 | F73: 1664.328106 | G73: 35.03110277 | H73: 0.002916666667 | I73: 0.1936002102 | K73: System | L73: Region | M73: Labrador | N73: - | O73: 2026-01-03T21:00:00 | P73: 449.2652992 | Q73: 32.48681296 | R73: 53.58290642 | S73: 2113.593405 | T73: 121.1008222 | U73: 2181.111321 | V73: 0.002916666667 | W73: 0.1936002102 | Y73: 2025-03-11T07:00:00 | Z73: 2021.097577 | AA73: 0.000625
A74: System | B74: Region | C74: Island | D74: - | E74: 2026-01-03T22:00:00 | F74: 1633.571476 | G74: 34.14771668 | H74: 0.002916666667 | I74: 0.1761891838 | K74: System | L74: Region | M74: Labrador | N74: - | O74: 2026-01-03T22:00:00 | P74: 448.2802579 | Q74: 32.53225061 | R74: 53.05534744 | S74: 2081.851734 | T74: 119.7353147 | U74: 2148.531701 | V74: 0.002916666667 | W74: 0.1761891838 | Y74: 2025-03-12T07:00:00 | Z74: 1945.796023 | AA74: 0
A75: System | B75: Region | C75: Island | D75: - | E75: 2026-01-03T23:00:00 | F75: 1565.345344 | G75: 30.5963241 | H75: 0.0002083333333 | I75: 0.01394799449 | K75: System | L75: Region | M75: Labrador | N75: - | O75: 2026-01-03T23:00:00 | P75: 458.0122868 | Q75: 32.36213999 | R75: 41.15314243 | S75: 2023.357631 | T75: 104.1116065 | U75: 2086.316095 | V75: 0.0002083333333 | W75: 0.01394799449 | Y75: 2025-03-13T07:00:00 | Z75: 2053.349379 | AA75: 0.001458333333
A76: System | B76: Region | C76: Island | D76: - | E76: 2026-01-04 | F76: 1509.449906 | G76: 35.80790397 | H76: 0.0002083333333 | I76: 0.05332408796 | K76: System | L76: Region | M76: Labrador | N76: - | O76: 2026-01-04 | P76: 465.2011064 | Q76: 32.26525506 | R76: 29.67164471 | S76: 1974.651013 | T76: 97.74480374 | U76: 2042.724172 | V76: 0.0002083333333 | W76: 0.05332408796 | Y76: 2025-03-14T10:00:00 | Z76: 1944.652968 | AA76: 0.000625
A77: System | B77: Region | C77: Island | D77: - | E77: 2026-01-04T01:00:00 | F77: 1421.980613 | G77: 36.44957948 | H77: 0 | I77: 0 | K77: System | L77: Region | M77: Labrador | N77: - | O77: 2026-01-04T01:00:00 | P77: 454.3838604 | Q77: 32.51621837 | R77: 23.60237318 | S77: 1876.364473 | T77: 92.56817103 | U77: 1945.330271 | V77: 0 | W77: 0 | Y77: 2025-03-15T08:00:00 | Z77: 1867.38184 | AA77: 0.0004166666667
A78: System | B78: Region | C78: Island | D78: - | E78: 2026-01-04T02:00:00 | F78: 1406.362491 | G78: 36.76921466 | H78: 0.0004166666667 | I78: 0.04347829294 | K78: System | L78: Region | M78: Labrador | N78: - | O78: 2026-01-04T02:00:00 | P78: 461.8179056 | Q78: 32.41220425 | R78: 22.42194133 | S78: 1868.180396 | T78: 91.60336024 | U78: 1937.361815 | V78: 0.0004166666667 | W78: 0.04347829294 | Y78: 2025-03-16T10:00:00 | Z78: 1890.169988 | AA78: 0.0002083333333
A79: System | B79: Region | C79: Island | D79: - | E79: 2026-01-04T03:00:00 | F79: 1440.14934 | G79: 36.30549455 | H79: 0 | I79: 0 | K79: System | L79: Region | M79: Labrador | N79: - | O79: 2026-01-04T03:00:00 | P79: 461.3883873 | Q79: 32.43806936 | R79: 24.73642614 | S79: 1901.537727 | T79: 93.47999005 | U79: 1970.281291 | V79: 0 | W79: 0 | Y79: 2025-03-17T08:00:00 | Z79: 1738.474137 | AA79: 0
A80: System | B80: Region | C80: Island | D80: - | E80: 2026-01-04T04:00:00 | F80: 1459.012461 | G80: 36.18146446 | H80: 0.0008333333333 | I80: 0.158514865 | K80: System | L80: Region | M80: Labrador | N80: - | O80: 2026-01-04T04:00:00 | P80: 460.8753517 | Q80: 32.43218055 | R80: 26.10470896 | S80: 1919.887813 | T80: 94.71835398 | U80: 1988.501458 | V80: 0.0008333333333 | W80: 0.158514865 | Y80: 2025-03-18T07:00:00 | Z80: 1748.16935 | AA80: 0.0004166666667
A81: System | B81: Region | C81: Island | D81: - | E81: 2026-01-04T05:00:00 | F81: 1454.365694 | G81: 36.26328169 | H81: 0.0002083333333 | I81: 0.02588490856 | K81: System | L81: Region | M81: Labrador | N81: - | O81: 2026-01-04T05:00:00 | P81: 460.2099934 | Q81: 32.43539065 | R81: 25.63936943 | S81: 1914.575687 | T81: 94.33804176 | U81: 1983.274359 | V81: 0.0002083333333 | W81: 0.02588490856 | Y81: 2025-03-19T07:00:00 | Z81: 1693.563173 | AA81: 0.0002083333333
A82: System | B82: Region | C82: Island | D82: - | E82: 2026-01-04T06:00:00 | F82: 1490.463478 | G82: 33.93942875 | H82: 0.0002083333333 | I82: 0.004288002633 | K82: System | L82: Region | M82: Labrador | N82: - | O82: 2026-01-04T06:00:00 | P82: 461.20396 | Q82: 32.40470005 | R82: 39.05042928 | S82: 1951.667438 | T82: 105.3945581 | U82: 2018.011567 | V82: 0.0002083333333 | W82: 0.004288002633 | Y82: 2025-03-20T07:00:00 | Z82: 1843.621205 | AA82: 0.0002083333333
A83: System | B83: Region | C83: Island | D83: - | E83: 2026-01-04T07:00:00 | F83: 1524.011883 | G83: 34.27891486 | H83: 0.0004166666667 | I83: 0.07265251347 | K83: System | L83: Region | M83: Labrador | N83: - | O83: 2026-01-04T07:00:00 | P83: 452.2929895 | Q83: 32.55537921 | R83: 40.45895533 | S83: 1976.304872 | T83: 107.2932494 | U83: 2043.139167 | V83: 0.0004166666667 | W83: 0.07265251347 | Y83: 2025-03-21T08:00:00 | Z83: 1703.500623 | AA83: 0
A84: System | B84: Region | C84: Island | D84: - | E84: 2026-01-04T08:00:00 | F84: 1552.32863 | G84: 34.69540324 | H84: 0.000625 | I84: 0.06200643683 | K84: System | L84: Region | M84: Labrador | N84: - | O84: 2026-01-04T08:00:00 | P84: 452.7719328 | Q84: 32.52186199 | R84: 41.88970934 | S84: 2005.100563 | T84: 109.1069746 | U84: 2072.317828 | V84: 0.000625 | W84: 0.06200643683 | Y84: 2025-03-22T10:00:00 | Z84: 1832.22103 | AA84: 0.0002083333333
A85: System | B85: Region | C85: Island | D85: - | E85: 2026-01-04T09:00:00 | F85: 1630.394991 | G85: 36.31695431 | H85: 0.002083333333 | I85: 0.07372562226 | K85: System | L85: Region | M85: Labrador | N85: - | O85: 2026-01-04T09:00:00 | P85: 452.8231964 | Q85: 32.50879483 | R85: 45.92297445 | S85: 2083.218188 | T85: 114.7487236 | U85: 2152.043937 | V85: 0.002083333333 | W85: 0.07372562226 | Y85: 2025-03-23T19:00:00 | Z85: 1913.148559 | AA85: 0.0004166666667
A86: System | B86: Region | C86: Island | D86: - | E86: 2026-01-04T10:00:00 | F86: 1644.391826 | G86: 36.75009825 | H86: 0.002708333333 | I86: 0.2024151374 | K86: System | L86: Region | M86: Labrador | N86: - | O86: 2026-01-04T10:00:00 | P86: 464.9435098 | Q86: 32.22296614 | R86: 46.08568283 | S86: 2109.335336 | T86: 115.0587472 | U86: 2178.308401 | V86: 0.002708333333 | W86: 0.2024151374 | Y86: 2025-03-24T07:00:00 | Z86: 1906.237787 | AA86: 0
A87: System | B87: Region | C87: Island | D87: - | E87: 2026-01-04T11:00:00 | F87: 1626.34468 | G87: 36.21329617 | H87: 0.001458333333 | I87: 0.3076389006 | K87: System | L87: Region | M87: Labrador | N87: - | O87: 2026-01-04T11:00:00 | P87: 453.308312 | Q87: 32.47925099 | R87: 45.70702544 | S87: 2079.652992 | T87: 114.3995726 | U87: 2148.345539 | V87: 0.001458333333 | W87: 0.3076389006 | Y87: 2025-03-25T07:00:00 | Z87: 1856.54737 | AA87: 0
A88: System | B88: Region | C88: Island | D88: - | E88: 2026-01-04T12:00:00 | F88: 1600.818228 | G88: 35.59359771 | H88: 0.0008333333333 | I88: 0.09610432403 | K88: System | L88: Region | M88: Labrador | N88: - | O88: 2026-01-04T12:00:00 | P88: 440.407002 | Q88: 32.83539376 | R88: 44.68326898 | S88: 2041.22523 | T88: 113.1122605 | U88: 2109.654222 | V88: 0.0008333333333 | W88: 0.09610432403 | Y88: 2025-03-26T07:00:00 | Z88: 1714.9089 | AA88: 0.0002083333333
A89: System | B89: Region | C89: Island | D89: - | E89: 2026-01-04T13:00:00 | F89: 1584.413234 | G89: 35.28277018 | H89: 0.0002083333333 | I89: 0.05389426598 | K89: System | L89: Region | M89: Labrador | N89: - | O89: 2026-01-04T13:00:00 | P89: 448.3737609 | Q89: 32.70397674 | R89: 43.63919694 | S89: 2032.786995 | T89: 111.6259439 | U89: 2100.773742 | V89: 0.0002083333333 | W89: 0.05389426598 | Y89: 2025-03-27T07:00:00 | Z89: 1557.102271 | AA89: 0
A90: System | B90: Region | C90: Island | D90: - | E90: 2026-01-04T14:00:00 | F90: 1581.115973 | G90: 35.1367447 | H90: 0 | I90: 0 | K90: System | L90: Region | M90: Labrador | N90: - | O90: 2026-01-04T14:00:00 | P90: 437.3569812 | Q90: 32.90221911 | R90: 43.81702885 | S90: 2018.472954 | T90: 111.8559927 | U90: 2086.511918 | V90: 0 | W90: 0 | Y90: 2025-03-28T19:00:00 | Z90: 1586.161622 | AA90: 0
A91: System | B91: Region | C91: Island | D91: - | E91: 2026-01-04T15:00:00 | F91: 1592.930792 | G91: 35.45481771 | H91: 0.001041666667 | I91: 0.08516611133 | K91: System | L91: Region | M91: Labrador | N91: - | O91: 2026-01-04T15:00:00 | P91: 437.8845085 | Q91: 32.88365459 | R91: 44.22949503 | S91: 2030.815301 | T91: 112.5679673 | U91: 2099.153773 | V91: 0.001041666667 | W91: 0.08516611133 | Y91: 2025-03-29T20:00:00 | Z91: 1597.884165 | AA91: 0
A92: System | B92: Region | C92: Island | D92: - | E92: 2026-01-04T16:00:00 | F92: 1626.261407 | G92: 36.10218626 | H92: 0.001875 | I92: 0.2051094218 | K92: System | L92: Region | M92: Labrador | N92: - | O92: 2026-01-04T16:00:00 | P92: 437.4098515 | Q92: 32.87452929 | R92: 46.16465958 | S92: 2063.671259 | T92: 115.1413751 | U92: 2132.647974 | V92: 0.001875 | W92: 0.2051094218 | Y92: 2025-03-30T07:00:00 | Z92: 1761.730873 | AA92: 0.0002083333333
A93: System | B93: Region | C93: Island | D93: - | E93: 2026-01-04T17:00:00 | F93: 1681.367325 | G93: 36.98264983 | H93: 0.004166666667 | I93: 0.1779858775 | K93: System | L93: Region | M93: Labrador | N93: - | O93: 2026-01-04T17:00:00 | P93: 411.8697822 | Q93: 33.28857625 | R93: 50.20048773 | S93: 2093.237107 | T93: 120.4717138 | U93: 2163.508333 | V93: 0.004166666667 | W93: 0.1779858775 | Y93: 2025-03-31T07:00:00 | Z93: 1705.460772 | AA93: 0
A94: System | B94: Region | C94: Island | D94: - | E94: 2026-01-04T18:00:00 | F94: 1661.768097 | G94: 36.54193278 | H94: 0.001458333333 | I94: 0.1442558768 | K94: System | L94: Region | M94: Labrador | N94: - | O94: 2026-01-04T18:00:00 | P94: 381.1440081 | Q94: 33.92486178 | R94: 49.6753723 | S94: 2042.912105 | T94: 120.1421669 | U94: 2113.3789 | V94: 0.001458333333 | W94: 0.1442558768 | Y94: 2025-04-01T07:00:00 | Z94: 1613.185079 | AA94: 0
A95: System | B95: Region | C95: Island | D95: - | E95: 2026-01-04T19:00:00 | F95: 1642.318437 | G95: 36.21061151 | H95: 0.0004166666667 | I95: 0.009287782382 | K95: System | L95: Region | M95: Labrador | N95: - | O95: 2026-01-04T19:00:00 | P95: 372.7990353 | Q95: 34.12902827 | R95: 48.41488042 | S95: 2015.117472 | T95: 118.7545202 | U95: 2085.457112 | V95: 0.0004166666667 | W95: 0.009287782382 | Y95: 2025-04-02T07:00:00 | Z95: 1641.21733 | AA95: 0.0002083333333
A96: System | B96: Region | C96: Island | D96: - | E96: 2026-01-04T20:00:00 | F96: 1641.36527 | G96: 36.1810144 | H96: 0.0004166666667 | I96: 0.02385626913 | K96: System | L96: Region | M96: Labrador | N96: - | O96: 2026-01-04T20:00:00 | P96: 364.7939124 | Q96: 34.31668397 | R96: 48.3165531 | S96: 2006.159182 | T96: 118.8142515 | U96: 2076.65688 | V96: 0.0004166666667 | W96: 0.02385626913 | Y96: 2025-04-03T08:00:00 | Z96: 1602.553051 | AA96: 0
A97: System | B97: Region | C97: Island | D97: - | E97: 2026-01-04T21:00:00 | F97: 1610.535937 | G97: 35.60838807 | H97: 0.0004166666667 | I97: 0.005617941168 | K97: System | L97: Region | M97: Labrador | N97: - | O97: 2026-01-04T21:00:00 | P97: 363.3277026 | Q97: 34.37602485 | R97: 46.30862624 | S97: 1973.863639 | T97: 116.2930392 | U97: 2043.848052 | V97: 0.0004166666667 | W97: 0.005617941168 | Y97: 2025-04-04T09:00:00 | Z97: 1520.449398 | AA97: 0
A98: System | B98: Region | C98: Island | D98: - | E98: 2026-01-04T22:00:00 | F98: 1541.095942 | G98: 34.37170617 | H98: 0 | I98: 0 | K98: System | L98: Region | M98: Labrador | N98: - | O98: 2026-01-04T22:00:00 | P98: 366.2508044 | Q98: 34.37087517 | R98: 41.92648821 | S98: 1907.346747 | T98: 110.6690695 | U98: 1976.089328 | V98: 0 | W98: 0 | Y98: 2025-04-05T20:00:00 | Z98: 1707.463515 | AA98: 0.0002083333333
A99: System | B99: Region | C99: Island | D99: - | E99: 2026-01-04T23:00:00 | F99: 1449.327436 | G99: 36.25646666 | H99: 0.0004166666667 | I99: 0.03973415 | K99: System | L99: Region | M99: Labrador | N99: - | O99: 2026-01-04T23:00:00 | P99: 371.4542811 | Q99: 34.33426855 | R99: 25.33415353 | S99: 1820.781717 | T99: 95.92488874 | U99: 1891.372452 | V99: 0.0004166666667 | W99: 0.03973415 | Y99: 2025-04-06T07:00:00 | Z99: 1791.00745 | AA99: 0.0002083333333
A100: System | B100: Region | C100: Island | D100: - | E100: 2026-01-05 | F100: 1361.097227 | G100: 22.79221692 | H100: 0.0002083333333 | I100: 0.009762621988 | K100: System | L100: Region | M100: Labrador | N100: - | O100: 2026-01-05 | P100: 361.3082204 | Q100: 33.32811617 | R100: 40.03433161 | S100: 1722.405447 | T100: 96.15466471 | U100: 1778.52578 | V100: 0.0002083333333 | W100: 0.009762621988 | Y100: 2025-04-07T07:00:00 | Z100: 1844.86159 | AA100: 0.0004166666667
A101: System | B101: Region | C101: Island | D101: - | E101: 2026-01-05T01:00:00 | F101: 1313.640321 | G101: 21.60011098 | H101: 0 | I101: 0 | K101: System | L101: Region | M101: Labrador | N101: - | O101: 2026-01-05T01:00:00 | P101: 365.9622011 | Q101: 26.60965292 | R101: 38.20418019 | S101: 1679.602522 | T101: 86.41394408 | U101: 1727.812286 | V101: 0 | W101: 0 | Y101: 2025-04-08T07:00:00 | Z101: 1799.406226 | AA101: 0.0002083333333
A102: System | B102: Region | C102: Island | D102: - | E102: 2026-01-05T02:00:00 | F102: 1287.435923 | G102: 20.98480557 | H102: 0 | I102: 0 | K102: System | L102: Region | M102: Labrador | N102: - | O102: 2026-01-05T02:00:00 | P102: 359.8547466 | Q102: 32.40252928 | R102: 37.24686425 | S102: 1647.290669 | T102: 90.6341991 | U102: 1700.678004 | V102: 0 | W102: 0 | Y102: 2025-04-09T07:00:00 | Z102: 1817.978233 | AA102: 0.0004166666667
A103: System | B103: Region | C103: Island | D103: - | E103: 2026-01-05T03:00:00 | F103: 1273.132022 | G103: 20.63654528 | H103: 0 | I103: 0 | K103: System | L103: Region | M103: Labrador | N103: - | O103: 2026-01-05T03:00:00 | P103: 383.0818987 | Q103: 32.85515386 | R103: 36.65060858 | S103: 1656.213921 | T103: 90.14230772 | U103: 1709.70562 | V103: 0 | W103: 0 | Y103: 2025-04-10T07:00:00 | Z103: 1781.921695 | AA103: 0.0002083333333
A104: System | B104: Region | C104: Island | D104: - | E104: 2026-01-05T04:00:00 | F104: 1267.543762 | G104: 20.50009382 | H104: 0 | I104: 0 | K104: System | L104: Region | M104: Labrador | N104: - | O104: 2026-01-05T04:00:00 | P104: 373.0593565 | Q104: 33.01801203 | R104: 36.4266192 | S104: 1640.603119 | T104: 89.94472506 | U104: 1694.121224 | V104: 0 | W104: 0 | Y104: 2025-04-11T09:00:00 | Z104: 1634.816392 | AA104: 0.0002083333333
A105: System | B105: Region | C105: Island | D105: - | E105: 2026-01-05T05:00:00 | F105: 1267.723464 | G105: 20.53262473 | H105: 0 | I105: 0 | K105: System | L105: Region | M105: Labrador | N105: - | O105: 2026-01-05T05:00:00 | P105: 365.2030785 | Q105: 33.2305933 | R105: 36.4881305 | S105: 1632.926542 | T105: 90.25134852 | U105: 1686.68976 | V105: 0 | W105: 0 | Y105: 2025-04-12T09:00:00 | Z105: 1525.23029 | AA105: 0
A106: System | B106: Region | C106: Island | D106: - | E106: 2026-01-05T06:00:00 | F106: 1297.37284 | G106: 26.90567099 | H106: 0 | I106: 0 | K106: System | L106: Region | M106: Labrador | N106: - | O106: 2026-01-05T06:00:00 | P106: 366.8653458 | Q106: 33.28207547 | R106: 38.49467366 | S106: 1664.238185 | T106: 98.68242012 | U106: 1724.425932 | V106: 0 | W106: 0 | Y106: 2025-04-13T07:00:00 | Z106: 1616.548072 | AA106: 0
A107: System | B107: Region | C107: Island | D107: - | E107: 2026-01-05T07:00:00 | F107: 1392.453901 | G107: 28.90998723 | H107: 0.0002083333333 | I107: 0.02104408347 | K107: System | L107: Region | M107: Labrador | N107: - | O107: 2026-01-05T07:00:00 | P107: 371.3568882 | Q107: 33.48586698 | R107: 43.20024422 | S107: 1763.810789 | T107: 105.5960984 | U107: 1826.206643 | V107: 0.0002083333333 | W107: 0.02104408347 | Y107: 2025-04-14T07:00:00 | Z107: 1377.293859 | AA107: 0
A108: System | B108: Region | C108: Island | D108: - | E108: 2026-01-05T08:00:00 | F108: 1432.613587 | G108: 29.70152821 | H108: 0.0002083333333 | I108: 0.01300216505 | K108: System | L108: Region | M108: Labrador | N108: - | O108: 2026-01-05T08:00:00 | P108: 367.374962 | Q108: 33.53724415 | R108: 45.61274243 | S108: 1799.988549 | T108: 108.8515148 | U108: 1863.227322 | V108: 0.0002083333333 | W108: 0.01300216505 | Y108: 2025-04-15T07:00:00 | Z108: 1411.295147 | AA108: 0
A109: System | B109: Region | C109: Island | D109: - | E109: 2026-01-05T09:00:00 | F109: 1417.94758 | G109: 29.40519404 | H109: 0 | I109: 0 | K109: System | L109: Region | M109: Labrador | N109: - | O109: 2026-01-05T09:00:00 | P109: 374.963783 | Q109: 32.95253469 | R109: 44.7739751 | S109: 1792.911363 | T109: 107.1317038 | U109: 1855.269092 | V109: 0 | W109: 0 | Y109: 2025-04-16T20:00:00 | Z109: 1755.815994 | AA109: 0
A110: System | B110: Region | C110: Island | D110: - | E110: 2026-01-05T10:00:00 | F110: 1415.513283 | G110: 29.37294798 | H110: 0.0002083333333 | I110: 0.02643381258 | K110: System | L110: Region | M110: Labrador | N110: - | O110: 2026-01-05T10:00:00 | P110: 368.4150376 | Q110: 33.23382805 | R110: 44.58019024 | S110: 1783.928321 | T110: 107.1869663 | U110: 1846.535097 | V110: 0.0002083333333 | W110: 0.02643381258 | Y110: 2025-04-17T07:00:00 | Z110: 1786.676998 | AA110: 0.0002083333333
A111: System | B111: Region | C111: Island | D111: - | E111: 2026-01-05T11:00:00 | F111: 1405.228782 | G111: 29.17649294 | H111: 0.0004166666667 | I111: 0.06247769621 | K111: System | L111: Region | M111: Labrador | N111: - | O111: 2026-01-05T11:00:00 | P111: 367.9239648 | Q111: 32.90796378 | R111: 43.93751584 | S111: 1773.152747 | T111: 106.0219726 | U111: 1835.237204 | V111: 0.0004166666667 | W111: 0.06247769621 | Y111: 2025-04-18T10:00:00 | Z111: 1414.887206 | AA111: 0
A112: System | B112: Region | C112: Island | D112: - | E112: 2026-01-05T12:00:00 | F112: 1387.158396 | G112: 28.79991041 | H112: 0 | I112: 0 | K112: System | L112: Region | M112: Labrador | N112: - | O112: 2026-01-05T12:00:00 | P112: 367.1260174 | Q112: 33.34847924 | R112: 43.05811596 | S112: 1754.284414 | T112: 105.2065056 | U112: 1816.432803 | V112: 0 | W112: 0 | Y112: 2025-04-19T09:00:00 | Z112: 1566.063459 | AA112: 0
A113: System | B113: Region | C113: Island | D113: - | E113: 2026-01-05T13:00:00 | F113: 1356.033301 | G113: 28.11354216 | H113: 0.0002083333333 | I113: 0.01805411812 | K113: System | L113: Region | M113: Labrador | N113: - | O113: 2026-01-05T13:00:00 | P113: 360.4317326 | Q113: 33.30548656 | R113: 41.39889579 | S113: 1716.465033 | T113: 102.8179245 | U113: 1777.884062 | V113: 0.0002083333333 | W113: 0.01805411812 | Y113: 2025-04-20T07:00:00 | Z113: 1684.445754 | AA113: 0
A114: System | B114: Region | C114: Island | D114: - | E114: 2026-01-05T14:00:00 | F114: 1329.364212 | G114: 27.56572556 | H114: 0.0004166666667 | I114: 0.01942088771 | K114: System | L114: Region | M114: Labrador | N114: - | O114: 2026-01-05T14:00:00 | P114: 364.9666955 | Q114: 33.14669355 | R114: 40.01679664 | S114: 1694.330908 | T114: 100.7292157 | U114: 1755.043327 | V114: 0.0004166666667 | W114: 0.01942088771 | Y114: 2025-04-21T07:00:00 | Z114: 1682.018261 | AA114: 0
A115: System | B115: Region | C115: Island | D115: - | E115: 2026-01-05T15:00:00 | F115: 1327.303077 | G115: 27.54805229 | H115: 0.0004166666667 | I115: 0.01531822211 | K115: System | L115: Region | M115: Labrador | N115: - | O115: 2026-01-05T15:00:00 | P115: 365.1447608 | Q115: 32.54326774 | R115: 39.87812565 | S115: 1692.447838 | T115: 99.96944568 | U115: 1752.539158 | V115: 0.0004166666667 | W115: 0.01531822211 | Y115: 2025-04-22T07:00:00 | Z115: 1604.377756 | AA115: 0
A116: System | B116: Region | C116: Island | D116: - | E116: 2026-01-05T16:00:00 | F116: 1360.198526 | G116: 28.22502265 | H116: 0.0004166666667 | I116: 0.03326112824 | K116: System | L116: Region | M116: Labrador | N116: - | O116: 2026-01-05T16:00:00 | P116: 371.3433514 | Q116: 31.93278191 | R116: 41.61104489 | S116: 1731.541877 | T116: 101.7688494 | U116: 1791.699682 | V116: 0.0004166666667 | W116: 0.03326112824 | Y116: 2025-04-23T07:00:00 | Z116: 1490.129939 | AA116: 0
A117: System | B117: Region | C117: Island | D117: - | E117: 2026-01-05T17:00:00 | F117: 1446.584893 | G117: 29.98597814 | H117: 0 | I117: 0 | K117: System | L117: Region | M117: Labrador | N117: - | O117: 2026-01-05T17:00:00 | P117: 374.1195003 | Q117: 31.42556648 | R117: 46.54958461 | S117: 1820.704394 | T117: 107.9611292 | U117: 1882.115938 | V117: 0 | W117: 0 | Y117: 2025-04-24T07:00:00 | Z117: 1467.842154 | AA117: 0
A118: System | B118: Region | C118: Island | D118: - | E118: 2026-01-05T18:00:00 | F118: 1442.133501 | G118: 29.91154134 | H118: 0.0002083333333 | I118: 0.02507906355 | K118: System | L118: Region | M118: Labrador | N118: - | O118: 2026-01-05T18:00:00 | P118: 374.7321537 | Q118: 30.13373995 | R118: 46.12989402 | S118: 1816.865654 | T118: 106.1751753 | U118: 1876.910936 | V118: 0.0002083333333 | W118: 0.02507906355 | Y118: 2025-04-25T11:00:00 | Z118: 1474.620781 | AA118: 0
A119: System | B119: Region | C119: Island | D119: - | E119: 2026-01-05T19:00:00 | F119: 1438.222908 | G119: 29.83207101 | H119: 0 | I119: 0 | K119: System | L119: Region | M119: Labrador | N119: - | O119: 2026-01-05T19:00:00 | P119: 388.1627359 | Q119: 29.47500811 | R119: 45.82165034 | S119: 1826.385644 | T119: 105.1287295 | U119: 1885.692723 | V119: 0 | W119: 0 | Y119: 2025-04-26T11:00:00 | Z119: 1471.114042 | AA119: 0
A120: System | B120: Region | C120: Island | D120: - | E120: 2026-01-05T20:00:00 | F120: 1430.978594 | G120: 29.70655531 | H120: 0.0002083333333 | I120: 0.005334827065 | K120: System | L120: Region | M120: Labrador | N120: - | O120: 2026-01-05T20:00:00 | P120: 390.0433955 | Q120: 28.65620645 | R120: 45.35669341 | S120: 1821.02199 | T120: 103.7194552 | U120: 1879.384751 | V120: 0.0002083333333 | W120: 0.005334827065 | Y120: 2025-04-27T20:00:00 | Z120: 1388.694017 | AA120: 0
A121: System | B121: Region | C121: Island | D121: - | E121: 2026-01-05T21:00:00 | F121: 1415.262959 | G121: 29.40068345 | H121: 0 | I121: 0 | K121: System | L121: Region | M121: Labrador | N121: - | O121: 2026-01-05T21:00:00 | P121: 399.8096991 | Q121: 28.58355959 | R121: 44.41534509 | S121: 1815.072658 | T121: 102.3995881 | U121: 1873.056901 | V121: 0 | W121: 0 | Y121: 2025-04-28T07:00:00 | Z121: 1467.004492 | AA121: 0
A122: System | B122: Region | C122: Island | D122: - | E122: 2026-01-05T22:00:00 | F122: 1375.235405 | G122: 28.56582339 | H122: 0 | I122: 0 | K122: System | L122: Region | M122: Labrador | N122: - | O122: 2026-01-05T22:00:00 | P122: 396.7918903 | Q122: 27.59048752 | R122: 42.16970592 | S122: 1772.027295 | T122: 98.32601684 | U122: 1828.183606 | V122: 0 | W122: 0 | Y122: 2025-04-29T07:00:00 | Z122: 1477.064723 | AA122: 0
A123: System | B123: Region | C123: Island | D123: - | E123: 2026-01-05T23:00:00 | F123: 1297.391348 | G123: 21.21229441 | H123: 0 | I123: 0 | K123: System | L123: Region | M123: Labrador | N123: - | O123: 2026-01-05T23:00:00 | P123: 384.2397867 | Q123: 26.78063576 | R123: 37.5932833 | S123: 1681.631135 | T123: 85.58621347 | U123: 1729.624065 | V123: 0 | W123: 0 | Y123: 2025-04-30T08:00:00 | Z123: 1520.857246 | AA123: 0
A124: System | B124: Region | C124: Island | D124: - | E124: 2026-01-06 | F124: 1221.814388 | G124: 28.38294466 | H124: 0 | I124: 0 | K124: System | L124: Region | M124: Labrador | N124: - | O124: 2026-01-06 | P124: 360.4407101 | Q124: 34.9628933 | R124: 22.0961129 | S124: 1582.255098 | T124: 85.44195086 | U124: 1645.600936 | V124: 0 | W124: 0 | Y124: 2025-05-01T07:00:00 | Z124: 1573.558504 | AA124: 0
A125: System | B125: Region | C125: Island | D125: - | E125: 2026-01-06T01:00:00 | F125: 1178.480354 | G125: 27.82036348 | H125: 0 | I125: 0 | K125: System | L125: Region | M125: Labrador | N125: - | O125: 2026-01-06T01:00:00 | P125: 385.7990515 | Q125: 34.50414765 | R125: 20.69922804 | S125: 1564.279406 | T125: 83.02373917 | U125: 1626.603917 | V125: 0 | W125: 0 | Y125: 2025-05-02T08:00:00 | Z125: 1405.935018 | AA125: 0
A126: System | B126: Region | C126: Island | D126: - | E126: 2026-01-06T02:00:00 | F126: 1193.007778 | G126: 28.06791299 | H126: 0 | I126: 0 | K126: System | L126: Region | M126: Labrador | N126: - | O126: 2026-01-06T02:00:00 | P126: 404.9526743 | Q126: 34.1629541 | R126: 21.14831962 | S126: 1597.960452 | T126: 83.37918671 | U126: 1660.191319 | V126: 0 | W126: 0 | Y126: 2025-05-03T09:00:00 | Z126: 1362.594353 | AA126: 0
A127: System | B127: Region | C127: Island | D127: - | E127: 2026-01-06T03:00:00 | F127: 1209.746404 | G127: 28.19101645 | H127: 0 | I127: 0 | K127: System | L127: Region | M127: Labrador | N127: - | O127: 2026-01-06T03:00:00 | P127: 413.9687713 | Q127: 34.00120741 | R127: 21.73291442 | S127: 1623.715175 | T127: 83.92513828 | U127: 1685.907399 | V127: 0 | W127: 0 | Y127: 2025-05-04T07:00:00 | Z127: 1345.27141 | AA127: 0
A128: System | B128: Region | C128: Island | D128: - | E128: 2026-01-06T04:00:00 | F128: 1232.846118 | G128: 28.50904957 | H128: 0 | I128: 0 | K128: System | L128: Region | M128: Labrador | N128: - | O128: 2026-01-06T04:00:00 | P128: 414.2603302 | Q128: 34.01055178 | R128: 22.45753961 | S128: 1647.106448 | T128: 84.97714096 | U128: 1709.626049 | V128: 0 | W128: 0 | Y128: 2025-05-05T07:00:00 | Z128: 1321.689702 | AA128: 0
A129: System | B129: Region | C129: Island | D129: - | E129: 2026-01-06T05:00:00 | F129: 1286.142941 | G129: 29.07067919 | H129: 0 | I129: 0 | K129: System | L129: Region | M129: Labrador | N129: - | O129: 2026-01-06T05:00:00 | P129: 403.9016588 | Q129: 34.18867901 | R129: 24.5596723 | S129: 1690.0446 | T129: 87.81903049 | U129: 1753.303958 | V129: 0 | W129: 0 | Y129: 2025-05-06T07:00:00 | Z129: 1316.006901 | AA129: 0
A130: System | B130: Region | C130: Island | D130: - | E130: 2026-01-06T06:00:00 | F130: 1353.580808 | G130: 29.99789919 | H130: 0.0004166666667 | I130: 0.03383541407 | K130: System | L130: Region | M130: Labrador | N130: - | O130: 2026-01-06T06:00:00 | P130: 384.9368342 | Q130: 34.50560264 | R130: 34.94712267 | S130: 1738.517642 | T130: 99.45062449 | U130: 1803.021144 | V130: 0.0004166666667 | W130: 0.03383541407 | Y130: 2025-05-07T07:00:00 | Z130: 1341.447749 | AA130: 0
A131: System | B131: Region | C131: Island | D131: - | E131: 2026-01-06T07:00:00 | F131: 1470.139622 | G131: 30.91297617 | H131: 0 | I131: 0 | K131: System | L131: Region | M131: Labrador | N131: - | O131: 2026-01-06T07:00:00 | P131: 389.7913385 | Q131: 34.25512954 | R131: 45.14336607 | S131: 1859.930961 | T131: 110.3114718 | U131: 1925.099066 | V131: 0 | W131: 0 | Y131: 2025-05-08T09:00:00 | Z131: 1533.504376 | AA131: 0
A132: System | B132: Region | C132: Island | D132: - | E132: 2026-01-06T08:00:00 | F132: 1557.279286 | G132: 32.12164406 | H132: 0.0002083333333 | I132: 0.05254071507 | K132: System | L132: Region | M132: Labrador | N132: - | O132: 2026-01-06T08:00:00 | P132: 385.7898176 | Q132: 34.20746796 | R132: 53.13859073 | S132: =F132+P132 -> 1943.069104 | T132: 119.4677028 | U132: =F132+G132+P132+Q132 -> 2009.398216 | V132: =H132 -> 0.0002083333333 | W132: 0.05254071507 | Y132: 2025-05-09T09:00:00 | Z132: 1436.530814 | AA132: 0
A133: System | B133: Region | C133: Island | D133: - | E133: 2026-01-06T09:00:00 | F133: 1572.601733 | G133: 32.4226798 | H133: 0 | I133: 0 | K133: System | L133: Region | M133: Labrador | N133: - | O133: 2026-01-06T09:00:00 | P133: 404.3535218 | Q133: 33.79514795 | R133: 54.09798898 | S133: 1976.955255 | T133: =G133+Q133+R133 -> 120.3158167 | U133: 2043.173083 | V133: 0 | W133: 0 | Y133: 2025-05-10T09:00:00 | Z133: =MAX(OFFSET($S$4:$S$27,(ROW()-4)*24,0)) -> 1478.170289 | AA133: =VLOOKUP(Z133,OFFSET($S$4:$V$27,(ROW()-4)*24,0),4,FALSE) -> 0
A134: System | B134: Region | C134: Island | D134: - | E134: 2026-01-06T10:00:00 | F134: 1570.466297 | G134: 32.29593222 | H134: 0 | I134: 0 | K134: System | L134: Region | M134: Labrador | N134: - | O134: 2026-01-06T10:00:00 | P134: 374.8605277 | Q134: 34.33785348 | R134: 54.54708116 | S134: 1945.326825 | T134: 121.1808669 | U134: 2011.96061 | V134: 0 | W134: 0 | Y134: 2025-05-11T07:00:00 | Z134: 1373.962233 | AA134: 0
A135: System | B135: Region | C135: Island | D135: - | E135: 2026-01-06T11:00:00 | F135: 1564.038691 | G135: 32.23638131 | H135: 0.000625 | I135: 0.1116930698 | K135: System | L135: Region | M135: Labrador | N135: - | O135: 2026-01-06T11:00:00 | P135: 382.5337788 | Q135: 34.1215209 | R135: 53.65320652 | S135: 1946.57247 | T135: 120.0111087 | U135: 2012.930372 | V135: 0.000625 | W135: 0.1116930698 | Y135: 2025-05-12T07:00:00 | Z135: 1389.473298 | AA135: 0
A136: System | B136: Region | C136: Island | D136: - | E136: 2026-01-06T12:00:00 | F136: 1555.969131 | G136: 32.04048265 | H136: 0.0002083333333 | I136: 0.00045383095 | K136: System | L136: Region | M136: Labrador | N136: - | O136: 2026-01-06T12:00:00 | P136: 374.5989024 | Q136: 34.27514634 | R136: 53.28986622 | S136: 1930.568033 | T136: 119.6054952 | U136: 1996.883662 | V136: 0.0002083333333 | W136: 0.00045383095 | Y136: 2025-05-13T20:00:00 | Z136: 1380.672165 | AA136: 0
A137: System | B137: Region | C137: Island | D137: - | E137: 2026-01-06T13:00:00 | F137: 1538.957927 | G137: 31.79372218 | H137: 0.0004166666667 | I137: 0.009199556695 | K137: System | L137: Region | M137: Labrador | N137: - | O137: 2026-01-06T13:00:00 | P137: 380.7225896 | Q137: 34.14315054 | R137: 51.61916918 | S137: 1919.680517 | T137: 117.5560419 | U137: 1985.617389 | V137: 0.0004166666667 | W137: 0.009199556695 | Y137: 2025-05-14T07:00:00 | Z137: 1345.417931 | AA137: 0
A138: System | B138: Region | C138: Island | D138: - | E138: 2026-01-06T14:00:00 | F138: 1543.584831 | G138: 31.89628478 | H138: 0.000625 | I138: 0.1520547419 | K138: System | L138: Region | M138: Labrador | N138: - | O138: 2026-01-06T14:00:00 | P138: 380.2594653 | Q138: 34.12191411 | R138: 51.85813498 | S138: 1923.844296 | T138: 117.8763339 | U138: 1989.862495 | V138: 0.000625 | W138: 0.1520547419 | Y138: 2025-05-15T07:00:00 | Z138: 1293.574048 | AA138: 0
A139: System | B139: Region | C139: Island | D139: - | E139: 2026-01-06T15:00:00 | F139: 1555.799946 | G139: 32.07248396 | H139: 0 | I139: 0 | K139: System | L139: Region | M139: Labrador | N139: - | O139: 2026-01-06T15:00:00 | P139: 368.5005076 | Q139: 34.33629608 | R139: 53.14708948 | S139: 1924.300454 | T139: 119.5558695 | U139: 1990.709234 | V139: 0 | W139: 0 | Y139: 2025-05-16T09:00:00 | Z139: 1133.114492 | AA139: 0
A140: System | B140: Region | C140: Island | D140: - | E140: 2026-01-06T16:00:00 | F140: 1606.973259 | G140: 32.88190472 | H140: 0.000625 | I140: 0.1221769652 | K140: System | L140: Region | M140: Labrador | N140: - | O140: 2026-01-06T16:00:00 | P140: 364.0195397 | Q140: 34.38504477 | R140: 57.76665357 | S140: 1970.992798 | T140: 125.033603 | U140: 2038.259748 | V140: 0.000625 | W140: 0.1221769652 | Y140: 2025-05-17T09:00:00 | Z140: 1194.41851 | AA140: 0
A141: System | B141: Region | C141: Island | D141: - | E141: 2026-01-06T17:00:00 | F141: 1681.495814 | G141: 34.37183271 | H141: 0.001666666667 | I141: 0.1186158145 | K141: System | L141: Region | M141: Labrador | N141: - | O141: 2026-01-06T17:00:00 | P141: 375.5019221 | Q141: 34.096136 | R141: 61.01801261 | S141: 2056.997736 | T141: 129.4859813 | U141: 2125.465705 | V141: 0.001666666667 | W141: 0.1186158145 | Y141: 2025-05-18T11:00:00 | Z141: 1292.412098 | AA141: 0
A142: System | B142: Region | C142: Island | D142: - | E142: 2026-01-06T18:00:00 | F142: 1674.242002 | G142: 34.22816334 | H142: 0.0008333333333 | I142: 0.1169721911 | K142: System | L142: Region | M142: Labrador | N142: - | O142: 2026-01-06T18:00:00 | P142: 375.095077 | Q142: 34.10675055 | R142: 60.8009004 | S142: 2049.337079 | T142: 129.1358143 | U142: 2117.671993 | V142: 0.0008333333333 | W142: 0.1169721911 | Y142: 2025-05-19T07:00:00 | Z142: 1290.227111 | AA142: 0
A143: System | B143: Region | C143: Island | D143: - | E143: 2026-01-06T19:00:00 | F143: 1654.5234 | G143: 33.87441671 | H143: 0.001458333333 | I143: 0.1288630982 | K143: System | L143: Region | M143: Labrador | N143: - | O143: 2026-01-06T19:00:00 | P143: 388.470102 | Q143: 33.85452274 | R143: 59.74344139 | S143: 2042.993502 | T143: 127.4723808 | U143: 2110.722442 | V143: 0.001458333333 | W143: 0.1288630982 | Y143: 2025-05-20T08:00:00 | Z143: 1187.361375 | AA143: 0
A144: System | B144: Region | C144: Island | D144: - | E144: 2026-01-06T20:00:00 | F144: 1640.542335 | G144: 33.58425995 | H144: 0.001041666667 | I144: 0.1680484365 | K144: System | L144: Region | M144: Labrador | N144: - | O144: 2026-01-06T20:00:00 | P144: 388.4982088 | Q144: 33.8499834 | R144: 59.36503952 | S144: 2029.040544 | T144: 126.7992829 | U144: 2096.474787 | V144: 0.001041666667 | W144: 0.1680484365 | Y144: 2025-05-21T07:00:00 | Z144: 1237.100588 | AA144: 0
A145: System | B145: Region | C145: Island | D145: - | E145: 2026-01-06T21:00:00 | F145: 1608.721762 | G145: 33.04537453 | H145: 0.0008333333333 | I145: 0.03109796713 | K145: System | L145: Region | M145: Labrador | N145: - | O145: 2026-01-06T21:00:00 | P145: 403.7342931 | Q145: 33.57189313 | R145: 56.78136629 | S145: 2012.456055 | T145: 123.3986339 | U145: 2079.073323 | V145: 0.0008333333333 | W145: 0.03109796713 | Y145: 2025-05-22T07:00:00 | Z145: 1232.266862 | AA145: 0
A146: System | B146: Region | C146: Island | D146: - | E146: 2026-01-06T22:00:00 | F146: 1553.253203 | G146: 32.09096224 | H146: 0.0004166666667 | I146: 0.1258600826 | K146: System | L146: Region | M146: Labrador | N146: - | O146: 2026-01-06T22:00:00 | P146: 403.3225863 | Q146: 33.59114119 | R146: 52.43847339 | S146: 1956.575789 | T146: 118.1205768 | U146: 2022.257892 | V146: 0.0004166666667 | W146: 0.1258600826 | Y146: 2025-05-23T10:00:00 | Z146: 1256.598078 | AA146: 0
A147: System | B147: Region | C147: Island | D147: - | E147: 2026-01-06T23:00:00 | F147: 1457.236024 | G147: 30.30209422 | H147: 0 | I147: 0 | K147: System | L147: Region | M147: Labrador | N147: - | O147: 2026-01-06T23:00:00 | P147: 413.8649767 | Q147: 33.40705073 | R147: 33.55965427 | S147: 1871.101001 | T147: 97.26879922 | U147: 1934.810146 | V147: 0 | W147: 0 | Y147: 2025-05-24T09:00:00 | Z147: 1280.00103 | AA147: 0
A148: System | B148: Region | C148: Island | D148: - | E148: 2026-01-07 | F148: 1364.532478 | G148: 29.61035777 | H148: 0 | I148: 0 | K148: System | L148: Region | M148: Labrador | N148: - | O148: 2026-01-07 | P148: 410.3537949 | Q148: 33.51108346 | R148: 28.38925579 | S148: 1774.886273 | T148: 91.51069701 | U148: 1838.007714 | V148: 0 | W148: 0 | Y148: 2025-05-25T07:00:00 | Z148: 1253.567281 | AA148: 0
A149: System | B149: Region | C149: Island | D149: - | E149: 2026-01-07T01:00:00 | F149: 1344.223546 | G149: 29.4954104 | H149: 0 | I149: 0 | K149: System | L149: Region | M149: Labrador | N149: - | O149: 2026-01-07T01:00:00 | P149: 419.6355062 | Q149: 33.36858875 | R149: 27.34481123 | S149: 1763.859052 | T149: 90.20881038 | U149: 1826.723051 | V149: 0 | W149: 0 | Y149: 2025-05-26T07:00:00 | Z149: 1166.416315 | AA149: 0
A150: System | B150: Region | C150: Island | D150: - | E150: 2026-01-07T02:00:00 | F150: 1330.990471 | G150: 29.32509386 | H150: 0 | I150: 0 | K150: System | L150: Region | M150: Labrador | N150: - | O150: 2026-01-07T02:00:00 | P150: 428.0687385 | Q150: 33.2019716 | R150: 26.75180392 | S150: 1759.059209 | T150: 89.27886938 | U150: 1821.586275 | V150: 0 | W150: 0 | Y150: 2025-05-27T08:00:00 | Z150: 1143.978665 | AA150: 0
A151: System | B151: Region | C151: Island | D151: - | E151: 2026-01-07T03:00:00 | F151: 1330.978017 | G151: 29.34332524 | H151: 0.0004166666667 | I151: 0.007475341435 | K151: System | L151: Region | M151: Labrador | N151: - | O151: 2026-01-07T03:00:00 | P151: 420.0332649 | Q151: 33.32493095 | R151: 26.78516702 | S151: 1751.011281 | T151: 89.45342321 | U151: 1813.679538 | V151: 0.0004166666667 | W151: 0.007475341435 | Y151: 2025-05-28T09:00:00 | Z151: 1140.82508 | AA151: 0
A152: System | B152: Region | C152: Island | D152: - | E152: 2026-01-07T04:00:00 | F152: 1340.720163 | G152: 29.413771 | H152: 0 | I152: 0 | K152: System | L152: Region | M152: Labrador | N152: - | O152: 2026-01-07T04:00:00 | P152: 410.5905306 | Q152: 33.48583579 | R152: 27.23216671 | S152: 1751.310694 | T152: 90.1317735 | U152: 1814.210301 | V152: 0 | W152: 0 | Y152: 2025-05-29T11:00:00 | Z152: 1198.472963 | AA152: 0
A153: System | B153: Region | C153: Island | D153: - | E153: 2026-01-07T05:00:00 | F153: 1357.454819 | G153: 29.51605297 | H153: 0.0002083333333 | I153: 0.005382295506 | K153: System | L153: Region | M153: Labrador | N153: - | O153: 2026-01-07T05:00:00 | P153: 411.9277704 | Q153: 33.41881258 | R153: 28.12207531 | S153: 1769.38259 | T153: 91.05694086 | U153: 1832.317455 | V153: 0.0002083333333 | W153: 0.005382295506 | Y153: 2025-05-30T09:00:00 | Z153: 1166.6636 | AA153: 0
A154: System | B154: Region | C154: Island | D154: - | E154: 2026-01-07T06:00:00 | F154: 1407.349315 | G154: 30.43276098 | H154: 0 | I154: 0 | K154: System | L154: Region | M154: Labrador | N154: - | O154: 2026-01-07T06:00:00 | P154: 413.3501849 | Q154: 33.34068829 | R154: 39.27902883 | S154: 1820.6995 | T154: 103.0524781 | U154: 1884.472949 | V154: 0 | W154: 0 | Y154: 2025-05-31T20:00:00 | Z154: 1117.823058 | AA154: 0
A155: System | B155: Region | C155: Island | D155: - | E155: 2026-01-07T07:00:00 | F155: 1519.442462 | G155: 31.77183006 | H155: 0.0004166666667 | I155: 0.05409423283 | K155: System | L155: Region | M155: Labrador | N155: - | O155: 2026-01-07T07:00:00 | P155: 421.5604176 | Q155: 33.02540216 | R155: 48.32243894 | S155: 1941.002879 | T155: 113.1196712 | U155: 2005.800112 | V155: 0.0004166666667 | W155: 0.05409423283 | Y155: 2025-06-01T07:00:00 | Z155: 1250.587605 | AA155: 0
A156: System | B156: Region | C156: Island | D156: - | E156: 2026-01-07T08:00:00 | F156: 1576.064748 | G156: 32.70405533 | H156: 0.0004166666667 | I156: 0.05710125648 | K156: System | L156: Region | M156: Labrador | N156: - | O156: 2026-01-07T08:00:00 | P156: 407.5275296 | Q156: 33.19118382 | R156: 53.00753236 | S156: 1983.592278 | T156: 118.9027715 | U156: 2049.487517 | V156: 0.0004166666667 | W156: 0.05710125648 | Y156: 2025-06-02T07:00:00 | Z156: 1163.526904 | AA156: 0
A157: System | B157: Region | C157: Island | D157: - | E157: 2026-01-07T09:00:00 | F157: 1586.031153 | G157: 32.79747909 | H157: 0.0004166666667 | I157: 0.09616976024 | K157: System | L157: Region | M157: Labrador | N157: - | O157: 2026-01-07T09:00:00 | P157: 395.5508689 | Q157: 33.33215638 | R157: 54.26303122 | S157: 1981.582022 | T157: 120.3926667 | U157: 2047.711658 | V157: 0.0004166666667 | W157: 0.09616976024 | Y157: 2025-06-03T07:00:00 | Z157: 1204.618665 | AA157: 0
A158: System | B158: Region | C158: Island | D158: - | E158: 2026-01-07T10:00:00 | F158: 1573.276812 | G158: 32.59944364 | H158: 0.0002083333333 | I158: 0.06202361046 | K158: System | L158: Region | M158: Labrador | N158: - | O158: 2026-01-07T10:00:00 | P158: 392.6673232 | Q158: 33.43743527 | R158: 53.18271081 | S158: 1965.944135 | T158: 119.2195897 | U158: 2031.981014 | V158: 0.0002083333333 | W158: 0.06202361046 | Y158: 2025-06-04T07:00:00 | Z158: 1183.447451 | AA158: 0
A159: System | B159: Region | C159: Island | D159: - | E159: 2026-01-07T11:00:00 | F159: 1558.458294 | G159: 32.30814812 | H159: 0.0004166666667 | I159: 0.0142288394 | K159: System | L159: Region | M159: Labrador | N159: - | O159: 2026-01-07T11:00:00 | P159: 371.2336027 | Q159: 33.89704318 | R159: 52.18233973 | S159: 1929.691897 | T159: 118.387531 | U159: 1995.897088 | V159: 0.0004166666667 | W159: 0.0142288394 | Y159: 2025-06-05T07:00:00 | Z159: 1197.627214 | AA159: 0
A160: System | B160: Region | C160: Island | D160: - | E160: 2026-01-07T12:00:00 | F160: 1555.055624 | G160: 32.27493419 | H160: 0.0002083333333 | I160: 0.04895729518 | K160: System | L160: Region | M160: Labrador | N160: - | O160: 2026-01-07T12:00:00 | P160: 380.6183672 | Q160: 33.76268842 | R160: 51.77972937 | S160: 1935.673991 | T160: 117.817352 | U160: 2001.711614 | V160: 0.0002083333333 | W160: 0.04895729518 | Y160: 2025-06-06T09:00:00 | Z160: 1194.68425 | AA160: 0
A161: System | B161: Region | C161: Island | D161: - | E161: 2026-01-07T13:00:00 | F161: 1527.567249 | G161: 31.82019143 | H161: 0.0002083333333 | I161: 0.0477445912 | K161: System | L161: Region | M161: Labrador | N161: - | O161: 2026-01-07T13:00:00 | P161: 378.7343777 | Q161: 33.85122021 | R161: 49.34926864 | S161: 1906.301627 | T161: 115.0206803 | U161: 1971.973038 | V161: 0.0002083333333 | W161: 0.0477445912 | Y161: 2025-06-07T11:00:00 | Z161: 1143.612211 | AA161: 0
A162: System | B162: Region | C162: Island | D162: - | E162: 2026-01-07T14:00:00 | F162: 1509.913363 | G162: 31.53688725 | H162: 0 | I162: 0 | K162: System | L162: Region | M162: Labrador | N162: - | O162: 2026-01-07T14:00:00 | P162: 363.9696224 | Q162: 34.17730498 | R162: 48.03241157 | S162: 1873.882986 | T162: 113.7466038 | U162: 1939.597178 | V162: 0 | W162: 0 | Y162: 2025-06-08T07:00:00 | Z162: 1211.923895 | AA162: 0
A163: System | B163: Region | C163: Island | D163: - | E163: 2026-01-07T15:00:00 | F163: 1517.004542 | G163: 31.62568974 | H163: 0 | I163: 0 | K163: System | L163: Region | M163: Labrador | N163: - | O163: 2026-01-07T15:00:00 | P163: 357.31501 | Q163: 34.32727415 | R163: 48.70938128 | S163: 1874.319552 | T163: 114.6623452 | U163: 1940.272516 | V163: 0 | W163: 0 | Y163: 2025-06-09T07:00:00 | Z163: 1123.813472 | AA163: 0
A164: System | B164: Region | C164: Island | D164: - | E164: 2026-01-07T16:00:00 | F164: 1553.65135 | G164: 32.20673819 | H164: 0.0002083333333 | I164: 0.054946382 | K164: System | L164: Region | M164: Labrador | N164: - | O164: 2026-01-07T16:00:00 | P164: 359.7979567 | Q164: 34.23359474 | R164: 51.85501959 | S164: 1913.449307 | T164: 118.2953525 | U164: 1979.88964 | V164: 0.0002083333333 | W164: 0.054946382 | Y164: 2025-06-10T07:00:00 | Z164: 1075.56853 | AA164: 0
A165: System | B165: Region | C165: Island | D165: - | E165: 2026-01-07T17:00:00 | F165: 1626.368194 | G165: 33.41828016 | H165: 0.0002083333333 | I165: 0.01194361046 | K165: System | L165: Region | M165: Labrador | N165: - | O165: 2026-01-07T17:00:00 | P165: 359.5850106 | Q165: 34.13755432 | R165: 58.02805951 | S165: 1985.953205 | T165: 125.583894 | U165: 2053.509039 | V165: 0.0002083333333 | W165: 0.01194361046 | Y165: 2025-06-11T08:00:00 | Z165: 1062.99965 | AA165: 0
A166: System | B166: Region | C166: Island | D166: - | E166: 2026-01-07T18:00:00 | F166: 1611.633668 | G166: 33.18205702 | H166: 0.001458333333 | I166: 0.2353358034 | K166: System | L166: Region | M166: Labrador | N166: - | O166: 2026-01-07T18:00:00 | P166: 360.3320235 | Q166: 34.11897302 | R166: 56.83373431 | S166: 1971.965691 | T166: 124.1347643 | U166: 2039.266721 | V166: 0.001458333333 | W166: 0.2353358034 | Y166: 2025-06-12T10:00:00 | Z166: 1051.097433 | AA166: 0
A167: System | B167: Region | C167: Island | D167: - | E167: 2026-01-07T19:00:00 | F167: 1588.913302 | G167: 32.75577614 | H167: 0.0004166666667 | I167: 0.07108695378 | K167: System | L167: Region | M167: Labrador | N167: - | O167: 2026-01-07T19:00:00 | P167: 347.576168 | Q167: 34.3746731 | R167: 54.99611096 | S167: 1936.48947 | T167: 122.1265602 | U167: 2003.619919 | V167: 0.0004166666667 | W167: 0.07108695378 | Y167: 2025-06-13T16:00:00 | Z167: 1112.578748 | AA167: 0
A168: System | B168: Region | C168: Island | D168: - | E168: 2026-01-07T20:00:00 | F168: 1571.833034 | G168: 32.48437519 | H168: 0.0002083333333 | I168: 0.06058805213 | K168: System | L168: Region | M168: Labrador | N168: - | O168: 2026-01-07T20:00:00 | P168: 346.2657811 | Q168: 34.40381117 | R168: 53.48675533 | S168: 1918.098815 | T168: 120.3749417 | U168: 1984.987001 | V168: 0.0002083333333 | W168: 0.06058805213 | Y168: 2025-06-14T12:00:00 | Z168: 1173.175273 | AA168: 0
A169: System | B169: Region | C169: Island | D169: - | E169: 2026-01-07T21:00:00 | F169: 1544.732236 | G169: 32.06411564 | H169: 0 | I169: 0 | K169: System | L169: Region | M169: Labrador | N169: - | O169: 2026-01-07T21:00:00 | P169: 354.3949668 | Q169: 34.25405992 | R169: 51.04469106 | S169: 1899.127203 | T169: 117.3628666 | U169: 1965.445379 | V169: 0 | W169: 0 | Y169: 2025-06-15T08:00:00 | Z169: 1197.593239 | AA169: 0
A170: System | B170: Region | C170: Island | D170: - | E170: 2026-01-07T22:00:00 | F170: 1494.091069 | G170: 31.30972785 | H170: 0 | I170: 0 | K170: System | L170: Region | M170: Labrador | N170: - | O170: 2026-01-07T22:00:00 | P170: 352.7239147 | Q170: 34.30368508 | R170: 46.83672571 | S170: 1846.814984 | T170: 112.4501386 | U170: 1912.428397 | V170: 0 | W170: 0 | Y170: 2025-06-16T07:00:00 | Z170: 1116.447289 | AA170: 0
A171: System | B171: Region | C171: Island | D171: - | E171: 2026-01-07T23:00:00 | F171: 1420.183931 | G171: 29.93489033 | H171: 0 | I171: 0 | K171: System | L171: Region | M171: Labrador | N171: - | O171: 2026-01-07T23:00:00 | P171: 355.8299446 | Q171: 34.27453501 | R171: 31.58136239 | S171: 1776.013876 | T171: 95.79078772 | U171: 1840.223301 | V171: 0 | W171: 0 | Y171: 2025-06-17T11:00:00 | Z171: 1200.216051 | AA171: 0
A172: System | B172: Region | C172: Island | D172: - | E172: 2026-01-08 | F172: 1353.577086 | G172: 28.3750764 | H172: 0.0002083333333 | I172: 0.005877568202 | K172: System | L172: Region | M172: Labrador | N172: - | O172: 2026-01-08 | P172: 352.5064476 | Q172: 34.39200268 | R172: 29.84226527 | S172: 1706.083534 | T172: 92.60934435 | U172: 1768.850613 | V172: 0.0002083333333 | W172: 0.005877568202 | Y172: 2025-06-18T07:00:00 | Z172: 1119.205813 | AA172: 0
A173: System | B173: Region | C173: Island | D173: - | E173: 2026-01-08T01:00:00 | F173: 1313.066582 | G173: 27.97770914 | H173: 0 | I173: 0 | K173: System | L173: Region | M173: Labrador | N173: - | O173: 2026-01-08T01:00:00 | P173: 357.4692954 | Q173: 34.30174843 | R173: 27.92613477 | S173: 1670.535877 | T173: 90.20559234 | U173: 1732.815334 | V173: 0 | W173: 0 | Y173: 2025-06-19T08:00:00 | Z173: 1031.080121 | AA173: 0
A174: System | B174: Region | C174: Island | D174: - | E174: 2026-01-08T02:00:00 | F174: 1310.896918 | G174: 28.05916493 | H174: 0.0002083333333 | I174: 0.002118742797 | K174: System | L174: Region | M174: Labrador | N174: - | O174: 2026-01-08T02:00:00 | P174: 364.734789 | Q174: 34.17751587 | R174: 27.77373873 | S174: 1675.631708 | T174: 90.01041952 | U174: 1737.868388 | V174: 0.0002083333333 | W174: 0.002118742797 | Y174: 2025-06-20T10:00:00 | Z174: 1039.019259 | AA174: 0
A175: System | B175: Region | C175: Island | D175: - | E175: 2026-01-08T03:00:00 | F175: 1311.065907 | G175: 27.92747284 | H175: 0 | I175: 0 | K175: System | L175: Region | M175: Labrador | N175: - | O175: 2026-01-08T03:00:00 | P175: 358.4821077 | Q175: 34.31112299 | R175: 27.88890189 | S175: 1669.548015 | T175: 90.12749772 | U175: 1731.786611 | V175: 0 | W175: 0 | Y175: 2025-06-21T11:00:00 | Z175: 988.0649656 | AA175: 0
A176: System | B176: Region | C176: Island | D176: - | E176: 2026-01-08T04:00:00 | F176: 1329.642542 | G176: 28.23624832 | H176: 0.0002083333333 | I176: 0.003768461319 | K176: System | L176: Region | M176: Labrador | N176: - | O176: 2026-01-08T04:00:00 | P176: 356.560224 | Q176: 34.35558047 | R176: 28.63372392 | S176: 1686.202766 | T176: 91.2255527 | U176: 1748.794595 | V176: 0.0002083333333 | W176: 0.003768461319 | Y176: 2025-06-22T17:00:00 | Z176: 1038.380485 | AA176: 0
A177: System | B177: Region | C177: Island | D177: - | E177: 2026-01-08T05:00:00 | F177: 1348.985832 | G177: 28.32989428 | H177: 0.0002083333333 | I177: 0.004285213413 | K177: System | L177: Region | M177: Labrador | N177: - | O177: 2026-01-08T05:00:00 | P177: 365.0331873 | Q177: 34.16690702 | R177: 29.59856449 | S177: 1714.01902 | T177: 92.09536579 | U177: 1776.515821 | V177: 0.0002083333333 | W177: 0.004285213413 | Y177: 2025-06-23T21:00:00 | Z177: 1073.829896 | AA177: 0
A178: System | B178: Region | C178: Island | D178: - | E178: 2026-01-08T06:00:00 | F178: 1401.322112 | G178: 30.09576031 | H178: 0.0002083333333 | I178: 0.02196919769 | K178: System | L178: Region | M178: Labrador | N178: - | O178: 2026-01-08T06:00:00 | P178: 372.3720617 | Q178: 33.99912559 | R178: 39.89606121 | S178: 1773.694174 | T178: 103.9909471 | U178: 1837.789059 | V178: 0.0002083333333 | W178: 0.02196919769 | Y178: 2025-06-24T08:00:00 | Z178: 1139.320933 | AA178: 0
A179: System | B179: Region | C179: Island | D179: - | E179: 2026-01-08T07:00:00 | F179: 1495.159752 | G179: 31.08300794 | H179: 0 | I179: 0 | K179: System | L179: Region | M179: Labrador | N179: - | O179: 2026-01-08T07:00:00 | P179: 340.5564447 | Q179: 34.5598294 | R179: 48.21884087 | S179: 1835.716197 | T179: 113.8616782 | U179: 1901.359034 | V179: 0 | W179: 0 | Y179: 2025-06-25T11:00:00 | Z179: 1170.466889 | AA179: 0
A180: System | B180: Region | C180: Island | D180: - | E180: 2026-01-08T08:00:00 | F180: 1570.094333 | G180: 32.14856446 | H180: 0.0002083333333 | I180: 0.002679218646 | K180: System | L180: Region | M180: Labrador | N180: - | O180: 2026-01-08T08:00:00 | P180: 315.6456684 | Q180: 34.89178929 | R180: 55.14135084 | S180: 1885.740002 | T180: 122.1817046 | U180: 1952.780355 | V180: 0.0002083333333 | W180: 0.002679218646 | Y180: 2025-06-26T09:00:00 | Z180: 1159.922879 | AA180: 0
A181: System | B181: Region | C181: Island | D181: - | E181: 2026-01-08T09:00:00 | F181: 1586.805475 | G181: 32.46385641 | H181: 0.0002083333333 | I181: 0.06114443538 | K181: System | L181: Region | M181: Labrador | N181: - | O181: 2026-01-08T09:00:00 | P181: 323.238828 | Q181: 34.71807909 | R181: 56.46203459 | S181: 1910.044303 | T181: 123.6439701 | U181: 1977.226239 | V181: 0.0002083333333 | W181: 0.06114443538 | Y181: 2025-06-27T11:00:00 | Z181: 1103.23097 | AA181: 0
A182: System | B182: Region | C182: Island | D182: - | E182: 2026-01-08T10:00:00 | F182: 1589.189085 | G182: 32.50116573 | H182: 0 | I182: 0 | K182: System | L182: Region | M182: Labrador | N182: - | O182: 2026-01-08T10:00:00 | P182: 328.1842079 | Q182: 34.66877129 | R182: 56.69337673 | S182: 1917.373293 | T182: 123.8633138 | U182: 1984.54323 | V182: 0 | W182: 0 | Y182: 2025-06-28T11:00:00 | Z182: 1007.821904 | AA182: 0
A183: System | B183: Region | C183: Island | D183: - | E183: 2026-01-08T11:00:00 | F183: 1598.980484 | G183: 32.64223056 | H183: 0.0002083333333 | I183: 0.0624361147 | K183: System | L183: Region | M183: Labrador | N183: - | O183: 2026-01-08T11:00:00 | P183: 324.6698748 | Q183: 34.77947804 | R183: 57.53809074 | S183: 1923.650359 | T183: 124.9597993 | U183: 1991.072067 | V183: 0.0002083333333 | W183: 0.0624361147 | Y183: 2025-06-29T11:00:00 | Z183: 1074.948995 | AA183: 0
A184: System | B184: Region | C184: Island | D184: - | E184: 2026-01-08T12:00:00 | F184: 1595.474934 | G184: 32.61186784 | H184: 0.0002083333333 | I184: 0.08083049605 | K184: System | L184: Region | M184: Labrador | N184: - | O184: 2026-01-08T12:00:00 | P184: 339.4682998 | Q184: 34.52234002 | R184: 57.15290507 | S184: 1934.943233 | T184: 124.2871129 | U184: 2002.077441 | V184: 0.0002083333333 | W184: 0.08083049605 | Y184: 2025-06-30T09:00:00 | Z184: 1065.530819 | AA184: 0
A185: System | B185: Region | C185: Island | D185: - | E185: 2026-01-08T13:00:00 | F185: 1571.539295 | G185: 32.2334531 | H185: 0.0002083333333 | I185: 0.05925089852 | K185: System | L185: Region | M185: Labrador | N185: - | O185: 2026-01-08T13:00:00 | P185: 344.409219 | Q185: 34.46090638 | R185: 55.01718219 | S185: 1915.948514 | T185: 121.7115417 | U185: 1982.642874 | V185: 0.0002083333333 | W185: 0.05925089852 | Y185: 2025-07-01T11:00:00 | Z185: 1020.759349 | AA185: 0
A186: System | B186: Region | C186: Island | D186: - | E186: 2026-01-08T14:00:00 | F186: 1552.494802 | G186: 31.90375595 | H186: 0 | I186: 0 | K186: System | L186: Region | M186: Labrador | N186: - | O186: 2026-01-08T14:00:00 | P186: 347.16414 | Q186: 34.46717977 | R186: 53.45750063 | S186: 1899.658942 | T186: 119.8284363 | U186: 1966.029877 | V186: 0 | W186: 0 | Y186: 2025-07-02T11:00:00 | Z186: 1031.944564 | AA186: 0
A187: System | B187: Region | C187: Island | D187: - | E187: 2026-01-08T15:00:00 | F187: 1555.501133 | G187: 31.98631621 | H187: 0.00125 | I187: 0.1668596297 | K187: System | L187: Region | M187: Labrador | N187: - | O187: 2026-01-08T15:00:00 | P187: 360.9186171 | Q187: 34.20287235 | R187: 53.61305119 | S187: 1916.41975 | T187: 119.8022398 | U187: 1982.608938 | V187: 0.00125 | W187: 0.1668596297 | Y187: 2025-07-03T09:00:00 | Z187: 1004.39864 | AA187: 0
A188: System | B188: Region | C188: Island | D188: - | E188: 2026-01-08T16:00:00 | F188: 1571.489082 | G188: 32.28177099 | H188: 0.000625 | I188: 0.1012489137 | K188: System | L188: Region | M188: Labrador | N188: - | O188: 2026-01-08T16:00:00 | P188: 367.2451064 | Q188: 34.06824546 | R188: 54.83497078 | S188: 1938.734189 | T188: 121.1849872 | U188: 2005.084205 | V188: 0.000625 | W188: 0.1012489137 | Y188: 2025-07-04T12:00:00 | Z188: 975.199589 | AA188: 0
A189: System | B189: Region | C189: Island | D189: - | E189: 2026-01-08T17:00:00 | F189: 1657.518602 | G189: 33.86926433 | H189: 0.0008333333333 | I189: 0.04089417724 | K189: System | L189: Region | M189: Labrador | N189: - | O189: 2026-01-08T17:00:00 | P189: 378.5231 | Q189: 33.74885742 | R189: 60.34045779 | S189: 2036.041702 | T189: 127.9585795 | U189: 2103.659824 | V189: 0.0008333333333 | W189: 0.04089417724 | Y189: 2025-07-05T20:00:00 | Z189: 1006.979676 | AA189: 0
A190: System | B190: Region | C190: Island | D190: - | E190: 2026-01-08T18:00:00 | F190: 1648.265059 | G190: 33.73733046 | H190: 0.0002083333333 | I190: 0.003736445885 | K190: System | L190: Region | M190: Labrador | N190: - | O190: 2026-01-08T18:00:00 | P190: 379.1329474 | Q190: 33.73226427 | R190: 60.02586488 | S190: 2027.398006 | T190: 127.4954596 | U190: 2094.867601 | V190: 0.0002083333333 | W190: 0.003736445885 | Y190: 2025-07-06T11:00:00 | Z190: 1144.488144 | AA190: 0
A191: System | B191: Region | C191: Island | D191: - | E191: 2026-01-08T19:00:00 | F191: 1622.737354 | G191: 33.20463453 | H191: 0.000625 | I191: 0.07836110804 | K191: System | L191: Region | M191: Labrador | N191: - | O191: 2026-01-08T19:00:00 | P191: 384.0751544 | Q191: 33.63936639 | R191: 58.82913728 | S191: 2006.812508 | T191: 125.6731382 | U191: 2073.656509 | V191: 0.000625 | W191: 0.07836110804 | Y191: 2025-07-07T10:00:00 | Z191: 1067.836591 | AA191: 0
A192: System | B192: Region | C192: Island | D192: - | E192: 2026-01-08T20:00:00 | F192: 1609.119853 | G192: 32.92644444 | H192: 0 | I192: 0 | K192: System | L192: Region | M192: Labrador | N192: - | O192: 2026-01-08T20:00:00 | P192: 382.3366282 | Q192: 33.70649536 | R192: 58.07398224 | S192: 1991.456482 | T192: 124.706922 | U192: 2058.089421 | V192: 0 | W192: 0 | Y192: 2025-07-08T11:00:00 | Z192: 1027.89573 | AA192: 0
A193: System | B193: Region | C193: Island | D193: - | E193: 2026-01-08T21:00:00 | F193: 1582.378856 | G193: 32.50148754 | H193: 0.0002083333333 | I193: 0.005026040819 | K193: System | L193: Region | M193: Labrador | N193: - | O193: 2026-01-08T21:00:00 | P193: 388.0005584 | Q193: 33.61027666 | R193: 55.51499736 | S193: 1970.379414 | T193: 121.6267616 | U193: 2036.491178 | V193: 0.0002083333333 | W193: 0.005026040819 | Y193: 2025-07-09T16:00:00 | Z193: 974.3898974 | AA193: 0
A194: System | B194: Region | C194: Island | D194: - | E194: 2026-01-08T22:00:00 | F194: 1537.629345 | G194: 31.7241743 | H194: 0 | I194: 0 | K194: System | L194: Region | M194: Labrador | N194: - | O194: 2026-01-08T22:00:00 | P194: 381.0896239 | Q194: 33.75614968 | R194: 51.95019103 | S194: 1918.718969 | T194: 117.430515 | U194: 1984.199293 | V194: 0 | W194: 0 | Y194: 2025-07-10T10:00:00 | Z194: 1014.823134 | AA194: 0
A195: System | B195: Region | C195: Island | D195: - | E195: 2026-01-08T23:00:00 | F195: 1455.363144 | G195: 29.38534822 | H195: 0.0004166666667 | I195: 0.047198668 | K195: System | L195: Region | M195: Labrador | N195: - | O195: 2026-01-08T23:00:00 | P195: 378.8650459 | Q195: 33.85439866 | R195: 35.32184483 | S195: 1834.22819 | T195: 98.56159172 | U195: 1897.467937 | V195: 0.0004166666667 | W195: 0.047198668 | Y195: 2025-07-11T11:00:00 | Z195: 1046.155778 | AA195: 0
A196: System | B196: Region | C196: Island | D196: - | E196: 2026-01-09 | F196: 1407.566359 | G196: 30.23952004 | H196: 0 | I196: 0 | K196: System | L196: Region | M196: Labrador | N196: - | O196: 2026-01-09 | P196: 374.7393727 | Q196: 34.00444939 | R196: 30.37002458 | S196: =F196+P196 -> 1782.305731 | T196: 94.61399401 | U196: =F196+G196+P196+Q196 -> 1846.549701 | V196: =H196 -> 0 | W196: 0 | Y196: 2025-07-12T11:00:00 | Z196: 1020.819722 | AA196: 0
A197: System | B197: Region | C197: Island | D197: - | E197: 2026-01-09T01:00:00 | F197: 1390.085166 | G197: 30.1773372 | H197: 0 | I197: 0 | K197: System | L197: Region | M197: Labrador | N197: - | O197: 2026-01-09T01:00:00 | P197: 380.6854906 | Q197: 33.91489974 | R197: 29.3736654 | S197: 1770.770656 | T197: =G197+Q197+R197 -> 93.46590234 | U197: 1834.862893 | V197: 0 | W197: 0 | Y197: 2025-07-13T11:00:00 | Z197: =MAX(OFFSET($S$4:$S$27,(ROW()-4)*24,0)) -> 1116.826032 | AA197: =VLOOKUP(Z197,OFFSET($S$4:$V$27,(ROW()-4)*24,0),4,FALSE) -> 0
A198: System | B198: Region | C198: Island | D198: - | E198: 2026-01-09T02:00:00 | F198: 1392.238795 | G198: 30.15359912 | H198: 0.0002083333333 | I198: 0.01616862309 | K198: System | L198: Region | M198: Labrador | N198: - | O198: 2026-01-09T02:00:00 | P198: 380.2815261 | Q198: 33.94138823 | R198: 29.48855261 | S198: 1772.520321 | T198: 93.58353995 | U198: 1836.615309 | V198: 0.0002083333333 | W198: 0.01616862309 | Y198: 2025-07-14T09:00:00 | Z198: 1032.069134 | AA198: 0
A199: System | B199: Region | C199: Island | D199: - | E199: 2026-01-09T03:00:00 | F199: 1401.87106 | G199: 30.22822255 | H199: 0.0002083333333 | I199: 0.02164940459 | K199: System | L199: Region | M199: Labrador | N199: - | O199: 2026-01-09T03:00:00 | P199: 378.5978844 | Q199: 34.02182732 | R199: 29.98792049 | S199: 1780.468944 | T199: 94.23797036 | U199: 1844.718994 | V199: 0.0002083333333 | W199: 0.02164940459 | Y199: 2025-07-15T16:00:00 | Z199: 958.4276064 | AA199: 0
A200: System | B200: Region | C200: Island | D200: - | E200: 2026-01-09T04:00:00 | F200: 1416.412433 | G200: 30.30624278 | H200: 0 | I200: 0 | K200: System | L200: Region | M200: Labrador | N200: - | O200: 2026-01-09T04:00:00 | P200: 379.4766084 | Q200: 33.97037036 | R200: 30.89539103 | S200: 1795.889041 | T200: 95.17200417 | U200: 1860.165655 | V200: 0 | W200: 0 | Y200: 2025-07-16T11:00:00 | Z200: 1024.359063 | AA200: 0
A201: System | B201: Region | C201: Island | D201: - | E201: 2026-01-09T05:00:00 | F201: 1439.701692 | G201: 30.41693957 | H201: 0 | I201: 0 | K201: System | L201: Region | M201: Labrador | N201: - | O201: 2026-01-09T05:00:00 | P201: 379.7170486 | Q201: 33.95750672 | R201: 32.28741732 | S201: 1819.418741 | T201: 96.6618636 | U201: 1883.793187 | V201: 0 | W201: 0 | Y201: 2025-07-17T09:00:00 | Z201: 994.28694 | AA201: 0
... 2049 more rows

Sheet Run 2
A2: Island | K2: Labrador | R2: LIL Losses
A3: Parent Name | B3: Collection | C3: Child Name | D3: Category | E3: Datetime | F3: Load (MW) | G3: Transmission Losses (MW) | H3: Unserved Energy Hours (h) | I3: Unserved Energy (MW) | K3: Parent Name | L3: Collection | M3: Child Name | N3: Category | O3: Datetime | P3: Load (MW) | Q3: Transmission Losses (MW) | R3: Transmission Losses (MW) | S3: Province Total No Loss | T3: Province Loss | U3: Province Total | V3: Unserved Energy Hours (h) | W3: Unserved Energy (MW) | Y3: Daily Peak | Z3: Daily Peak Load | AA3: Average Unserved Energy Hours
A4: System | B4: Region | C4: Island | D4: - | E4: 2026-01-01 | F4: 1438.772738 | G4: 30.85056317 | H4: 0.0004166666667 | I4: 0.0356265668 | K4: System | L4: Region | M4: Labrador | N4: - | O4: 2026-01-01 | P4: 385.196486 | Q4: 33.92582078 | R4: 31.16531509 | S4: =F4+P4 -> 1823.969224 | T4: =G4+Q4+R4 -> 95.94169904 | U4: =F4+G4+P4+Q4 -> 1888.745608 | V4: =H4 -> 0.0004166666667 | W4: 0.0356265668 | Y4: 2025-01-01T17:00:00 | Z4: =MAX(OFFSET($S$4:$S$27,(ROW()-4)*24,0)) -> 2004.646537 | AA4: =VLOOKUP(Z4,OFFSET($S$4:$V$27,(ROW()-4)*24,0),4,FALSE) -> 0.0002083333333 | AD4: LOLE | AE4: =SUM(AA4:AA368) -> 0.095
A5: System | B5: Region | C5: Island | D5: - | E5: 2026-01-01T01:00:00 | F5: 1406.727936 | G5: 30.75691095 | H5: 0.0002083333333 | I5: 0.01751778946 | K5: System | L5: Region | M5: Labrador | N5: - | O5: 2026-01-01T01:00:00 | P5: 400.7178834 | Q5: 33.6317754 | R5: 29.14059125 | S5: 1807.445819 | T5: =G5+Q5+R5 -> 93.5292776 | U5: 1871.834505 | V5: 0.0002083333333 | W5: 0.01751778946 | Y5: 2025-01-02T17:00:00 | Z5: =MAX(OFFSET($S$4:$S$27,(ROW()-4)*24,0)) -> 1917.900775 | AA5: =VLOOKUP(Z5,OFFSET($S$4:$V$27,(ROW()-4)*24,0),4,FALSE) -> 0 | AD5: LOLH | AE5: =SUM(V4:V8763) -> 0.5575
A6: System | B6: Region | C6: Island | D6: - | E6: 2026-01-01T02:00:00 | F6: 1384.365106 | G6: 30.66643342 | H6: 0.0002083333333 | I6: 0.0160342888 | K6: System | L6: Region | M6: Labrador | N6: - | O6: 2026-01-01T02:00:00 | P6: 416.448855 | Q6: 33.34802807 | R6: 27.84371936 | S6: 1800.813961 | T6: 91.85818085 | U6: 1864.828422 | V6: 0.0002083333333 | W6: 0.0160342888 | Y6: 2025-01-03T20:00:00 | Z6: 2127.453482 | AA6: 0.004791666667 | AD6: EUE | AE6: =SUM(W4:W8763) -> 55.69923185
A7: System | B7: Region | C7: Island | D7: - | E7: 2026-01-01T03:00:00 | F7: 1369.972692 | G7: 30.5847518 | H7: 0.0002083333333 | I7: 0.01130437267 | K7: System | L7: Region | M7: Labrador | N7: - | O7: 2026-01-01T03:00:00 | P7: 436.4548555 | Q7: 32.97488992 | R7: 27.03866721 | S7: 1806.427548 | T7: 90.59830893 | U7: 1869.987189 | V7: 0.0002083333333 | W7: 0.01130437267 | Y7: 2025-01-04T17:00:00 | Z7: 2117.457045 | AA7: 0.003125 | AD7: Peak | AE7: =MAX(S4:S8763) -> 2174.18951
A8: System | B8: Region | C8: Island | D8: - | E8: 2026-01-01T04:00:00 | F8: 1368.34843 | G8: 30.57876359 | H8: 0.0002083333333 | I8: 0.01659317 | K8: System | L8: Region | M8: Labrador | N8: - | O8: 2026-01-01T04:00:00 | P8: 429.4967925 | Q8: 33.10525144 | R8: 27.04145383 | S8: 1797.845223 | T8: 90.72546886 | U8: 1861.529238 | V8: 0.0002083333333 | W8: 0.01659317 | Y8: 2025-01-05T19:00:00 | Z8: 1834.024329 | AA8: 0.0002083333333 | AD8: Loss @ Peak | AE8: =VLOOKUP(AE7,S4:T8763,2,FALSE) -> 124.241589
A9: System | B9: Region | C9: Island | D9: - | E9: 2026-01-01T05:00:00 | F9: 1382.957251 | G9: 30.68254455 | H9: 0.0002083333333 | I9: 0.01485070683 | K9: System | L9: Region | M9: Labrador | N9: - | O9: 2026-01-01T05:00:00 | P9: 420.8476926 | Q9: 33.25184208 | R9: 27.67502533 | S9: 1803.804943 | T9: 91.60941196 | U9: 1867.73933 | V9: 0.0002083333333 | W9: 0.01485070683 | Y9: 2025-01-06T17:00:00 | Z9: 2065.14495 | AA9: 0.002083333333 | AD9: Peak with Losses | AE9: =AE7+AE8 -> 2298.431099
A10: System | B10: Region | C10: Island | D10: - | E10: 2026-01-01T06:00:00 | F10: 1411.547991 | G10: 30.95970215 | H10: 0.0004166666667 | I10: 0.04857401224 | K10: System | L10: Region | M10: Labrador | N10: - | O10: 2026-01-01T06:00:00 | P10: 441.114983 | Q10: 32.83966212 | R10: 37.98130018 | S10: 1852.662974 | T10: 101.7806644 | U10: 1916.462338 | V10: 0.0004166666667 | W10: 0.04857401224 | Y10: 2025-01-07T17:00:00 | Z10: 1993.841359 | AA10: 0.0004166666667 | AD10: Peak Losses | AE10: =MAX(T4:T8763) -> 131.430252
A11: System | B11: Region | C11: Island | D11: - | E11: 2026-01-01T07:00:00 | F11: 1450.761077 | G11: 31.30790706 | H11: 0 | I11: 0 | K11: System | L11: Region | M11: Labrador | N11: - | O11: 2026-01-01T07:00:00 | P11: 441.3405739 | Q11: 32.81730605 | R11: 40.7946339 | S11: 1892.101651 | T11: 104.919847 | U11: 1956.226864 | V11: 0 | W11: 0 | Y11: 2025-01-08T17:00:00 | Z11: 2044.45448 | AA11: 0.00125 | AD11: Island Peak | AE11: =MAX(F4:F8763) -> 1750.281025
A12: System | B12: Region | C12: Island | D12: - | E12: 2026-01-01T08:00:00 | F12: 1482.123295 | G12: 31.67656446 | H12: 0 | I12: 0 | K12: System | L12: Region | M12: Labrador | N12: - | O12: 2026-01-01T08:00:00 | P12: 432.8193979 | Q12: 32.97386023 | R12: 43.08045474 | S12: 1914.942693 | T12: 107.7308794 | U12: 1979.593117 | V12: 0 | W12: 0 | Y12: 2025-01-09T08:00:00 | Z12: 2073.838214 | AA12: 0.002708333333 | AD12: Labrador Peak | AE12: =MAX(P4:P8763) -> 472.714203
A13: System | B13: Region | C13: Island | D13: - | E13: 2026-01-01T09:00:00 | F13: 1491.781837 | G13: 31.85181808 | H13: 0.0002083333333 | I13: 0.03750212372 | K13: System | L13: Region | M13: Labrador | N13: - | O13: 2026-01-01T09:00:00 | P13: 441.3670787 | Q13: 32.79506721 | R13: 43.80696985 | S13: 1933.148916 | T13: 108.4538551 | U13: 1997.795801 | V13: 0.0002083333333 | W13: 0.03750212372 | Y13: 2025-01-10T17:00:00 | Z13: 1905.655517 | AA13: 0.0002083333333 | AD13: Coincidence Factor | AE13: =AE7/(AE11+AE12) -> 0.9780450638
A14: System | B14: Region | C14: Island | D14: - | E14: 2026-01-01T10:00:00 | F14: 1502.313625 | G14: 32.04905185 | H14: 0.0004166666667 | I14: 0.08030032327 | K14: System | L14: Region | M14: Labrador | N14: - | O14: 2026-01-01T10:00:00 | P14: 442.0257759 | Q14: 32.76948296 | R14: 44.45911575 | S14: 1944.339401 | T14: 109.2776506 | U14: 2009.157935 | V14: 0.0004166666667 | W14: 0.08030032327 | Y14: 2025-01-11T20:00:00 | Z14: 1966.897832 | AA14: 0.0004166666667 | AD14: Firm Capacity | AE14: 2602.086
A15: System | B15: Region | C15: Island | D15: - | E15: 2026-01-01T11:00:00 | F15: 1519.820977 | G15: 32.19630734 | H15: 0 | I15: 0 | K15: System | L15: Region | M15: Labrador | N15: - | O15: 2026-01-01T11:00:00 | P15: 401.1253687 | Q15: 33.58995532 | R15: 46.37870892 | S15: 1920.946346 | T15: 112.1649716 | U15: 1986.732608 | V15: 0 | W15: 0 | Y15: 2025-01-12T08:00:00 | Z15: 2049.828196 | AA15: 0.000625 | AD15: Reserve Margin | AE15: =AE14-AE7 -> 427.8964903
A16: System | B16: Region | C16: Island | D16: - | E16: 2026-01-01T12:00:00 | F16: 1528.745083 | G16: 32.43425362 | H16: 0.0004166666667 | I16: 0.0745770235 | K16: System | L16: Region | M16: Labrador | N16: - | O16: 2026-01-01T12:00:00 | P16: 431.5261994 | Q16: 33.02613217 | R16: 46.6676731 | S16: 1960.271283 | T16: 112.1280589 | U16: 2025.731669 | V16: 0.0004166666667 | W16: 0.0745770235 | Y16: 2025-01-13T18:00:00 | Z16: 1992.821836 | AA16: 0.0004166666667 | AD16: Reserve Margin % | AE16: =AE15/AE7 -> 0.1968073567
A17: System | B17: Region | C17: Island | D17: - | E17: 2026-01-01T13:00:00 | F17: 1529.026594 | G17: 32.44009658 | H17: 0.0004166666667 | I17: 0.09990802948 | K17: System | L17: Region | M17: Labrador | N17: - | O17: 2026-01-01T13:00:00 | P17: 428.5408101 | Q17: 33.1057361 | R17: 46.61999753 | S17: 1957.567404 | T17: 112.1658302 | U17: 2023.113236 | V17: 0.0004166666667 | W17: 0.09990802948 | Y17: 2025-01-14T08:00:00 | Z17: 2059.670315 | AA17: 0.001666666667 | AD17: Reserve Magin w/Loss | AE17: =AE14-AE9 -> 303.6549013
A18: System | B18: Region | C18: Island | D18: - | E18: 2026-01-01T14:00:00 | F18: 1528.620445 | G18: 32.35535013 | H18: 0 | I18: 0 | K18: System | L18: Region | M18: Labrador | N18: - | O18: 2026-01-01T14:00:00 | P18: 405.3626373 | Q18: 33.61272623 | R18: 47.04469316 | S18: 1933.983083 | T18: 113.0127695 | U18: 1999.951159 | V18: 0 | W18: 0 | Y18: 2025-01-15T08:00:00 | Z18: 1949.532881 | AA18: 0 | AD18: Reserve Margin % w/ Loss | AE18: =AE17/AE9 -> 0.1321139892
A19: System | B19: Region | C19: Island | D19: - | E19: 2026-01-01T15:00:00 | F19: 1533.516193 | G19: 32.41898462 | H19: 0.0004166666667 | I19: 0.100751964 | K19: System | L19: Region | M19: Labrador | N19: - | O19: 2026-01-01T15:00:00 | P19: 405.7208814 | Q19: 33.58150854 | R19: 47.41827547 | S19: 1939.237074 | T19: 113.4187686 | U19: 2005.237567 | V19: 0.0004166666667 | W19: 0.100751964 | Y19: 2025-01-16T08:00:00 | Z19: 1830.927416 | AA19: 0
A20: System | B20: Region | C20: Island | D20: - | E20: 2026-01-01T16:00:00 | F20: 1550.686577 | G20: 32.68338282 | H20: 0.0002083333333 | I20: 0.0006874447583 | K20: System | L20: Region | M20: Labrador | N20: - | O20: 2026-01-01T16:00:00 | P20: 405.2047044 | Q20: 33.56272833 | R20: 48.94173664 | S20: 1955.891282 | T20: 115.1878478 | U20: 2022.137393 | V20: 0.0002083333333 | W20: 0.0006874447583 | Y20: 2025-01-17T18:00:00 | Z20: 1931.785432 | AA20: 0.0002083333333 | AD20: Checks
A21: System | B21: Region | C21: Island | D21: - | E21: 2026-01-01T17:00:00 | F21: 1597.57772 | G21: 33.39972016 | H21: 0.0002083333333 | I21: 0.005534925609 | K21: System | L21: Region | M21: Labrador | N21: - | O21: 2026-01-01T17:00:00 | P21: 407.0688168 | Q21: 33.49545635 | R21: 52.86606583 | S21: 2004.646537 | T21: 119.7612423 | U21: 2071.541714 | V21: 0.0002083333333 | W21: 0.005534925609 | Y21: 2025-01-18T18:00:00 | Z21: 2008.30469 | AA21: 0.0004166666667 | AD21: Island Energy (Original) | AE21: 8357
A22: System | B22: Region | C22: Island | D22: - | E22: 2026-01-01T18:00:00 | F22: 1572.504124 | G22: 33.03005997 | H22: 0 | I22: 0 | K22: System | L22: Region | M22: Labrador | N22: - | O22: 2026-01-01T18:00:00 | P22: 404.3223494 | Q22: 33.55691176 | R22: 50.81481192 | S22: 1976.826474 | T22: 117.4017837 | U22: 2043.413446 | V22: 0 | W22: 0 | Y22: 2025-01-19T08:00:00 | Z22: 1891.863534 | AA22: 0 | AD22: Island Energy (Escalated) | AE22: =SUM(F4:F8763)/1000 -> 8582.654319
A23: System | B23: Region | C23: Island | D23: - | E23: 2026-01-01T19:00:00 | F23: 1550.811298 | G23: 32.71996173 | H23: 0.0002083333333 | I23: 0.05252672912 | K23: System | L23: Region | M23: Labrador | N23: - | O23: 2026-01-01T19:00:00 | P23: 415.5991501 | Q23: 33.38116317 | R23: 48.69086339 | S23: 1966.410448 | T23: 114.7919883 | U23: 2032.511573 | V23: 0.0002083333333 | W23: 0.05252672912 | Y23: 2025-01-20T18:00:00 | Z23: 1736.81299 | AA23: 0.0002083333333 | AD23: Escalation Factor Check | AE23: =AE22/AE21 -> 1.027001833
A24: System | B24: Region | C24: Island | D24: - | E24: 2026-01-01T20:00:00 | F24: 1533.396102 | G24: 32.43297208 | H24: 0.0002083333333 | I24: 0.05023162281 | K24: System | L24: Region | M24: Labrador | N24: - | O24: 2026-01-01T20:00:00 | P24: 405.553495 | Q24: 33.62295488 | R24: 47.45188311 | S24: 1938.949597 | T24: 113.5078101 | U24: 2005.005524 | V24: 0.0002083333333 | W24: 0.05023162281 | Y24: 2025-01-21T18:00:00 | Z24: 1830.593883 | AA24: 0.0004166666667
A25: System | B25: Region | C25: Island | D25: - | E25: 2026-01-01T21:00:00 | F25: 1504.613191 | G25: 31.98173332 | H25: 0.0004166666667 | I25: 0.052900374 | K25: System | L25: Region | M25: Labrador | N25: - | O25: 2026-01-01T21:00:00 | P25: 391.8536286 | Q25: 33.93577363 | R25: 45.15374788 | S25: 1896.466819 | T25: 111.0712548 | U25: 1962.384326 | V25: 0.0004166666667 | W25: 0.052900374 | Y25: 2025-01-22T08:00:00 | Z25: 1888.090459 | AA25: 0.0002083333333 | AD25: Island Peak (Original) | AE25: 1704
A26: System | B26: Region | C26: Island | D26: - | E26: 2026-01-01T22:00:00 | F26: 1463.6164 | G26: 31.38252714 | H26: 0 | I26: 0 | K26: System | L26: Region | M26: Labrador | N26: - | O26: 2026-01-01T22:00:00 | P26: 381.6162757 | Q26: 34.17555702 | R26: 42.10954949 | S26: 1845.232675 | T26: 107.6676337 | U26: 1910.79076 | V26: 0 | W26: 0 | Y26: 2025-01-23T18:00:00 | Z26: 1928.209247 | AA26: 0.0004166666667 | AD26: Island Peak (Escalated) | AE26: =MAX(F4:F8763) -> 1750.281025
A27: System | B27: Region | C27: Island | D27: - | E27: 2026-01-01T23:00:00 | F27: 1386.99234 | G27: 30.71463405 | H27: 0.0002083333333 | I27: 0.01495746694 | K27: System | L27: Region | M27: Labrador | N27: - | O27: 2026-01-01T23:00:00 | P27: 376.9922001 | Q27: 34.32137452 | R27: 27.94308033 | S27: 1763.98454 | T27: 92.9790889 | U27: 1829.020548 | V27: 0.0002083333333 | W27: 0.01495746694 | Y27: 2025-01-24T10:00:00 | Z27: 1928.341836 | AA27: 0.0002083333333 | AD27: Escalation Factor Check | AE27: =AE26/AE25 -> 1.027160226
A28: System | B28: Region | C28: Island | D28: - | E28: 2026-01-02 | F28: 1308.094869 | G28: 22.75843619 | H28: 0 | I28: 0 | K28: System | L28: Region | M28: Labrador | N28: - | O28: 2026-01-02 | P28: 387.6799202 | Q28: 34.16840693 | R28: 34.73894075 | S28: 1695.774789 | T28: 91.66578387 | U28: 1752.701632 | V28: 0 | W28: 0 | Y28: 2025-01-25T18:00:00 | Z28: 1826.390319 | AA28: 0.0004166666667
A29: System | B29: Region | C29: Island | D29: - | E29: 2026-01-02T01:00:00 | F29: 1252.424916 | G29: 21.54947932 | H29: 0 | I29: 0 | K29: System | L29: Region | M29: Labrador | N29: - | O29: 2026-01-02T01:00:00 | P29: 386.3088271 | Q29: 34.24101293 | R29: 32.65265512 | S29: 1638.733743 | T29: 88.44314738 | U29: 1694.524235 | V29: 0 | W29: 0 | Y29: 2025-01-26T18:00:00 | Z29: 2038.235731 | AA29: 0.000625 | AD29: Labrador Energy (Original) | AE29: =355.7+381.7+2074.3 -> 2811.7
A30: System | B30: Region | C30: Island | D30: - | E30: 2026-01-02T02:00:00 | F30: 1232.574402 | G30: 21.13590945 | H30: 0 | I30: 0 | K30: System | L30: Region | M30: Labrador | N30: - | O30: 2026-01-02T02:00:00 | P30: 395.3885573 | Q30: 34.0712136 | R30: 31.97615331 | S30: 1627.96296 | T30: 87.18327636 | U30: 1683.170083 | V30: 0 | W30: 0 | Y30: 2025-01-27T17:00:00 | Z30: 2114.360007 | AA30: 0.00375 | AD30: Labrador Energy (Escalated) | AE30: =SUM(P4:P8763)/1000 -> 2887.607728
A31: System | B31: Region | C31: Island | D31: - | E31: 2026-01-02T03:00:00 | F31: 1229.147414 | G31: 21.00639633 | H31: 0 | I31: 0 | K31: System | L31: Region | M31: Labrador | N31: - | O31: 2026-01-02T03:00:00 | P31: 406.1989587 | Q31: 33.86375538 | R31: 31.81920489 | S31: 1635.346372 | T31: 86.68935661 | U31: 1690.216524 | V31: 0 | W31: 0 | Y31: 2025-01-28T08:00:00 | Z31: 1796.126334 | AA31: 0 | AD31: Escalation Factor Check | AE31: =AE30/AE29 -> 1.026997094
A32: System | B32: Region | C32: Island | D32: - | E32: 2026-01-02T04:00:00 | F32: 1237.699888 | G32: 21.24303999 | H32: 0 | I32: 0 | K32: System | L32: Region | M32: Labrador | N32: - | O32: 2026-01-02T04:00:00 | P32: 425.2917751 | Q32: 33.50589841 | R32: 32.08727999 | S32: 1662.991663 | T32: 86.83621839 | U32: 1717.740601 | V32: 0 | W32: 0 | Y32: 2025-01-29T19:00:00 | Z32: 1822.100956 | AA32: 0.0004166666667
A33: System | B33: Region | C33: Island | D33: - | E33: 2026-01-02T05:00:00 | F33: 1255.80206 | G33: 21.63842332 | H33: 0 | I33: 0 | K33: System | L33: Region | M33: Labrador | N33: - | O33: 2026-01-02T05:00:00 | P33: 426.6772819 | Q33: 33.4780307 | R33: 32.73706937 | S33: 1682.479342 | T33: 87.85352338 | U33: 1737.595796 | V33: 0 | W33: 0 | Y33: 2025-01-30T10:00:00 | Z33: 1874.647939 | AA33: 0.0002083333333
A34: System | B34: Region | C34: Island | D34: - | E34: 2026-01-02T06:00:00 | F34: 1293.247601 | G34: 27.45029656 | H34: 0 | I34: 0 | K34: System | L34: Region | M34: Labrador | N34: - | O34: 2026-01-02T06:00:00 | P34: 428.9303943 | Q34: 33.41036658 | R34: 35.54467892 | S34: 1722.177995 | T34: 96.40534207 | U34: 1783.038658 | V34: 0 | W34: 0 | Y34: 2025-01-31T18:00:00 | Z34: 1878.902523 | AA34: 0.0002083333333
A35: System | B35: Region | C35: Island | D35: - | E35: 2026-01-02T07:00:00 | F35: 1361.41781 | G35: 28.82102013 | H35: 0.0002083333333 | I35: 0.01289934837 | K35: System | L35: Region | M35: Labrador | N35: - | O35: 2026-01-02T07:00:00 | P35: 410.9280795 | Q35: 33.7320306 | R35: 39.01341347 | S35: 1772.34589 | T35: 101.5664642 | U35: 1834.898941 | V35: 0.0002083333333 | W35: 0.01289934837 | Y35: 2025-02-01T18:00:00 | Z35: 1760.780356 | AA35: 0
A36: System | B36: Region | C36: Island | D36: - | E36: 2026-01-02T08:00:00 | F36: 1398.87282 | G36: 29.51908137 | H36: 0 | I36: 0 | K36: System | L36: Region | M36: Labrador | N36: - | O36: 2026-01-02T08:00:00 | P36: 413.6339968 | Q36: 33.6470518 | R36: 41.17361343 | S36: 1812.506817 | T36: 104.3397466 | U36: 1875.67295 | V36: 0 | W36: 0 | Y36: 2025-02-02T17:00:00 | Z36: 2037.977166 | AA36: 0.002083333333
A37: System | B37: Region | C37: Island | D37: - | E37: 2026-01-02T09:00:00 | F37: 1438.144245 | G37: 30.2444667 | H37: 0.0002083333333 | I37: 0.02766297823 | K37: System | L37: Region | M37: Labrador | N37: - | O37: 2026-01-02T09:00:00 | P37: 435.2408889 | Q37: 33.2020852 | R37: 43.69730908 | S37: 1873.385134 | T37: 107.143861 | U37: 1936.831686 | V37: 0.0002083333333 | W37: 0.02766297823 | Y37: 2025-02-03T18:00:00 | Z37: 1928.801538 | AA37: 0.0002083333333
A38: System | B38: Region | C38: Island | D38: - | E38: 2026-01-02T10:00:00 | F38: 1438.204996 | G38: 30.21272017 | H38: 0 | I38: 0 | K38: System | L38: Region | M38: Labrador | N38: - | O38: 2026-01-02T10:00:00 | P38: 423.4314941 | Q38: 33.43653248 | R38: 43.7587231 | S38: 1861.63649 | T38: 107.4079758 | U38: 1925.285743 | V38: 0 | W38: 0 | Y38: 2025-02-04T08:00:00 | Z38: 2020.445118 | AA38: 0.0004166666667
A39: System | B39: Region | C39: Island | D39: - | E39: 2026-01-02T11:00:00 | F39: 1445.877013 | G39: 30.35909349 | H39: 0.0002083333333 | I39: 0.03355701234 | K39: System | L39: Region | M39: Labrador | N39: - | O39: 2026-01-02T11:00:00 | P39: 431.6498974 | Q39: 33.28917836 | R39: 44.15036992 | S39: 1877.526911 | T39: 107.7986418 | U39: 1941.175182 | V39: 0.0002083333333 | W39: 0.03355701234 | Y39: 2025-02-05T08:00:00 | Z39: 2020.994986 | AA39: 0.0002083333333
A40: System | B40: Region | C40: Island | D40: - | E40: 2026-01-02T12:00:00 | F40: 1436.890802 | G40: 30.2072573 | H40: 0 | I40: 0 | K40: System | L40: Region | M40: Labrador | N40: - | O40: 2026-01-02T12:00:00 | P40: 428.4892669 | Q40: 33.36042627 | R40: 43.62457996 | S40: 1865.380069 | T40: 107.1922635 | U40: 1928.947752 | V40: 0 | W40: 0 | Y40: 2025-02-06T20:00:00 | Z40: 1870.773458 | AA40: 0.000625
A41: System | B41: Region | C41: Island | D41: - | E41: 2026-01-02T13:00:00 | F41: 1414.409578 | G41: 29.83313979 | H41: 0.0002083333333 | I41: 0.02879370007 | K41: System | L41: Region | M41: Labrador | N41: - | O41: 2026-01-02T13:00:00 | P41: 442.7520365 | Q41: 33.10228174 | R41: 42.02233951 | S41: 1857.161615 | T41: 104.957761 | U41: 1920.097036 | V41: 0.0002083333333 | W41: 0.02879370007 | Y41: 2025-02-07T18:00:00 | Z41: 2017.195412 | AA41: 0.0004166666667
A42: System | B42: Region | C42: Island | D42: - | E42: 2026-01-02T14:00:00 | F42: 1371.549873 | G42: 29.04186628 | H42: 0 | I42: 0 | K42: System | L42: Region | M42: Labrador | N42: - | O42: 2026-01-02T14:00:00 | P42: 441.8560324 | Q42: 33.18110086 | R42: 39.37198119 | S42: 1813.405905 | T42: 101.5949483 | U42: 1875.628873 | V42: 0 | W42: 0 | Y42: 2025-02-08T19:00:00 | Z42: 2045.790872 | AA42: 0.00125
A43: System | B43: Region | C43: Island | D43: - | E43: 2026-01-02T15:00:00 | F43: 1349.880922 | G43: 28.60302799 | H43: 0.000625 | I43: 0.0459242136 | K43: System | L43: Region | M43: Labrador | N43: - | O43: 2026-01-02T15:00:00 | P43: 442.2355855 | Q43: 33.17975864 | R43: 38.27164446 | S43: 1792.116507 | T43: 100.0544311 | U43: 1853.899294 | V43: 0.000625 | W43: 0.0459242136 | Y43: 2025-02-09T08:00:00 | Z43: 2174.18951 | AA43: 0.01
A44: System | B44: Region | C44: Island | D44: - | E44: 2026-01-02T16:00:00 | F44: 1370.259834 | G44: 29.00446394 | H44: 0 | I44: 0 | K44: System | L44: Region | M44: Labrador | N44: - | O44: 2026-01-02T16:00:00 | P44: 443.6810329 | Q44: 33.1261185 | R44: 39.33951801 | S44: 1813.940867 | T44: 101.4701005 | U44: 1876.07145 | V44: 0 | W44: 0 | Y44: 2025-02-10T08:00:00 | Z44: 2098.300531 | AA44: 0.003958333333
A45: System | B45: Region | C45: Island | D45: - | E45: 2026-01-02T17:00:00 | F45: 1471.070151 | G45: 30.77488883 | H45: 0 | I45: 0 | K45: System | L45: Region | M45: Labrador | N45: - | O45: 2026-01-02T17:00:00 | P45: 446.8306236 | Q45: 32.98088319 | R45: 45.86358871 | S45: 1917.900775 | T45: 109.6193607 | U45: 1981.656547 | V45: 0 | W45: 0 | Y45: 2025-02-11T18:00:00 | Z45: 1903.003349 | AA45: 0.0004166666667
A46: System | B46: Region | C46: Island | D46: - | E46: 2026-01-02T18:00:00 | F46: 1454.962006 | G46: 30.54753779 | H46: 0.0004166666667 | I46: 0.06687611781 | K46: System | L46: Region | M46: Labrador | N46: - | O46: 2026-01-02T18:00:00 | P46: 448.4405282 | Q46: 32.92558259 | R46: 44.58640772 | S46: 1903.402534 | T46: 108.0595281 | U46: 1966.875654 | V46: 0.0004166666667 | W46: 0.06687611781 | Y46: 2025-02-12T12:00:00 | Z46: 2112.668368 | AA46: 0.003333333333
A47: System | B47: Region | C47: Island | D47: - | E47: 2026-01-02T19:00:00 | F47: 1417.343515 | G47: 29.91711321 | H47: 0 | I47: 0 | K47: System | L47: Region | M47: Labrador | N47: - | O47: 2026-01-02T19:00:00 | P47: 448.1359047 | Q47: 32.92004654 | R47: 42.21916206 | S47: 1865.479419 | T47: 105.0563218 | U47: 1928.316579 | V47: 0 | W47: 0 | Y47: 2025-02-13T08:00:00 | Z47: 1997.730841 | AA47: 0
A48: System | B48: Region | C48: Island | D48: - | E48: 2026-01-02T20:00:00 | F48: 1408.234796 | G48: 29.71014419 | H48: 0.0002083333333 | I48: 0.02238950102 | K48: System | L48: Region | M48: Labrador | N48: - | O48: 2026-01-02T20:00:00 | P48: 428.7805955 | Q48: 33.30157197 | R48: 41.73747851 | S48: 1837.015392 | T48: 104.7491947 | U48: 1900.027108 | V48: 0.0002083333333 | W48: 0.02238950102 | Y48: 2025-02-14T18:00:00 | Z48: 1959.558746 | AA48: 0.0002083333333
A49: System | B49: Region | C49: Island | D49: - | E49: 2026-01-02T21:00:00 | F49: 1385.840771 | G49: 29.31346409 | H49: 0.0002083333333 | I49: 0.01583160465 | K49: System | L49: Region | M49: Labrador | N49: - | O49: 2026-01-02T21:00:00 | P49: 429.9185832 | Q49: 33.28340898 | R49: 40.39910202 | S49: 1815.759355 | T49: 102.9959751 | U49: 1878.356228 | V49: 0.0002083333333 | W49: 0.01583160465 | Y49: 2025-02-15T18:00:00 | Z49: 1938.395869 | AA49: 0.0004166666667
A50: System | B50: Region | C50: Island | D50: - | E50: 2026-01-02T22:00:00 | F50: 1346.374679 | G50: 28.52742379 | H50: 0 | I50: 0 | K50: System | L50: Region | M50: Labrador | N50: - | O50: 2026-01-02T22:00:00 | P50: 446.8097193 | Q50: 32.97181654 | R50: 38.04426434 | S50: 1793.184398 | T50: 99.54350467 | U50: 1854.683638 | V50: 0 | W50: 0 | Y50: 2025-02-16T18:00:00 | Z50: 1957.164638 | AA50: 0.0002083333333
A51: System | B51: Region | C51: Island | D51: - | E51: 2026-01-02T23:00:00 | F51: 1293.257878 | G51: 22.41974167 | H51: 0 | I51: 0 | K51: System | L51: Region | M51: Labrador | N51: - | O51: 2026-01-02T23:00:00 | P51: 455.6775724 | Q51: 32.81973804 | R51: 34.07426875 | S51: 1748.935451 | T51: 89.31374846 | U51: 1804.17493 | V51: 0 | W51: 0 | Y51: 2025-02-17T09:00:00 | Z51: 1987.476274 | AA51: 0.000625
A52: System | B52: Region | C52: Island | D52: - | E52: 2026-01-03 | F52: 1221.990135 | G52: 26.90156511 | H52: 0 | I52: 0 | K52: System | L52: Region | M52: Labrador | N52: - | O52: 2026-01-03 | P52: 445.7100018 | Q52: 33.02751334 | R52: 23.18621813 | S52: 1667.700137 | T52: 83.11529658 | U52: 1727.629215 | V52: 0 | W52: 0 | Y52: 2025-02-18T08:00:00 | Z52: 2000.61335 | AA52: 0.0002083333333
A53: System | B53: Region | C53: Island | D53: - | E53: 2026-01-03T01:00:00 | F53: 1177.25318 | G53: 26.08697213 | H53: 0 | I53: 0 | K53: System | L53: Region | M53: Labrador | N53: - | O53: 2026-01-03T01:00:00 | P53: 445.2889488 | Q53: 33.03910333 | R53: 21.80028236 | S53: 1622.542129 | T53: 80.92635783 | U53: 1681.668205 | V53: 0 | W53: 0 | Y53: 2025-02-19T08:00:00 | Z53: 1908.577241 | AA53: 0
A54: System | B54: Region | C54: Island | D54: - | E54: 2026-01-03T02:00:00 | F54: 1183.035276 | G54: 26.15802654 | H54: 0 | I54: 0 | K54: System | L54: Region | M54: Labrador | N54: - | O54: 2026-01-03T02:00:00 | P54: 454.8074898 | Q54: 32.83393192 | R54: 21.99991155 | S54: 1637.842765 | T54: 80.99187001 | U54: 1696.834724 | V54: 0 | W54: 0 | Y54: 2025-02-20T09:00:00 | Z54: 1799.780995 | AA54: 0
A55: System | B55: Region | C55: Island | D55: - | E55: 2026-01-03T03:00:00 | F55: 1187.748639 | G55: 26.24274863 | H55: 0 | I55: 0 | K55: System | L55: Region | M55: Labrador | N55: - | O55: 2026-01-03T03:00:00 | P55: 434.6350676 | Q55: 33.22021044 | R55: 22.13109373 | S55: 1622.383706 | T55: 81.5940528 | U55: 1681.846665 | V55: 0 | W55: 0 | Y55: 2025-02-21T19:00:00 | Z55: 1980.811819 | AA55: 0.0004166666667
A56: System | B56: Region | C56: Island | D56: - | E56: 2026-01-03T04:00:00 | F56: 1202.001988 | G56: 26.56490808 | H56: 0 | I56: 0 | K56: System | L56: Region | M56: Labrador | N56: - | O56: 2026-01-03T04:00:00 | P56: 425.652931 | Q56: 33.363054 | R56: 22.54895761 | S56: 1627.654919 | T56: 82.47691969 | U56: 1687.582881 | V56: 0 | W56: 0 | Y56: 2025-02-22T10:00:00 | Z56: 1939.414662 | AA56: 0
A57: System | B57: Region | C57: Island | D57: - | E57: 2026-01-03T05:00:00 | F57: 1218.838972 | G57: 26.85378356 | H57: 0 | I57: 0 | K57: System | L57: Region | M57: Labrador | N57: - | O57: 2026-01-03T05:00:00 | P57: 429.1533677 | Q57: 33.24792226 | R57: 23.10505492 | S57: 1647.992339 | T57: 83.20676074 | U57: 1708.094045 | V57: 0 | W57: 0 | Y57: 2025-02-23T18:00:00 | Z57: 1801.880926 | AA57: 0
A58: System | B58: Region | C58: Island | D58: - | E58: 2026-01-03T06:00:00 | F58: 1255.902129 | G58: 29.02812202 | H58: 0 | I58: 0 | K58: System | L58: Region | M58: Labrador | N58: - | O58: 2026-01-03T06:00:00 | P58: 429.9909855 | Q58: 33.20525076 | R58: 28.21384811 | S58: 1685.893115 | T58: 90.44722089 | U58: 1748.126487 | V58: 0 | W58: 0 | Y58: 2025-02-24T19:00:00 | Z58: 2031.265617 | AA58: 0.000625
A59: System | B59: Region | C59: Island | D59: - | E59: 2026-01-03T07:00:00 | F59: 1316.341553 | G59: 29.64685804 | H59: 0 | I59: 0 | K59: System | L59: Region | M59: Labrador | N59: - | O59: 2026-01-03T07:00:00 | P59: 432.8603222 | Q59: 33.1064033 | R59: 31.9416293 | S59: 1749.201875 | T59: 94.69489063 | U59: 1811.955136 | V59: 0 | W59: 0 | Y59: 2025-02-25T08:00:00 | Z59: 2097.035033 | AA59: 0.003541666667
A60: System | B60: Region | C60: Island | D60: - | E60: 2026-01-03T08:00:00 | F60: 1371.811384 | G60: 30.21017643 | H60: 0 | I60: 0 | K60: System | L60: Region | M60: Labrador | N60: - | O60: 2026-01-03T08:00:00 | P60: 444.9511026 | Q60: 32.82745333 | R60: 35.55351127 | S60: 1816.762487 | T60: 98.59114103 | U60: 1879.800117 | V60: 0 | W60: 0 | Y60: 2025-02-26T08:00:00 | Z60: 1905.513986 | AA60: 0.0004166666667
A61: System | B61: Region | C61: Island | D61: - | E61: 2026-01-03T09:00:00 | F61: 1448.716614 | G61: 31.12819071 | H61: 0 | I61: 0 | K61: System | L61: Region | M61: Labrador | N61: - | O61: 2026-01-03T09:00:00 | P61: 446.5164269 | Q61: 32.73392204 | R61: 41.39685401 | S61: 1895.233041 | T61: 105.2589668 | U61: 1959.095153 | V61: 0 | W61: 0 | Y61: 2025-02-27T20:00:00 | Z61: 1874.836363 | AA61: 0.0002083333333
A62: System | B62: Region | C62: Island | D62: - | E62: 2026-01-03T10:00:00 | F62: 1453.822505 | G62: 31.24028198 | H62: 0.0004166666667 | I62: 0.1001069427 | K62: System | L62: Region | M62: Labrador | N62: - | O62: 2026-01-03T10:00:00 | P62: 446.8557893 | Q62: 32.68012095 | R62: 41.77067237 | S62: 1900.678295 | T62: 105.6910753 | U62: 1964.598698 | V62: 0.0004166666667 | W62: 0.1001069427 | Y62: 2025-02-28T19:00:00 | Z62: 1983.68581 | AA62: 0.0002083333333
A63: System | B63: Region | C63: Island | D63: - | E63: 2026-01-03T11:00:00 | F63: 1446.136872 | G63: 31.11220549 | H63: 0.0002083333333 | I63: 0.01574863918 | K63: System | L63: Region | M63: Labrador | N63: - | O63: 2026-01-03T11:00:00 | P63: 414.5073877 | Q63: 33.28696246 | R63: 41.29737675 | S63: 1860.644259 | T63: 105.6965447 | U63: 1925.043427 | V63: 0.0002083333333 | W63: 0.01574863918 | Y63: 2025-03-01T10:00:00 | Z63: 1870.976068 | AA63: 0
A64: System | B64: Region | C64: Island | D64: - | E64: 2026-01-03T12:00:00 | F64: 1455.400822 | G64: 31.21513071 | H64: 0 | I64: 0 | K64: System | L64: Region | M64: Labrador | N64: - | O64: 2026-01-03T12:00:00 | P64: 413.7984162 | Q64: 33.31273707 | R64: 42.21242091 | S64: 1869.199238 | T64: 106.7402887 | U64: 1933.727106 | V64: 0 | W64: 0 | Y64: 2025-03-02T09:00:00 | Z64: 2000.323495 | AA64: 0.0004166666667
A65: System | B65: Region | C65: Island | D65: - | E65: 2026-01-03T13:00:00 | F65: 1454.985853 | G65: 31.23624341 | H65: 0 | I65: 0 | K65: System | L65: Region | M65: Labrador | N65: - | O65: 2026-01-03T13:00:00 | P65: 431.8857509 | Q65: 32.97160506 | R65: 41.94689213 | S65: 1886.871604 | T65: 106.1547406 | U65: 1951.079453 | V65: 0 | W65: 0 | Y65: 2025-03-03T20:00:00 | Z65: 2028.934741 | AA65: 0.0004166666667
A66: System | B66: Region | C66: Island | D66: - | E66: 2026-01-03T14:00:00 | F66: 1479.321159 | G66: 31.558291 | H66: 0.0004166666667 | I66: 0.07695188875 | K66: System | L66: Region | M66: Labrador | N66: - | O66: 2026-01-03T14:00:00 | P66: 431.3458046 | Q66: 32.98781429 | R66: 43.86096419 | S66: 1910.666963 | T66: 108.4070695 | U66: 1975.213069 | V66: 0.0004166666667 | W66: 0.07695188875 | Y66: 2025-03-04T07:00:00 | Z66: 2019.655842 | AA66: 0.000625
A67: System | B67: Region | C67: Island | D67: - | E67: 2026-01-03T15:00:00 | F67: 1484.3253 | G67: 31.57456533 | H67: 0.0004166666667 | I67: 0.01662976735 | K67: System | L67: Region | M67: Labrador | N67: - | O67: 2026-01-03T15:00:00 | P67: 423.8678193 | Q67: 33.13523029 | R67: 44.50815865 | S67: 1908.193119 | T67: 109.2179543 | U67: 1972.902915 | V67: 0.0004166666667 | W67: 0.01662976735 | Y67: 2025-03-05T20:00:00 | Z67: 1951.548439 | AA67: 0
A68: System | B68: Region | C68: Island | D68: - | E68: 2026-01-03T16:00:00 | F68: 1532.463358 | G68: 32.22568028 | H68: 0.0002083333333 | I68: 0.05052389664 | K68: System | L68: Region | M68: Labrador | N68: - | O68: 2026-01-03T16:00:00 | P68: 428.2209455 | Q68: 32.93203519 | R68: 48.96276372 | S68: =F68+P68 -> 1960.684304 | T68: 114.1204792 | U68: =F68+G68+P68+Q68 -> 2025.842019 | V68: =H68 -> 0.0002083333333 | W68: 0.05052389664 | Y68: 2025-03-06T08:00:00 | Z68: 2127.721682 | AA68: 0.005416666667
A69: System | B69: Region | C69: Island | D69: - | E69: 2026-01-03T17:00:00 | F69: 1670.709599 | G69: 35.31968293 | H69: 0.002708333333 | I69: 0.1445107848 | K69: System | L69: Region | M69: Labrador | N69: - | O69: 2026-01-03T17:00:00 | P69: 452.9581784 | Q69: 32.38700597 | R69: 53.28434639 | S69: 2123.667777 | T69: =G69+Q69+R69 -> 120.9910353 | U69: 2191.374466 | V69: 0.002708333333 | W69: 0.1445107848 | Y69: 2025-03-07T09:00:00 | Z69: =MAX(OFFSET($S$4:$S$27,(ROW()-4)*24,0)) -> 1971.603068 | AA69: =VLOOKUP(Z69,OFFSET($S$4:$V$27,(ROW()-4)*24,0),4,FALSE) -> 0.0004166666667
A70: System | B70: Region | C70: Island | D70: - | E70: 2026-01-03T18:00:00 | F70: 1653.252322 | G70: 35.23397861 | H70: 0.00375 | I70: 0.1837285537 | K70: System | L70: Region | M70: Labrador | N70: - | O70: 2026-01-03T18:00:00 | P70: 472.6949555 | Q70: 31.95955067 | R70: 50.92348517 | S70: 2125.947278 | T70: 118.1170145 | U70: 2193.140807 | V70: 0.00375 | W70: 0.1837285537 | Y70: 2025-03-08T08:00:00 | Z70: 1823.025857 | AA70: 0.0002083333333
A71: System | B71: Region | C71: Island | D71: - | E71: 2026-01-03T19:00:00 | F71: 1658.4406 | G71: 35.14252959 | H71: 0.002291666667 | I71: 0.06915801835 | K71: System | L71: Region | M71: Labrador | N71: - | O71: 2026-01-03T19:00:00 | P71: 462.248412 | Q71: 32.19476183 | R71: 52.05792548 | S71: 2120.689012 | T71: 119.3952169 | U71: 2188.026303 | V71: 0.002291666667 | W71: 0.06915801835 | Y71: 2025-03-09T07:00:00 | Z71: 1911.932111 | AA71: 0
A72: System | B72: Region | C72: Island | D72: - | E72: 2026-01-03T20:00:00 | F72: 1686.233551 | G72: 35.58846541 | H72: 0.004791666667 | I72: 0.2047301539 | K72: System | L72: Region | M72: Labrador | N72: - | O72: 2026-01-03T20:00:00 | P72: 441.2199318 | Q72: 32.61480027 | R72: 54.47024008 | S72: 2127.453482 | T72: 122.6735058 | U72: 2195.656748 | V72: 0.004791666667 | W72: 0.2047301539 | Y72: 2025-03-10T07:00:00 | Z72: 2100.411758 | AA72: 0.003333333333
A73: System | B73: Region | C73: Island | D73: - | E73: 2026-01-03T21:00:00 | F73: 1670.594428 | G73: 35.31703058 | H73: 0.00375 | I73: 0.1095864206 | K73: System | L73: Region | M73: Labrador | N73: - | O73: 2026-01-03T21:00:00 | P73: 451.0376156 | Q73: 32.44327322 | R73: 53.38031695 | S73: 2121.632044 | T73: 121.1406208 | U73: 2189.392348 | V73: 0.00375 | W73: 0.1095864206 | Y73: 2025-03-11T07:00:00 | Z73: 2029.287033 | AA73: 0.0004166666667
A74: System | B74: Region | C74: Island | D74: - | E74: 2026-01-03T22:00:00 | F74: 1639.791729 | G74: 34.34579404 | H74: 0.001458333333 | I74: 0.1202946782 | K74: System | L74: Region | M74: Labrador | N74: - | O74: 2026-01-03T22:00:00 | P74: 450.0158291 | Q74: 32.48539335 | R74: 53.03823334 | S74: 2089.807558 | T74: 119.8694207 | U74: 2156.638745 | V74: 0.001458333333 | W74: 0.1202946782 | Y74: 2025-03-12T07:00:00 | Z74: 1953.386432 | AA74: 0
A75: System | B75: Region | C75: Island | D75: - | E75: 2026-01-03T23:00:00 | F75: 1571.025921 | G75: 30.92180248 | H75: 0.0002083333333 | I75: 0.05260252933 | K75: System | L75: Region | M75: Labrador | N75: - | O75: 2026-01-03T23:00:00 | P75: 459.8030227 | Q75: 32.31453106 | R75: 40.85213601 | S75: 2030.828944 | T75: 104.0884695 | U75: 2094.065277 | V75: 0.0002083333333 | W75: 0.05260252933 | Y75: 2025-03-13T07:00:00 | Z75: 2061.227739 | AA75: 0.001875
A76: System | B76: Region | C76: Island | D76: - | E76: 2026-01-04 | F76: 1514.887056 | G76: 36.43955975 | H76: 0 | I76: 0 | K76: System | L76: Region | M76: Labrador | N76: - | O76: 2026-01-04 | P76: 467.0293314 | Q76: 32.21876128 | R76: 29.51484157 | S76: 1981.916387 | T76: 98.1731626 | U76: 2050.574708 | V76: 0 | W76: 0 | Y76: 2025-03-14T10:00:00 | Z76: 1952.437043 | AA76: 0.0002083333333
A77: System | B77: Region | C77: Island | D77: - | E77: 2026-01-04T01:00:00 | F77: 1427.226952 | G77: 37.15522394 | H77: 0.0002083333333 | I77: 0.01871610548 | K77: System | L77: Region | M77: Labrador | N77: - | O77: 2026-01-04T01:00:00 | P77: 456.1801668 | Q77: 32.46821015 | R77: 23.3365317 | S77: 1883.407119 | T77: 92.9599658 | U77: 1953.030553 | V77: 0.0002083333333 | W77: 0.01871610548 | Y77: 2025-03-15T08:00:00 | Z77: 1874.795452 | AA77: 0
A78: System | B78: Region | C78: Island | D78: - | E78: 2026-01-04T02:00:00 | F78: 1411.79379 | G78: 37.24547058 | H78: 0.0002083333333 | I78: 0.01403772236 | K78: System | L78: Region | M78: Labrador | N78: - | O78: 2026-01-04T02:00:00 | P78: 463.6340562 | Q78: 32.36614224 | R78: 22.38119251 | S78: 1875.427846 | T78: 91.99280534 | U78: 1945.039459 | V78: 0.0002083333333 | W78: 0.01403772236 | Y78: 2025-03-16T10:00:00 | Z78: 1897.304455 | AA78: 0
A79: System | B79: Region | C79: Island | D79: - | E79: 2026-01-04T03:00:00 | F79: 1445.729892 | G79: 36.99630403 | H79: 0 | I79: 0 | K79: System | L79: Region | M79: Labrador | N79: - | O79: 2026-01-04T03:00:00 | P79: 463.199359 | Q79: 32.39174266 | R79: 24.59781801 | S79: 1908.929251 | T79: 93.98586471 | U79: 1978.317298 | V79: 0 | W79: 0 | Y79: 2025-03-17T08:00:00 | Z79: 1745.343228 | AA79: 0.0002083333333
A80: System | B80: Region | C80: Island | D80: - | E80: 2026-01-04T04:00:00 | F80: 1464.688669 | G80: 36.73571851 | H80: 0.0002083333333 | I80: 0.04035092171 | K80: System | L80: Region | M80: Labrador | N80: - | O80: 2026-01-04T04:00:00 | P80: 462.6767431 | Q80: 32.38846395 | R80: 26.00083692 | S80: 1927.365412 | T80: 95.12501938 | U80: 1996.489594 | V80: 0.0002083333333 | W80: 0.04035092171 | Y80: 2025-03-18T07:00:00 | Z80: 1755.333856 | AA80: 0
A81: System | B81: Region | C81: Island | D81: - | E81: 2026-01-04T05:00:00 | F81: 1459.945944 | G81: 36.81720135 | H81: 0.0002083333333 | I81: 0.03282897934 | K81: System | L81: Region | M81: Labrador | N81: - | O81: 2026-01-04T05:00:00 | P81: 461.9972141 | Q81: 32.3900711 | R81: 25.63354892 | S81: 1921.943158 | T81: 94.84082136 | U81: 1991.15043 | V81: 0.0002083333333 | W81: 0.03282897934 | Y81: 2025-03-19T07:00:00 | Z81: 1700.615002 | AA81: 0
A82: System | B82: Region | C82: Island | D82: - | E82: 2026-01-04T06:00:00 | F82: 1496.451513 | G82: 34.40764696 | H82: 0.0004166666667 | I82: 0.04140987441 | K82: System | L82: Region | M82: Labrador | N82: - | O82: 2026-01-04T06:00:00 | P82: 462.9921218 | Q82: 32.35868658 | R82: 38.70845712 | S82: 1959.443635 | T82: 105.4747907 | U82: 2026.209969 | V82: 0.0004166666667 | W82: 0.04140987441 | Y82: 2025-03-20T07:00:00 | Z82: 1851.05585 | AA82: 0
A83: System | B83: Region | C83: Island | D83: - | E83: 2026-01-04T07:00:00 | F83: 1530.095097 | G83: 34.67886544 | H83: 0.0002083333333 | I83: 0.01014671048 | K83: System | L83: Region | M83: Labrador | N83: - | O83: 2026-01-04T07:00:00 | P83: 454.0597138 | Q83: 32.51092115 | R83: 40.2486915 | S83: 1984.154811 | T83: 107.4384781 | U83: 2051.344598 | V83: 0.0002083333333 | W83: 0.01014671048 | Y83: 2025-03-21T08:00:00 | Z83: 1709.926197 | AA83: 0.0002083333333
A84: System | B84: Region | C84: Island | D84: - | E84: 2026-01-04T08:00:00 | F84: 1558.341019 | G84: 35.13234288 | H84: 0.0002083333333 | I84: 0.004197587102 | K84: System | L84: Region | M84: Labrador | N84: - | O84: 2026-01-04T08:00:00 | P84: 454.5513856 | Q84: 32.4768011 | R84: 41.51586299 | S84: 2012.892404 | T84: 109.125007 | U84: 2080.501548 | V84: 0.0002083333333 | W84: 0.004197587102 | Y84: 2025-03-22T10:00:00 | Z84: 1839.543412 | AA84: 0.0002083333333
A85: System | B85: Region | C85: Island | D85: - | E85: 2026-01-04T09:00:00 | F85: 1636.774244 | G85: 36.6896872 | H85: 0.0025 | I85: 0.1602911381 | K85: System | L85: Region | M85: Labrador | N85: - | O85: 2026-01-04T09:00:00 | P85: 454.6004147 | Q85: 32.46230608 | R85: 45.63397895 | S85: 2091.374658 | T85: 114.7859722 | U85: 2160.526652 | V85: 0.0025 | W85: 0.1602911381 | Y85: 2025-03-23T19:00:00 | Z85: 1920.097027 | AA85: 0.0002083333333
A86: System | B86: Region | C86: Island | D86: - | E86: 2026-01-04T10:00:00 | F86: 1650.705302 | G86: 37.08157005 | H86: 0.003125 | I86: 0.1505151848 | K86: System | L86: Region | M86: Labrador | N86: - | O86: 2026-01-04T10:00:00 | P86: 466.7517424 | Q86: 32.17831563 | R86: 45.95228148 | S86: 2117.457045 | T86: 115.2121671 | U86: 2186.71693 | V86: 0.003125 | W86: 0.1505151848 | Y86: 2025-03-24T07:00:00 | Z86: 1913.752043 | AA86: 0
A87: System | B87: Region | C87: Island | D87: - | E87: 2026-01-04T11:00:00 | F87: 1632.470543 | G87: 36.60546866 | H87: 0.001666666667 | I87: 0.1310791473 | K87: System | L87: Region | M87: Labrador | N87: - | O87: 2026-01-04T11:00:00 | P87: 455.0919006 | Q87: 32.4380605 | R87: 45.49272916 | S87: 2087.562444 | T87: 114.5362583 | U87: 2156.605973 | V87: 0.001666666667 | W87: 0.1310791473 | Y87: 2025-03-25T07:00:00 | Z87: 1863.520892 | AA87: 0.0004166666667
A88: System | B88: Region | C88: Island | D88: - | E88: 2026-01-04T12:00:00 | F88: 1607.211162 | G88: 36.02500487 | H88: 0.000625 | I88: 0.07579757919 | K88: System | L88: Region | M88: Labrador | N88: - | O88: 2026-01-04T12:00:00 | P88: 442.161189 | Q88: 32.78944916 | R88: 44.26690209 | S88: 2049.372351 | T88: 113.0813561 | U88: 2118.186805 | V88: 0.000625 | W88: 0.07579757919 | Y88: 2025-03-26T07:00:00 | Z88: 1722.029981 | AA88: 0
A89: System | B89: Region | C89: Island | D89: - | E89: 2026-01-04T13:00:00 | F89: 1590.875497 | G89: 35.69684208 | H89: 0.0002083333333 | I89: 0.06464500113 | K89: System | L89: Region | M89: Labrador | N89: - | O89: 2026-01-04T13:00:00 | P89: 450.1479161 | Q89: 32.65800513 | R89: 43.29158749 | S89: 2041.023413 | T89: 111.6464347 | U89: 2109.378261 | V89: 0.0002083333333 | W89: 0.06464500113 | Y89: 2025-03-27T07:00:00 | Z89: 1563.011431 | AA89: 0
A90: System | B90: Region | C90: Island | D90: - | E90: 2026-01-04T14:00:00 | F90: 1587.825315 | G90: 35.54170586 | H90: 0.000625 | I90: 0.02463108196 | K90: System | L90: Region | M90: Labrador | N90: - | O90: 2026-01-04T14:00:00 | P90: 439.0827639 | Q90: 32.85758306 | R90: 43.50009602 | S90: 2026.908079 | T90: 111.8993849 | U90: 2095.307368 | V90: 0.000625 | W90: 0.02463108196 | Y90: 2025-03-28T19:00:00 | Z90: 1591.893559 | AA90: 0
A91: System | B91: Region | C91: Island | D91: - | E91: 2026-01-04T15:00:00 | F91: 1599.819887 | G91: 35.78899311 | H91: 0.0008333333333 | I91: 0.1125985297 | K91: System | L91: Region | M91: Labrador | N91: - | O91: 2026-01-04T15:00:00 | P91: 439.6136735 | Q91: 32.83781091 | R91: 44.08719178 | S91: 2039.433561 | T91: 112.7139958 | U91: 2108.060365 | V91: 0.0008333333333 | W91: 0.1125985297 | Y91: 2025-03-29T20:00:00 | Z91: 1604.253823 | AA91: 0
A92: System | B92: Region | C92: Island | D92: - | E92: 2026-01-04T16:00:00 | F92: 1632.769306 | G92: 36.49829427 | H92: 0.001875 | I92: 0.08187630406 | K92: System | L92: Region | M92: Labrador | N92: - | O92: 2026-01-04T16:00:00 | P92: 439.1504659 | Q92: 32.83032586 | R92: 45.80348831 | S92: 2071.919772 | T92: 115.1321084 | U92: 2141.248392 | V92: 0.001875 | W92: 0.08187630406 | Y92: 2025-03-30T07:00:00 | Z92: 1768.554139 | AA92: 0
A93: System | B93: Region | C93: Island | D93: - | E93: 2026-01-04T17:00:00 | F93: 1688.505091 | G93: 37.30036491 | H93: 0.004166666667 | I93: 0.2910211465 | K93: System | L93: Region | M93: Labrador | N93: - | O93: 2026-01-04T17:00:00 | P93: 413.4980354 | Q93: 33.24323866 | R93: 50.14388907 | S93: 2102.003127 | T93: 120.6874926 | U93: 2172.54673 | V93: 0.004166666667 | W93: 0.2910211465 | Y93: 2025-03-31T07:00:00 | Z93: 1712.026034 | AA93: 0.0004166666667
A94: System | B94: Region | C94: Island | D94: - | E94: 2026-01-04T18:00:00 | F94: 1668.692766 | G94: 36.88419269 | H94: 0.002291666667 | I94: 0.05193919 | K94: System | L94: Region | M94: Labrador | N94: - | O94: 2026-01-04T18:00:00 | P94: 382.6554003 | Q94: 33.88738847 | R94: 49.32604665 | S94: 2051.348166 | T94: 120.0976278 | U94: 2122.119748 | V94: 0.002291666667 | W94: 0.05193919 | Y94: 2025-04-01T07:00:00 | Z94: 1619.17928 | AA94: 0
A95: System | B95: Region | C95: Island | D95: - | E95: 2026-01-04T19:00:00 | F95: 1648.802068 | G95: 36.57499907 | H95: 0.0008333333333 | I95: 0.1620454449 | K95: System | L95: Region | M95: Labrador | N95: - | O95: 2026-01-04T19:00:00 | P95: 374.2835421 | Q95: 34.08243518 | R95: 48.03246929 | S95: 2023.08561 | T95: 118.6899035 | U95: 2093.743044 | V95: 0.0008333333333 | W95: 0.1620454449 | Y95: 2025-04-02T07:00:00 | Z95: 1647.980662 | AA95: 0.0002083333333
A96: System | B96: Region | C96: Island | D96: - | E96: 2026-01-04T20:00:00 | F96: 1647.826441 | G96: 36.52204615 | H96: 0.001041666667 | I96: 0.05387498162 | K96: System | L96: Region | M96: Labrador | N96: - | O96: 2026-01-04T20:00:00 | P96: 366.2579614 | Q96: 34.27642378 | R96: 47.88453327 | S96: 2014.084402 | T96: 118.6830032 | U96: 2084.882872 | V96: 0.001041666667 | W96: 0.05387498162 | Y96: 2025-04-03T08:00:00 | Z96: 1608.823657 | AA96: 0.0002083333333
A97: System | B97: Region | C97: Island | D97: - | E97: 2026-01-04T21:00:00 | F97: 1617.04604 | G97: 35.9917596 | H97: 0.0002083333333 | I97: 0.06546056255 | K97: System | L97: Region | M97: Labrador | N97: - | O97: 2026-01-04T21:00:00 | P97: 364.7883023 | Q97: 34.3326785 | R97: 45.87627527 | S97: 1981.834343 | T97: 116.2007134 | U97: 2052.158781 | V97: 0.0002083333333 | W97: 0.06546056255 | Y97: 2025-04-04T09:00:00 | Z97: 1526.321289 | AA97: 0
A98: System | B98: Region | C98: Island | D98: - | E98: 2026-01-04T22:00:00 | F98: 1547.488163 | G98: 34.81736367 | H98: 0.0002083333333 | I98: 0.006873642369 | K98: System | L98: Region | M98: Labrador | N98: - | O98: 2026-01-04T22:00:00 | P98: 367.7124568 | Q98: 34.33112832 | R98: 41.5482909 | S98: 1915.20062 | T98: 110.6967829 | U98: 1984.349112 | V98: 0.0002083333333 | W98: 0.006873642369 | Y98: 2025-04-05T20:00:00 | Z98: 1714.052108 | AA98: 0.0004166666667
A99: System | B99: Region | C99: Island | D99: - | E99: 2026-01-04T23:00:00 | F99: 1455.311739 | G99: 36.85128046 | H99: 0 | I99: 0 | K99: System | L99: Region | M99: Labrador | N99: - | O99: 2026-01-04T23:00:00 | P99: 372.9196025 | Q99: 34.29916004 | R99: 25.25711558 | S99: 1828.231341 | T99: 96.40755608 | U99: 1899.381782 | V99: 0 | W99: 0 | Y99: 2025-04-06T07:00:00 | Z99: 1798.305249 | AA99: 0
A100: System | B100: Region | C100: Island | D100: - | E100: 2026-01-05 | F100: 1366.703498 | G100: 22.89634998 | H100: 0 | I100: 0 | K100: System | L100: Region | M100: Labrador | N100: - | O100: 2026-01-05 | P100: 362.7498305 | Q100: 33.6886228 | R100: 40.52848132 | S100: 1729.453329 | T100: 97.1134541 | U100: 1786.038302 | V100: 0 | W100: 0 | Y100: 2025-04-07T07:00:00 | Z100: 1852.106639 | AA100: 0
A101: System | B101: Region | C101: Island | D101: - | E101: 2026-01-05T01:00:00 | F101: 1318.813151 | G101: 21.76756849 | H101: 0 | I101: 0 | K101: System | L101: Region | M101: Labrador | N101: - | O101: 2026-01-05T01:00:00 | P101: 367.4133746 | Q101: 33.6510446 | R101: 38.65968884 | S101: 1686.226525 | T101: 94.07830193 | U101: 1741.645138 | V101: 0 | W101: 0 | Y101: 2025-04-08T07:00:00 | Z101: 1806.468706 | AA101: 0
A102: System | B102: Region | C102: Island | D102: - | E102: 2026-01-05T02:00:00 | F102: 1292.46327 | G102: 21.11318357 | H102: 0 | I102: 0 | K102: System | L102: Region | M102: Labrador | N102: - | O102: 2026-01-05T02:00:00 | P102: 361.2669528 | Q102: 33.84106502 | R102: 37.62660951 | S102: 1653.730223 | T102: 92.5808581 | U102: 1708.684472 | V102: 0 | W102: 0 | Y102: 2025-04-09T07:00:00 | Z102: 1824.904233 | AA102: 0
A103: System | B103: Region | C103: Island | D103: - | E103: 2026-01-05T03:00:00 | F103: 1278.02761 | G103: 20.72134266 | H103: 0 | I103: 0 | K103: System | L103: Region | M103: Labrador | N103: - | O103: 2026-01-05T03:00:00 | P103: 384.5910852 | Q103: 33.61996517 | R103: 37.04079504 | S103: 1662.618695 | T103: 91.38210286 | U103: 1716.960003 | V103: 0 | W103: 0 | Y103: 2025-04-10T07:00:00 | Z103: 1789.546061 | AA103: 0.0002083333333
A104: System | B104: Region | C104: Island | D104: - | E104: 2026-01-05T04:00:00 | F104: 1272.638322 | G104: 20.5985848 | H104: 0 | I104: 0 | K104: System | L104: Region | M104: Labrador | N104: - | O104: 2026-01-05T04:00:00 | P104: 374.5334374 | Q104: 33.73251649 | R104: 36.87409879 | S104: 1647.171759 | T104: 91.20520009 | U104: 1701.502861 | V104: 0 | W104: 0 | Y104: 2025-04-11T09:00:00 | Z104: 1641.380247 | AA104: 0.0002083333333
A105: System | B105: Region | C105: Island | D105: - | E105: 2026-01-05T05:00:00 | F105: 1272.459675 | G105: 20.59953531 | H105: 0 | I105: 0 | K105: System | L105: Region | M105: Labrador | N105: - | O105: 2026-01-05T05:00:00 | P105: 366.6542807 | Q105: 33.90495813 | R105: 36.87638449 | S105: 1639.113956 | T105: 91.38087793 | U105: 1693.618449 | V105: 0 | W105: 0 | Y105: 2025-04-12T09:00:00 | Z105: 1531.29026 | AA105: 0
A106: System | B106: Region | C106: Island | D106: - | E106: 2026-01-05T06:00:00 | F106: 1302.602374 | G106: 26.99070005 | H106: 0.0002083333333 | I106: 0.0001606308496 | K106: System | L106: Region | M106: Labrador | N106: - | O106: 2026-01-05T06:00:00 | P106: 368.3235177 | Q106: 33.80866057 | R106: 39.01042931 | S106: 1670.925891 | T106: 99.80978993 | U106: 1731.725252 | V106: 0.0002083333333 | W106: 0.0001606308496 | Y106: 2025-04-13T07:00:00 | Z106: 1622.740646 | AA106: 0
A107: System | B107: Region | C107: Island | D107: - | E107: 2026-01-05T07:00:00 | F107: 1397.843815 | G107: 28.9801632 | H107: 0 | I107: 0 | K107: System | L107: Region | M107: Labrador | N107: - | O107: 2026-01-05T07:00:00 | P107: 372.8312929 | Q107: 33.68791436 | R107: 43.77714294 | S107: 1770.675108 | T107: 106.4452205 | U107: 1833.343185 | V107: 0 | W107: 0 | Y107: 2025-04-14T07:00:00 | Z107: 1382.737855 | AA107: 0
A108: System | B108: Region | C108: Island | D108: - | E108: 2026-01-05T08:00:00 | F108: 1438.25677 | G108: 29.78048647 | H108: 0 | I108: 0 | K108: System | L108: Region | M108: Labrador | N108: - | O108: 2026-01-05T08:00:00 | P108: 368.8267196 | Q108: 33.72434044 | R108: 46.15096566 | S108: 1807.083489 | T108: 109.6557926 | U108: 1870.588316 | V108: 0 | W108: 0 | Y108: 2025-04-15T07:00:00 | Z108: 1417.457101 | AA108: 0
A109: System | B109: Region | C109: Island | D109: - | E109: 2026-01-05T09:00:00 | F109: 1423.745806 | G109: 29.49190832 | H109: 0 | I109: 0 | K109: System | L109: Region | M109: Labrador | N109: - | O109: 2026-01-05T09:00:00 | P109: 376.4484891 | Q109: 33.28224042 | R109: 45.23257544 | S109: 1800.194295 | T109: 108.0067242 | U109: 1862.968444 | V109: 0 | W109: 0 | Y109: 2025-04-16T20:00:00 | Z109: 1763.000749 | AA109: 0
A110: System | B110: Region | C110: Island | D110: - | E110: 2026-01-05T10:00:00 | F110: 1421.124307 | G110: 29.42756525 | H110: 0 | I110: 0 | K110: System | L110: Region | M110: Labrador | N110: - | O110: 2026-01-05T10:00:00 | P110: 369.875925 | Q110: 33.33413329 | R110: 45.19458889 | S110: 1791.000232 | T110: 107.9562874 | U110: 1853.761931 | V110: 0 | W110: 0 | Y110: 2025-04-17T07:00:00 | Z110: 1794.076536 | AA110: 0
A111: System | B111: Region | C111: Island | D111: - | E111: 2026-01-05T11:00:00 | F111: 1410.768967 | G111: 29.21430415 | H111: 0.0002083333333 | I111: 0.01874167054 | K111: System | L111: Region | M111: Labrador | N111: - | O111: 2026-01-05T11:00:00 | P111: 369.3666933 | Q111: 33.36316294 | R111: 44.66858793 | S111: 1780.135661 | T111: 107.246055 | U111: 1842.713128 | V111: 0.0002083333333 | W111: 0.01874167054 | Y111: 2025-04-18T10:00:00 | Z111: 1420.35802 | AA111: 0
A112: System | B112: Region | C112: Island | D112: - | E112: 2026-01-05T12:00:00 | F112: 1393.130811 | G112: 28.87608831 | H112: 0.0004166666667 | I112: 0.04068134022 | K112: System | L112: Region | M112: Labrador | N112: - | O112: 2026-01-05T12:00:00 | P112: 368.5479412 | Q112: 33.46168424 | R112: 43.50661981 | S112: 1761.678752 | T112: 105.8443924 | U112: 1824.016525 | V112: 0.0004166666667 | W112: 0.04068134022 | Y112: 2025-04-19T09:00:00 | Z112: 1572.410167 | AA112: 0
A113: System | B113: Region | C113: Island | D113: - | E113: 2026-01-05T13:00:00 | F113: 1361.860448 | G113: 28.19368092 | H113: 0 | I113: 0 | K113: System | L113: Region | M113: Labrador | N113: - | O113: 2026-01-05T13:00:00 | P113: 361.8463029 | Q113: 33.4278931 | R113: 41.91641231 | S113: 1723.706751 | T113: 103.5379863 | U113: 1785.328325 | V113: 0 | W113: 0 | Y113: 2025-04-20T07:00:00 | Z113: 1691.132812 | AA113: 0.0002083333333
A114: System | B114: Region | C114: Island | D114: - | E114: 2026-01-05T14:00:00 | F114: 1335.06212 | G114: 27.63530482 | H114: 0 | I114: 0 | K114: System | L114: Region | M114: Labrador | N114: - | O114: 2026-01-05T14:00:00 | P114: 366.3772043 | Q114: 33.28698225 | R114: 40.58176663 | S114: 1701.439325 | T114: 101.5040537 | U114: 1762.361612 | V114: 0 | W114: 0 | Y114: 2025-04-21T07:00:00 | Z114: 1688.313472 | AA114: 0.0002083333333
A115: System | B115: Region | C115: Island | D115: - | E115: 2026-01-05T15:00:00 | F115: 1332.734769 | G115: 27.58094269 | H115: 0 | I115: 0 | K115: System | L115: Region | M115: Labrador | N115: - | O115: 2026-01-05T15:00:00 | P115: 366.5724757 | Q115: 32.77310223 | R115: 40.47923419 | S115: 1699.307245 | T115: 100.8332791 | U115: 1759.66129 | V115: 0 | W115: 0 | Y115: 2025-04-22T07:00:00 | Z115: 1610.796509 | AA115: 0.0002083333333
A116: System | B116: Region | C116: Island | D116: - | E116: 2026-01-05T16:00:00 | F116: 1365.454051 | G116: 28.2869809 | H116: 0.0002083333333 | I116: 0.009817371581 | K116: System | L116: Region | M116: Labrador | N116: - | O116: 2026-01-05T16:00:00 | P116: 372.8106192 | Q116: 31.9862823 | R116: 41.98806422 | S116: 1738.26467 | T116: 102.2613274 | U116: 1798.537933 | V116: 0.0002083333333 | W116: 0.009817371581 | Y116: 2025-04-23T07:00:00 | Z116: 1495.67562 | AA116: 0
A117: System | B117: Region | C117: Island | D117: - | E117: 2026-01-05T17:00:00 | F117: 1452.391211 | G117: 30.04163783 | H117: 0 | I117: 0 | K117: System | L117: Region | M117: Labrador | N117: - | O117: 2026-01-05T17:00:00 | P117: 375.5915901 | Q117: 32.08721708 | R117: 47.11588072 | S117: 1827.982801 | T117: 109.2447356 | U117: 1890.111656 | V117: 0 | W117: 0 | Y117: 2025-04-24T07:00:00 | Z117: 1473.539216 | AA117: 0
A118: System | B118: Region | C118: Island | D118: - | E118: 2026-01-05T18:00:00 | F118: 1448.146766 | G118: 29.98423611 | H118: 0.0002083333333 | I118: 0.03269589903 | K118: System | L118: Region | M118: Labrador | N118: - | O118: 2026-01-05T18:00:00 | P118: 376.2019494 | Q118: 31.06398615 | R118: 46.77350755 | S118: 1824.348715 | T118: 107.8217298 | U118: 1885.396938 | V118: 0.0002083333333 | W118: 0.03269589903 | Y118: 2025-04-25T11:00:00 | Z118: 1480.240587 | AA118: 0
A119: System | B119: Region | C119: Island | D119: - | E119: 2026-01-05T19:00:00 | F119: 1444.346579 | G119: 29.91794791 | H119: 0.0002083333333 | I119: 0.03541625885 | K119: System | L119: Region | M119: Labrador | N119: - | O119: 2026-01-05T19:00:00 | P119: 389.6777494 | Q119: 30.21275622 | R119: 46.46744995 | S119: 1834.024329 | T119: 106.5981541 | U119: 1894.155033 | V119: 0.0002083333333 | W119: 0.03541625885 | Y119: 2025-04-26T11:00:00 | Z119: 1476.772241 | AA119: 0
A120: System | B120: Region | C120: Island | D120: - | E120: 2026-01-05T20:00:00 | F120: 1436.912358 | G120: 29.77206988 | H120: 0 | I120: 0 | K120: System | L120: Region | M120: Labrador | N120: - | O120: 2026-01-05T20:00:00 | P120: 391.5643446 | Q120: 29.0459145 | R120: 45.99145934 | S120: 1828.476702 | T120: 104.8094437 | U120: 1887.294687 | V120: 0 | W120: 0 | Y120: 2025-04-27T20:00:00 | Z120: 1394.148376 | AA120: 0
A121: System | B121: Region | C121: Island | D121: - | E121: 2026-01-05T21:00:00 | F121: 1420.869864 | G121: 29.49406244 | H121: 0.000625 | I121: 0.07762193007 | K121: System | L121: Region | M121: Labrador | N121: - | O121: 2026-01-05T21:00:00 | P121: 401.3727658 | Q121: 29.11762034 | R121: 44.85697419 | S121: 1822.24263 | T121: 103.468657 | U121: 1880.854313 | V121: 0.000625 | W121: 0.07762193007 | Y121: 2025-04-28T07:00:00 | Z121: 1472.856673 | AA121: 0
A122: System | B122: Region | C122: Island | D122: - | E122: 2026-01-05T22:00:00 | F122: 1380.660713 | G122: 28.61866551 | H122: 0.0002083333333 | I122: 0.0174384657 | K122: System | L122: Region | M122: Labrador | N122: - | O122: 2026-01-05T22:00:00 | P122: 398.3625243 | Q122: 28.04371167 | R122: 42.72128065 | S122: 1779.023237 | T122: 99.38365783 | U122: 1835.685615 | V122: 0.0002083333333 | W122: 0.0174384657 | Y122: 2025-04-29T07:00:00 | Z122: 1482.857014 | AA122: 0
A123: System | B123: Region | C123: Island | D123: - | E123: 2026-01-05T23:00:00 | F123: 1302.478639 | G123: 21.34824417 | H123: 0 | I123: 0 | K123: System | L123: Region | M123: Labrador | N123: - | O123: 2026-01-05T23:00:00 | P123: 385.7573211 | Q123: 27.07677683 | R123: 38.00744029 | S123: 1688.23596 | T123: 86.43246129 | U123: 1736.660981 | V123: 0 | W123: 0 | Y123: 2025-04-30T08:00:00 | Z123: 1526.901522 | AA123: 0
A124: System | B124: Region | C124: Island | D124: - | E124: 2026-01-06 | F124: 1226.774785 | G124: 29.20075326 | H124: 0 | I124: 0 | K124: System | L124: Region | M124: Labrador | N124: - | O124: 2026-01-06 | P124: 361.8681133 | Q124: 34.92010692 | R124: 21.33046279 | S124: 1588.642899 | T124: 85.45132296 | U124: 1652.763759 | V124: 0 | W124: 0 | Y124: 2025-05-01T07:00:00 | Z124: 1579.424771 | AA124: 0.0002083333333
A125: System | B125: Region | C125: Island | D125: - | E125: 2026-01-06T01:00:00 | F125: 1183.187319 | G125: 28.83134046 | H125: 0 | I125: 0 | K125: System | L125: Region | M125: Labrador | N125: - | O125: 2026-01-06T01:00:00 | P125: 387.2989773 | Q125: 34.46401706 | R125: 19.8619228 | S125: 1570.486296 | T125: 83.15728033 | U125: 1633.781654 | V125: 0 | W125: 0 | Y125: 2025-05-02T08:00:00 | Z125: 1411.342522 | AA125: 0
A126: System | B126: Region | C126: Island | D126: - | E126: 2026-01-06T02:00:00 | F126: 1197.958719 | G126: 28.88468598 | H126: 0 | I126: 0 | K126: System | L126: Region | M126: Labrador | N126: - | O126: 2026-01-06T02:00:00 | P126: 406.5029485 | Q126: 34.12462477 | R126: 20.36992629 | S126: 1604.461668 | T126: 83.37923704 | U126: 1667.470979 | V126: 0 | W126: 0 | Y126: 2025-05-03T09:00:00 | Z126: 1368.232304 | AA126: 0
A127: System | B127: Region | C127: Island | D127: - | E127: 2026-01-06T03:00:00 | F127: 1214.536445 | G127: 29.06004774 | H127: 0 | I127: 0 | K127: System | L127: Region | M127: Labrador | N127: - | O127: 2026-01-06T03:00:00 | P127: 415.5709065 | Q127: 33.96272187 | R127: 20.90561293 | S127: 1630.107351 | T127: 83.92838254 | U127: 1693.130121 | V127: 0 | W127: 0 | Y127: 2025-05-04T07:00:00 | Z127: 1350.876949 | AA127: 0
A128: System | B128: Region | C128: Island | D128: - | E128: 2026-01-06T04:00:00 | F128: 1237.854524 | G128: 29.30989149 | H128: 0 | I128: 0 | K128: System | L128: Region | M128: Labrador | N128: - | O128: 2026-01-06T04:00:00 | P128: 415.8580718 | Q128: 33.97402331 | R128: 21.73678592 | S128: 1653.712596 | T128: 85.02070072 | U128: 1716.996511 | V128: 0 | W128: 0 | Y128: 2025-05-05T07:00:00 | Z128: 1326.585052 | AA128: 0
A129: System | B129: Region | C129: Island | D129: - | E129: 2026-01-06T05:00:00 | F129: 1291.131879 | G129: 29.65685956 | H129: 0 | I129: 0 | K129: System | L129: Region | M129: Labrador | N129: - | O129: 2026-01-06T05:00:00 | P129: 405.468173 | Q129: 34.14490921 | R129: 23.92336395 | S129: 1696.600052 | T129: 87.72513272 | U129: 1760.401821 | V129: 0 | W129: 0 | Y129: 2025-05-06T07:00:00 | Z129: 1321.253566 | AA129: 0
A130: System | B130: Region | C130: Island | D130: - | E130: 2026-01-06T06:00:00 | F130: 1358.852896 | G130: 30.17541646 | H130: 0 | I130: 0 | K130: System | L130: Region | M130: Labrador | N130: - | O130: 2026-01-06T06:00:00 | P130: 386.4314378 | Q130: 34.46985081 | R130: 34.83533367 | S130: 1745.284334 | T130: 99.48060094 | U130: 1809.929601 | V130: 0 | W130: 0 | Y130: 2025-05-07T07:00:00 | Z130: 1346.810743 | AA130: 0
A131: System | B131: Region | C131: Island | D131: - | E131: 2026-01-06T07:00:00 | F131: 1475.898613 | G131: 31.06605687 | H131: 0 | I131: 0 | K131: System | L131: Region | M131: Labrador | N131: - | O131: 2026-01-06T07:00:00 | P131: 391.3160081 | Q131: 34.21450712 | R131: 45.2759272 | S131: 1867.214621 | T131: 110.5564912 | U131: 1932.495185 | V131: 0 | W131: 0 | Y131: 2025-05-08T09:00:00 | Z131: 1539.300393 | AA131: 0
A132: System | B132: Region | C132: Island | D132: - | E132: 2026-01-06T08:00:00 | F132: 1563.436225 | G132: 32.30282994 | H132: 0.0002083333333 | I132: 0.003204594452 | K132: System | L132: Region | M132: Labrador | N132: - | O132: 2026-01-06T08:00:00 | P132: 387.2912201 | Q132: 34.16966705 | R132: 53.24128079 | S132: =F132+P132 -> 1950.727445 | T132: 119.7137778 | U132: =F132+G132+P132+Q132 -> 2017.199942 | V132: =H132 -> 0.0002083333333 | W132: 0.003204594452 | Y132: 2025-05-09T09:00:00 | Z132: 1442.418901 | AA132: 0
A133: System | B133: Region | C133: Island | D133: - | E133: 2026-01-06T09:00:00 | F133: 1578.986948 | G133: 32.63314618 | H133: 0.0004166666667 | I133: 0.07432085913 | K133: System | L133: Region | M133: Labrador | N133: - | O133: 2026-01-06T09:00:00 | P133: 405.9395184 | Q133: 33.75086478 | R133: 54.00722736 | S133: 1984.926466 | T133: =G133+Q133+R133 -> 120.3912383 | U133: 2051.310477 | V133: 0.0004166666667 | W133: 0.07432085913 | Y133: 2025-05-10T09:00:00 | Z133: =MAX(OFFSET($S$4:$S$27,(ROW()-4)*24,0)) -> 1484.187322 | AA133: =VLOOKUP(Z133,OFFSET($S$4:$V$27,(ROW()-4)*24,0),4,FALSE) -> 0
A134: System | B134: Region | C134: Island | D134: - | E134: 2026-01-06T10:00:00 | F134: 1576.943041 | G134: 32.48617454 | H134: 0.0004166666667 | I134: 0.123330682 | K134: System | L134: Region | M134: Labrador | N134: - | O134: 2026-01-06T10:00:00 | P134: 376.350157 | Q134: 34.29074909 | R134: 54.61947508 | S134: 1953.293198 | T134: 121.3963987 | U134: 2020.070121 | V134: 0.0004166666667 | W134: 0.123330682 | Y134: 2025-05-11T07:00:00 | Z134: 1379.28292 | AA134: 0
A135: System | B135: Region | C135: Island | D135: - | E135: 2026-01-06T11:00:00 | F135: 1570.532269 | G135: 32.40659518 | H135: 0 | I135: 0 | K135: System | L135: Region | M135: Labrador | N135: - | O135: 2026-01-06T11:00:00 | P135: 384.0301541 | Q135: 34.08464295 | R135: 53.98852199 | S135: 1954.562423 | T135: 120.4797601 | U135: 2021.053661 | V135: 0 | W135: 0 | Y135: 2025-05-12T07:00:00 | Z135: 1395.056868 | AA135: 0
A136: System | B136: Region | C136: Island | D136: - | E136: 2026-01-06T12:00:00 | F136: 1562.307159 | G136: 32.2729067 | H136: 0.0002083333333 | I136: 0.05273455758 | K136: System | L136: Region | M136: Labrador | N136: - | O136: 2026-01-06T12:00:00 | P136: 376.0638963 | Q136: 34.23152275 | R136: 53.25924427 | S136: 1938.371055 | T136: 119.7636737 | U136: 2004.875485 | V136: 0.0002083333333 | W136: 0.05273455758 | Y136: 2025-05-13T20:00:00 | Z136: 1385.993465 | AA136: 0
A137: System | B137: Region | C137: Island | D137: - | E137: 2026-01-06T13:00:00 | F137: 1545.169241 | G137: 31.9799086 | H137: 0.000625 | I137: 0.1529474108 | K137: System | L137: Region | M137: Labrador | N137: - | O137: 2026-01-06T13:00:00 | P137: 382.2138282 | Q137: 34.09439872 | R137: 51.78087594 | S137: 1927.383069 | T137: 117.8551833 | U137: 1993.457376 | V137: 0.000625 | W137: 0.1529474108 | Y137: 2025-05-14T07:00:00 | Z137: 1350.462558 | AA137: 0
A138: System | B138: Region | C138: Island | D138: - | E138: 2026-01-06T14:00:00 | F138: 1549.771881 | G138: 32.03001643 | H138: 0 | I138: 0 | K138: System | L138: Region | M138: Labrador | N138: - | O138: 2026-01-06T14:00:00 | P138: 381.733474 | Q138: 34.089913 | R138: 52.391305 | S138: 1931.505355 | T138: 118.5112344 | U138: 1997.625285 | V138: 0 | W138: 0 | Y138: 2025-05-15T07:00:00 | Z138: 1298.560233 | AA138: 0
A139: System | B139: Region | C139: Island | D139: - | E139: 2026-01-06T15:00:00 | F139: 1562.225919 | G139: 32.23967713 | H139: 0.0002083333333 | I139: 0.002280596163 | K139: System | L139: Region | M139: Labrador | N139: - | O139: 2026-01-06T15:00:00 | P139: 369.9597357 | Q139: 34.29696 | R139: 53.34872627 | S139: 1932.185655 | T139: 119.8853634 | U139: 1998.722292 | V139: 0.0002083333333 | W139: 0.002280596163 | Y139: 2025-05-16T09:00:00 | Z139: 1137.693888 | AA139: 0
A140: System | B140: Region | C140: Island | D140: - | E140: 2026-01-06T16:00:00 | F140: 1613.767488 | G140: 33.10606124 | H140: 0.0004166666667 | I140: 0.01124671881 | K140: System | L140: Region | M140: Labrador | N140: - | O140: 2026-01-06T16:00:00 | P140: 365.4694967 | Q140: 34.35114203 | R140: 57.9380059 | S140: 1979.236984 | T140: 125.3952092 | U140: 2046.694188 | V140: 0.0004166666667 | W140: 0.01124671881 | Y140: 2025-05-17T09:00:00 | Z140: 1199.12448 | AA140: 0
A141: System | B141: Region | C141: Island | D141: - | E141: 2026-01-06T17:00:00 | F141: 1688.119417 | G141: 34.58563976 | H141: 0.002083333333 | I141: 0.07342728181 | K141: System | L141: Region | M141: Labrador | N141: - | O141: 2026-01-06T17:00:00 | P141: 377.0255335 | Q141: 34.05747101 | R141: 60.84560728 | S141: 2065.14495 | T141: 129.488718 | U141: 2133.788061 | V141: 0.002083333333 | W141: 0.07342728181 | Y141: 2025-05-18T11:00:00 | Z141: 1297.156292 | AA141: 0
A142: System | B142: Region | C142: Island | D142: - | E142: 2026-01-06T18:00:00 | F142: 1680.802186 | G142: 34.49218317 | H142: 0.001458333333 | I142: 0.07514389118 | K142: System | L142: Region | M142: Labrador | N142: - | O142: 2026-01-06T18:00:00 | P142: 376.5981871 | Q142: 34.06994474 | R142: 60.48267866 | S142: 2057.400373 | T142: 129.0448066 | U142: 2125.962501 | V142: 0.001458333333 | W142: 0.07514389118 | Y142: 2025-05-19T07:00:00 | Z142: 1295.182211 | AA142: 0
A143: System | B143: Region | C143: Island | D143: - | E143: 2026-01-06T19:00:00 | F143: 1661.290237 | G143: 34.06631033 | H143: 0.0008333333333 | I143: 0.1635044058 | K143: System | L143: Region | M143: Labrador | N143: - | O143: 2026-01-06T19:00:00 | P143: 390.0269476 | Q143: 33.80877388 | R143: 59.47063333 | S143: 2051.317185 | T143: 127.3457175 | U143: 2119.192269 | V143: 0.0008333333333 | W143: 0.1635044058 | Y143: 2025-05-20T08:00:00 | Z143: 1191.860106 | AA143: 0
A144: System | B144: Region | C144: Island | D144: - | E144: 2026-01-06T20:00:00 | F144: 1647.682459 | G144: 33.80335346 | H144: 0.0008333333333 | I144: 0.1246289887 | K144: System | L144: Region | M144: Labrador | N144: - | O144: 2026-01-06T20:00:00 | P144: 390.0484436 | Q144: 33.81074899 | R144: 59.08764506 | S144: 2037.730903 | T144: 126.7017475 | U144: 2105.345005 | V144: 0.0008333333333 | W144: 0.1246289887 | Y144: 2025-05-21T07:00:00 | Z144: 1241.715112 | AA144: 0
A145: System | B145: Region | C145: Island | D145: - | E145: 2026-01-06T21:00:00 | F145: 1615.731715 | G145: 33.18881829 | H145: 0.0008333333333 | I145: 0.08722825356 | K145: System | L145: Region | M145: Labrador | N145: - | O145: 2026-01-06T21:00:00 | P145: 405.3435402 | Q145: 33.52704385 | R145: 56.83280138 | S145: 2021.075256 | T145: 123.5486635 | U145: 2087.791118 | V145: 0.0008333333333 | W145: 0.08722825356 | Y145: 2025-05-22T07:00:00 | Z145: 1237.200524 | AA145: 0
A146: System | B146: Region | C146: Island | D146: - | E146: 2026-01-06T22:00:00 | F146: 1560.020996 | G146: 32.26499625 | H146: 0 | I146: 0 | K146: System | L146: Region | M146: Labrador | N146: - | O146: 2026-01-06T22:00:00 | P146: 404.9327421 | Q146: 33.55205145 | R146: 52.72016219 | S146: 1964.953738 | T146: 118.5372099 | U146: 2030.770786 | V146: 0 | W146: 0 | Y146: 2025-05-23T10:00:00 | Z146: 1261.373221 | AA146: 0
A147: System | B147: Region | C147: Island | D147: - | E147: 2026-01-06T23:00:00 | F147: 1463.402505 | G147: 30.73549831 | H147: 0 | I147: 0 | K147: System | L147: Region | M147: Labrador | N147: - | O147: 2026-01-06T23:00:00 | P147: 415.510639 | Q147: 33.36324218 | R147: 33.2346107 | S147: 1878.913144 | T147: 97.33335119 | U147: 1943.011885 | V147: 0 | W147: 0 | Y147: 2025-05-24T09:00:00 | Z147: 1284.937491 | AA147: 0
A148: System | B148: Region | C148: Island | D148: - | E148: 2026-01-07 | F148: 1370.153001 | G148: 30.31111005 | H148: 0 | I148: 0 | K148: System | L148: Region | M148: Labrador | N148: - | O148: 2026-01-07 | P148: 411.985773 | Q148: 33.46772437 | R148: 27.62920702 | S148: 1782.138774 | T148: 91.40804144 | U148: 1845.917609 | V148: 0 | W148: 0 | Y148: 2025-05-25T07:00:00 | Z148: 1258.757416 | AA148: 0
A149: System | B149: Region | C149: Island | D149: - | E149: 2026-01-07T01:00:00 | F149: 1349.523359 | G149: 30.22594662 | H149: 0.0002083333333 | I149: 0.003324048458 | K149: System | L149: Region | M149: Labrador | N149: - | O149: 2026-01-07T01:00:00 | P149: 421.2778609 | Q149: 33.32391626 | R149: 26.5075756 | S149: 1770.80122 | T149: 90.05743848 | U149: 1834.351083 | V149: 0.0002083333333 | W149: 0.003324048458 | Y149: 2025-05-26T07:00:00 | Z149: 1170.921835 | AA149: 0
A150: System | B150: Region | C150: Island | D150: - | E150: 2026-01-07T02:00:00 | F150: 1335.943319 | G150: 30.15283933 | H150: 0 | I150: 0 | K150: System | L150: Region | M150: Labrador | N150: - | O150: 2026-01-07T02:00:00 | P150: 429.7575212 | Q150: 33.1576959 | R150: 25.85184044 | S150: 1765.700841 | T150: 89.16237567 | U150: 1829.011376 | V150: 0 | W150: 0 | Y150: 2025-05-27T08:00:00 | Z150: 1148.329408 | AA150: 0
A151: System | B151: Region | C151: Island | D151: - | E151: 2026-01-07T03:00:00 | F151: 1336.330929 | G151: 30.13376498 | H151: 0 | I151: 0 | K151: System | L151: Region | M151: Labrador | N151: - | O151: 2026-01-07T03:00:00 | P151: 421.6846386 | Q151: 33.28507447 | R151: 25.90418162 | S151: 1758.015567 | T151: 89.32302106 | U151: 1821.434407 | V151: 0 | W151: 0 | Y151: 2025-05-28T09:00:00 | Z151: 1145.409875 | AA151: 0
A152: System | B152: Region | C152: Island | D152: - | E152: 2026-01-07T04:00:00 | F152: 1346.214034 | G152: 30.16936422 | H152: 0.0002083333333 | I152: 0.009633129025 | K152: System | L152: Region | M152: Labrador | N152: - | O152: 2026-01-07T04:00:00 | P152: 412.2026304 | Q152: 33.4422557 | R152: 26.40316438 | S152: 1758.416664 | T152: 90.0147843 | U152: 1822.028284 | V152: 0.0002083333333 | W152: 0.009633129025 | Y152: 2025-05-29T11:00:00 | Z152: 1203.017713 | AA152: 0
A153: System | B153: Region | C153: Island | D153: - | E153: 2026-01-07T05:00:00 | F153: 1362.903643 | G153: 30.23666146 | H153: 0 | I153: 0 | K153: System | L153: Region | M153: Labrador | N153: - | O153: 2026-01-07T05:00:00 | P153: 413.5585757 | Q153: 33.37760688 | R153: 27.22839052 | S153: 1776.462219 | T153: 90.84265886 | U153: 1840.076487 | V153: 0 | W153: 0 | Y153: 2025-05-30T09:00:00 | Z153: 1171.39283 | AA153: 0
A154: System | B154: Region | C154: Island | D154: - | E154: 2026-01-07T06:00:00 | F154: 1413.024864 | G154: 30.6561203 | H154: 0 | I154: 0 | K154: System | L154: Region | M154: Labrador | N154: - | O154: 2026-01-07T06:00:00 | P154: 414.9738591 | Q154: 33.29802366 | R154: 39.2473435 | S154: 1827.998723 | T154: 103.2014875 | U154: 1891.952867 | V154: 0 | W154: 0 | Y154: 2025-05-31T20:00:00 | Z154: 1121.877922 | AA154: 0
A155: System | B155: Region | C155: Island | D155: - | E155: 2026-01-07T07:00:00 | F155: 1525.439683 | G155: 31.92952264 | H155: 0 | I155: 0 | K155: System | L155: Region | M155: Labrador | N155: - | O155: 2026-01-07T07:00:00 | P155: 423.2207014 | Q155: 32.98231195 | R155: 48.35676647 | S155: 1948.660385 | T155: 113.2686011 | U155: 2013.572219 | V155: 0 | W155: 0 | Y155: 2025-06-01T07:00:00 | Z155: 1255.430593 | AA155: 0
A156: System | B156: Region | C156: Island | D156: - | E156: 2026-01-07T08:00:00 | F156: 1582.367625 | G156: 32.88088931 | H156: 0.0004166666667 | I156: 0.06370672179 | K156: System | L156: Region | M156: Labrador | N156: - | O156: 2026-01-07T08:00:00 | P156: 409.1517354 | Q156: 33.14782307 | R156: 53.0598246 | S156: 1991.519361 | T156: 119.088537 | U156: 2057.548073 | V156: 0.0004166666667 | W156: 0.06370672179 | Y156: 2025-06-02T07:00:00 | Z156: 1168.185503 | AA156: 0
A157: System | B157: Region | C157: Island | D157: - | E157: 2026-01-07T09:00:00 | F157: 1591.928642 | G157: 32.98496994 | H157: 0.0004166666667 | I157: 0.09219120604 | K157: System | L157: Region | M157: Labrador | N157: - | O157: 2026-01-07T09:00:00 | P157: 397.1089183 | Q157: 33.29004791 | R157: 54.27229245 | S157: 1989.03756 | T157: 120.5473103 | U157: 2055.312578 | V157: 0.0004166666667 | W157: 0.09219120604 | Y157: 2025-06-03T07:00:00 | Z157: 1209.414458 | AA157: 0
A158: System | B158: Region | C158: Island | D158: - | E158: 2026-01-07T10:00:00 | F158: 1579.112456 | G158: 32.77094895 | H158: 0.0004166666667 | I158: 0.001616720318 | K158: System | L158: Region | M158: Labrador | N158: - | O158: 2026-01-07T10:00:00 | P158: 394.1941845 | Q158: 33.40005817 | R158: 53.22879895 | S158: 1973.30664 | T158: 119.3998061 | U158: 2039.477648 | V158: 0.0004166666667 | W158: 0.001616720318 | Y158: 2025-06-04T07:00:00 | Z158: 1188.372858 | AA158: 0
A159: System | B159: Region | C159: Island | D159: - | E159: 2026-01-07T11:00:00 | F159: 1564.710658 | G159: 32.51454348 | H159: 0.0004166666667 | I159: 0.08296163554 | K159: System | L159: Region | M159: Labrador | N159: - | O159: 2026-01-07T11:00:00 | P159: 372.6601044 | Q159: 33.85621303 | R159: 52.19372191 | S159: 1937.370762 | T159: 118.5644784 | U159: 2003.741519 | V159: 0.0004166666667 | W159: 0.08296163554 | Y159: 2025-06-05T07:00:00 | Z159: 1202.566951 | AA159: 0
A160: System | B160: Region | C160: Island | D160: - | E160: 2026-01-07T12:00:00 | F160: 1560.780423 | G160: 32.44695897 | H160: 0 | I160: 0 | K160: System | L160: Region | M160: Labrador | N160: - | O160: 2026-01-07T12:00:00 | P160: 382.0838659 | Q160: 33.72594537 | R160: 51.95589151 | S160: 1942.864289 | T160: 118.1287959 | U160: 2009.037194 | V160: 0 | W160: 0 | Y160: 2025-06-06T09:00:00 | Z160: 1199.371774 | AA160: 0
A161: System | B161: Region | C161: Island | D161: - | E161: 2026-01-07T13:00:00 | F161: 1533.520574 | G161: 31.98478677 | H161: 0 | I161: 0 | K161: System | L161: Region | M161: Labrador | N161: - | O161: 2026-01-07T13:00:00 | P161: 380.1887875 | Q161: 33.81450881 | R161: 49.47804631 | S161: 1913.709361 | T161: 115.2773419 | U161: 1979.508657 | V161: 0 | W161: 0 | Y161: 2025-06-07T11:00:00 | Z161: 1147.707187 | AA161: 0
A162: System | B162: Region | C162: Island | D162: - | E162: 2026-01-07T14:00:00 | F162: 1516.131879 | G162: 31.72678385 | H162: 0.0002083333333 | I162: 0.05432331723 | K162: System | L162: Region | M162: Labrador | N162: - | O162: 2026-01-07T14:00:00 | P162: 365.3560517 | Q162: 34.13721461 | R162: 48.08739769 | S162: 1881.487931 | T162: 113.9513962 | U162: 1947.351929 | V162: 0.0002083333333 | W162: 0.05432331723 | Y162: 2025-06-08T07:00:00 | Z162: 1216.718004 | AA162: 0
A163: System | B163: Region | C163: Island | D163: - | E163: 2026-01-07T15:00:00 | F163: 1523.107183 | G163: 31.81312445 | H163: 0.0008333333333 | I163: 0.1172497 | K163: System | L163: Region | M163: Labrador | N163: - | O163: 2026-01-07T15:00:00 | P163: 358.6819036 | Q163: 34.2847544 | R163: 48.75689832 | S163: 1881.789087 | T163: 114.8547772 | U163: 1947.886966 | V163: 0.0008333333333 | W163: 0.1172497 | Y163: 2025-06-09T07:00:00 | Z163: 1128.238653 | AA163: 0
A164: System | B164: Region | C164: Island | D164: - | E164: 2026-01-07T16:00:00 | F164: 1559.76399 | G164: 32.3819656 | H164: 0.0004166666667 | I164: 0.05430568911 | K164: System | L164: Region | M164: Labrador | N164: - | O164: 2026-01-07T16:00:00 | P164: 361.198341 | Q164: 34.19516921 | R164: 51.8821848 | S164: 1920.962331 | T164: 118.4593196 | U164: 1987.539465 | V164: 0.0004166666667 | W164: 0.05430568911 | Y164: 2025-06-10T07:00:00 | Z164: 1079.884766 | AA164: 0
A165: System | B165: Region | C165: Island | D165: - | E165: 2026-01-07T17:00:00 | F165: 1632.870676 | G165: 33.61955117 | H165: 0.0004166666667 | I165: 0.06372123886 | K165: System | L165: Region | M165: Labrador | N165: - | O165: 2026-01-07T17:00:00 | P165: 360.9706827 | Q165: 34.09742073 | R165: 57.92596095 | S165: 1993.841359 | T165: 125.6429328 | U165: 2061.558331 | V165: 0.0004166666667 | W165: 0.06372123886 | Y165: 2025-06-11T08:00:00 | Z165: 1067.055053 | AA165: 0
A166: System | B166: Region | C166: Island | D166: - | E166: 2026-01-07T18:00:00 | F166: 1617.855901 | G166: 33.35867943 | H166: 0.000625 | I166: 0.08427315908 | K166: System | L166: Region | M166: Labrador | N166: - | O166: 2026-01-07T18:00:00 | P166: 361.7260825 | Q166: 34.0866499 | R166: 57.018156 | S166: 1979.581983 | T166: 124.4634853 | U166: 2047.027312 | V166: 0.000625 | W166: 0.08427315908 | Y166: 2025-06-12T10:00:00 | Z166: 1055.234717 | AA166: 0
A167: System | B167: Region | C167: Island | D167: - | E167: 2026-01-07T19:00:00 | F167: 1595.317161 | G167: 32.94775943 | H167: 0.0002083333333 | I167: 0.06451043994 | K167: System | L167: Region | M167: Labrador | N167: - | O167: 2026-01-07T19:00:00 | P167: 348.9166307 | Q167: 34.33747119 | R167: 55.12599611 | S167: 1944.233792 | T167: 122.4112267 | U167: 2011.519022 | V167: 0.0002083333333 | W167: 0.06451043994 | Y167: 2025-06-13T16:00:00 | Z167: 1116.877604 | AA167: 0
A168: System | B168: Region | C168: Island | D168: - | E168: 2026-01-07T20:00:00 | F168: 1578.121781 | G168: 32.69135639 | H168: 0.0008333333333 | I168: 0.06647779235 | K168: System | L168: Region | M168: Labrador | N168: - | O168: 2026-01-07T20:00:00 | P168: 347.6162589 | Q168: 34.36716605 | R168: 53.48959089 | S168: 1925.73804 | T168: 120.5481133 | U168: 1992.796563 | V168: 0.0008333333333 | W168: 0.06647779235 | Y168: 2025-06-14T12:00:00 | Z168: 1178.014229 | AA168: 0
A169: System | B169: Region | C169: Island | D169: - | E169: 2026-01-07T21:00:00 | F169: 1550.746501 | G169: 32.22743084 | H169: 0 | I169: 0 | K169: System | L169: Region | M169: Labrador | N169: - | O169: 2026-01-07T21:00:00 | P169: 355.7701727 | Q169: 34.21614902 | R169: 51.11747751 | S169: 1906.516674 | T169: 117.5610574 | U169: 1972.960254 | V169: 0 | W169: 0 | Y169: 2025-06-15T08:00:00 | Z169: 1202.162027 | AA169: 0
A170: System | B170: Region | C170: Island | D170: - | E170: 2026-01-07T22:00:00 | F170: 1500.50816 | G170: 31.496025 | H170: 0 | I170: 0 | K170: System | L170: Region | M170: Labrador | N170: - | O170: 2026-01-07T22:00:00 | P170: 354.1251631 | Q170: 34.26418328 | R170: 46.89189009 | S170: 1854.633323 | T170: 112.6520984 | U170: 1920.393531 | V170: 0 | W170: 0 | Y170: 2025-06-16T07:00:00 | Z170: 1120.765628 | AA170: 0
A171: System | B171: Region | C171: Island | D171: - | E171: 2026-01-07T23:00:00 | F171: 1426.126153 | G171: 30.50791798 | H171: 0 | I171: 0 | K171: System | L171: Region | M171: Labrador | N171: - | O171: 2026-01-07T23:00:00 | P171: 357.2548675 | Q171: 34.2339855 | R171: 30.82716976 | S171: 1783.381021 | T171: 95.56907324 | U171: 1848.122924 | V171: 0 | W171: 0 | Y171: 2025-06-17T11:00:00 | Z171: 1204.997604 | AA171: 0
A172: System | B172: Region | C172: Island | D172: - | E172: 2026-01-08 | F172: 1359.332861 | G172: 28.9994759 | H172: 0 | I172: 0 | K172: System | L172: Region | M172: Labrador | N172: - | O172: 2026-01-08 | P172: 353.9123863 | Q172: 34.35523562 | R172: 29.00988023 | S172: 1713.245248 | T172: 92.36459175 | U172: 1776.599959 | V172: 0 | W172: 0 | Y172: 2025-06-18T07:00:00 | Z172: 1123.987198 | AA172: 0
A173: System | B173: Region | C173: Island | D173: - | E173: 2026-01-08T01:00:00 | F173: 1318.555481 | G173: 28.69652132 | H173: 0 | I173: 0 | K173: System | L173: Region | M173: Labrador | N173: - | O173: 2026-01-08T01:00:00 | P173: 358.8758051 | Q173: 34.26824448 | R173: 27.05295879 | S173: 1677.431286 | T173: 90.01772458 | U173: 1740.396052 | V173: 0 | W173: 0 | Y173: 2025-06-19T08:00:00 | Z173: 1034.906629 | AA173: 0
A174: System | B174: Region | C174: Island | D174: - | E174: 2026-01-08T02:00:00 | F174: 1316.317828 | G174: 28.73072942 | H174: 0.0002083333333 | I174: 0.001992827813 | K174: System | L174: Region | M174: Labrador | N174: - | O174: 2026-01-08T02:00:00 | P174: 366.1693893 | Q174: 34.13505794 | R174: 26.91349003 | S174: 1682.487217 | T174: 89.77927739 | U174: 1745.353004 | V174: 0.0002083333333 | W174: 0.001992827813 | Y174: 2025-06-20T10:00:00 | Z174: 1043.480002 | AA174: 0
A175: System | B175: Region | C175: Island | D175: - | E175: 2026-01-08T03:00:00 | F175: 1316.110713 | G175: 28.63863095 | H175: 0 | I175: 0 | K175: System | L175: Region | M175: Labrador | N175: - | O175: 2026-01-08T03:00:00 | P175: 359.8740083 | Q175: 34.27566865 | R175: 26.95935113 | S175: 1675.984721 | T175: 89.87365072 | U175: 1738.899021 | V175: 0 | W175: 0 | Y175: 2025-06-21T11:00:00 | Z175: 991.9492742 | AA175: 0
A176: System | B176: Region | C176: Island | D176: - | E176: 2026-01-08T04:00:00 | F176: 1334.952865 | G176: 28.77103126 | H176: 0.0002083333333 | I176: 0.01752562335 | K176: System | L176: Region | M176: Labrador | N176: - | O176: 2026-01-08T04:00:00 | P176: 357.9212472 | Q176: 34.3186082 | R176: 27.84044559 | S176: 1692.874112 | T176: 90.93008505 | U176: 1755.963752 | V176: 0.0002083333333 | W176: 0.01752562335 | Y176: 2025-06-22T17:00:00 | Z176: 1042.39326 | AA176: 0
A177: System | B177: Region | C177: Island | D177: - | E177: 2026-01-08T05:00:00 | F177: 1354.385707 | G177: 29.01748127 | H177: 0.0002083333333 | I177: 0.009394873675 | K177: System | L177: Region | M177: Labrador | N177: - | O177: 2026-01-08T05:00:00 | P177: 366.4391172 | Q177: 34.12875343 | R177: 28.74071513 | S177: 1720.824824 | T177: 91.88694982 | U177: 1783.971059 | V177: 0.0002083333333 | W177: 0.009394873675 | Y177: 2025-06-23T21:00:00 | Z177: 1078.226477 | AA177: 0
A178: System | B178: Region | C178: Island | D178: - | E178: 2026-01-08T06:00:00 | F178: 1407.265876 | G178: 30.26743358 | H178: 0.0008333333333 | I178: 0.09397131352 | K178: System | L178: Region | M178: Labrador | N178: - | O178: 2026-01-08T06:00:00 | P178: 373.811906 | Q178: 33.9524657 | R178: 39.96679453 | S178: 1781.077782 | T178: 104.1866938 | U178: 1845.297681 | V178: 0.0008333333333 | W178: 0.09397131352 | Y178: 2025-06-24T08:00:00 | Z178: 1143.515662 | AA178: 0
A179: System | B179: Region | C179: Island | D179: - | E179: 2026-01-08T07:00:00 | F179: 1501.025663 | G179: 31.24247081 | H179: 0 | I179: 0 | K179: System | L179: Region | M179: Labrador | N179: - | O179: 2026-01-08T07:00:00 | P179: 341.8800123 | Q179: 34.52320701 | R179: 48.29777083 | S179: 1842.905676 | T179: 114.0634486 | U179: 1908.671353 | V179: 0 | W179: 0 | Y179: 2025-06-25T11:00:00 | Z179: 1174.731037 | AA179: 0
A180: System | B180: Region | C180: Island | D180: - | E180: 2026-01-08T08:00:00 | F180: 1576.392961 | G180: 32.31979206 | H180: 0 | I180: 0 | K180: System | L180: Region | M180: Labrador | N180: - | O180: 2026-01-08T08:00:00 | P180: 316.8795245 | Q180: 34.85718051 | R180: 55.25018407 | S180: 1893.272485 | T180: 122.4271566 | U180: 1960.449458 | V180: 0 | W180: 0 | Y180: 2025-06-26T09:00:00 | Z180: 1164.544396 | AA180: 0
A181: System | B181: Region | C181: Island | D181: - | E181: 2026-01-08T09:00:00 | F181: 1593.17622 | G181: 32.58366542 | H181: 0.0002083333333 | I181: 0.001902486515 | K181: System | L181: Region | M181: Labrador | N181: - | O181: 2026-01-08T09:00:00 | P181: 324.5089324 | Q181: 34.68609528 | R181: 56.68428252 | S181: 1917.685153 | T181: 123.9540432 | U181: 1984.954913 | V181: 0.0002083333333 | W181: 0.001902486515 | Y181: 2025-06-27T11:00:00 | Z181: 1107.5857 | AA181: 0
A182: System | B182: Region | C182: Island | D182: - | E182: 2026-01-08T10:00:00 | F182: 1595.359441 | G182: 32.66818611 | H182: 0.0002083333333 | I182: 0.07303748333 | K182: System | L182: Region | M182: Labrador | N182: - | O182: 2026-01-08T10:00:00 | P182: 329.4795149 | Q182: 34.62921252 | R182: 56.70231359 | S182: 1924.838956 | T182: 123.9997122 | U182: 1992.136355 | V182: 0.0002083333333 | W182: 0.07303748333 | Y182: 2025-06-28T11:00:00 | Z182: 1011.882556 | AA182: 0
A183: System | B183: Region | C183: Island | D183: - | E183: 2026-01-08T11:00:00 | F183: 1604.95231 | G183: 32.81997163 | H183: 0.000625 | I183: 0.0861293759 | K183: System | L183: Region | M183: Labrador | N183: - | O183: 2026-01-08T11:00:00 | P183: 325.9169868 | Q183: 34.74554888 | R183: 57.56107283 | S183: 1930.869297 | T183: 125.1265933 | U183: 1998.434817 | V183: 0.000625 | W183: 0.0861293759 | Y183: 2025-06-29T11:00:00 | Z183: 1079.122918 | AA183: 0
A184: System | B184: Region | C184: Island | D184: - | E184: 2026-01-08T12:00:00 | F184: 1601.929307 | G184: 32.80582638 | H184: 0.0002083333333 | I184: 0.06613943434 | K184: System | L184: Region | M184: Labrador | N184: - | O184: 2026-01-08T12:00:00 | P184: 340.7937293 | Q184: 34.48551057 | R184: 57.25833308 | S184: 1942.723037 | T184: 124.54967 | U184: 2010.014374 | V184: 0.0002083333333 | W184: 0.06613943434 | Y184: 2025-06-30T09:00:00 | Z184: 1069.904588 | AA184: 0
A185: System | B185: Region | C185: Island | D185: - | E185: 2026-01-08T13:00:00 | F185: 1578.086959 | G185: 32.40685799 | H185: 0.0004166666667 | I185: 0.03885338431 | K185: System | L185: Region | M185: Labrador | N185: - | O185: 2026-01-08T13:00:00 | P185: 345.7755188 | Q185: 34.4263042 | R185: 55.1014498 | S185: 1923.862478 | T185: 121.934612 | U185: 1990.69564 | V185: 0.0004166666667 | W185: 0.03885338431 | Y185: 2025-07-01T11:00:00 | Z185: 1024.778655 | AA185: 0
A186: System | B186: Region | C186: Island | D186: - | E186: 2026-01-08T14:00:00 | F186: 1559.059327 | G186: 32.07320113 | H186: 0.0002083333333 | I186: 0.05406259646 | K186: System | L186: Region | M186: Labrador | N186: - | O186: 2026-01-08T14:00:00 | P186: 348.5369302 | Q186: 34.42504857 | R186: 53.49479178 | S186: 1907.596257 | T186: 119.9930415 | U186: 1974.094507 | V186: 0.0002083333333 | W186: 0.05406259646 | Y186: 2025-07-02T11:00:00 | Z186: 1036.020966 | AA186: 0
A187: System | B187: Region | C187: Island | D187: - | E187: 2026-01-08T15:00:00 | F187: 1562.087979 | G187: 32.16470747 | H187: 0.0002083333333 | I187: 0.06008165132 | K187: System | L187: Region | M187: Labrador | N187: - | O187: 2026-01-08T15:00:00 | P187: 362.3529198 | Q187: 34.16820847 | R187: 53.66248192 | S187: 1924.440899 | T187: 119.9953979 | U187: 1990.773815 | V187: 0.0002083333333 | W187: 0.06008165132 | Y187: 2025-07-03T09:00:00 | Z187: 1008.241068 | AA187: 0
A188: System | B188: Region | C188: Island | D188: - | E188: 2026-01-08T16:00:00 | F188: 1577.997117 | G188: 32.42478433 | H188: 0 | I188: 0 | K188: System | L188: Region | M188: Labrador | N188: - | O188: 2026-01-08T16:00:00 | P188: 368.6936632 | Q188: 34.03073851 | R188: 55.03268579 | S188: 1946.69078 | T188: 121.4882086 | U188: 2013.146303 | V188: 0 | W188: 0 | Y188: 2025-07-04T12:00:00 | Z188: 978.878235 | AA188: 0
A189: System | B189: Region | C189: Island | D189: - | E189: 2026-01-08T17:00:00 | F189: 1664.444995 | G189: 34.12949189 | H189: 0.00125 | I189: 0.1047491063 | K189: System | L189: Region | M189: Labrador | N189: - | O189: 2026-01-08T17:00:00 | P189: 380.0094852 | Q189: 33.70715215 | R189: 60.06501835 | S189: 2044.45448 | T189: 127.9016624 | U189: 2112.291124 | V189: 0.00125 | W189: 0.1047491063 | Y189: 2025-07-05T20:00:00 | Z189: 1011.001169 | AA189: 0
A190: System | B190: Region | C190: Island | D190: - | E190: 2026-01-08T18:00:00 | F190: 1655.127491 | G190: 33.87963546 | H190: 0.0002083333333 | I190: 0.003679634171 | K190: System | L190: Region | M190: Labrador | N190: - | O190: 2026-01-08T18:00:00 | P190: 380.6248715 | Q190: 33.6927101 | R190: 59.89083849 | S190: 2035.752363 | T190: 127.4631841 | U190: 2103.324708 | V190: 0.0002083333333 | W190: 0.003679634171 | Y190: 2025-07-06T11:00:00 | Z190: 1149.064999 | AA190: 0
A191: System | B191: Region | C191: Island | D191: - | E191: 2026-01-08T19:00:00 | F191: 1629.336029 | G191: 33.4017297 | H191: 0.00125 | I191: 0.2254026956 | K191: System | L191: Region | M191: Labrador | N191: - | O191: 2026-01-08T19:00:00 | P191: 385.5954781 | Q191: 33.59355471 | R191: 58.69180711 | S191: 2014.931508 | T191: 125.6870915 | U191: 2081.926792 | V191: 0.00125 | W191: 0.2254026956 | Y191: 2025-07-07T10:00:00 | Z191: 1071.854662 | AA191: 0
A192: System | B192: Region | C192: Island | D192: - | E192: 2026-01-08T20:00:00 | F192: 1615.587807 | G192: 33.13413882 | H192: 0.0002083333333 | I192: 0.00310785172 | K192: System | L192: Region | M192: Labrador | N192: - | O192: 2026-01-08T20:00:00 | P192: 383.8368488 | Q192: 33.66587886 | R192: 57.88863403 | S192: 1999.424656 | T192: 124.6886517 | U192: 2066.224673 | V192: 0.0002083333333 | W192: 0.00310785172 | Y192: 2025-07-08T11:00:00 | Z192: 1031.992087 | AA192: 0
A193: System | B193: Region | C193: Island | D193: - | E193: 2026-01-08T21:00:00 | F193: 1588.38974 | G193: 32.6663649 | H193: 0 | I193: 0 | K193: System | L193: Region | M193: Labrador | N193: - | O193: 2026-01-08T21:00:00 | P193: 389.5326026 | Q193: 33.56804564 | R193: 55.63071056 | S193: 1977.922343 | T193: 121.8651211 | U193: 2044.156754 | V193: 0 | W193: 0 | Y193: 2025-07-09T16:00:00 | Z193: 978.0990146 | AA193: 0
A194: System | B194: Region | C194: Island | D194: - | E194: 2026-01-08T22:00:00 | F194: 1543.825363 | G194: 31.87553516 | H194: 0 | I194: 0 | K194: System | L194: Region | M194: Labrador | N194: - | O194: 2026-01-08T22:00:00 | P194: 382.5767117 | Q194: 33.71563168 | R194: 51.99286898 | S194: 1926.402075 | T194: 117.5840358 | U194: 1991.993242 | V194: 0 | W194: 0 | Y194: 2025-07-10T10:00:00 | Z194: 1018.633849 | AA194: 0
A195: System | B195: Region | C195: Island | D195: - | E195: 2026-01-08T23:00:00 | F195: 1461.058155 | G195: 29.88431156 | H195: 0.0002083333333 | I195: 0.02882582051 | K195: System | L195: Region | M195: Labrador | N195: - | O195: 2026-01-08T23:00:00 | P195: 380.3499753 | Q195: 33.81620935 | R195: 34.74777385 | S195: 1841.40813 | T195: 98.44829475 | U195: 1905.108651 | V195: 0.0002083333333 | W195: 0.02882582051 | Y195: 2025-07-11T11:00:00 | Z195: 1050.393533 | AA195: 0
A196: System | B196: Region | C196: Island | D196: - | E196: 2026-01-09 | F196: 1412.787521 | G196: 30.86608557 | H196: 0.0002083333333 | I196: 0.0168042915 | K196: System | L196: Region | M196: Labrador | N196: - | O196: 2026-01-09 | P196: 376.2130171 | Q196: 33.96137394 | R196: 29.68073505 | S196: =F196+P196 -> 1789.000538 | T196: 94.50819457 | U196: =F196+G196+P196+Q196 -> 1853.827998 | V196: =H196 -> 0.0002083333333 | W196: 0.0168042915 | Y196: 2025-07-12T11:00:00 | Z196: 1024.631534 | AA196: 0
A197: System | B197: Region | C197: Island | D197: - | E197: 2026-01-09T01:00:00 | F197: 1395.030015 | G197: 30.70762117 | H197: 0.0002083333333 | I197: 0.01312022602 | K197: System | L197: Region | M197: Labrador | N197: - | O197: 2026-01-09T01:00:00 | P197: 382.1681495 | Q197: 33.87269951 | R197: 28.73332582 | S197: 1777.198164 | T197: =G197+Q197+R197 -> 93.3136465 | U197: 1841.778485 | V197: 0.0002083333333 | W197: 0.01312022602 | Y197: 2025-07-13T11:00:00 | Z197: =MAX(OFFSET($S$4:$S$27,(ROW()-4)*24,0)) -> 1121.23103 | AA197: =VLOOKUP(Z197,OFFSET($S$4:$V$27,(ROW()-4)*24,0),4,FALSE) -> 0
A198: System | B198: Region | C198: Island | D198: - | E198: 2026-01-09T02:00:00 | F198: 1397.630444 | G198: 30.82229734 | H198: 0 | I198: 0 | K198: System | L198: Region | M198: Labrador | N198: - | O198: 2026-01-09T02:00:00 | P198: 381.7848272 | Q198: 33.9030834 | R198: 28.816526 | S198: 1779.415271 | T198: 93.54190674 | U198: 1844.140652 | V198: 0 | W198: 0 | Y198: 2025-07-14T09:00:00 | Z198: 1036.35737 | AA198: 0
A199: System | B199: Region | C199: Island | D199: - | E199: 2026-01-09T03:00:00 | F199: 1407.049805 | G199: 30.82736849 | H199: 0 | I199: 0 | K199: System | L199: Region | M199: Labrador | N199: - | O199: 2026-01-09T03:00:00 | P199: 380.0645229 | Q199: 33.98540814 | R199: 29.37416198 | S199: 1787.114328 | T199: 94.1869386 | U199: 1851.927104 | V199: 0 | W199: 0 | Y199: 2025-07-15T16:00:00 | Z199: 962.1143389 | AA199: 0
A200: System | B200: Region | C200: Island | D200: - | E200: 2026-01-09T04:00:00 | F200: 1421.818303 | G200: 30.93015634 | H200: 0.0002083333333 | I200: 0.01740704745 | K200: System | L200: Region | M200: Labrador | N200: - | O200: 2026-01-09T04:00:00 | P200: 380.9490117 | Q200: 33.92843283 | R200: 30.1817212 | S200: 1802.767314 | T200: 95.04031036 | U200: 1867.625904 | V200: 0.0002083333333 | W200: 0.01740704745 | Y200: 2025-07-16T11:00:00 | Z200: 1028.45787 | AA200: 0
A201: System | B201: Region | C201: Island | D201: - | E201: 2026-01-09T05:00:00 | F201: 1445.453003 | G201: 31.1086688 | H201: 0 | I201: 0 | K201: System | L201: Region | M201: Labrador | N201: - | O201: 2026-01-09T05:00:00 | P201: 381.1948697 | Q201: 33.9176638 | R201: 31.59787331 | S201: 1826.647872 | T201: 96.62420592 | U201: 1891.674205 | V201: 0 | W201: 0 | Y201: 2025-07-17T09:00:00 | Z201: 998.2844679 | AA201: 0
... 2049 more rows

Sheet Run 3
A2: Island | K2: Labrador | R2: LIL Losses
A3: Parent Name | B3: Collection | C3: Child Name | D3: Category | E3: Datetime | F3: Load (MW) | G3: Transmission Losses (MW) | H3: Unserved Energy Hours (h) | I3: Unserved Energy (MW) | K3: Parent Name | L3: Collection | M3: Child Name | N3: Category | O3: Datetime | P3: Load (MW) | Q3: Transmission Losses (MW) | R3: Transmission Losses (MW) | S3: Province Total No Loss | T3: Province Loss | U3: Province Total | V3: Unserved Energy Hours (h) | W3: Unserved Energy (MW) | Y3: Daily Peak | Z3: Daily Peak Load | AA3: Average Unserved Energy Hours
A4: System | B4: Region | C4: Island | D4: - | E4: 2026-01-01 | F4: 1438.772738 | G4: 30.85056317 | H4: 0.0004166666667 | I4: 0.0356265668 | K4: System | L4: Region | M4: Labrador | N4: - | O4: 2026-01-01 | P4: 385.196486 | Q4: 33.92582078 | R4: 31.16531509 | S4: =F4+P4 -> 1823.969224 | T4: =G4+Q4+R4 -> 95.94169904 | U4: =F4+G4+P4+Q4 -> 1888.745608 | V4: =H4 -> 0.0004166666667 | W4: 0.0356265668 | Y4: 2025-01-01T17:00:00 | Z4: =MAX(OFFSET($S$4:$S$27,(ROW()-4)*24,0)) -> 2004.646537 | AA4: =VLOOKUP(Z4,OFFSET($S$4:$V$27,(ROW()-4)*24,0),4,FALSE) -> 0.0002083333333 | AD4: LOLE | AE4: =SUM(AA4:AA368) -> 0.095
A5: System | B5: Region | C5: Island | D5: - | E5: 2026-01-01T01:00:00 | F5: 1406.727936 | G5: 30.75691095 | H5: 0.0002083333333 | I5: 0.01751778946 | K5: System | L5: Region | M5: Labrador | N5: - | O5: 2026-01-01T01:00:00 | P5: 400.7178834 | Q5: 33.6317754 | R5: 29.14059125 | S5: 1807.445819 | T5: =G5+Q5+R5 -> 93.5292776 | U5: 1871.834505 | V5: 0.0002083333333 | W5: 0.01751778946 | Y5: 2025-01-02T17:00:00 | Z5: =MAX(OFFSET($S$4:$S$27,(ROW()-4)*24,0)) -> 1917.900775 | AA5: =VLOOKUP(Z5,OFFSET($S$4:$V$27,(ROW()-4)*24,0),4,FALSE) -> 0 | AD5: LOLH | AE5: =SUM(V4:V8763) -> 0.5575
A6: System | B6: Region | C6: Island | D6: - | E6: 2026-01-01T02:00:00 | F6: 1384.365106 | G6: 30.66643342 | H6: 0.0002083333333 | I6: 0.0160342888 | K6: System | L6: Region | M6: Labrador | N6: - | O6: 2026-01-01T02:00:00 | P6: 416.448855 | Q6: 33.34802807 | R6: 27.84371936 | S6: 1800.813961 | T6: 91.85818085 | U6: 1864.828422 | V6: 0.0002083333333 | W6: 0.0160342888 | Y6: 2025-01-03T20:00:00 | Z6: 2127.453482 | AA6: 0.004791666667 | AD6: EUE | AE6: =SUM(W4:W8763) -> 55.69923185
A7: System | B7: Region | C7: Island | D7: - | E7: 2026-01-01T03:00:00 | F7: 1369.972692 | G7: 30.5847518 | H7: 0.0002083333333 | I7: 0.01130437267 | K7: System | L7: Region | M7: Labrador | N7: - | O7: 2026-01-01T03:00:00 | P7: 436.4548555 | Q7: 32.97488992 | R7: 27.03866721 | S7: 1806.427548 | T7: 90.59830893 | U7: 1869.987189 | V7: 0.0002083333333 | W7: 0.01130437267 | Y7: 2025-01-04T17:00:00 | Z7: 2117.457045 | AA7: 0.003125 | AD7: Peak | AE7: =MAX(S4:S8763) -> 2174.18951
A8: System | B8: Region | C8: Island | D8: - | E8: 2026-01-01T04:00:00 | F8: 1368.34843 | G8: 30.57876359 | H8: 0.0002083333333 | I8: 0.01659317 | K8: System | L8: Region | M8: Labrador | N8: - | O8: 2026-01-01T04:00:00 | P8: 429.4967925 | Q8: 33.10525144 | R8: 27.04145383 | S8: 1797.845223 | T8: 90.72546886 | U8: 1861.529238 | V8: 0.0002083333333 | W8: 0.01659317 | Y8: 2025-01-05T19:00:00 | Z8: 1834.024329 | AA8: 0.0002083333333 | AD8: Loss @ Peak | AE8: =VLOOKUP(AE7,S4:T8763,2,FALSE) -> 124.241589
A9: System | B9: Region | C9: Island | D9: - | E9: 2026-01-01T05:00:00 | F9: 1382.957251 | G9: 30.68254455 | H9: 0.0002083333333 | I9: 0.01485070683 | K9: System | L9: Region | M9: Labrador | N9: - | O9: 2026-01-01T05:00:00 | P9: 420.8476926 | Q9: 33.25184208 | R9: 27.67502533 | S9: 1803.804943 | T9: 91.60941196 | U9: 1867.73933 | V9: 0.0002083333333 | W9: 0.01485070683 | Y9: 2025-01-06T17:00:00 | Z9: 2065.14495 | AA9: 0.002083333333 | AD9: Peak with Losses | AE9: =AE7+AE8 -> 2298.431099
A10: System | B10: Region | C10: Island | D10: - | E10: 2026-01-01T06:00:00 | F10: 1411.547991 | G10: 30.95970215 | H10: 0.0004166666667 | I10: 0.04857401224 | K10: System | L10: Region | M10: Labrador | N10: - | O10: 2026-01-01T06:00:00 | P10: 441.114983 | Q10: 32.83966212 | R10: 37.98130018 | S10: 1852.662974 | T10: 101.7806644 | U10: 1916.462338 | V10: 0.0004166666667 | W10: 0.04857401224 | Y10: 2025-01-07T17:00:00 | Z10: 1993.841359 | AA10: 0.0004166666667 | AD10: Peak Losses | AE10: =MAX(T4:T8763) -> 131.430252
A11: System | B11: Region | C11: Island | D11: - | E11: 2026-01-01T07:00:00 | F11: 1450.761077 | G11: 31.30790706 | H11: 0 | I11: 0 | K11: System | L11: Region | M11: Labrador | N11: - | O11: 2026-01-01T07:00:00 | P11: 441.3405739 | Q11: 32.81730605 | R11: 40.7946339 | S11: 1892.101651 | T11: 104.919847 | U11: 1956.226864 | V11: 0 | W11: 0 | Y11: 2025-01-08T17:00:00 | Z11: 2044.45448 | AA11: 0.00125 | AD11: Island Peak | AE11: =MAX(F4:F8763) -> 1750.281025
A12: System | B12: Region | C12: Island | D12: - | E12: 2026-01-01T08:00:00 | F12: 1482.123295 | G12: 31.67656446 | H12: 0 | I12: 0 | K12: System | L12: Region | M12: Labrador | N12: - | O12: 2026-01-01T08:00:00 | P12: 432.8193979 | Q12: 32.97386023 | R12: 43.08045474 | S12: 1914.942693 | T12: 107.7308794 | U12: 1979.593117 | V12: 0 | W12: 0 | Y12: 2025-01-09T08:00:00 | Z12: 2073.838214 | AA12: 0.002708333333 | AD12: Labrador Peak | AE12: =MAX(P4:P8763) -> 472.714203
A13: System | B13: Region | C13: Island | D13: - | E13: 2026-01-01T09:00:00 | F13: 1491.781837 | G13: 31.85181808 | H13: 0.0002083333333 | I13: 0.03750212372 | K13: System | L13: Region | M13: Labrador | N13: - | O13: 2026-01-01T09:00:00 | P13: 441.3670787 | Q13: 32.79506721 | R13: 43.80696985 | S13: 1933.148916 | T13: 108.4538551 | U13: 1997.795801 | V13: 0.0002083333333 | W13: 0.03750212372 | Y13: 2025-01-10T17:00:00 | Z13: 1905.655517 | AA13: 0.0002083333333 | AD13: Coincidence Factor | AE13: =AE7/(AE11+AE12) -> 0.9780450638
A14: System | B14: Region | C14: Island | D14: - | E14: 2026-01-01T10:00:00 | F14: 1502.313625 | G14: 32.04905185 | H14: 0.0004166666667 | I14: 0.08030032327 | K14: System | L14: Region | M14: Labrador | N14: - | O14: 2026-01-01T10:00:00 | P14: 442.0257759 | Q14: 32.76948296 | R14: 44.45911575 | S14: 1944.339401 | T14: 109.2776506 | U14: 2009.157935 | V14: 0.0004166666667 | W14: 0.08030032327 | Y14: 2025-01-11T20:00:00 | Z14: 1966.897832 | AA14: 0.0004166666667 | AD14: Firm Capacity | AE14: 2602.086
A15: System | B15: Region | C15: Island | D15: - | E15: 2026-01-01T11:00:00 | F15: 1519.820977 | G15: 32.19630734 | H15: 0 | I15: 0 | K15: System | L15: Region | M15: Labrador | N15: - | O15: 2026-01-01T11:00:00 | P15: 401.1253687 | Q15: 33.58995532 | R15: 46.37870892 | S15: 1920.946346 | T15: 112.1649716 | U15: 1986.732608 | V15: 0 | W15: 0 | Y15: 2025-01-12T08:00:00 | Z15: 2049.828196 | AA15: 0.000625 | AD15: Reserve Margin | AE15: =AE14-AE7 -> 427.8964903
A16: System | B16: Region | C16: Island | D16: - | E16: 2026-01-01T12:00:00 | F16: 1528.745083 | G16: 32.43425362 | H16: 0.0004166666667 | I16: 0.0745770235 | K16: System | L16: Region | M16: Labrador | N16: - | O16: 2026-01-01T12:00:00 | P16: 431.5261994 | Q16: 33.02613217 | R16: 46.6676731 | S16: 1960.271283 | T16: 112.1280589 | U16: 2025.731669 | V16: 0.0004166666667 | W16: 0.0745770235 | Y16: 2025-01-13T18:00:00 | Z16: 1992.821836 | AA16: 0.0004166666667 | AD16: Reserve Margin % | AE16: =AE15/AE7 -> 0.1968073567
A17: System | B17: Region | C17: Island | D17: - | E17: 2026-01-01T13:00:00 | F17: 1529.026594 | G17: 32.44009658 | H17: 0.0004166666667 | I17: 0.09990802948 | K17: System | L17: Region | M17: Labrador | N17: - | O17: 2026-01-01T13:00:00 | P17: 428.5408101 | Q17: 33.1057361 | R17: 46.61999753 | S17: 1957.567404 | T17: 112.1658302 | U17: 2023.113236 | V17: 0.0004166666667 | W17: 0.09990802948 | Y17: 2025-01-14T08:00:00 | Z17: 2059.670315 | AA17: 0.001666666667 | AD17: Reserve Magin w/Loss | AE17: =AE14-AE9 -> 303.6549013
A18: System | B18: Region | C18: Island | D18: - | E18: 2026-01-01T14:00:00 | F18: 1528.620445 | G18: 32.35535013 | H18: 0 | I18: 0 | K18: System | L18: Region | M18: Labrador | N18: - | O18: 2026-01-01T14:00:00 | P18: 405.3626373 | Q18: 33.61272623 | R18: 47.04469316 | S18: 1933.983083 | T18: 113.0127695 | U18: 1999.951159 | V18: 0 | W18: 0 | Y18: 2025-01-15T08:00:00 | Z18: 1949.532881 | AA18: 0 | AD18: Reserve Margin % w/ Loss | AE18: =AE17/AE9 -> 0.1321139892
A19: System | B19: Region | C19: Island | D19: - | E19: 2026-01-01T15:00:00 | F19: 1533.516193 | G19: 32.41898462 | H19: 0.0004166666667 | I19: 0.100751964 | K19: System | L19: Region | M19: Labrador | N19: - | O19: 2026-01-01T15:00:00 | P19: 405.7208814 | Q19: 33.58150854 | R19: 47.41827547 | S19: 1939.237074 | T19: 113.4187686 | U19: 2005.237567 | V19: 0.0004166666667 | W19: 0.100751964 | Y19: 2025-01-16T08:00:00 | Z19: 1830.927416 | AA19: 0
A20: System | B20: Region | C20: Island | D20: - | E20: 2026-01-01T16:00:00 | F20: 1550.686577 | G20: 32.68338282 | H20: 0.0002083333333 | I20: 0.0006874447583 | K20: System | L20: Region | M20: Labrador | N20: - | O20: 2026-01-01T16:00:00 | P20: 405.2047044 | Q20: 33.56272833 | R20: 48.94173664 | S20: 1955.891282 | T20: 115.1878478 | U20: 2022.137393 | V20: 0.0002083333333 | W20: 0.0006874447583 | Y20: 2025-01-17T18:00:00 | Z20: 1931.785432 | AA20: 0.0002083333333 | AD20: Checks
A21: System | B21: Region | C21: Island | D21: - | E21: 2026-01-01T17:00:00 | F21: 1597.57772 | G21: 33.39972016 | H21: 0.0002083333333 | I21: 0.005534925609 | K21: System | L21: Region | M21: Labrador | N21: - | O21: 2026-01-01T17:00:00 | P21: 407.0688168 | Q21: 33.49545635 | R21: 52.86606583 | S21: 2004.646537 | T21: 119.7612423 | U21: 2071.541714 | V21: 0.0002083333333 | W21: 0.005534925609 | Y21: 2025-01-18T18:00:00 | Z21: 2008.30469 | AA21: 0.0004166666667 | AD21: Island Energy (Original) | AE21: 8357
A22: System | B22: Region | C22: Island | D22: - | E22: 2026-01-01T18:00:00 | F22: 1572.504124 | G22: 33.03005997 | H22: 0 | I22: 0 | K22: System | L22: Region | M22: Labrador | N22: - | O22: 2026-01-01T18:00:00 | P22: 404.3223494 | Q22: 33.55691176 | R22: 50.81481192 | S22: 1976.826474 | T22: 117.4017837 | U22: 2043.413446 | V22: 0 | W22: 0 | Y22: 2025-01-19T08:00:00 | Z22: 1891.863534 | AA22: 0 | AD22: Island Energy (Escalated) | AE22: =SUM(F4:F8763)/1000 -> 8582.654319
A23: System | B23: Region | C23: Island | D23: - | E23: 2026-01-01T19:00:00 | F23: 1550.811298 | G23: 32.71996173 | H23: 0.0002083333333 | I23: 0.05252672912 | K23: System | L23: Region | M23: Labrador | N23: - | O23: 2026-01-01T19:00:00 | P23: 415.5991501 | Q23: 33.38116317 | R23: 48.69086339 | S23: 1966.410448 | T23: 114.7919883 | U23: 2032.511573 | V23: 0.0002083333333 | W23: 0.05252672912 | Y23: 2025-01-20T18:00:00 | Z23: 1736.81299 | AA23: 0.0002083333333 | AD23: Escalation Factor Check | AE23: =AE22/AE21 -> 1.027001833
A24: System | B24: Region | C24: Island | D24: - | E24: 2026-01-01T20:00:00 | F24: 1533.396102 | G24: 32.43297208 | H24: 0.0002083333333 | I24: 0.05023162281 | K24: System | L24: Region | M24: Labrador | N24: - | O24: 2026-01-01T20:00:00 | P24: 405.553495 | Q24: 33.62295488 | R24: 47.45188311 | S24: 1938.949597 | T24: 113.5078101 | U24: 2005.005524 | V24: 0.0002083333333 | W24: 0.05023162281 | Y24: 2025-01-21T18:00:00 | Z24: 1830.593883 | AA24: 0.0004166666667
A25: System | B25: Region | C25: Island | D25: - | E25: 2026-01-01T21:00:00 | F25: 1504.613191 | G25: 31.98173332 | H25: 0.0004166666667 | I25: 0.052900374 | K25: System | L25: Region | M25: Labrador | N25: - | O25: 2026-01-01T21:00:00 | P25: 391.8536286 | Q25: 33.93577363 | R25: 45.15374788 | S25: 1896.466819 | T25: 111.0712548 | U25: 1962.384326 | V25: 0.0004166666667 | W25: 0.052900374 | Y25: 2025-01-22T08:00:00 | Z25: 1888.090459 | AA25: 0.0002083333333 | AD25: Island Peak (Original) | AE25: 1704
A26: System | B26: Region | C26: Island | D26: - | E26: 2026-01-01T22:00:00 | F26: 1463.6164 | G26: 31.38252714 | H26: 0 | I26: 0 | K26: System | L26: Region | M26: Labrador | N26: - | O26: 2026-01-01T22:00:00 | P26: 381.6162757 | Q26: 34.17555702 | R26: 42.10954949 | S26: 1845.232675 | T26: 107.6676337 | U26: 1910.79076 | V26: 0 | W26: 0 | Y26: 2025-01-23T18:00:00 | Z26: 1928.209247 | AA26: 0.0004166666667 | AD26: Island Peak (Escalated) | AE26: =MAX(F4:F8763) -> 1750.281025
A27: System | B27: Region | C27: Island | D27: - | E27: 2026-01-01T23:00:00 | F27: 1386.99234 | G27: 30.71463405 | H27: 0.0002083333333 | I27: 0.01495746694 | K27: System | L27: Region | M27: Labrador | N27: - | O27: 2026-01-01T23:00:00 | P27: 376.9922001 | Q27: 34.32137452 | R27: 27.94308033 | S27: 1763.98454 | T27: 92.9790889 | U27: 1829.020548 | V27: 0.0002083333333 | W27: 0.01495746694 | Y27: 2025-01-24T10:00:00 | Z27: 1928.341836 | AA27: 0.0002083333333 | AD27: Escalation Factor Check | AE27: =AE26/AE25 -> 1.027160226
A28: System | B28: Region | C28: Island | D28: - | E28: 2026-01-02 | F28: 1308.094869 | G28: 22.75843619 | H28: 0 | I28: 0 | K28: System | L28: Region | M28: Labrador | N28: - | O28: 2026-01-02 | P28: 387.6799202 | Q28: 34.16840693 | R28: 34.73894075 | S28: 1695.774789 | T28: 91.66578387 | U28: 1752.701632 | V28: 0 | W28: 0 | Y28: 2025-01-25T18:00:00 | Z28: 1826.390319 | AA28: 0.0004166666667
A29: System | B29: Region | C29: Island | D29: - | E29: 2026-01-02T01:00:00 | F29: 1252.424916 | G29: 21.54947932 | H29: 0 | I29: 0 | K29: System | L29: Region | M29: Labrador | N29: - | O29: 2026-01-02T01:00:00 | P29: 386.3088271 | Q29: 34.24101293 | R29: 32.65265512 | S29: 1638.733743 | T29: 88.44314738 | U29: 1694.524235 | V29: 0 | W29: 0 | Y29: 2025-01-26T18:00:00 | Z29: 2038.235731 | AA29: 0.000625 | AD29: Labrador Energy (Original) | AE29: =355.7+381.7+2074.3 -> 2811.7
A30: System | B30: Region | C30: Island | D30: - | E30: 2026-01-02T02:00:00 | F30: 1232.574402 | G30: 21.13590945 | H30: 0 | I30: 0 | K30: System | L30: Region | M30: Labrador | N30: - | O30: 2026-01-02T02:00:00 | P30: 395.3885573 | Q30: 34.0712136 | R30: 31.97615331 | S30: 1627.96296 | T30: 87.18327636 | U30: 1683.170083 | V30: 0 | W30: 0 | Y30: 2025-01-27T17:00:00 | Z30: 2114.360007 | AA30: 0.00375 | AD30: Labrador Energy (Escalated) | AE30: =SUM(P4:P8763)/1000 -> 2887.607728
A31: System | B31: Region | C31: Island | D31: - | E31: 2026-01-02T03:00:00 | F31: 1229.147414 | G31: 21.00639633 | H31: 0 | I31: 0 | K31: System | L31: Region | M31: Labrador | N31: - | O31: 2026-01-02T03:00:00 | P31: 406.1989587 | Q31: 33.86375538 | R31: 31.81920489 | S31: 1635.346372 | T31: 86.68935661 | U31: 1690.216524 | V31: 0 | W31: 0 | Y31: 2025-01-28T08:00:00 | Z31: 1796.126334 | AA31: 0 | AD31: Escalation Factor Check | AE31: =AE30/AE29 -> 1.026997094
A32: System | B32: Region | C32: Island | D32: - | E32: 2026-01-02T04:00:00 | F32: 1237.699888 | G32: 21.24303999 | H32: 0 | I32: 0 | K32: System | L32: Region | M32: Labrador | N32: - | O32: 2026-01-02T04:00:00 | P32: 425.2917751 | Q32: 33.50589841 | R32: 32.08727999 | S32: 1662.991663 | T32: 86.83621839 | U32: 1717.740601 | V32: 0 | W32: 0 | Y32: 2025-01-29T19:00:00 | Z32: 1822.100956 | AA32: 0.0004166666667
A33: System | B33: Region | C33: Island | D33: - | E33: 2026-01-02T05:00:00 | F33: 1255.80206 | G33: 21.63842332 | H33: 0 | I33: 0 | K33: System | L33: Region | M33: Labrador | N33: - | O33: 2026-01-02T05:00:00 | P33: 426.6772819 | Q33: 33.4780307 | R33: 32.73706937 | S33: 1682.479342 | T33: 87.85352338 | U33: 1737.595796 | V33: 0 | W33: 0 | Y33: 2025-01-30T10:00:00 | Z33: 1874.647939 | AA33: 0.0002083333333
A34: System | B34: Region | C34: Island | D34: - | E34: 2026-01-02T06:00:00 | F34: 1293.247601 | G34: 27.45029656 | H34: 0 | I34: 0 | K34: System | L34: Region | M34: Labrador | N34: - | O34: 2026-01-02T06:00:00 | P34: 428.9303943 | Q34: 33.41036658 | R34: 35.54467892 | S34: 1722.177995 | T34: 96.40534207 | U34: 1783.038658 | V34: 0 | W34: 0 | Y34: 2025-01-31T18:00:00 | Z34: 1878.902523 | AA34: 0.0002083333333
A35: System | B35: Region | C35: Island | D35: - | E35: 2026-01-02T07:00:00 | F35: 1361.41781 | G35: 28.82102013 | H35: 0.0002083333333 | I35: 0.01289934837 | K35: System | L35: Region | M35: Labrador | N35: - | O35: 2026-01-02T07:00:00 | P35: 410.9280795 | Q35: 33.7320306 | R35: 39.01341347 | S35: 1772.34589 | T35: 101.5664642 | U35: 1834.898941 | V35: 0.0002083333333 | W35: 0.01289934837 | Y35: 2025-02-01T18:00:00 | Z35: 1760.780356 | AA35: 0
A36: System | B36: Region | C36: Island | D36: - | E36: 2026-01-02T08:00:00 | F36: 1398.87282 | G36: 29.51908137 | H36: 0 | I36: 0 | K36: System | L36: Region | M36: Labrador | N36: - | O36: 2026-01-02T08:00:00 | P36: 413.6339968 | Q36: 33.6470518 | R36: 41.17361343 | S36: 1812.506817 | T36: 104.3397466 | U36: 1875.67295 | V36: 0 | W36: 0 | Y36: 2025-02-02T17:00:00 | Z36: 2037.977166 | AA36: 0.002083333333
A37: System | B37: Region | C37: Island | D37: - | E37: 2026-01-02T09:00:00 | F37: 1438.144245 | G37: 30.2444667 | H37: 0.0002083333333 | I37: 0.02766297823 | K37: System | L37: Region | M37: Labrador | N37: - | O37: 2026-01-02T09:00:00 | P37: 435.2408889 | Q37: 33.2020852 | R37: 43.69730908 | S37: 1873.385134 | T37: 107.143861 | U37: 1936.831686 | V37: 0.0002083333333 | W37: 0.02766297823 | Y37: 2025-02-03T18:00:00 | Z37: 1928.801538 | AA37: 0.0002083333333
A38: System | B38: Region | C38: Island | D38: - | E38: 2026-01-02T10:00:00 | F38: 1438.204996 | G38: 30.21272017 | H38: 0 | I38: 0 | K38: System | L38: Region | M38: Labrador | N38: - | O38: 2026-01-02T10:00:00 | P38: 423.4314941 | Q38: 33.43653248 | R38: 43.7587231 | S38: 1861.63649 | T38: 107.4079758 | U38: 1925.285743 | V38: 0 | W38: 0 | Y38: 2025-02-04T08:00:00 | Z38: 2020.445118 | AA38: 0.0004166666667
A39: System | B39: Region | C39: Island | D39: - | E39: 2026-01-02T11:00:00 | F39: 1445.877013 | G39: 30.35909349 | H39: 0.0002083333333 | I39: 0.03355701234 | K39: System | L39: Region | M39: Labrador | N39: - | O39: 2026-01-02T11:00:00 | P39: 431.6498974 | Q39: 33.28917836 | R39: 44.15036992 | S39: 1877.526911 | T39: 107.7986418 | U39: 1941.175182 | V39: 0.0002083333333 | W39: 0.03355701234 | Y39: 2025-02-05T08:00:00 | Z39: 2020.994986 | AA39: 0.0002083333333
A40: System | B40: Region | C40: Island | D40: - | E40: 2026-01-02T12:00:00 | F40: 1436.890802 | G40: 30.2072573 | H40: 0 | I40: 0 | K40: System | L40: Region | M40: Labrador | N40: - | O40: 2026-01-02T12:00:00 | P40: 428.4892669 | Q40: 33.36042627 | R40: 43.62457996 | S40: 1865.380069 | T40: 107.1922635 | U40: 1928.947752 | V40: 0 | W40: 0 | Y40: 2025-02-06T20:00:00 | Z40: 1870.773458 | AA40: 0.000625
A41: System | B41: Region | C41: Island | D41: - | E41: 2026-01-02T13:00:00 | F41: 1414.409578 | G41: 29.83313979 | H41: 0.0002083333333 | I41: 0.02879370007 | K41: System | L41: Region | M41: Labrador | N41: - | O41: 2026-01-02T13:00:00 | P41: 442.7520365 | Q41: 33.10228174 | R41: 42.02233951 | S41: 1857.161615 | T41: 104.957761 | U41: 1920.097036 | V41: 0.0002083333333 | W41: 0.02879370007 | Y41: 2025-02-07T18:00:00 | Z41: 2017.195412 | AA41: 0.0004166666667
A42: System | B42: Region | C42: Island | D42: - | E42: 2026-01-02T14:00:00 | F42: 1371.549873 | G42: 29.04186628 | H42: 0 | I42: 0 | K42: System | L42: Region | M42: Labrador | N42: - | O42: 2026-01-02T14:00:00 | P42: 441.8560324 | Q42: 33.18110086 | R42: 39.37198119 | S42: 1813.405905 | T42: 101.5949483 | U42: 1875.628873 | V42: 0 | W42: 0 | Y42: 2025-02-08T19:00:00 | Z42: 2045.790872 | AA42: 0.00125
A43: System | B43: Region | C43: Island | D43: - | E43: 2026-01-02T15:00:00 | F43: 1349.880922 | G43: 28.60302799 | H43: 0.000625 | I43: 0.0459242136 | K43: System | L43: Region | M43: Labrador | N43: - | O43: 2026-01-02T15:00:00 | P43: 442.2355855 | Q43: 33.17975864 | R43: 38.27164446 | S43: 1792.116507 | T43: 100.0544311 | U43: 1853.899294 | V43: 0.000625 | W43: 0.0459242136 | Y43: 2025-02-09T08:00:00 | Z43: 2174.18951 | AA43: 0.01
A44: System | B44: Region | C44: Island | D44: - | E44: 2026-01-02T16:00:00 | F44: 1370.259834 | G44: 29.00446394 | H44: 0 | I44: 0 | K44: System | L44: Region | M44: Labrador | N44: - | O44: 2026-01-02T16:00:00 | P44: 443.6810329 | Q44: 33.1261185 | R44: 39.33951801 | S44: 1813.940867 | T44: 101.4701005 | U44: 1876.07145 | V44: 0 | W44: 0 | Y44: 2025-02-10T08:00:00 | Z44: 2098.300531 | AA44: 0.003958333333
A45: System | B45: Region | C45: Island | D45: - | E45: 2026-01-02T17:00:00 | F45: 1471.070151 | G45: 30.77488883 | H45: 0 | I45: 0 | K45: System | L45: Region | M45: Labrador | N45: - | O45: 2026-01-02T17:00:00 | P45: 446.8306236 | Q45: 32.98088319 | R45: 45.86358871 | S45: 1917.900775 | T45: 109.6193607 | U45: 1981.656547 | V45: 0 | W45: 0 | Y45: 2025-02-11T18:00:00 | Z45: 1903.003349 | AA45: 0.0004166666667
A46: System | B46: Region | C46: Island | D46: - | E46: 2026-01-02T18:00:00 | F46: 1454.962006 | G46: 30.54753779 | H46: 0.0004166666667 | I46: 0.06687611781 | K46: System | L46: Region | M46: Labrador | N46: - | O46: 2026-01-02T18:00:00 | P46: 448.4405282 | Q46: 32.92558259 | R46: 44.58640772 | S46: 1903.402534 | T46: 108.0595281 | U46: 1966.875654 | V46: 0.0004166666667 | W46: 0.06687611781 | Y46: 2025-02-12T12:00:00 | Z46: 2112.668368 | AA46: 0.003333333333
A47: System | B47: Region | C47: Island | D47: - | E47: 2026-01-02T19:00:00 | F47: 1417.343515 | G47: 29.91711321 | H47: 0 | I47: 0 | K47: System | L47: Region | M47: Labrador | N47: - | O47: 2026-01-02T19:00:00 | P47: 448.1359047 | Q47: 32.92004654 | R47: 42.21916206 | S47: 1865.479419 | T47: 105.0563218 | U47: 1928.316579 | V47: 0 | W47: 0 | Y47: 2025-02-13T08:00:00 | Z47: 1997.730841 | AA47: 0
A48: System | B48: Region | C48: Island | D48: - | E48: 2026-01-02T20:00:00 | F48: 1408.234796 | G48: 29.71014419 | H48: 0.0002083333333 | I48: 0.02238950102 | K48: System | L48: Region | M48: Labrador | N48: - | O48: 2026-01-02T20:00:00 | P48: 428.7805955 | Q48: 33.30157197 | R48: 41.73747851 | S48: 1837.015392 | T48: 104.7491947 | U48: 1900.027108 | V48: 0.0002083333333 | W48: 0.02238950102 | Y48: 2025-02-14T18:00:00 | Z48: 1959.558746 | AA48: 0.0002083333333
A49: System | B49: Region | C49: Island | D49: - | E49: 2026-01-02T21:00:00 | F49: 1385.840771 | G49: 29.31346409 | H49: 0.0002083333333 | I49: 0.01583160465 | K49: System | L49: Region | M49: Labrador | N49: - | O49: 2026-01-02T21:00:00 | P49: 429.9185832 | Q49: 33.28340898 | R49: 40.39910202 | S49: 1815.759355 | T49: 102.9959751 | U49: 1878.356228 | V49: 0.0002083333333 | W49: 0.01583160465 | Y49: 2025-02-15T18:00:00 | Z49: 1938.395869 | AA49: 0.0004166666667
A50: System | B50: Region | C50: Island | D50: - | E50: 2026-01-02T22:00:00 | F50: 1346.374679 | G50: 28.52742379 | H50: 0 | I50: 0 | K50: System | L50: Region | M50: Labrador | N50: - | O50: 2026-01-02T22:00:00 | P50: 446.8097193 | Q50: 32.97181654 | R50: 38.04426434 | S50: 1793.184398 | T50: 99.54350467 | U50: 1854.683638 | V50: 0 | W50: 0 | Y50: 2025-02-16T18:00:00 | Z50: 1957.164638 | AA50: 0.0002083333333
A51: System | B51: Region | C51: Island | D51: - | E51: 2026-01-02T23:00:00 | F51: 1293.257878 | G51: 22.41974167 | H51: 0 | I51: 0 | K51: System | L51: Region | M51: Labrador | N51: - | O51: 2026-01-02T23:00:00 | P51: 455.6775724 | Q51: 32.81973804 | R51: 34.07426875 | S51: 1748.935451 | T51: 89.31374846 | U51: 1804.17493 | V51: 0 | W51: 0 | Y51: 2025-02-17T09:00:00 | Z51: 1987.476274 | AA51: 0.000625
A52: System | B52: Region | C52: Island | D52: - | E52: 2026-01-03 | F52: 1221.990135 | G52: 26.90156511 | H52: 0 | I52: 0 | K52: System | L52: Region | M52: Labrador | N52: - | O52: 2026-01-03 | P52: 445.7100018 | Q52: 33.02751334 | R52: 23.18621813 | S52: 1667.700137 | T52: 83.11529658 | U52: 1727.629215 | V52: 0 | W52: 0 | Y52: 2025-02-18T08:00:00 | Z52: 2000.61335 | AA52: 0.0002083333333
A53: System | B53: Region | C53: Island | D53: - | E53: 2026-01-03T01:00:00 | F53: 1177.25318 | G53: 26.08697213 | H53: 0 | I53: 0 | K53: System | L53: Region | M53: Labrador | N53: - | O53: 2026-01-03T01:00:00 | P53: 445.2889488 | Q53: 33.03910333 | R53: 21.80028236 | S53: 1622.542129 | T53: 80.92635783 | U53: 1681.668205 | V53: 0 | W53: 0 | Y53: 2025-02-19T08:00:00 | Z53: 1908.577241 | AA53: 0
A54: System | B54: Region | C54: Island | D54: - | E54: 2026-01-03T02:00:00 | F54: 1183.035276 | G54: 26.15802654 | H54: 0 | I54: 0 | K54: System | L54: Region | M54: Labrador | N54: - | O54: 2026-01-03T02:00:00 | P54: 454.8074898 | Q54: 32.83393192 | R54: 21.99991155 | S54: 1637.842765 | T54: 80.99187001 | U54: 1696.834724 | V54: 0 | W54: 0 | Y54: 2025-02-20T09:00:00 | Z54: 1799.780995 | AA54: 0
A55: System | B55: Region | C55: Island | D55: - | E55: 2026-01-03T03:00:00 | F55: 1187.748639 | G55: 26.24274863 | H55: 0 | I55: 0 | K55: System | L55: Region | M55: Labrador | N55: - | O55: 2026-01-03T03:00:00 | P55: 434.6350676 | Q55: 33.22021044 | R55: 22.13109373 | S55: 1622.383706 | T55: 81.5940528 | U55: 1681.846665 | V55: 0 | W55: 0 | Y55: 2025-02-21T19:00:00 | Z55: 1980.811819 | AA55: 0.0004166666667
A56: System | B56: Region | C56: Island | D56: - | E56: 2026-01-03T04:00:00 | F56: 1202.001988 | G56: 26.56490808 | H56: 0 | I56: 0 | K56: System | L56: Region | M56: Labrador | N56: - | O56: 2026-01-03T04:00:00 | P56: 425.652931 | Q56: 33.363054 | R56: 22.54895761 | S56: 1627.654919 | T56: 82.47691969 | U56: 1687.582881 | V56: 0 | W56: 0 | Y56: 2025-02-22T10:00:00 | Z56: 1939.414662 | AA56: 0
A57: System | B57: Region | C57: Island | D57: - | E57: 2026-01-03T05:00:00 | F57: 1218.838972 | G57: 26.85378356 | H57: 0 | I57: 0 | K57: System | L57: Region | M57: Labrador | N57: - | O57: 2026-01-03T05:00:00 | P57: 429.1533677 | Q57: 33.24792226 | R57: 23.10505492 | S57: 1647.992339 | T57: 83.20676074 | U57: 1708.094045 | V57: 0 | W57: 0 | Y57: 2025-02-23T18:00:00 | Z57: 1801.880926 | AA57: 0
A58: System | B58: Region | C58: Island | D58: - | E58: 2026-01-03T06:00:00 | F58: 1255.902129 | G58: 29.02812202 | H58: 0 | I58: 0 | K58: System | L58: Region | M58: Labrador | N58: - | O58: 2026-01-03T06:00:00 | P58: 429.9909855 | Q58: 33.20525076 | R58: 28.21384811 | S58: 1685.893115 | T58: 90.44722089 | U58: 1748.126487 | V58: 0 | W58: 0 | Y58: 2025-02-24T19:00:00 | Z58: 2031.265617 | AA58: 0.000625
A59: System | B59: Region | C59: Island | D59: - | E59: 2026-01-03T07:00:00 | F59: 1316.341553 | G59: 29.64685804 | H59: 0 | I59: 0 | K59: System | L59: Region | M59: Labrador | N59: - | O59: 2026-01-03T07:00:00 | P59: 432.8603222 | Q59: 33.1064033 | R59: 31.9416293 | S59: 1749.201875 | T59: 94.69489063 | U59: 1811.955136 | V59: 0 | W59: 0 | Y59: 2025-02-25T08:00:00 | Z59: 2097.035033 | AA59: 0.003541666667
A60: System | B60: Region | C60: Island | D60: - | E60: 2026-01-03T08:00:00 | F60: 1371.811384 | G60: 30.21017643 | H60: 0 | I60: 0 | K60: System | L60: Region | M60: Labrador | N60: - | O60: 2026-01-03T08:00:00 | P60: 444.9511026 | Q60: 32.82745333 | R60: 35.55351127 | S60: 1816.762487 | T60: 98.59114103 | U60: 1879.800117 | V60: 0 | W60: 0 | Y60: 2025-02-26T08:00:00 | Z60: 1905.513986 | AA60: 0.0004166666667
A61: System | B61: Region | C61: Island | D61: - | E61: 2026-01-03T09:00:00 | F61: 1448.716614 | G61: 31.12819071 | H61: 0 | I61: 0 | K61: System | L61: Region | M61: Labrador | N61: - | O61: 2026-01-03T09:00:00 | P61: 446.5164269 | Q61: 32.73392204 | R61: 41.39685401 | S61: 1895.233041 | T61: 105.2589668 | U61: 1959.095153 | V61: 0 | W61: 0 | Y61: 2025-02-27T20:00:00 | Z61: 1874.836363 | AA61: 0.0002083333333
A62: System | B62: Region | C62: Island | D62: - | E62: 2026-01-03T10:00:00 | F62: 1453.822505 | G62: 31.24028198 | H62: 0.0004166666667 | I62: 0.1001069427 | K62: System | L62: Region | M62: Labrador | N62: - | O62: 2026-01-03T10:00:00 | P62: 446.8557893 | Q62: 32.68012095 | R62: 41.77067237 | S62: 1900.678295 | T62: 105.6910753 | U62: 1964.598698 | V62: 0.0004166666667 | W62: 0.1001069427 | Y62: 2025-02-28T19:00:00 | Z62: 1983.68581 | AA62: 0.0002083333333
A63: System | B63: Region | C63: Island | D63: - | E63: 2026-01-03T11:00:00 | F63: 1446.136872 | G63: 31.11220549 | H63: 0.0002083333333 | I63: 0.01574863918 | K63: System | L63: Region | M63: Labrador | N63: - | O63: 2026-01-03T11:00:00 | P63: 414.5073877 | Q63: 33.28696246 | R63: 41.29737675 | S63: 1860.644259 | T63: 105.6965447 | U63: 1925.043427 | V63: 0.0002083333333 | W63: 0.01574863918 | Y63: 2025-03-01T10:00:00 | Z63: 1870.976068 | AA63: 0
A64: System | B64: Region | C64: Island | D64: - | E64: 2026-01-03T12:00:00 | F64: 1455.400822 | G64: 31.21513071 | H64: 0 | I64: 0 | K64: System | L64: Region | M64: Labrador | N64: - | O64: 2026-01-03T12:00:00 | P64: 413.7984162 | Q64: 33.31273707 | R64: 42.21242091 | S64: 1869.199238 | T64: 106.7402887 | U64: 1933.727106 | V64: 0 | W64: 0 | Y64: 2025-03-02T09:00:00 | Z64: 2000.323495 | AA64: 0.0004166666667
A65: System | B65: Region | C65: Island | D65: - | E65: 2026-01-03T13:00:00 | F65: 1454.985853 | G65: 31.23624341 | H65: 0 | I65: 0 | K65: System | L65: Region | M65: Labrador | N65: - | O65: 2026-01-03T13:00:00 | P65: 431.8857509 | Q65: 32.97160506 | R65: 41.94689213 | S65: 1886.871604 | T65: 106.1547406 | U65: 1951.079453 | V65: 0 | W65: 0 | Y65: 2025-03-03T20:00:00 | Z65: 2028.934741 | AA65: 0.0004166666667
A66: System | B66: Region | C66: Island | D66: - | E66: 2026-01-03T14:00:00 | F66: 1479.321159 | G66: 31.558291 | H66: 0.0004166666667 | I66: 0.07695188875 | K66: System | L66: Region | M66: Labrador | N66: - | O66: 2026-01-03T14:00:00 | P66: 431.3458046 | Q66: 32.98781429 | R66: 43.86096419 | S66: 1910.666963 | T66: 108.4070695 | U66: 1975.213069 | V66: 0.0004166666667 | W66: 0.07695188875 | Y66: 2025-03-04T07:00:00 | Z66: 2019.655842 | AA66: 0.000625
A67: System | B67: Region | C67: Island | D67: - | E67: 2026-01-03T15:00:00 | F67: 1484.3253 | G67: 31.57456533 | H67: 0.0004166666667 | I67: 0.01662976735 | K67: System | L67: Region | M67: Labrador | N67: - | O67: 2026-01-03T15:00:00 | P67: 423.8678193 | Q67: 33.13523029 | R67: 44.50815865 | S67: 1908.193119 | T67: 109.2179543 | U67: 1972.902915 | V67: 0.0004166666667 | W67: 0.01662976735 | Y67: 2025-03-05T20:00:00 | Z67: 1951.548439 | AA67: 0
A68: System | B68: Region | C68: Island | D68: - | E68: 2026-01-03T16:00:00 | F68: 1532.463358 | G68: 32.22568028 | H68: 0.0002083333333 | I68: 0.05052389664 | K68: System | L68: Region | M68: Labrador | N68: - | O68: 2026-01-03T16:00:00 | P68: 428.2209455 | Q68: 32.93203519 | R68: 48.96276372 | S68: =F68+P68 -> 1960.684304 | T68: 114.1204792 | U68: =F68+G68+P68+Q68 -> 2025.842019 | V68: =H68 -> 0.0002083333333 | W68: 0.05052389664 | Y68: 2025-03-06T08:00:00 | Z68: 2127.721682 | AA68: 0.005416666667
A69: System | B69: Region | C69: Island | D69: - | E69: 2026-01-03T17:00:00 | F69: 1670.709599 | G69: 35.31968293 | H69: 0.002708333333 | I69: 0.1445107848 | K69: System | L69: Region | M69: Labrador | N69: - | O69: 2026-01-03T17:00:00 | P69: 452.9581784 | Q69: 32.38700597 | R69: 53.28434639 | S69: 2123.667777 | T69: =G69+Q69+R69 -> 120.9910353 | U69: 2191.374466 | V69: 0.002708333333 | W69: 0.1445107848 | Y69: 2025-03-07T09:00:00 | Z69: =MAX(OFFSET($S$4:$S$27,(ROW()-4)*24,0)) -> 1971.603068 | AA69: =VLOOKUP(Z69,OFFSET($S$4:$V$27,(ROW()-4)*24,0),4,FALSE) -> 0.0004166666667
A70: System | B70: Region | C70: Island | D70: - | E70: 2026-01-03T18:00:00 | F70: 1653.252322 | G70: 35.23397861 | H70: 0.00375 | I70: 0.1837285537 | K70: System | L70: Region | M70: Labrador | N70: - | O70: 2026-01-03T18:00:00 | P70: 472.6949555 | Q70: 31.95955067 | R70: 50.92348517 | S70: 2125.947278 | T70: 118.1170145 | U70: 2193.140807 | V70: 0.00375 | W70: 0.1837285537 | Y70: 2025-03-08T08:00:00 | Z70: 1823.025857 | AA70: 0.0002083333333
A71: System | B71: Region | C71: Island | D71: - | E71: 2026-01-03T19:00:00 | F71: 1658.4406 | G71: 35.14252959 | H71: 0.002291666667 | I71: 0.06915801835 | K71: System | L71: Region | M71: Labrador | N71: - | O71: 2026-01-03T19:00:00 | P71: 462.248412 | Q71: 32.19476183 | R71: 52.05792548 | S71: 2120.689012 | T71: 119.3952169 | U71: 2188.026303 | V71: 0.002291666667 | W71: 0.06915801835 | Y71: 2025-03-09T07:00:00 | Z71: 1911.932111 | AA71: 0
A72: System | B72: Region | C72: Island | D72: - | E72: 2026-01-03T20:00:00 | F72: 1686.233551 | G72: 35.58846541 | H72: 0.004791666667 | I72: 0.2047301539 | K72: System | L72: Region | M72: Labrador | N72: - | O72: 2026-01-03T20:00:00 | P72: 441.2199318 | Q72: 32.61480027 | R72: 54.47024008 | S72: 2127.453482 | T72: 122.6735058 | U72: 2195.656748 | V72: 0.004791666667 | W72: 0.2047301539 | Y72: 2025-03-10T07:00:00 | Z72: 2100.411758 | AA72: 0.003333333333
A73: System | B73: Region | C73: Island | D73: - | E73: 2026-01-03T21:00:00 | F73: 1670.594428 | G73: 35.31703058 | H73: 0.00375 | I73: 0.1095864206 | K73: System | L73: Region | M73: Labrador | N73: - | O73: 2026-01-03T21:00:00 | P73: 451.0376156 | Q73: 32.44327322 | R73: 53.38031695 | S73: 2121.632044 | T73: 121.1406208 | U73: 2189.392348 | V73: 0.00375 | W73: 0.1095864206 | Y73: 2025-03-11T07:00:00 | Z73: 2029.287033 | AA73: 0.0004166666667
A74: System | B74: Region | C74: Island | D74: - | E74: 2026-01-03T22:00:00 | F74: 1639.791729 | G74: 34.34579404 | H74: 0.001458333333 | I74: 0.1202946782 | K74: System | L74: Region | M74: Labrador | N74: - | O74: 2026-01-03T22:00:00 | P74: 450.0158291 | Q74: 32.48539335 | R74: 53.03823334 | S74: 2089.807558 | T74: 119.8694207 | U74: 2156.638745 | V74: 0.001458333333 | W74: 0.1202946782 | Y74: 2025-03-12T07:00:00 | Z74: 1953.386432 | AA74: 0
A75: System | B75: Region | C75: Island | D75: - | E75: 2026-01-03T23:00:00 | F75: 1571.025921 | G75: 30.92180248 | H75: 0.0002083333333 | I75: 0.05260252933 | K75: System | L75: Region | M75: Labrador | N75: - | O75: 2026-01-03T23:00:00 | P75: 459.8030227 | Q75: 32.31453106 | R75: 40.85213601 | S75: 2030.828944 | T75: 104.0884695 | U75: 2094.065277 | V75: 0.0002083333333 | W75: 0.05260252933 | Y75: 2025-03-13T07:00:00 | Z75: 2061.227739 | AA75: 0.001875
A76: System | B76: Region | C76: Island | D76: - | E76: 2026-01-04 | F76: 1514.887056 | G76: 36.43955975 | H76: 0 | I76: 0 | K76: System | L76: Region | M76: Labrador | N76: - | O76: 2026-01-04 | P76: 467.0293314 | Q76: 32.21876128 | R76: 29.51484157 | S76: 1981.916387 | T76: 98.1731626 | U76: 2050.574708 | V76: 0 | W76: 0 | Y76: 2025-03-14T10:00:00 | Z76: 1952.437043 | AA76: 0.0002083333333
A77: System | B77: Region | C77: Island | D77: - | E77: 2026-01-04T01:00:00 | F77: 1427.226952 | G77: 37.15522394 | H77: 0.0002083333333 | I77: 0.01871610548 | K77: System | L77: Region | M77: Labrador | N77: - | O77: 2026-01-04T01:00:00 | P77: 456.1801668 | Q77: 32.46821015 | R77: 23.3365317 | S77: 1883.407119 | T77: 92.9599658 | U77: 1953.030553 | V77: 0.0002083333333 | W77: 0.01871610548 | Y77: 2025-03-15T08:00:00 | Z77: 1874.795452 | AA77: 0
A78: System | B78: Region | C78: Island | D78: - | E78: 2026-01-04T02:00:00 | F78: 1411.79379 | G78: 37.24547058 | H78: 0.0002083333333 | I78: 0.01403772236 | K78: System | L78: Region | M78: Labrador | N78: - | O78: 2026-01-04T02:00:00 | P78: 463.6340562 | Q78: 32.36614224 | R78: 22.38119251 | S78: 1875.427846 | T78: 91.99280534 | U78: 1945.039459 | V78: 0.0002083333333 | W78: 0.01403772236 | Y78: 2025-03-16T10:00:00 | Z78: 1897.304455 | AA78: 0
A79: System | B79: Region | C79: Island | D79: - | E79: 2026-01-04T03:00:00 | F79: 1445.729892 | G79: 36.99630403 | H79: 0 | I79: 0 | K79: System | L79: Region | M79: Labrador | N79: - | O79: 2026-01-04T03:00:00 | P79: 463.199359 | Q79: 32.39174266 | R79: 24.59781801 | S79: 1908.929251 | T79: 93.98586471 | U79: 1978.317298 | V79: 0 | W79: 0 | Y79: 2025-03-17T08:00:00 | Z79: 1745.343228 | AA79: 0.0002083333333
A80: System | B80: Region | C80: Island | D80: - | E80: 2026-01-04T04:00:00 | F80: 1464.688669 | G80: 36.73571851 | H80: 0.0002083333333 | I80: 0.04035092171 | K80: System | L80: Region | M80: Labrador | N80: - | O80: 2026-01-04T04:00:00 | P80: 462.6767431 | Q80: 32.38846395 | R80: 26.00083692 | S80: 1927.365412 | T80: 95.12501938 | U80: 1996.489594 | V80: 0.0002083333333 | W80: 0.04035092171 | Y80: 2025-03-18T07:00:00 | Z80: 1755.333856 | AA80: 0
A81: System | B81: Region | C81: Island | D81: - | E81: 2026-01-04T05:00:00 | F81: 1459.945944 | G81: 36.81720135 | H81: 0.0002083333333 | I81: 0.03282897934 | K81: System | L81: Region | M81: Labrador | N81: - | O81: 2026-01-04T05:00:00 | P81: 461.9972141 | Q81: 32.3900711 | R81: 25.63354892 | S81: 1921.943158 | T81: 94.84082136 | U81: 1991.15043 | V81: 0.0002083333333 | W81: 0.03282897934 | Y81: 2025-03-19T07:00:00 | Z81: 1700.615002 | AA81: 0
A82: System | B82: Region | C82: Island | D82: - | E82: 2026-01-04T06:00:00 | F82: 1496.451513 | G82: 34.40764696 | H82: 0.0004166666667 | I82: 0.04140987441 | K82: System | L82: Region | M82: Labrador | N82: - | O82: 2026-01-04T06:00:00 | P82: 462.9921218 | Q82: 32.35868658 | R82: 38.70845712 | S82: 1959.443635 | T82: 105.4747907 | U82: 2026.209969 | V82: 0.0004166666667 | W82: 0.04140987441 | Y82: 2025-03-20T07:00:00 | Z82: 1851.05585 | AA82: 0
A83: System | B83: Region | C83: Island | D83: - | E83: 2026-01-04T07:00:00 | F83: 1530.095097 | G83: 34.67886544 | H83: 0.0002083333333 | I83: 0.01014671048 | K83: System | L83: Region | M83: Labrador | N83: - | O83: 2026-01-04T07:00:00 | P83: 454.0597138 | Q83: 32.51092115 | R83: 40.2486915 | S83: 1984.154811 | T83: 107.4384781 | U83: 2051.344598 | V83: 0.0002083333333 | W83: 0.01014671048 | Y83: 2025-03-21T08:00:00 | Z83: 1709.926197 | AA83: 0.0002083333333
A84: System | B84: Region | C84: Island | D84: - | E84: 2026-01-04T08:00:00 | F84: 1558.341019 | G84: 35.13234288 | H84: 0.0002083333333 | I84: 0.004197587102 | K84: System | L84: Region | M84: Labrador | N84: - | O84: 2026-01-04T08:00:00 | P84: 454.5513856 | Q84: 32.4768011 | R84: 41.51586299 | S84: 2012.892404 | T84: 109.125007 | U84: 2080.501548 | V84: 0.0002083333333 | W84: 0.004197587102 | Y84: 2025-03-22T10:00:00 | Z84: 1839.543412 | AA84: 0.0002083333333
A85: System | B85: Region | C85: Island | D85: - | E85: 2026-01-04T09:00:00 | F85: 1636.774244 | G85: 36.6896872 | H85: 0.0025 | I85: 0.1602911381 | K85: System | L85: Region | M85: Labrador | N85: - | O85: 2026-01-04T09:00:00 | P85: 454.6004147 | Q85: 32.46230608 | R85: 45.63397895 | S85: 2091.374658 | T85: 114.7859722 | U85: 2160.526652 | V85: 0.0025 | W85: 0.1602911381 | Y85: 2025-03-23T19:00:00 | Z85: 1920.097027 | AA85: 0.0002083333333
A86: System | B86: Region | C86: Island | D86: - | E86: 2026-01-04T10:00:00 | F86: 1650.705302 | G86: 37.08157005 | H86: 0.003125 | I86: 0.1505151848 | K86: System | L86: Region | M86: Labrador | N86: - | O86: 2026-01-04T10:00:00 | P86: 466.7517424 | Q86: 32.17831563 | R86: 45.95228148 | S86: 2117.457045 | T86: 115.2121671 | U86: 2186.71693 | V86: 0.003125 | W86: 0.1505151848 | Y86: 2025-03-24T07:00:00 | Z86: 1913.752043 | AA86: 0
A87: System | B87: Region | C87: Island | D87: - | E87: 2026-01-04T11:00:00 | F87: 1632.470543 | G87: 36.60546866 | H87: 0.001666666667 | I87: 0.1310791473 | K87: System | L87: Region | M87: Labrador | N87: - | O87: 2026-01-04T11:00:00 | P87: 455.0919006 | Q87: 32.4380605 | R87: 45.49272916 | S87: 2087.562444 | T87: 114.5362583 | U87: 2156.605973 | V87: 0.001666666667 | W87: 0.1310791473 | Y87: 2025-03-25T07:00:00 | Z87: 1863.520892 | AA87: 0.0004166666667
A88: System | B88: Region | C88: Island | D88: - | E88: 2026-01-04T12:00:00 | F88: 1607.211162 | G88: 36.02500487 | H88: 0.000625 | I88: 0.07579757919 | K88: System | L88: Region | M88: Labrador | N88: - | O88: 2026-01-04T12:00:00 | P88: 442.161189 | Q88: 32.78944916 | R88: 44.26690209 | S88: 2049.372351 | T88: 113.0813561 | U88: 2118.186805 | V88: 0.000625 | W88: 0.07579757919 | Y88: 2025-03-26T07:00:00 | Z88: 1722.029981 | AA88: 0
A89: System | B89: Region | C89: Island | D89: - | E89: 2026-01-04T13:00:00 | F89: 1590.875497 | G89: 35.69684208 | H89: 0.0002083333333 | I89: 0.06464500113 | K89: System | L89: Region | M89: Labrador | N89: - | O89: 2026-01-04T13:00:00 | P89: 450.1479161 | Q89: 32.65800513 | R89: 43.29158749 | S89: 2041.023413 | T89: 111.6464347 | U89: 2109.378261 | V89: 0.0002083333333 | W89: 0.06464500113 | Y89: 2025-03-27T07:00:00 | Z89: 1563.011431 | AA89: 0
A90: System | B90: Region | C90: Island | D90: - | E90: 2026-01-04T14:00:00 | F90: 1587.825315 | G90: 35.54170586 | H90: 0.000625 | I90: 0.02463108196 | K90: System | L90: Region | M90: Labrador | N90: - | O90: 2026-01-04T14:00:00 | P90: 439.0827639 | Q90: 32.85758306 | R90: 43.50009602 | S90: 2026.908079 | T90: 111.8993849 | U90: 2095.307368 | V90: 0.000625 | W90: 0.02463108196 | Y90: 2025-03-28T19:00:00 | Z90: 1591.893559 | AA90: 0
A91: System | B91: Region | C91: Island | D91: - | E91: 2026-01-04T15:00:00 | F91: 1599.819887 | G91: 35.78899311 | H91: 0.0008333333333 | I91: 0.1125985297 | K91: System | L91: Region | M91: Labrador | N91: - | O91: 2026-01-04T15:00:00 | P91: 439.6136735 | Q91: 32.83781091 | R91: 44.08719178 | S91: 2039.433561 | T91: 112.7139958 | U91: 2108.060365 | V91: 0.0008333333333 | W91: 0.1125985297 | Y91: 2025-03-29T20:00:00 | Z91: 1604.253823 | AA91: 0
A92: System | B92: Region | C92: Island | D92: - | E92: 2026-01-04T16:00:00 | F92: 1632.769306 | G92: 36.49829427 | H92: 0.001875 | I92: 0.08187630406 | K92: System | L92: Region | M92: Labrador | N92: - | O92: 2026-01-04T16:00:00 | P92: 439.1504659 | Q92: 32.83032586 | R92: 45.80348831 | S92: 2071.919772 | T92: 115.1321084 | U92: 2141.248392 | V92: 0.001875 | W92: 0.08187630406 | Y92: 2025-03-30T07:00:00 | Z92: 1768.554139 | AA92: 0
A93: System | B93: Region | C93: Island | D93: - | E93: 2026-01-04T17:00:00 | F93: 1688.505091 | G93: 37.30036491 | H93: 0.004166666667 | I93: 0.2910211465 | K93: System | L93: Region | M93: Labrador | N93: - | O93: 2026-01-04T17:00:00 | P93: 413.4980354 | Q93: 33.24323866 | R93: 50.14388907 | S93: 2102.003127 | T93: 120.6874926 | U93: 2172.54673 | V93: 0.004166666667 | W93: 0.2910211465 | Y93: 2025-03-31T07:00:00 | Z93: 1712.026034 | AA93: 0.0004166666667
A94: System | B94: Region | C94: Island | D94: - | E94: 2026-01-04T18:00:00 | F94: 1668.692766 | G94: 36.88419269 | H94: 0.002291666667 | I94: 0.05193919 | K94: System | L94: Region | M94: Labrador | N94: - | O94: 2026-01-04T18:00:00 | P94: 382.6554003 | Q94: 33.88738847 | R94: 49.32604665 | S94: 2051.348166 | T94: 120.0976278 | U94: 2122.119748 | V94: 0.002291666667 | W94: 0.05193919 | Y94: 2025-04-01T07:00:00 | Z94: 1619.17928 | AA94: 0
A95: System | B95: Region | C95: Island | D95: - | E95: 2026-01-04T19:00:00 | F95: 1648.802068 | G95: 36.57499907 | H95: 0.0008333333333 | I95: 0.1620454449 | K95: System | L95: Region | M95: Labrador | N95: - | O95: 2026-01-04T19:00:00 | P95: 374.2835421 | Q95: 34.08243518 | R95: 48.03246929 | S95: 2023.08561 | T95: 118.6899035 | U95: 2093.743044 | V95: 0.0008333333333 | W95: 0.1620454449 | Y95: 2025-04-02T07:00:00 | Z95: 1647.980662 | AA95: 0.0002083333333
A96: System | B96: Region | C96: Island | D96: - | E96: 2026-01-04T20:00:00 | F96: 1647.826441 | G96: 36.52204615 | H96: 0.001041666667 | I96: 0.05387498162 | K96: System | L96: Region | M96: Labrador | N96: - | O96: 2026-01-04T20:00:00 | P96: 366.2579614 | Q96: 34.27642378 | R96: 47.88453327 | S96: 2014.084402 | T96: 118.6830032 | U96: 2084.882872 | V96: 0.001041666667 | W96: 0.05387498162 | Y96: 2025-04-03T08:00:00 | Z96: 1608.823657 | AA96: 0.0002083333333
A97: System | B97: Region | C97: Island | D97: - | E97: 2026-01-04T21:00:00 | F97: 1617.04604 | G97: 35.9917596 | H97: 0.0002083333333 | I97: 0.06546056255 | K97: System | L97: Region | M97: Labrador | N97: - | O97: 2026-01-04T21:00:00 | P97: 364.7883023 | Q97: 34.3326785 | R97: 45.87627527 | S97: 1981.834343 | T97: 116.2007134 | U97: 2052.158781 | V97: 0.0002083333333 | W97: 0.06546056255 | Y97: 2025-04-04T09:00:00 | Z97: 1526.321289 | AA97: 0
A98: System | B98: Region | C98: Island | D98: - | E98: 2026-01-04T22:00:00 | F98: 1547.488163 | G98: 34.81736367 | H98: 0.0002083333333 | I98: 0.006873642369 | K98: System | L98: Region | M98: Labrador | N98: - | O98: 2026-01-04T22:00:00 | P98: 367.7124568 | Q98: 34.33112832 | R98: 41.5482909 | S98: 1915.20062 | T98: 110.6967829 | U98: 1984.349112 | V98: 0.0002083333333 | W98: 0.006873642369 | Y98: 2025-04-05T20:00:00 | Z98: 1714.052108 | AA98: 0.0004166666667
A99: System | B99: Region | C99: Island | D99: - | E99: 2026-01-04T23:00:00 | F99: 1455.311739 | G99: 36.85128046 | H99: 0 | I99: 0 | K99: System | L99: Region | M99: Labrador | N99: - | O99: 2026-01-04T23:00:00 | P99: 372.9196025 | Q99: 34.29916004 | R99: 25.25711558 | S99: 1828.231341 | T99: 96.40755608 | U99: 1899.381782 | V99: 0 | W99: 0 | Y99: 2025-04-06T07:00:00 | Z99: 1798.305249 | AA99: 0
A100: System | B100: Region | C100: Island | D100: - | E100: 2026-01-05 | F100: 1366.703498 | G100: 22.89634998 | H100: 0 | I100: 0 | K100: System | L100: Region | M100: Labrador | N100: - | O100: 2026-01-05 | P100: 362.7498305 | Q100: 33.6886228 | R100: 40.52848132 | S100: 1729.453329 | T100: 97.1134541 | U100: 1786.038302 | V100: 0 | W100: 0 | Y100: 2025-04-07T07:00:00 | Z100: 1852.106639 | AA100: 0
A101: System | B101: Region | C101: Island | D101: - | E101: 2026-01-05T01:00:00 | F101: 1318.813151 | G101: 21.76756849 | H101: 0 | I101: 0 | K101: System | L101: Region | M101: Labrador | N101: - | O101: 2026-01-05T01:00:00 | P101: 367.4133746 | Q101: 33.6510446 | R101: 38.65968884 | S101: 1686.226525 | T101: 94.07830193 | U101: 1741.645138 | V101: 0 | W101: 0 | Y101: 2025-04-08T07:00:00 | Z101: 1806.468706 | AA101: 0
A102: System | B102: Region | C102: Island | D102: - | E102: 2026-01-05T02:00:00 | F102: 1292.46327 | G102: 21.11318357 | H102: 0 | I102: 0 | K102: System | L102: Region | M102: Labrador | N102: - | O102: 2026-01-05T02:00:00 | P102: 361.2669528 | Q102: 33.84106502 | R102: 37.62660951 | S102: 1653.730223 | T102: 92.5808581 | U102: 1708.684472 | V102: 0 | W102: 0 | Y102: 2025-04-09T07:00:00 | Z102: 1824.904233 | AA102: 0
A103: System | B103: Region | C103: Island | D103: - | E103: 2026-01-05T03:00:00 | F103: 1278.02761 | G103: 20.72134266 | H103: 0 | I103: 0 | K103: System | L103: Region | M103: Labrador | N103: - | O103: 2026-01-05T03:00:00 | P103: 384.5910852 | Q103: 33.61996517 | R103: 37.04079504 | S103: 1662.618695 | T103: 91.38210286 | U103: 1716.960003 | V103: 0 | W103: 0 | Y103: 2025-04-10T07:00:00 | Z103: 1789.546061 | AA103: 0.0002083333333
A104: System | B104: Region | C104: Island | D104: - | E104: 2026-01-05T04:00:00 | F104: 1272.638322 | G104: 20.5985848 | H104: 0 | I104: 0 | K104: System | L104: Region | M104: Labrador | N104: - | O104: 2026-01-05T04:00:00 | P104: 374.5334374 | Q104: 33.73251649 | R104: 36.87409879 | S104: 1647.171759 | T104: 91.20520009 | U104: 1701.502861 | V104: 0 | W104: 0 | Y104: 2025-04-11T09:00:00 | Z104: 1641.380247 | AA104: 0.0002083333333
A105: System | B105: Region | C105: Island | D105: - | E105: 2026-01-05T05:00:00 | F105: 1272.459675 | G105: 20.59953531 | H105: 0 | I105: 0 | K105: System | L105: Region | M105: Labrador | N105: - | O105: 2026-01-05T05:00:00 | P105: 366.6542807 | Q105: 33.90495813 | R105: 36.87638449 | S105: 1639.113956 | T105: 91.38087793 | U105: 1693.618449 | V105: 0 | W105: 0 | Y105: 2025-04-12T09:00:00 | Z105: 1531.29026 | AA105: 0
A106: System | B106: Region | C106: Island | D106: - | E106: 2026-01-05T06:00:00 | F106: 1302.602374 | G106: 26.99070005 | H106: 0.0002083333333 | I106: 0.0001606308496 | K106: System | L106: Region | M106: Labrador | N106: - | O106: 2026-01-05T06:00:00 | P106: 368.3235177 | Q106: 33.80866057 | R106: 39.01042931 | S106: 1670.925891 | T106: 99.80978993 | U106: 1731.725252 | V106: 0.0002083333333 | W106: 0.0001606308496 | Y106: 2025-04-13T07:00:00 | Z106: 1622.740646 | AA106: 0
A107: System | B107: Region | C107: Island | D107: - | E107: 2026-01-05T07:00:00 | F107: 1397.843815 | G107: 28.9801632 | H107: 0 | I107: 0 | K107: System | L107: Region | M107: Labrador | N107: - | O107: 2026-01-05T07:00:00 | P107: 372.8312929 | Q107: 33.68791436 | R107: 43.77714294 | S107: 1770.675108 | T107: 106.4452205 | U107: 1833.343185 | V107: 0 | W107: 0 | Y107: 2025-04-14T07:00:00 | Z107: 1382.737855 | AA107: 0
A108: System | B108: Region | C108: Island | D108: - | E108: 2026-01-05T08:00:00 | F108: 1438.25677 | G108: 29.78048647 | H108: 0 | I108: 0 | K108: System | L108: Region | M108: Labrador | N108: - | O108: 2026-01-05T08:00:00 | P108: 368.8267196 | Q108: 33.72434044 | R108: 46.15096566 | S108: 1807.083489 | T108: 109.6557926 | U108: 1870.588316 | V108: 0 | W108: 0 | Y108: 2025-04-15T07:00:00 | Z108: 1417.457101 | AA108: 0
A109: System | B109: Region | C109: Island | D109: - | E109: 2026-01-05T09:00:00 | F109: 1423.745806 | G109: 29.49190832 | H109: 0 | I109: 0 | K109: System | L109: Region | M109: Labrador | N109: - | O109: 2026-01-05T09:00:00 | P109: 376.4484891 | Q109: 33.28224042 | R109: 45.23257544 | S109: 1800.194295 | T109: 108.0067242 | U109: 1862.968444 | V109: 0 | W109: 0 | Y109: 2025-04-16T20:00:00 | Z109: 1763.000749 | AA109: 0
A110: System | B110: Region | C110: Island | D110: - | E110: 2026-01-05T10:00:00 | F110: 1421.124307 | G110: 29.42756525 | H110: 0 | I110: 0 | K110: System | L110: Region | M110: Labrador | N110: - | O110: 2026-01-05T10:00:00 | P110: 369.875925 | Q110: 33.33413329 | R110: 45.19458889 | S110: 1791.000232 | T110: 107.9562874 | U110: 1853.761931 | V110: 0 | W110: 0 | Y110: 2025-04-17T07:00:00 | Z110: 1794.076536 | AA110: 0
A111: System | B111: Region | C111: Island | D111: - | E111: 2026-01-05T11:00:00 | F111: 1410.768967 | G111: 29.21430415 | H111: 0.0002083333333 | I111: 0.01874167054 | K111: System | L111: Region | M111: Labrador | N111: - | O111: 2026-01-05T11:00:00 | P111: 369.3666933 | Q111: 33.36316294 | R111: 44.66858793 | S111: 1780.135661 | T111: 107.246055 | U111: 1842.713128 | V111: 0.0002083333333 | W111: 0.01874167054 | Y111: 2025-04-18T10:00:00 | Z111: 1420.35802 | AA111: 0
A112: System | B112: Region | C112: Island | D112: - | E112: 2026-01-05T12:00:00 | F112: 1393.130811 | G112: 28.87608831 | H112: 0.0004166666667 | I112: 0.04068134022 | K112: System | L112: Region | M112: Labrador | N112: - | O112: 2026-01-05T12:00:00 | P112: 368.5479412 | Q112: 33.46168424 | R112: 43.50661981 | S112: 1761.678752 | T112: 105.8443924 | U112: 1824.016525 | V112: 0.0004166666667 | W112: 0.04068134022 | Y112: 2025-04-19T09:00:00 | Z112: 1572.410167 | AA112: 0
A113: System | B113: Region | C113: Island | D113: - | E113: 2026-01-05T13:00:00 | F113: 1361.860448 | G113: 28.19368092 | H113: 0 | I113: 0 | K113: System | L113: Region | M113: Labrador | N113: - | O113: 2026-01-05T13:00:00 | P113: 361.8463029 | Q113: 33.4278931 | R113: 41.91641231 | S113: 1723.706751 | T113: 103.5379863 | U113: 1785.328325 | V113: 0 | W113: 0 | Y113: 2025-04-20T07:00:00 | Z113: 1691.132812 | AA113: 0.0002083333333
A114: System | B114: Region | C114: Island | D114: - | E114: 2026-01-05T14:00:00 | F114: 1335.06212 | G114: 27.63530482 | H114: 0 | I114: 0 | K114: System | L114: Region | M114: Labrador | N114: - | O114: 2026-01-05T14:00:00 | P114: 366.3772043 | Q114: 33.28698225 | R114: 40.58176663 | S114: 1701.439325 | T114: 101.5040537 | U114: 1762.361612 | V114: 0 | W114: 0 | Y114: 2025-04-21T07:00:00 | Z114: 1688.313472 | AA114: 0.0002083333333
A115: System | B115: Region | C115: Island | D115: - | E115: 2026-01-05T15:00:00 | F115: 1332.734769 | G115: 27.58094269 | H115: 0 | I115: 0 | K115: System | L115: Region | M115: Labrador | N115: - | O115: 2026-01-05T15:00:00 | P115: 366.5724757 | Q115: 32.77310223 | R115: 40.47923419 | S115: 1699.307245 | T115: 100.8332791 | U115: 1759.66129 | V115: 0 | W115: 0 | Y115: 2025-04-22T07:00:00 | Z115: 1610.796509 | AA115: 0.0002083333333
A116: System | B116: Region | C116: Island | D116: - | E116: 2026-01-05T16:00:00 | F116: 1365.454051 | G116: 28.2869809 | H116: 0.0002083333333 | I116: 0.009817371581 | K116: System | L116: Region | M116: Labrador | N116: - | O116: 2026-01-05T16:00:00 | P116: 372.8106192 | Q116: 31.9862823 | R116: 41.98806422 | S116: 1738.26467 | T116: 102.2613274 | U116: 1798.537933 | V116: 0.0002083333333 | W116: 0.009817371581 | Y116: 2025-04-23T07:00:00 | Z116: 1495.67562 | AA116: 0
A117: System | B117: Region | C117: Island | D117: - | E117: 2026-01-05T17:00:00 | F117: 1452.391211 | G117: 30.04163783 | H117: 0 | I117: 0 | K117: System | L117: Region | M117: Labrador | N117: - | O117: 2026-01-05T17:00:00 | P117: 375.5915901 | Q117: 32.08721708 | R117: 47.11588072 | S117: 1827.982801 | T117: 109.2447356 | U117: 1890.111656 | V117: 0 | W117: 0 | Y117: 2025-04-24T07:00:00 | Z117: 1473.539216 | AA117: 0
A118: System | B118: Region | C118: Island | D118: - | E118: 2026-01-05T18:00:00 | F118: 1448.146766 | G118: 29.98423611 | H118: 0.0002083333333 | I118: 0.03269589903 | K118: System | L118: Region | M118: Labrador | N118: - | O118: 2026-01-05T18:00:00 | P118: 376.2019494 | Q118: 31.06398615 | R118: 46.77350755 | S118: 1824.348715 | T118: 107.8217298 | U118: 1885.396938 | V118: 0.0002083333333 | W118: 0.03269589903 | Y118: 2025-04-25T11:00:00 | Z118: 1480.240587 | AA118: 0
A119: System | B119: Region | C119: Island | D119: - | E119: 2026-01-05T19:00:00 | F119: 1444.346579 | G119: 29.91794791 | H119: 0.0002083333333 | I119: 0.03541625885 | K119: System | L119: Region | M119: Labrador | N119: - | O119: 2026-01-05T19:00:00 | P119: 389.6777494 | Q119: 30.21275622 | R119: 46.46744995 | S119: 1834.024329 | T119: 106.5981541 | U119: 1894.155033 | V119: 0.0002083333333 | W119: 0.03541625885 | Y119: 2025-04-26T11:00:00 | Z119: 1476.772241 | AA119: 0
A120: System | B120: Region | C120: Island | D120: - | E120: 2026-01-05T20:00:00 | F120: 1436.912358 | G120: 29.77206988 | H120: 0 | I120: 0 | K120: System | L120: Region | M120: Labrador | N120: - | O120: 2026-01-05T20:00:00 | P120: 391.5643446 | Q120: 29.0459145 | R120: 45.99145934 | S120: 1828.476702 | T120: 104.8094437 | U120: 1887.294687 | V120: 0 | W120: 0 | Y120: 2025-04-27T20:00:00 | Z120: 1394.148376 | AA120: 0
A121: System | B121: Region | C121: Island | D121: - | E121: 2026-01-05T21:00:00 | F121: 1420.869864 | G121: 29.49406244 | H121: 0.000625 | I121: 0.07762193007 | K121: System | L121: Region | M121: Labrador | N121: - | O121: 2026-01-05T21:00:00 | P121: 401.3727658 | Q121: 29.11762034 | R121: 44.85697419 | S121: 1822.24263 | T121: 103.468657 | U121: 1880.854313 | V121: 0.000625 | W121: 0.07762193007 | Y121: 2025-04-28T07:00:00 | Z121: 1472.856673 | AA121: 0
A122: System | B122: Region | C122: Island | D122: - | E122: 2026-01-05T22:00:00 | F122: 1380.660713 | G122: 28.61866551 | H122: 0.0002083333333 | I122: 0.0174384657 | K122: System | L122: Region | M122: Labrador | N122: - | O122: 2026-01-05T22:00:00 | P122: 398.3625243 | Q122: 28.04371167 | R122: 42.72128065 | S122: 1779.023237 | T122: 99.38365783 | U122: 1835.685615 | V122: 0.0002083333333 | W122: 0.0174384657 | Y122: 2025-04-29T07:00:00 | Z122: 1482.857014 | AA122: 0
A123: System | B123: Region | C123: Island | D123: - | E123: 2026-01-05T23:00:00 | F123: 1302.478639 | G123: 21.34824417 | H123: 0 | I123: 0 | K123: System | L123: Region | M123: Labrador | N123: - | O123: 2026-01-05T23:00:00 | P123: 385.7573211 | Q123: 27.07677683 | R123: 38.00744029 | S123: 1688.23596 | T123: 86.43246129 | U123: 1736.660981 | V123: 0 | W123: 0 | Y123: 2025-04-30T08:00:00 | Z123: 1526.901522 | AA123: 0
A124: System | B124: Region | C124: Island | D124: - | E124: 2026-01-06 | F124: 1226.774785 | G124: 29.20075326 | H124: 0 | I124: 0 | K124: System | L124: Region | M124: Labrador | N124: - | O124: 2026-01-06 | P124: 361.8681133 | Q124: 34.92010692 | R124: 21.33046279 | S124: 1588.642899 | T124: 85.45132296 | U124: 1652.763759 | V124: 0 | W124: 0 | Y124: 2025-05-01T07:00:00 | Z124: 1579.424771 | AA124: 0.0002083333333
A125: System | B125: Region | C125: Island | D125: - | E125: 2026-01-06T01:00:00 | F125: 1183.187319 | G125: 28.83134046 | H125: 0 | I125: 0 | K125: System | L125: Region | M125: Labrador | N125: - | O125: 2026-01-06T01:00:00 | P125: 387.2989773 | Q125: 34.46401706 | R125: 19.8619228 | S125: 1570.486296 | T125: 83.15728033 | U125: 1633.781654 | V125: 0 | W125: 0 | Y125: 2025-05-02T08:00:00 | Z125: 1411.342522 | AA125: 0
A126: System | B126: Region | C126: Island | D126: - | E126: 2026-01-06T02:00:00 | F126: 1197.958719 | G126: 28.88468598 | H126: 0 | I126: 0 | K126: System | L126: Region | M126: Labrador | N126: - | O126: 2026-01-06T02:00:00 | P126: 406.5029485 | Q126: 34.12462477 | R126: 20.36992629 | S126: 1604.461668 | T126: 83.37923704 | U126: 1667.470979 | V126: 0 | W126: 0 | Y126: 2025-05-03T09:00:00 | Z126: 1368.232304 | AA126: 0
A127: System | B127: Region | C127: Island | D127: - | E127: 2026-01-06T03:00:00 | F127: 1214.536445 | G127: 29.06004774 | H127: 0 | I127: 0 | K127: System | L127: Region | M127: Labrador | N127: - | O127: 2026-01-06T03:00:00 | P127: 415.5709065 | Q127: 33.96272187 | R127: 20.90561293 | S127: 1630.107351 | T127: 83.92838254 | U127: 1693.130121 | V127: 0 | W127: 0 | Y127: 2025-05-04T07:00:00 | Z127: 1350.876949 | AA127: 0
A128: System | B128: Region | C128: Island | D128: - | E128: 2026-01-06T04:00:00 | F128: 1237.854524 | G128: 29.30989149 | H128: 0 | I128: 0 | K128: System | L128: Region | M128: Labrador | N128: - | O128: 2026-01-06T04:00:00 | P128: 415.8580718 | Q128: 33.97402331 | R128: 21.73678592 | S128: 1653.712596 | T128: 85.02070072 | U128: 1716.996511 | V128: 0 | W128: 0 | Y128: 2025-05-05T07:00:00 | Z128: 1326.585052 | AA128: 0
A129: System | B129: Region | C129: Island | D129: - | E129: 2026-01-06T05:00:00 | F129: 1291.131879 | G129: 29.65685956 | H129: 0 | I129: 0 | K129: System | L129: Region | M129: Labrador | N129: - | O129: 2026-01-06T05:00:00 | P129: 405.468173 | Q129: 34.14490921 | R129: 23.92336395 | S129: 1696.600052 | T129: 87.72513272 | U129: 1760.401821 | V129: 0 | W129: 0 | Y129: 2025-05-06T07:00:00 | Z129: 1321.253566 | AA129: 0
A130: System | B130: Region | C130: Island | D130: - | E130: 2026-01-06T06:00:00 | F130: 1358.852896 | G130: 30.17541646 | H130: 0 | I130: 0 | K130: System | L130: Region | M130: Labrador | N130: - | O130: 2026-01-06T06:00:00 | P130: 386.4314378 | Q130: 34.46985081 | R130: 34.83533367 | S130: 1745.284334 | T130: 99.48060094 | U130: 1809.929601 | V130: 0 | W130: 0 | Y130: 2025-05-07T07:00:00 | Z130: 1346.810743 | AA130: 0
A131: System | B131: Region | C131: Island | D131: - | E131: 2026-01-06T07:00:00 | F131: 1475.898613 | G131: 31.06605687 | H131: 0 | I131: 0 | K131: System | L131: Region | M131: Labrador | N131: - | O131: 2026-01-06T07:00:00 | P131: 391.3160081 | Q131: 34.21450712 | R131: 45.2759272 | S131: 1867.214621 | T131: 110.5564912 | U131: 1932.495185 | V131: 0 | W131: 0 | Y131: 2025-05-08T09:00:00 | Z131: 1539.300393 | AA131: 0
A132: System | B132: Region | C132: Island | D132: - | E132: 2026-01-06T08:00:00 | F132: 1563.436225 | G132: 32.30282994 | H132: 0.0002083333333 | I132: 0.003204594452 | K132: System | L132: Region | M132: Labrador | N132: - | O132: 2026-01-06T08:00:00 | P132: 387.2912201 | Q132: 34.16966705 | R132: 53.24128079 | S132: =F132+P132 -> 1950.727445 | T132: 119.7137778 | U132: =F132+G132+P132+Q132 -> 2017.199942 | V132: =H132 -> 0.0002083333333 | W132: 0.003204594452 | Y132: 2025-05-09T09:00:00 | Z132: 1442.418901 | AA132: 0
A133: System | B133: Region | C133: Island | D133: - | E133: 2026-01-06T09:00:00 | F133: 1578.986948 | G133: 32.63314618 | H133: 0.0004166666667 | I133: 0.07432085913 | K133: System | L133: Region | M133: Labrador | N133: - | O133: 2026-01-06T09:00:00 | P133: 405.9395184 | Q133: 33.75086478 | R133: 54.00722736 | S133: 1984.926466 | T133: =G133+Q133+R133 -> 120.3912383 | U133: 2051.310477 | V133: 0.0004166666667 | W133: 0.07432085913 | Y133: 2025-05-10T09:00:00 | Z133: =MAX(OFFSET($S$4:$S$27,(ROW()-4)*24,0)) -> 1484.187322 | AA133: =VLOOKUP(Z133,OFFSET($S$4:$V$27,(ROW()-4)*24,0),4,FALSE) -> 0
A134: System | B134: Region | C134: Island | D134: - | E134: 2026-01-06T10:00:00 | F134: 1576.943041 | G134: 32.48617454 | H134: 0.0004166666667 | I134: 0.123330682 | K134: System | L134: Region | M134: Labrador | N134: - | O134: 2026-01-06T10:00:00 | P134: 376.350157 | Q134: 34.29074909 | R134: 54.61947508 | S134: 1953.293198 | T134: 121.3963987 | U134: 2020.070121 | V134: 0.0004166666667 | W134: 0.123330682 | Y134: 2025-05-11T07:00:00 | Z134: 1379.28292 | AA134: 0
A135: System | B135: Region | C135: Island | D135: - | E135: 2026-01-06T11:00:00 | F135: 1570.532269 | G135: 32.40659518 | H135: 0 | I135: 0 | K135: System | L135: Region | M135: Labrador | N135: - | O135: 2026-01-06T11:00:00 | P135: 384.0301541 | Q135: 34.08464295 | R135: 53.98852199 | S135: 1954.562423 | T135: 120.4797601 | U135: 2021.053661 | V135: 0 | W135: 0 | Y135: 2025-05-12T07:00:00 | Z135: 1395.056868 | AA135: 0
A136: System | B136: Region | C136: Island | D136: - | E136: 2026-01-06T12:00:00 | F136: 1562.307159 | G136: 32.2729067 | H136: 0.0002083333333 | I136: 0.05273455758 | K136: System | L136: Region | M136: Labrador | N136: - | O136: 2026-01-06T12:00:00 | P136: 376.0638963 | Q136: 34.23152275 | R136: 53.25924427 | S136: 1938.371055 | T136: 119.7636737 | U136: 2004.875485 | V136: 0.0002083333333 | W136: 0.05273455758 | Y136: 2025-05-13T20:00:00 | Z136: 1385.993465 | AA136: 0
A137: System | B137: Region | C137: Island | D137: - | E137: 2026-01-06T13:00:00 | F137: 1545.169241 | G137: 31.9799086 | H137: 0.000625 | I137: 0.1529474108 | K137: System | L137: Region | M137: Labrador | N137: - | O137: 2026-01-06T13:00:00 | P137: 382.2138282 | Q137: 34.09439872 | R137: 51.78087594 | S137: 1927.383069 | T137: 117.8551833 | U137: 1993.457376 | V137: 0.000625 | W137: 0.1529474108 | Y137: 2025-05-14T07:00:00 | Z137: 1350.462558 | AA137: 0
A138: System | B138: Region | C138: Island | D138: - | E138: 2026-01-06T14:00:00 | F138: 1549.771881 | G138: 32.03001643 | H138: 0 | I138: 0 | K138: System | L138: Region | M138: Labrador | N138: - | O138: 2026-01-06T14:00:00 | P138: 381.733474 | Q138: 34.089913 | R138: 52.391305 | S138: 1931.505355 | T138: 118.5112344 | U138: 1997.625285 | V138: 0 | W138: 0 | Y138: 2025-05-15T07:00:00 | Z138: 1298.560233 | AA138: 0
A139: System | B139: Region | C139: Island | D139: - | E139: 2026-01-06T15:00:00 | F139: 1562.225919 | G139: 32.23967713 | H139: 0.0002083333333 | I139: 0.002280596163 | K139: System | L139: Region | M139: Labrador | N139: - | O139: 2026-01-06T15:00:00 | P139: 369.9597357 | Q139: 34.29696 | R139: 53.34872627 | S139: 1932.185655 | T139: 119.8853634 | U139: 1998.722292 | V139: 0.0002083333333 | W139: 0.002280596163 | Y139: 2025-05-16T09:00:00 | Z139: 1137.693888 | AA139: 0
A140: System | B140: Region | C140: Island | D140: - | E140: 2026-01-06T16:00:00 | F140: 1613.767488 | G140: 33.10606124 | H140: 0.0004166666667 | I140: 0.01124671881 | K140: System | L140: Region | M140: Labrador | N140: - | O140: 2026-01-06T16:00:00 | P140: 365.4694967 | Q140: 34.35114203 | R140: 57.9380059 | S140: 1979.236984 | T140: 125.3952092 | U140: 2046.694188 | V140: 0.0004166666667 | W140: 0.01124671881 | Y140: 2025-05-17T09:00:00 | Z140: 1199.12448 | AA140: 0
A141: System | B141: Region | C141: Island | D141: - | E141: 2026-01-06T17:00:00 | F141: 1688.119417 | G141: 34.58563976 | H141: 0.002083333333 | I141: 0.07342728181 | K141: System | L141: Region | M141: Labrador | N141: - | O141: 2026-01-06T17:00:00 | P141: 377.0255335 | Q141: 34.05747101 | R141: 60.84560728 | S141: 2065.14495 | T141: 129.488718 | U141: 2133.788061 | V141: 0.002083333333 | W141: 0.07342728181 | Y141: 2025-05-18T11:00:00 | Z141: 1297.156292 | AA141: 0
A142: System | B142: Region | C142: Island | D142: - | E142: 2026-01-06T18:00:00 | F142: 1680.802186 | G142: 34.49218317 | H142: 0.001458333333 | I142: 0.07514389118 | K142: System | L142: Region | M142: Labrador | N142: - | O142: 2026-01-06T18:00:00 | P142: 376.5981871 | Q142: 34.06994474 | R142: 60.48267866 | S142: 2057.400373 | T142: 129.0448066 | U142: 2125.962501 | V142: 0.001458333333 | W142: 0.07514389118 | Y142: 2025-05-19T07:00:00 | Z142: 1295.182211 | AA142: 0
A143: System | B143: Region | C143: Island | D143: - | E143: 2026-01-06T19:00:00 | F143: 1661.290237 | G143: 34.06631033 | H143: 0.0008333333333 | I143: 0.1635044058 | K143: System | L143: Region | M143: Labrador | N143: - | O143: 2026-01-06T19:00:00 | P143: 390.0269476 | Q143: 33.80877388 | R143: 59.47063333 | S143: 2051.317185 | T143: 127.3457175 | U143: 2119.192269 | V143: 0.0008333333333 | W143: 0.1635044058 | Y143: 2025-05-20T08:00:00 | Z143: 1191.860106 | AA143: 0
A144: System | B144: Region | C144: Island | D144: - | E144: 2026-01-06T20:00:00 | F144: 1647.682459 | G144: 33.80335346 | H144: 0.0008333333333 | I144: 0.1246289887 | K144: System | L144: Region | M144: Labrador | N144: - | O144: 2026-01-06T20:00:00 | P144: 390.0484436 | Q144: 33.81074899 | R144: 59.08764506 | S144: 2037.730903 | T144: 126.7017475 | U144: 2105.345005 | V144: 0.0008333333333 | W144: 0.1246289887 | Y144: 2025-05-21T07:00:00 | Z144: 1241.715112 | AA144: 0
A145: System | B145: Region | C145: Island | D145: - | E145: 2026-01-06T21:00:00 | F145: 1615.731715 | G145: 33.18881829 | H145: 0.0008333333333 | I145: 0.08722825356 | K145: System | L145: Region | M145: Labrador | N145: - | O145: 2026-01-06T21:00:00 | P145: 405.3435402 | Q145: 33.52704385 | R145: 56.83280138 | S145: 2021.075256 | T145: 123.5486635 | U145: 2087.791118 | V145: 0.0008333333333 | W145: 0.08722825356 | Y145: 2025-05-22T07:00:00 | Z145: 1237.200524 | AA145: 0
A146: System | B146: Region | C146: Island | D146: - | E146: 2026-01-06T22:00:00 | F146: 1560.020996 | G146: 32.26499625 | H146: 0 | I146: 0 | K146: System | L146: Region | M146: Labrador | N146: - | O146: 2026-01-06T22:00:00 | P146: 404.9327421 | Q146: 33.55205145 | R146: 52.72016219 | S146: 1964.953738 | T146: 118.5372099 | U146: 2030.770786 | V146: 0 | W146: 0 | Y146: 2025-05-23T10:00:00 | Z146: 1261.373221 | AA146: 0
A147: System | B147: Region | C147: Island | D147: - | E147: 2026-01-06T23:00:00 | F147: 1463.402505 | G147: 30.73549831 | H147: 0 | I147: 0 | K147: System | L147: Region | M147: Labrador | N147: - | O147: 2026-01-06T23:00:00 | P147: 415.510639 | Q147: 33.36324218 | R147: 33.2346107 | S147: 1878.913144 | T147: 97.33335119 | U147: 1943.011885 | V147: 0 | W147: 0 | Y147: 2025-05-24T09:00:00 | Z147: 1284.937491 | AA147: 0
A148: System | B148: Region | C148: Island | D148: - | E148: 2026-01-07 | F148: 1370.153001 | G148: 30.31111005 | H148: 0 | I148: 0 | K148: System | L148: Region | M148: Labrador | N148: - | O148: 2026-01-07 | P148: 411.985773 | Q148: 33.46772437 | R148: 27.62920702 | S148: 1782.138774 | T148: 91.40804144 | U148: 1845.917609 | V148: 0 | W148: 0 | Y148: 2025-05-25T07:00:00 | Z148: 1258.757416 | AA148: 0
A149: System | B149: Region | C149: Island | D149: - | E149: 2026-01-07T01:00:00 | F149: 1349.523359 | G149: 30.22594662 | H149: 0.0002083333333 | I149: 0.003324048458 | K149: System | L149: Region | M149: Labrador | N149: - | O149: 2026-01-07T01:00:00 | P149: 421.2778609 | Q149: 33.32391626 | R149: 26.5075756 | S149: 1770.80122 | T149: 90.05743848 | U149: 1834.351083 | V149: 0.0002083333333 | W149: 0.003324048458 | Y149: 2025-05-26T07:00:00 | Z149: 1170.921835 | AA149: 0
A150: System | B150: Region | C150: Island | D150: - | E150: 2026-01-07T02:00:00 | F150: 1335.943319 | G150: 30.15283933 | H150: 0 | I150: 0 | K150: System | L150: Region | M150: Labrador | N150: - | O150: 2026-01-07T02:00:00 | P150: 429.7575212 | Q150: 33.1576959 | R150: 25.85184044 | S150: 1765.700841 | T150: 89.16237567 | U150: 1829.011376 | V150: 0 | W150: 0 | Y150: 2025-05-27T08:00:00 | Z150: 1148.329408 | AA150: 0
A151: System | B151: Region | C151: Island | D151: - | E151: 2026-01-07T03:00:00 | F151: 1336.330929 | G151: 30.13376498 | H151: 0 | I151: 0 | K151: System | L151: Region | M151: Labrador | N151: - | O151: 2026-01-07T03:00:00 | P151: 421.6846386 | Q151: 33.28507447 | R151: 25.90418162 | S151: 1758.015567 | T151: 89.32302106 | U151: 1821.434407 | V151: 0 | W151: 0 | Y151: 2025-05-28T09:00:00 | Z151: 1145.409875 | AA151: 0
A152: System | B152: Region | C152: Island | D152: - | E152: 2026-01-07T04:00:00 | F152: 1346.214034 | G152: 30.16936422 | H152: 0.0002083333333 | I152: 0.009633129025 | K152: System | L152: Region | M152: Labrador | N152: - | O152: 2026-01-07T04:00:00 | P152: 412.2026304 | Q152: 33.4422557 | R152: 26.40316438 | S152: 1758.416664 | T152: 90.0147843 | U152: 1822.028284 | V152: 0.0002083333333 | W152: 0.009633129025 | Y152: 2025-05-29T11:00:00 | Z152: 1203.017713 | AA152: 0
A153: System | B153: Region | C153: Island | D153: - | E153: 2026-01-07T05:00:00 | F153: 1362.903643 | G153: 30.23666146 | H153: 0 | I153: 0 | K153: System | L153: Region | M153: Labrador | N153: - | O153: 2026-01-07T05:00:00 | P153: 413.5585757 | Q153: 33.37760688 | R153: 27.22839052 | S153: 1776.462219 | T153: 90.84265886 | U153: 1840.076487 | V153: 0 | W153: 0 | Y153: 2025-05-30T09:00:00 | Z153: 1171.39283 | AA153: 0
A154: System | B154: Region | C154: Island | D154: - | E154: 2026-01-07T06:00:00 | F154: 1413.024864 | G154: 30.6561203 | H154: 0 | I154: 0 | K154: System | L154: Region | M154: Labrador | N154: - | O154: 2026-01-07T06:00:00 | P154: 414.9738591 | Q154: 33.29802366 | R154: 39.2473435 | S154: 1827.998723 | T154: 103.2014875 | U154: 1891.952867 | V154: 0 | W154: 0 | Y154: 2025-05-31T20:00:00 | Z154: 1121.877922 | AA154: 0
A155: System | B155: Region | C155: Island | D155: - | E155: 2026-01-07T07:00:00 | F155: 1525.439683 | G155: 31.92952264 | H155: 0 | I155: 0 | K155: System | L155: Region | M155: Labrador | N155: - | O155: 2026-01-07T07:00:00 | P155: 423.2207014 | Q155: 32.98231195 | R155: 48.35676647 | S155: 1948.660385 | T155: 113.2686011 | U155: 2013.572219 | V155: 0 | W155: 0 | Y155: 2025-06-01T07:00:00 | Z155: 1255.430593 | AA155: 0
A156: System | B156: Region | C156: Island | D156: - | E156: 2026-01-07T08:00:00 | F156: 1582.367625 | G156: 32.88088931 | H156: 0.0004166666667 | I156: 0.06370672179 | K156: System | L156: Region | M156: Labrador | N156: - | O156: 2026-01-07T08:00:00 | P156: 409.1517354 | Q156: 33.14782307 | R156: 53.0598246 | S156: 1991.519361 | T156: 119.088537 | U156: 2057.548073 | V156: 0.0004166666667 | W156: 0.06370672179 | Y156: 2025-06-02T07:00:00 | Z156: 1168.185503 | AA156: 0
A157: System | B157: Region | C157: Island | D157: - | E157: 2026-01-07T09:00:00 | F157: 1591.928642 | G157: 32.98496994 | H157: 0.0004166666667 | I157: 0.09219120604 | K157: System | L157: Region | M157: Labrador | N157: - | O157: 2026-01-07T09:00:00 | P157: 397.1089183 | Q157: 33.29004791 | R157: 54.27229245 | S157: 1989.03756 | T157: 120.5473103 | U157: 2055.312578 | V157: 0.0004166666667 | W157: 0.09219120604 | Y157: 2025-06-03T07:00:00 | Z157: 1209.414458 | AA157: 0
A158: System | B158: Region | C158: Island | D158: - | E158: 2026-01-07T10:00:00 | F158: 1579.112456 | G158: 32.77094895 | H158: 0.0004166666667 | I158: 0.001616720318 | K158: System | L158: Region | M158: Labrador | N158: - | O158: 2026-01-07T10:00:00 | P158: 394.1941845 | Q158: 33.40005817 | R158: 53.22879895 | S158: 1973.30664 | T158: 119.3998061 | U158: 2039.477648 | V158: 0.0004166666667 | W158: 0.001616720318 | Y158: 2025-06-04T07:00:00 | Z158: 1188.372858 | AA158: 0
A159: System | B159: Region | C159: Island | D159: - | E159: 2026-01-07T11:00:00 | F159: 1564.710658 | G159: 32.51454348 | H159: 0.0004166666667 | I159: 0.08296163554 | K159: System | L159: Region | M159: Labrador | N159: - | O159: 2026-01-07T11:00:00 | P159: 372.6601044 | Q159: 33.85621303 | R159: 52.19372191 | S159: 1937.370762 | T159: 118.5644784 | U159: 2003.741519 | V159: 0.0004166666667 | W159: 0.08296163554 | Y159: 2025-06-05T07:00:00 | Z159: 1202.566951 | AA159: 0
A160: System | B160: Region | C160: Island | D160: - | E160: 2026-01-07T12:00:00 | F160: 1560.780423 | G160: 32.44695897 | H160: 0 | I160: 0 | K160: System | L160: Region | M160: Labrador | N160: - | O160: 2026-01-07T12:00:00 | P160: 382.0838659 | Q160: 33.72594537 | R160: 51.95589151 | S160: 1942.864289 | T160: 118.1287959 | U160: 2009.037194 | V160: 0 | W160: 0 | Y160: 2025-06-06T09:00:00 | Z160: 1199.371774 | AA160: 0
A161: System | B161: Region | C161: Island | D161: - | E161: 2026-01-07T13:00:00 | F161: 1533.520574 | G161: 31.98478677 | H161: 0 | I161: 0 | K161: System | L161: Region | M161: Labrador | N161: - | O161: 2026-01-07T13:00:00 | P161: 380.1887875 | Q161: 33.81450881 | R161: 49.47804631 | S161: 1913.709361 | T161: 115.2773419 | U161: 1979.508657 | V161: 0 | W161: 0 | Y161: 2025-06-07T11:00:00 | Z161: 1147.707187 | AA161: 0
A162: System | B162: Region | C162: Island | D162: - | E162: 2026-01-07T14:00:00 | F162: 1516.131879 | G162: 31.72678385 | H162: 0.0002083333333 | I162: 0.05432331723 | K162: System | L162: Region | M162: Labrador | N162: - | O162: 2026-01-07T14:00:00 | P162: 365.3560517 | Q162: 34.13721461 | R162: 48.08739769 | S162: 1881.487931 | T162: 113.9513962 | U162: 1947.351929 | V162: 0.0002083333333 | W162: 0.05432331723 | Y162: 2025-06-08T07:00:00 | Z162: 1216.718004 | AA162: 0
A163: System | B163: Region | C163: Island | D163: - | E163: 2026-01-07T15:00:00 | F163: 1523.107183 | G163: 31.81312445 | H163: 0.0008333333333 | I163: 0.1172497 | K163: System | L163: Region | M163: Labrador | N163: - | O163: 2026-01-07T15:00:00 | P163: 358.6819036 | Q163: 34.2847544 | R163: 48.75689832 | S163: 1881.789087 | T163: 114.8547772 | U163: 1947.886966 | V163: 0.0008333333333 | W163: 0.1172497 | Y163: 2025-06-09T07:00:00 | Z163: 1128.238653 | AA163: 0
A164: System | B164: Region | C164: Island | D164: - | E164: 2026-01-07T16:00:00 | F164: 1559.76399 | G164: 32.3819656 | H164: 0.0004166666667 | I164: 0.05430568911 | K164: System | L164: Region | M164: Labrador | N164: - | O164: 2026-01-07T16:00:00 | P164: 361.198341 | Q164: 34.19516921 | R164: 51.8821848 | S164: 1920.962331 | T164: 118.4593196 | U164: 1987.539465 | V164: 0.0004166666667 | W164: 0.05430568911 | Y164: 2025-06-10T07:00:00 | Z164: 1079.884766 | AA164: 0
A165: System | B165: Region | C165: Island | D165: - | E165: 2026-01-07T17:00:00 | F165: 1632.870676 | G165: 33.61955117 | H165: 0.0004166666667 | I165: 0.06372123886 | K165: System | L165: Region | M165: Labrador | N165: - | O165: 2026-01-07T17:00:00 | P165: 360.9706827 | Q165: 34.09742073 | R165: 57.92596095 | S165: 1993.841359 | T165: 125.6429328 | U165: 2061.558331 | V165: 0.0004166666667 | W165: 0.06372123886 | Y165: 2025-06-11T08:00:00 | Z165: 1067.055053 | AA165: 0
A166: System | B166: Region | C166: Island | D166: - | E166: 2026-01-07T18:00:00 | F166: 1617.855901 | G166: 33.35867943 | H166: 0.000625 | I166: 0.08427315908 | K166: System | L166: Region | M166: Labrador | N166: - | O166: 2026-01-07T18:00:00 | P166: 361.7260825 | Q166: 34.0866499 | R166: 57.018156 | S166: 1979.581983 | T166: 124.4634853 | U166: 2047.027312 | V166: 0.000625 | W166: 0.08427315908 | Y166: 2025-06-12T10:00:00 | Z166: 1055.234717 | AA166: 0
A167: System | B167: Region | C167: Island | D167: - | E167: 2026-01-07T19:00:00 | F167: 1595.317161 | G167: 32.94775943 | H167: 0.0002083333333 | I167: 0.06451043994 | K167: System | L167: Region | M167: Labrador | N167: - | O167: 2026-01-07T19:00:00 | P167: 348.9166307 | Q167: 34.33747119 | R167: 55.12599611 | S167: 1944.233792 | T167: 122.4112267 | U167: 2011.519022 | V167: 0.0002083333333 | W167: 0.06451043994 | Y167: 2025-06-13T16:00:00 | Z167: 1116.877604 | AA167: 0
A168: System | B168: Region | C168: Island | D168: - | E168: 2026-01-07T20:00:00 | F168: 1578.121781 | G168: 32.69135639 | H168: 0.0008333333333 | I168: 0.06647779235 | K168: System | L168: Region | M168: Labrador | N168: - | O168: 2026-01-07T20:00:00 | P168: 347.6162589 | Q168: 34.36716605 | R168: 53.48959089 | S168: 1925.73804 | T168: 120.5481133 | U168: 1992.796563 | V168: 0.0008333333333 | W168: 0.06647779235 | Y168: 2025-06-14T12:00:00 | Z168: 1178.014229 | AA168: 0
A169: System | B169: Region | C169: Island | D169: - | E169: 2026-01-07T21:00:00 | F169: 1550.746501 | G169: 32.22743084 | H169: 0 | I169: 0 | K169: System | L169: Region | M169: Labrador | N169: - | O169: 2026-01-07T21:00:00 | P169: 355.7701727 | Q169: 34.21614902 | R169: 51.11747751 | S169: 1906.516674 | T169: 117.5610574 | U169: 1972.960254 | V169: 0 | W169: 0 | Y169: 2025-06-15T08:00:00 | Z169: 1202.162027 | AA169: 0
A170: System | B170: Region | C170: Island | D170: - | E170: 2026-01-07T22:00:00 | F170: 1500.50816 | G170: 31.496025 | H170: 0 | I170: 0 | K170: System | L170: Region | M170: Labrador | N170: - | O170: 2026-01-07T22:00:00 | P170: 354.1251631 | Q170: 34.26418328 | R170: 46.89189009 | S170: 1854.633323 | T170: 112.6520984 | U170: 1920.393531 | V170: 0 | W170: 0 | Y170: 2025-06-16T07:00:00 | Z170: 1120.765628 | AA170: 0
A171: System | B171: Region | C171: Island | D171: - | E171: 2026-01-07T23:00:00 | F171: 1426.126153 | G171: 30.50791798 | H171: 0 | I171: 0 | K171: System | L171: Region | M171: Labrador | N171: - | O171: 2026-01-07T23:00:00 | P171: 357.2548675 | Q171: 34.2339855 | R171: 30.82716976 | S171: 1783.381021 | T171: 95.56907324 | U171: 1848.122924 | V171: 0 | W171: 0 | Y171: 2025-06-17T11:00:00 | Z171: 1204.997604 | AA171: 0
A172: System | B172: Region | C172: Island | D172: - | E172: 2026-01-08 | F172: 1359.332861 | G172: 28.9994759 | H172: 0 | I172: 0 | K172: System | L172: Region | M172: Labrador | N172: - | O172: 2026-01-08 | P172: 353.9123863 | Q172: 34.35523562 | R172: 29.00988023 | S172: 1713.245248 | T172: 92.36459175 | U172: 1776.599959 | V172: 0 | W172: 0 | Y172: 2025-06-18T07:00:00 | Z172: 1123.987198 | AA172: 0
A173: System | B173: Region | C173: Island | D173: - | E173: 2026-01-08T01:00:00 | F173: 1318.555481 | G173: 28.69652132 | H173: 0 | I173: 0 | K173: System | L173: Region | M173: Labrador | N173: - | O173: 2026-01-08T01:00:00 | P173: 358.8758051 | Q173: 34.26824448 | R173: 27.05295879 | S173: 1677.431286 | T173: 90.01772458 | U173: 1740.396052 | V173: 0 | W173: 0 | Y173: 2025-06-19T08:00:00 | Z173: 1034.906629 | AA173: 0
A174: System | B174: Region | C174: Island | D174: - | E174: 2026-01-08T02:00:00 | F174: 1316.317828 | G174: 28.73072942 | H174: 0.0002083333333 | I174: 0.001992827813 | K174: System | L174: Region | M174: Labrador | N174: - | O174: 2026-01-08T02:00:00 | P174: 366.1693893 | Q174: 34.13505794 | R174: 26.91349003 | S174: 1682.487217 | T174: 89.77927739 | U174: 1745.353004 | V174: 0.0002083333333 | W174: 0.001992827813 | Y174: 2025-06-20T10:00:00 | Z174: 1043.480002 | AA174: 0
A175: System | B175: Region | C175: Island | D175: - | E175: 2026-01-08T03:00:00 | F175: 1316.110713 | G175: 28.63863095 | H175: 0 | I175: 0 | K175: System | L175: Region | M175: Labrador | N175: - | O175: 2026-01-08T03:00:00 | P175: 359.8740083 | Q175: 34.27566865 | R175: 26.95935113 | S175: 1675.984721 | T175: 89.87365072 | U175: 1738.899021 | V175: 0 | W175: 0 | Y175: 2025-06-21T11:00:00 | Z175: 991.9492742 | AA175: 0
A176: System | B176: Region | C176: Island | D176: - | E176: 2026-01-08T04:00:00 | F176: 1334.952865 | G176: 28.77103126 | H176: 0.0002083333333 | I176: 0.01752562335 | K176: System | L176: Region | M176: Labrador | N176: - | O176: 2026-01-08T04:00:00 | P176: 357.9212472 | Q176: 34.3186082 | R176: 27.84044559 | S176: 1692.874112 | T176: 90.93008505 | U176: 1755.963752 | V176: 0.0002083333333 | W176: 0.01752562335 | Y176: 2025-06-22T17:00:00 | Z176: 1042.39326 | AA176: 0
A177: System | B177: Region | C177: Island | D177: - | E177: 2026-01-08T05:00:00 | F177: 1354.385707 | G177: 29.01748127 | H177: 0.0002083333333 | I177: 0.009394873675 | K177: System | L177: Region | M177: Labrador | N177: - | O177: 2026-01-08T05:00:00 | P177: 366.4391172 | Q177: 34.12875343 | R177: 28.74071513 | S177: 1720.824824 | T177: 91.88694982 | U177: 1783.971059 | V177: 0.0002083333333 | W177: 0.009394873675 | Y177: 2025-06-23T21:00:00 | Z177: 1078.226477 | AA177: 0
A178: System | B178: Region | C178: Island | D178: - | E178: 2026-01-08T06:00:00 | F178: 1407.265876 | G178: 30.26743358 | H178: 0.0008333333333 | I178: 0.09397131352 | K178: System | L178: Region | M178: Labrador | N178: - | O178: 2026-01-08T06:00:00 | P178: 373.811906 | Q178: 33.9524657 | R178: 39.96679453 | S178: 1781.077782 | T178: 104.1866938 | U178: 1845.297681 | V178: 0.0008333333333 | W178: 0.09397131352 | Y178: 2025-06-24T08:00:00 | Z178: 1143.515662 | AA178: 0
A179: System | B179: Region | C179: Island | D179: - | E179: 2026-01-08T07:00:00 | F179: 1501.025663 | G179: 31.24247081 | H179: 0 | I179: 0 | K179: System | L179: Region | M179: Labrador | N179: - | O179: 2026-01-08T07:00:00 | P179: 341.8800123 | Q179: 34.52320701 | R179: 48.29777083 | S179: 1842.905676 | T179: 114.0634486 | U179: 1908.671353 | V179: 0 | W179: 0 | Y179: 2025-06-25T11:00:00 | Z179: 1174.731037 | AA179: 0
A180: System | B180: Region | C180: Island | D180: - | E180: 2026-01-08T08:00:00 | F180: 1576.392961 | G180: 32.31979206 | H180: 0 | I180: 0 | K180: System | L180: Region | M180: Labrador | N180: - | O180: 2026-01-08T08:00:00 | P180: 316.8795245 | Q180: 34.85718051 | R180: 55.25018407 | S180: 1893.272485 | T180: 122.4271566 | U180: 1960.449458 | V180: 0 | W180: 0 | Y180: 2025-06-26T09:00:00 | Z180: 1164.544396 | AA180: 0
A181: System | B181: Region | C181: Island | D181: - | E181: 2026-01-08T09:00:00 | F181: 1593.17622 | G181: 32.58366542 | H181: 0.0002083333333 | I181: 0.001902486515 | K181: System | L181: Region | M181: Labrador | N181: - | O181: 2026-01-08T09:00:00 | P181: 324.5089324 | Q181: 34.68609528 | R181: 56.68428252 | S181: 1917.685153 | T181: 123.9540432 | U181: 1984.954913 | V181: 0.0002083333333 | W181: 0.001902486515 | Y181: 2025-06-27T11:00:00 | Z181: 1107.5857 | AA181: 0
A182: System | B182: Region | C182: Island | D182: - | E182: 2026-01-08T10:00:00 | F182: 1595.359441 | G182: 32.66818611 | H182: 0.0002083333333 | I182: 0.07303748333 | K182: System | L182: Region | M182: Labrador | N182: - | O182: 2026-01-08T10:00:00 | P182: 329.4795149 | Q182: 34.62921252 | R182: 56.70231359 | S182: 1924.838956 | T182: 123.9997122 | U182: 1992.136355 | V182: 0.0002083333333 | W182: 0.07303748333 | Y182: 2025-06-28T11:00:00 | Z182: 1011.882556 | AA182: 0
A183: System | B183: Region | C183: Island | D183: - | E183: 2026-01-08T11:00:00 | F183: 1604.95231 | G183: 32.81997163 | H183: 0.000625 | I183: 0.0861293759 | K183: System | L183: Region | M183: Labrador | N183: - | O183: 2026-01-08T11:00:00 | P183: 325.9169868 | Q183: 34.74554888 | R183: 57.56107283 | S183: 1930.869297 | T183: 125.1265933 | U183: 1998.434817 | V183: 0.000625 | W183: 0.0861293759 | Y183: 2025-06-29T11:00:00 | Z183: 1079.122918 | AA183: 0
A184: System | B184: Region | C184: Island | D184: - | E184: 2026-01-08T12:00:00 | F184: 1601.929307 | G184: 32.80582638 | H184: 0.0002083333333 | I184: 0.06613943434 | K184: System | L184: Region | M184: Labrador | N184: - | O184: 2026-01-08T12:00:00 | P184: 340.7937293 | Q184: 34.48551057 | R184: 57.25833308 | S184: 1942.723037 | T184: 124.54967 | U184: 2010.014374 | V184: 0.0002083333333 | W184: 0.06613943434 | Y184: 2025-06-30T09:00:00 | Z184: 1069.904588 | AA184: 0
A185: System | B185: Region | C185: Island | D185: - | E185: 2026-01-08T13:00:00 | F185: 1578.086959 | G185: 32.40685799 | H185: 0.0004166666667 | I185: 0.03885338431 | K185: System | L185: Region | M185: Labrador | N185: - | O185: 2026-01-08T13:00:00 | P185: 345.7755188 | Q185: 34.4263042 | R185: 55.1014498 | S185: 1923.862478 | T185: 121.934612 | U185: 1990.69564 | V185: 0.0004166666667 | W185: 0.03885338431 | Y185: 2025-07-01T11:00:00 | Z185: 1024.778655 | AA185: 0
A186: System | B186: Region | C186: Island | D186: - | E186: 2026-01-08T14:00:00 | F186: 1559.059327 | G186: 32.07320113 | H186: 0.0002083333333 | I186: 0.05406259646 | K186: System | L186: Region | M186: Labrador | N186: - | O186: 2026-01-08T14:00:00 | P186: 348.5369302 | Q186: 34.42504857 | R186: 53.49479178 | S186: 1907.596257 | T186: 119.9930415 | U186: 1974.094507 | V186: 0.0002083333333 | W186: 0.05406259646 | Y186: 2025-07-02T11:00:00 | Z186: 1036.020966 | AA186: 0
A187: System | B187: Region | C187: Island | D187: - | E187: 2026-01-08T15:00:00 | F187: 1562.087979 | G187: 32.16470747 | H187: 0.0002083333333 | I187: 0.06008165132 | K187: System | L187: Region | M187: Labrador | N187: - | O187: 2026-01-08T15:00:00 | P187: 362.3529198 | Q187: 34.16820847 | R187: 53.66248192 | S187: 1924.440899 | T187: 119.9953979 | U187: 1990.773815 | V187: 0.0002083333333 | W187: 0.06008165132 | Y187: 2025-07-03T09:00:00 | Z187: 1008.241068 | AA187: 0
A188: System | B188: Region | C188: Island | D188: - | E188: 2026-01-08T16:00:00 | F188: 1577.997117 | G188: 32.42478433 | H188: 0 | I188: 0 | K188: System | L188: Region | M188: Labrador | N188: - | O188: 2026-01-08T16:00:00 | P188: 368.6936632 | Q188: 34.03073851 | R188: 55.03268579 | S188: 1946.69078 | T188: 121.4882086 | U188: 2013.146303 | V188: 0 | W188: 0 | Y188: 2025-07-04T12:00:00 | Z188: 978.878235 | AA188: 0
A189: System | B189: Region | C189: Island | D189: - | E189: 2026-01-08T17:00:00 | F189: 1664.444995 | G189: 34.12949189 | H189: 0.00125 | I189: 0.1047491063 | K189: System | L189: Region | M189: Labrador | N189: - | O189: 2026-01-08T17:00:00 | P189: 380.0094852 | Q189: 33.70715215 | R189: 60.06501835 | S189: 2044.45448 | T189: 127.9016624 | U189: 2112.291124 | V189: 0.00125 | W189: 0.1047491063 | Y189: 2025-07-05T20:00:00 | Z189: 1011.001169 | AA189: 0
A190: System | B190: Region | C190: Island | D190: - | E190: 2026-01-08T18:00:00 | F190: 1655.127491 | G190: 33.87963546 | H190: 0.0002083333333 | I190: 0.003679634171 | K190: System | L190: Region | M190: Labrador | N190: - | O190: 2026-01-08T18:00:00 | P190: 380.6248715 | Q190: 33.6927101 | R190: 59.89083849 | S190: 2035.752363 | T190: 127.4631841 | U190: 2103.324708 | V190: 0.0002083333333 | W190: 0.003679634171 | Y190: 2025-07-06T11:00:00 | Z190: 1149.064999 | AA190: 0
A191: System | B191: Region | C191: Island | D191: - | E191: 2026-01-08T19:00:00 | F191: 1629.336029 | G191: 33.4017297 | H191: 0.00125 | I191: 0.2254026956 | K191: System | L191: Region | M191: Labrador | N191: - | O191: 2026-01-08T19:00:00 | P191: 385.5954781 | Q191: 33.59355471 | R191: 58.69180711 | S191: 2014.931508 | T191: 125.6870915 | U191: 2081.926792 | V191: 0.00125 | W191: 0.2254026956 | Y191: 2025-07-07T10:00:00 | Z191: 1071.854662 | AA191: 0
A192: System | B192: Region | C192: Island | D192: - | E192: 2026-01-08T20:00:00 | F192: 1615.587807 | G192: 33.13413882 | H192: 0.0002083333333 | I192: 0.00310785172 | K192: System | L192: Region | M192: Labrador | N192: - | O192: 2026-01-08T20:00:00 | P192: 383.8368488 | Q192: 33.66587886 | R192: 57.88863403 | S192: 1999.424656 | T192: 124.6886517 | U192: 2066.224673 | V192: 0.0002083333333 | W192: 0.00310785172 | Y192: 2025-07-08T11:00:00 | Z192: 1031.992087 | AA192: 0
A193: System | B193: Region | C193: Island | D193: - | E193: 2026-01-08T21:00:00 | F193: 1588.38974 | G193: 32.6663649 | H193: 0 | I193: 0 | K193: System | L193: Region | M193: Labrador | N193: - | O193: 2026-01-08T21:00:00 | P193: 389.5326026 | Q193: 33.56804564 | R193: 55.63071056 | S193: 1977.922343 | T193: 121.8651211 | U193: 2044.156754 | V193: 0 | W193: 0 | Y193: 2025-07-09T16:00:00 | Z193: 978.0990146 | AA193: 0
A194: System | B194: Region | C194: Island | D194: - | E194: 2026-01-08T22:00:00 | F194: 1543.825363 | G194: 31.87553516 | H194: 0 | I194: 0 | K194: System | L194: Region | M194: Labrador | N194: - | O194: 2026-01-08T22:00:00 | P194: 382.5767117 | Q194: 33.71563168 | R194: 51.99286898 | S194: 1926.402075 | T194: 117.5840358 | U194: 1991.993242 | V194: 0 | W194: 0 | Y194: 2025-07-10T10:00:00 | Z194: 1018.633849 | AA194: 0
A195: System | B195: Region | C195: Island | D195: - | E195: 2026-01-08T23:00:00 | F195: 1461.058155 | G195: 29.88431156 | H195: 0.0002083333333 | I195: 0.02882582051 | K195: System | L195: Region | M195: Labrador | N195: - | O195: 2026-01-08T23:00:00 | P195: 380.3499753 | Q195: 33.81620935 | R195: 34.74777385 | S195: 1841.40813 | T195: 98.44829475 | U195: 1905.108651 | V195: 0.0002083333333 | W195: 0.02882582051 | Y195: 2025-07-11T11:00:00 | Z195: 1050.393533 | AA195: 0
A196: System | B196: Region | C196: Island | D196: - | E196: 2026-01-09 | F196: 1412.787521 | G196: 30.86608557 | H196: 0.0002083333333 | I196: 0.0168042915 | K196: System | L196: Region | M196: Labrador | N196: - | O196: 2026-01-09 | P196: 376.2130171 | Q196: 33.96137394 | R196: 29.68073505 | S196: =F196+P196 -> 1789.000538 | T196: 94.50819457 | U196: =F196+G196+P196+Q196 -> 1853.827998 | V196: =H196 -> 0.0002083333333 | W196: 0.0168042915 | Y196: 2025-07-12T11:00:00 | Z196: 1024.631534 | AA196: 0
A197: System | B197: Region | C197: Island | D197: - | E197: 2026-01-09T01:00:00 | F197: 1395.030015 | G197: 30.70762117 | H197: 0.0002083333333 | I197: 0.01312022602 | K197: System | L197: Region | M197: Labrador | N197: - | O197: 2026-01-09T01:00:00 | P197: 382.1681495 | Q197: 33.87269951 | R197: 28.73332582 | S197: 1777.198164 | T197: =G197+Q197+R197 -> 93.3136465 | U197: 1841.778485 | V197: 0.0002083333333 | W197: 0.01312022602 | Y197: 2025-07-13T11:00:00 | Z197: =MAX(OFFSET($S$4:$S$27,(ROW()-4)*24,0)) -> 1121.23103 | AA197: =VLOOKUP(Z197,OFFSET($S$4:$V$27,(ROW()-4)*24,0),4,FALSE) -> 0
A198: System | B198: Region | C198: Island | D198: - | E198: 2026-01-09T02:00:00 | F198: 1397.630444 | G198: 30.82229734 | H198: 0 | I198: 0 | K198: System | L198: Region | M198: Labrador | N198: - | O198: 2026-01-09T02:00:00 | P198: 381.7848272 | Q198: 33.9030834 | R198: 28.816526 | S198: 1779.415271 | T198: 93.54190674 | U198: 1844.140652 | V198: 0 | W198: 0 | Y198: 2025-07-14T09:00:00 | Z198: 1036.35737 | AA198: 0
A199: System | B199: Region | C199: Island | D199: - | E199: 2026-01-09T03:00:00 | F199: 1407.049805 | G199: 30.82736849 | H199: 0 | I199: 0 | K199: System | L199: Region | M199: Labrador | N199: - | O199: 2026-01-09T03:00:00 | P199: 380.0645229 | Q199: 33.98540814 | R199: 29.37416198 | S199: 1787.114328 | T199: 94.1869386 | U199: 1851.927104 | V199: 0 | W199: 0 | Y199: 2025-07-15T16:00:00 | Z199: 962.1143389 | AA199: 0
A200: System | B200: Region | C200: Island | D200: - | E200: 2026-01-09T04:00:00 | F200: 1421.818303 | G200: 30.93015634 | H200: 0.0002083333333 | I200: 0.01740704745 | K200: System | L200: Region | M200: Labrador | N200: - | O200: 2026-01-09T04:00:00 | P200: 380.9490117 | Q200: 33.92843283 | R200: 30.1817212 | S200: 1802.767314 | T200: 95.04031036 | U200: 1867.625904 | V200: 0.0002083333333 | W200: 0.01740704745 | Y200: 2025-07-16T11:00:00 | Z200: 1028.45787 | AA200: 0
A201: System | B201: Region | C201: Island | D201: - | E201: 2026-01-09T05:00:00 | F201: 1445.453003 | G201: 31.1086688 | H201: 0 | I201: 0 | K201: System | L201: Region | M201: Labrador | N201: - | O201: 2026-01-09T05:00:00 | P201: 381.1948697 | Q201: 33.9176638 | R201: 31.59787331 | S201: 1826.647872 | T201: 96.62420592 | U201: 1891.674205 | V201: 0 | W201: 0 | Y201: 2025-07-17T09:00:00 | Z201: 998.2844679 | AA201: 0
... 2049 more rows

Sheet Run 4
A2: Island | K2: Labrador | R2: LIL Losses
A3: Parent Name | B3: Collection | C3: Child Name | D3: Category | E3: Datetime | F3: Load (MW) | G3: Transmission Losses (MW) | H3: Unserved Energy Hours (h) | I3: Unserved Energy (MW) | K3: Parent Name | L3: Collection | M3: Child Name | N3: Category | O3: Datetime | P3: Load (MW) | Q3: Transmission Losses (MW) | R3: Transmission Losses (MW) | S3: Province Total No Loss | T3: Province Loss | U3: Province Total | V3: Unserved Energy Hours (h) | W3: Unserved Energy (MW) | Y3: Daily Peak | Z3: Daily Peak Load | AA3: Average Unserved Energy Hours
A4: System | B4: Region | C4: Island | D4: - | E4: 2026-01-01 | F4: 1430.501872 | G4: 30.07313717 | H4: 0.0002083333333 | I4: 0.04378623022 | K4: System | L4: Region | M4: Labrador | N4: - | O4: 2026-01-01 | P4: 382.9807633 | Q4: 33.98559101 | R4: 31.82080438 | S4: =F4+P4 -> 1813.482636 | T4: =G4+Q4+R4 -> 95.87953256 | U4: =F4+G4+P4+Q4 -> 1877.541364 | V4: =H4 -> 0.0002083333333 | W4: 0.04378623022 | Y4: 2025-01-01T17:00:00 | Z4: =MAX(OFFSET($S$4:$S$27,(ROW()-4)*24,0)) -> 1992.525389 | AA4: =VLOOKUP(Z4,OFFSET($S$4:$V$27,(ROW()-4)*24,0),4,FALSE) -> 0.0002083333333 | AD4: LOLE | AE4: =SUM(AA4:AA368) -> 0.08458333333
A5: System | B5: Region | C5: Island | D5: - | E5: 2026-01-01T01:00:00 | F5: 1398.401076 | G5: 29.78985452 | H5: 0.0004166666667 | I5: 0.02761202953 | K5: System | L5: Region | M5: Labrador | N5: - | O5: 2026-01-01T01:00:00 | P5: 398.396723 | Q5: 33.68991964 | R5: 30.06184805 | S5: 1796.797799 | T5: =G5+Q5+R5 -> 93.54162221 | U5: 1860.277574 | V5: 0.0004166666667 | W5: 0.02761202953 | Y5: 2025-01-02T17:00:00 | Z5: =MAX(OFFSET($S$4:$S$27,(ROW()-4)*24,0)) -> 1906.411694 | AA5: =VLOOKUP(Z5,OFFSET($S$4:$V$27,(ROW()-4)*24,0),4,FALSE) -> 0.0002083333333 | AD5: LOLH | AE5: =SUM(V4:V8763) -> 0.513125
A6: System | B6: Region | C6: Island | D6: - | E6: 2026-01-01T02:00:00 | F6: 1376.314962 | G6: 29.64386006 | H6: 0.0004166666667 | I6: 0.03053143479 | K6: System | L6: Region | M6: Labrador | N6: - | O6: 2026-01-01T02:00:00 | P6: 414.0363537 | Q6: 33.40815021 | R6: 28.83796547 | S6: 1790.351316 | T6: 91.88997574 | U6: 1853.403326 | V6: 0.0004166666667 | W6: 0.03053143479 | Y6: 2025-01-03T20:00:00 | Z6: 2114.553342 | AA6: 0.003958333333 | AD6: EUE | AE6: =SUM(W4:W8763) -> 52.77599469
A7: System | B7: Region | C7: Island | D7: - | E7: 2026-01-01T03:00:00 | F7: 1361.884632 | G7: 29.50148241 | H7: 0 | I7: 0 | K7: System | L7: Region | M7: Labrador | N7: - | O7: 2026-01-01T03:00:00 | P7: 433.9283035 | Q7: 33.04052154 | R7: 28.12141383 | S7: 1795.812935 | T7: 90.66341778 | U7: 1858.354939 | V7: 0 | W7: 0 | Y7: 2025-01-04T17:00:00 | Z7: 2105.580736 | AA7: 0.003333333333 | AD7: Peak | AE7: =MAX(S4:S8763) -> 2162.034091
A8: System | B8: Region | C8: Island | D8: - | E8: 2026-01-01T04:00:00 | F8: 1360.760404 | G8: 29.56377375 | H8: 0.0002083333333 | I8: 0.007660886265 | K8: System | L8: Region | M8: Labrador | N8: - | O8: 2026-01-01T04:00:00 | P8: 427.0135795 | Q8: 33.16841123 | R8: 27.98360019 | S8: 1787.773984 | T8: 90.71578517 | U8: 1850.506169 | V8: 0.0002083333333 | W8: 0.007660886265 | Y8: 2025-01-05T19:00:00 | Z8: 1823.110534 | AA8: 0 | AD8: Loss @ Peak | AE8: =VLOOKUP(AE7,S4:T8763,2,FALSE) -> 124.0596175
A9: System | B9: Region | C9: Island | D9: - | E9: 2026-01-01T05:00:00 | F9: 1375.231416 | G9: 29.71470675 | H9: 0.0002083333333 | I9: 0.01162721108 | K9: System | L9: Region | M9: Labrador | N9: - | O9: 2026-01-01T05:00:00 | P9: 418.4105756 | Q9: 33.31453049 | R9: 28.65279661 | S9: 1793.641992 | T9: 91.68203385 | U9: 1856.671229 | V9: 0.0002083333333 | W9: 0.01162721108 | Y9: 2025-01-06T17:00:00 | Z9: 2053.428163 | AA9: 0.002708333333 | AD9: Peak with Losses | AE9: =AE7+AE8 -> 2286.093708
A10: System | B10: Region | C10: Island | D10: - | E10: 2026-01-01T06:00:00 | F10: 1403.52396 | G10: 30.62593459 | H10: 0.0004166666667 | I10: 0.0389976612 | K10: System | L10: Region | M10: Labrador | N10: - | O10: 2026-01-01T06:00:00 | P10: 438.562302 | Q10: 32.90466102 | R10: 37.92482013 | S10: 1842.086262 | T10: 101.4554157 | U10: 1905.616858 | V10: 0.0004166666667 | W10: 0.0389976612 | Y10: 2025-01-07T17:00:00 | Z10: 1981.756268 | AA10: 0.000625 | AD10: Peak Losses | AE10: =MAX(T4:T8763) -> 131.3326639
A11: System | B11: Region | C11: Island | D11: - | E11: 2026-01-01T07:00:00 | F11: 1442.468361 | G11: 31.00210818 | H11: 0 | I11: 0 | K11: System | L11: Region | M11: Labrador | N11: - | O11: 2026-01-01T07:00:00 | P11: 438.7700699 | Q11: 32.88350657 | R11: 40.88815729 | S11: 1881.238431 | T11: 104.773772 | U11: 1945.124046 | V11: 0 | W11: 0 | Y11: 2025-01-08T17:00:00 | Z11: 2032.925694 | AA11: 0.00125 | AD11: Island Peak | AE11: =MAX(F4:F8763) -> 1739.77725
A12: System | B12: Region | C12: Island | D12: - | E12: 2026-01-01T08:00:00 | F12: 1473.374239 | G12: 31.35983661 | H12: 0.000625 | I12: 0.1129368911 | K12: System | L12: Region | M12: Labrador | N12: - | O12: 2026-01-01T08:00:00 | P12: 430.3006079 | Q12: 33.03494844 | R12: 43.3155742 | S12: 1903.674847 | T12: 107.7103593 | U12: 1968.069632 | V12: 0.000625 | W12: 0.1129368911 | Y12: 2025-01-09T08:00:00 | Z12: 2061.395667 | AA12: 0.00125 | AD12: Labrador Peak | AE12: =MAX(P4:P8763) -> 469.9460648
A13: System | B13: Region | C13: Island | D13: - | E13: 2026-01-01T09:00:00 | F13: 1483.089252 | G13: 31.53576713 | H13: 0.0008333333333 | I13: 0.1161510097 | K13: System | L13: Region | M13: Labrador | N13: - | O13: 2026-01-01T09:00:00 | P13: 438.7736693 | Q13: 32.86028894 | R13: 43.83682229 | S13: 1921.862921 | T13: 108.2328784 | U13: 1986.258977 | V13: 0.0008333333333 | W13: 0.1161510097 | Y13: 2025-01-10T17:00:00 | Z13: 1894.548219 | AA13: 0 | AD13: Coincidence Factor | AE13: =AE7/(AE11+AE12) -> 0.9784184636
A14: System | B14: Region | C14: Island | D14: - | E14: 2026-01-01T10:00:00 | F14: 1493.492162 | G14: 31.69067776 | H14: 0.0002083333333 | I14: 0.04287322679 | K14: System | L14: Region | M14: Labrador | N14: - | O14: 2026-01-01T10:00:00 | P14: 439.4176197 | Q14: 32.83858755 | R14: 44.77798697 | S14: 1932.909781 | T14: 109.3072523 | U14: 1997.439047 | V14: 0.0002083333333 | W14: 0.04287322679 | Y14: 2025-01-11T20:00:00 | Z14: 1955.561169 | AA14: 0.0008333333333 | AD14: Firm Capacity | AE14: 2602.086
A15: System | B15: Region | C15: Island | D15: - | E15: 2026-01-01T11:00:00 | F15: 1510.745952 | G15: 31.90043481 | H15: 0.000625 | I15: 0.1358724023 | K15: System | L15: Region | M15: Labrador | N15: - | O15: 2026-01-01T11:00:00 | P15: 398.7676571 | Q15: 33.64625606 | R15: 46.49922229 | S15: 1909.513609 | T15: 112.0459132 | U15: 1975.0603 | V15: 0.000625 | W15: 0.1358724023 | Y15: 2025-01-12T08:00:00 | Z15: 2037.793036 | AA15: 0.000625 | AD15: Reserve Margin | AE15: =AE14-AE7 -> 440.051909
A16: System | B16: Region | C16: Island | D16: - | E16: 2026-01-01T12:00:00 | F16: 1519.765465 | G16: 32.02493961 | H16: 0.0002083333333 | I16: 0.01522926608 | K16: System | L16: Region | M16: Labrador | N16: - | O16: 2026-01-01T12:00:00 | P16: 429.0053632 | Q16: 33.09195619 | R16: 47.00498612 | S16: 1948.770828 | T16: 112.1218819 | U16: 2013.887724 | V16: 0.0002083333333 | W16: 0.01522926608 | Y16: 2025-01-13T18:00:00 | Z16: 1980.4976 | AA16: 0.0002083333333 | AD16: Reserve Margin % | AE16: =AE15/AE7 -> 0.2035360639
A17: System | B17: Region | C17: Island | D17: - | E17: 2026-01-01T13:00:00 | F17: 1519.930085 | G17: 32.05770089 | H17: 0.000625 | I17: 0.06239780653 | K17: System | L17: Region | M17: Labrador | N17: - | O17: 2026-01-01T13:00:00 | P17: 426.0298944 | Q17: 33.17219651 | R17: 47.00550093 | S17: 1945.959979 | T17: 112.2353983 | U17: 2011.189876 | V17: 0.000625 | W17: 0.06239780653 | Y17: 2025-01-14T08:00:00 | Z17: 2047.845663 | AA17: 0.002708333333 | AD17: Reserve Magin w/Loss | AE17: =AE14-AE9 -> 315.9922915
A18: System | B18: Region | C18: Island | D18: - | E18: 2026-01-01T14:00:00 | F18: 1519.743252 | G18: 32.02157689 | H18: 0.0002083333333 | I18: 0.006731221371 | K18: System | L18: Region | M18: Labrador | N18: - | O18: 2026-01-01T14:00:00 | P18: 402.980423 | Q18: 33.6754301 | R18: 47.20331442 | S18: 1922.723675 | T18: 112.9003214 | U18: 1988.420682 | V18: 0.0002083333333 | W18: 0.006731221371 | Y18: 2025-01-15T08:00:00 | Z18: 1938.065056 | AA18: 0 | AD18: Reserve Margin % w/ Loss | AE18: =AE17/AE9 -> 0.1382236828
A19: System | B19: Region | C19: Island | D19: - | E19: 2026-01-01T15:00:00 | F19: 1524.166 | G19: 32.08241203 | H19: 0.0002083333333 | I19: 0.03587062433 | K19: System | L19: Region | M19: Labrador | N19: - | O19: 2026-01-01T15:00:00 | P19: 403.3379262 | Q19: 33.64600064 | R19: 47.69750814 | S19: 1927.503927 | T19: 113.4259208 | U19: 1993.232339 | V19: 0.0002083333333 | W19: 0.03587062433 | Y19: 2025-01-16T08:00:00 | Z19: 1820.403169 | AA19: 0.0004166666667
A20: System | B20: Region | C20: Island | D20: - | E20: 2026-01-01T16:00:00 | F20: 1541.205055 | G20: 32.36693311 | H20: 0 | I20: 0 | K20: System | L20: Region | M20: Labrador | N20: - | O20: 2026-01-01T16:00:00 | P20: 402.8153548 | Q20: 33.62521719 | R20: 49.00425368 | S20: 1944.02041 | T20: 114.996404 | U20: 2010.01256 | V20: 0 | W20: 0 | Y20: 2025-01-17T18:00:00 | Z20: 1920.443597 | AA20: 0.0004166666667 | AD20: Checks
A21: System | B21: Region | C21: Island | D21: - | E21: 2026-01-01T17:00:00 | F21: 1587.853473 | G21: 33.0470021 | H21: 0.0002083333333 | I21: 0.01573982458 | K21: System | L21: Region | M21: Labrador | N21: - | O21: 2026-01-01T17:00:00 | P21: 404.6719158 | Q21: 33.55869286 | R21: 53.28525162 | S21: 1992.525389 | T21: 119.8909466 | U21: 2059.131084 | V21: 0.0002083333333 | W21: 0.01573982458 | Y21: 2025-01-18T18:00:00 | Z21: 1996.227049 | AA21: 0.0002083333333 | AD21: Island Energy (Original) | AE21: 8357
A22: System | B22: Region | C22: Island | D22: - | E22: 2026-01-01T18:00:00 | F22: 1563.065701 | G22: 32.6586571 | H22: 0.0004166666667 | I22: 0.00710591638 | K22: System | L22: Region | M22: Labrador | N22: - | O22: 2026-01-01T18:00:00 | P22: 401.9624942 | Q22: 33.61919832 | R22: 51.02073875 | S22: 1965.028196 | T22: 117.2985942 | U22: 2031.306051 | V22: 0.0004166666667 | W22: 0.00710591638 | Y22: 2025-01-19T08:00:00 | Z22: 1880.676291 | AA22: 0 | AD22: Island Energy (Escalated) | AE22: =SUM(F4:F8763)/1000 -> 8532.513041
A23: System | B23: Region | C23: Island | D23: - | E23: 2026-01-01T19:00:00 | F23: 1541.41437 | G23: 32.34018241 | H23: 0.0002083333333 | I23: 0.05580358175 | K23: System | L23: Region | M23: Labrador | N23: - | O23: 2026-01-01T19:00:00 | P23: 413.1804419 | Q23: 33.44352834 | R23: 48.95717218 | S23: 1954.594811 | T23: 114.7408829 | U23: 2020.378522 | V23: 0.0002083333333 | W23: 0.05580358175 | Y23: 2025-01-20T18:00:00 | Z23: 1726.623559 | AA23: 0.0004166666667 | AD23: Escalation Factor Check | AE23: =AE22/AE21 -> 1.021001919
A24: System | B24: Region | C24: Island | D24: - | E24: 2026-01-01T20:00:00 | F24: 1524.12521 | G24: 32.08825676 | H24: 0 | I24: 0 | K24: System | L24: Region | M24: Labrador | N24: - | O24: 2026-01-01T20:00:00 | P24: 403.1883041 | Q24: 33.68739714 | R24: 47.66853908 | S24: 1927.313514 | T24: 113.444193 | U24: 1993.089168 | V24: 0 | W24: 0 | Y24: 2025-01-21T18:00:00 | Z24: 1820.1854 | AA24: 0.0002083333333
A25: System | B25: Region | C25: Island | D25: - | E25: 2026-01-01T21:00:00 | F25: 1495.521467 | G25: 31.64835175 | H25: 0 | I25: 0 | K25: System | L25: Region | M25: Labrador | N25: - | O25: 2026-01-01T21:00:00 | P25: 389.5739911 | Q25: 33.99934913 | R25: 45.23719853 | S25: 1885.095458 | T25: 110.8848994 | U25: 1950.743159 | V25: 0 | W25: 0 | Y25: 2025-01-22T08:00:00 | Z25: 1876.798848 | AA25: 0.0002083333333 | AD25: Island Peak (Original) | AE25: 1704
A26: System | B26: Region | C26: Island | D26: - | E26: 2026-01-01T22:00:00 | F26: 1455.082554 | G26: 31.1020958 | H26: 0 | I26: 0 | K26: System | L26: Region | M26: Labrador | N26: - | O26: 2026-01-01T22:00:00 | P26: 379.3976291 | Q26: 34.23609697 | R26: 42.19308652 | S26: 1834.480184 | T26: 107.5312793 | U26: 1899.818376 | V26: 0 | W26: 0 | Y26: 2025-01-23T18:00:00 | Z26: 1916.705915 | AA26: 0.0002083333333 | AD26: Island Peak (Escalated) | AE26: =MAX(F4:F8763) -> 1739.77725
A27: System | B27: Region | C27: Island | D27: - | E27: 2026-01-01T23:00:00 | F27: 1378.868614 | G27: 29.64533773 | H27: 0.0002083333333 | I27: 0.01150639637 | K27: System | L27: Region | M27: Labrador | N27: - | O27: 2026-01-01T23:00:00 | P27: 374.7980336 | Q27: 34.38114721 | R27: 28.97284704 | S27: 1753.666647 | T27: 92.99933198 | U27: 1817.693132 | V27: 0.0002083333333 | W27: 0.01150639637 | Y27: 2025-01-24T10:00:00 | Z27: 1917.229808 | AA27: 0.0004166666667 | AD27: Escalation Factor Check | AE27: =AE26/AE25 -> 1.020996039
A28: System | B28: Region | C28: Island | D28: - | E28: 2026-01-02 | F28: 1300.409596 | G28: 22.02503935 | H28: 0.0002083333333 | I28: 0.001167690543 | K28: System | L28: Region | M28: Labrador | N28: - | O28: 2026-01-02 | P28: 385.4274972 | Q28: 34.22413709 | R28: 35.64096622 | S28: 1685.837093 | T28: 91.89014266 | U28: 1742.08627 | V28: 0.0002083333333 | W28: 0.001167690543 | Y28: 2025-01-25T18:00:00 | Z28: 1815.272642 | AA28: 0.0002083333333
A29: System | B29: Region | C29: Island | D29: - | E29: 2026-01-02T01:00:00 | F29: 1245.025745 | G29: 20.67921198 | H29: 0 | I29: 0 | K29: System | L29: Region | M29: Labrador | N29: - | O29: 2026-01-02T01:00:00 | P29: 384.0654926 | Q29: 34.30087075 | R29: 33.64193681 | S29: 1629.091238 | T29: 88.62201953 | U29: 1684.07132 | V29: 0 | W29: 0 | Y29: 2025-01-26T18:00:00 | Z29: 2026.324352 | AA29: 0.000625 | AD29: Labrador Energy (Original) | AE29: =355.7+381.7+2074.3 -> 2811.7
A30: System | B30: Region | C30: Island | D30: - | E30: 2026-01-02T02:00:00 | F30: 1224.888122 | G30: 20.2362738 | H30: 0 | I30: 0 | K30: System | L30: Region | M30: Labrador | N30: - | O30: 2026-01-02T02:00:00 | P30: 393.1066311 | Q30: 34.13113727 | R30: 32.8997385 | S30: 1617.994753 | T30: 87.26714956 | U30: 1672.362164 | V30: 0 | W30: 0 | Y30: 2025-01-27T17:00:00 | Z30: 2101.884156 | AA30: 0.002291666667 | AD30: Labrador Energy (Escalated) | AE30: =SUM(P4:P8763)/1000 -> 2870.737966
A31: System | B31: Region | C31: Island | D31: - | E31: 2026-01-02T03:00:00 | F31: 1221.773375 | G31: 20.20483234 | H31: 0 | I31: 0 | K31: System | L31: Region | M31: Labrador | N31: - | O31: 2026-01-02T03:00:00 | P31: 403.8343092 | Q31: 33.92204554 | R31: 32.7368507 | S31: 1625.607684 | T31: 86.86372857 | U31: 1679.734562 | V31: 0 | W31: 0 | Y31: 2025-01-28T08:00:00 | Z31: 1785.969304 | AA31: 0 | AD31: Escalation Factor Check | AE31: =AE30/AE29 -> 1.020997249
A32: System | B32: Region | C32: Island | D32: - | E32: 2026-01-02T04:00:00 | F32: 1230.542852 | G32: 20.4126556 | H32: 0 | I32: 0 | K32: System | L32: Region | M32: Labrador | N32: - | O32: 2026-01-02T04:00:00 | P32: 422.8203883 | Q32: 33.56823772 | R32: 33.04112779 | S32: 1653.36324 | T32: 87.02202111 | U32: 1707.344134 | V32: 0 | W32: 0 | Y32: 2025-01-29T19:00:00 | Z32: 1811.291865 | AA32: 0.000625
A33: System | B33: Region | C33: Island | D33: - | E33: 2026-01-02T05:00:00 | F33: 1248.52387 | G33: 20.79208738 | H33: 0 | I33: 0 | K33: System | L33: Region | M33: Labrador | N33: - | O33: 2026-01-02T05:00:00 | P33: 424.1914489 | Q33: 33.54278925 | R33: 33.70504804 | S33: 1672.715319 | T33: 88.03992467 | U33: 1727.050196 | V33: 0 | W33: 0 | Y33: 2025-01-30T10:00:00 | Z33: 1863.382525 | AA33: 0.0002083333333
A34: System | B34: Region | C34: Island | D34: - | E34: 2026-01-02T06:00:00 | F34: 1285.700679 | G34: 26.9772503 | H34: 0 | I34: 0 | K34: System | L34: Region | M34: Labrador | N34: - | O34: 2026-01-02T06:00:00 | P34: 426.4268928 | Q34: 33.47603032 | R34: 36.25631605 | S34: 1712.127572 | T34: 96.70959666 | U34: 1772.580853 | V34: 0 | W34: 0 | Y34: 2025-01-31T18:00:00 | Z34: 1867.753986 | AA34: 0
A35: System | B35: Region | C35: Island | D35: - | E35: 2026-01-02T07:00:00 | F35: 1353.375841 | G35: 28.45674089 | H35: 0 | I35: 0 | K35: System | L35: Region | M35: Labrador | N35: - | O35: 2026-01-02T07:00:00 | P35: 408.5402131 | Q35: 33.79697121 | R35: 39.2813834 | S35: 1761.916054 | T35: 101.5350955 | U35: 1824.169766 | V35: 0 | W35: 0 | Y35: 2025-02-01T18:00:00 | Z35: 1750.228085 | AA35: 0.0002083333333
A36: System | B36: Region | C36: Island | D36: - | E36: 2026-01-02T08:00:00 | F36: 1390.496337 | G36: 29.23750453 | H36: 0.0002083333333 | I36: 0.0241684672 | K36: System | L36: Region | M36: Labrador | N36: - | O36: 2026-01-02T08:00:00 | P36: 411.216386 | Q36: 33.70942152 | R36: 41.29914981 | S36: 1801.712723 | T36: 104.2460759 | U36: 1864.659649 | V36: 0.0002083333333 | W36: 0.0241684672 | Y36: 2025-02-02T17:00:00 | Z36: 2025.934832 | AA36: 0.000625
A37: System | B37: Region | C37: Island | D37: - | E37: 2026-01-02T09:00:00 | F37: 1429.366666 | G37: 29.98363529 | H37: 0.0002083333333 | I37: 0.02909304944 | K37: System | L37: Region | M37: Labrador | N37: - | O37: 2026-01-02T09:00:00 | P37: 432.68574 | Q37: 33.2695862 | R37: 43.52196737 | S37: 1862.052406 | T37: 106.7751889 | U37: 1925.305627 | V37: 0.0002083333333 | W37: 0.02909304944 | Y37: 2025-02-03T18:00:00 | Z37: 1917.842121 | AA37: 0.0002083333333
A38: System | B38: Region | C38: Island | D38: - | E38: 2026-01-02T10:00:00 | F38: 1429.459605 | G38: 29.95768647 | H38: 0 | I38: 0 | K38: System | L38: Region | M38: Labrador | N38: - | O38: 2026-01-02T10:00:00 | P38: 420.951433 | Q38: 33.5025407 | R38: 43.80898321 | S38: 1850.411038 | T38: 107.2692104 | U38: 1913.871265 | V38: 0 | W38: 0 | Y38: 2025-02-04T08:00:00 | Z38: 2008.539853 | AA38: 0.000625
A39: System | B39: Region | C39: Island | D39: - | E39: 2026-01-02T11:00:00 | F39: 1437.295907 | G39: 30.12382568 | H39: 0.000625 | I39: 0.07988397965 | K39: System | L39: Region | M39: Labrador | N39: - | O39: 2026-01-02T11:00:00 | P39: 429.1282223 | Q39: 33.35430248 | R39: 44.24690753 | S39: 1866.424129 | T39: 107.7250357 | U39: 1929.902257 | V39: 0.000625 | W39: 0.07988397965 | Y39: 2025-02-05T08:00:00 | Z39: 2009.18602 | AA39: 0.0004166666667
A40: System | B40: Region | C40: Island | D40: - | E40: 2026-01-02T12:00:00 | F40: 1428.619184 | G40: 29.97543428 | H40: 0.0002083333333 | I40: 0.02801778283 | K40: System | L40: Region | M40: Labrador | N40: - | O40: 2026-01-02T12:00:00 | P40: 425.9747941 | Q40: 33.42628083 | R40: 43.5778543 | S40: 1854.593978 | T40: 106.9795694 | U40: 1917.995694 | V40: 0.0002083333333 | W40: 0.02801778283 | Y40: 2025-02-06T20:00:00 | Z40: 1859.667699 | AA40: 0.000625
A41: System | B41: Region | C41: Island | D41: - | E41: 2026-01-02T13:00:00 | F41: 1406.128054 | G41: 29.5611372 | H41: 0 | I41: 0 | K41: System | L41: Region | M41: Labrador | N41: - | O41: 2026-01-02T13:00:00 | P41: 440.1671927 | Q41: 33.17092673 | R41: 42.03141327 | S41: 1846.295246 | T41: 104.7634772 | U41: 1909.02731 | V41: 0 | W41: 0 | Y41: 2025-02-07T18:00:00 | Z41: 2005.500993 | AA41: 0.0008333333333
A42: System | B42: Region | C42: Island | D42: - | E42: 2026-01-02T14:00:00 | F42: 1363.289505 | G42: 28.71336216 | H42: 0 | I42: 0 | K42: System | L42: Region | M42: Labrador | N42: - | O42: 2026-01-02T14:00:00 | P42: 439.2708169 | Q42: 33.24818222 | R42: 39.62743573 | S42: 1802.560322 | T42: 101.5889801 | U42: 1864.521866 | V42: 0 | W42: 0 | Y42: 2025-02-08T19:00:00 | Z42: 2033.535554 | AA42: 0.0008333333333
A43: System | B43: Region | C43: Island | D43: - | E43: 2026-01-02T15:00:00 | F43: 1341.737151 | G43: 28.26830396 | H43: 0.0008333333333 | I43: 0.04119526506 | K43: System | L43: Region | M43: Labrador | N43: - | O43: 2026-01-02T15:00:00 | P43: 439.6494083 | Q43: 33.24523961 | R43: 38.63692191 | S43: 1781.386559 | T43: 100.1504655 | U43: 1842.900102 | V43: 0.0008333333333 | W43: 0.04119526506 | Y43: 2025-02-09T08:00:00 | Z43: 2162.034091 | AA43: 0.008958333333
A44: System | B44: Region | C44: Island | D44: - | E44: 2026-01-02T16:00:00 | F44: 1362.096552 | G44: 28.67369099 | H44: 0.0002083333333 | I44: 0.01604791656 | K44: System | L44: Region | M44: Labrador | N44: - | O44: 2026-01-02T16:00:00 | P44: 441.0951387 | Q44: 33.19143419 | R44: 39.58164364 | S44: 1803.191691 | T44: 101.4467688 | U44: 1865.056816 | V44: 0.0002083333333 | W44: 0.01604791656 | Y44: 2025-02-10T08:00:00 | Z44: 2086.004908 | AA44: 0.002083333333
A45: System | B45: Region | C45: Island | D45: - | E45: 2026-01-02T17:00:00 | F45: 1462.173069 | G45: 30.5160164 | H45: 0.0002083333333 | I45: 0.006972511713 | K45: System | L45: Region | M45: Labrador | N45: - | O45: 2026-01-02T17:00:00 | P45: 444.2386243 | Q45: 33.04779167 | R45: 45.8760791 | S45: 1906.411694 | T45: 109.4398872 | U45: 1969.975502 | V45: 0.0002083333333 | W45: 0.006972511713 | Y45: 2025-02-11T18:00:00 | Z45: 1892.213648 | AA45: 0.0002083333333
